Workbook

Sheet Summary
A1: 분 전
A2: minutes
A3: 일전
A4: days
A5: 시간 전
A6: hours
A7: 방금
A8: 1 minutes
A10: 브론즈
A11: Bronze
A12: 실버
A13: Silver
A14: 골드
A15: Gold
A16: 플래티넘
A17: Platinum
A18: 다이아몬드
A19: Diamond
A20: 마스터
A21: Master
A22: 그랜드마스터
A23: Grandmaster
A25: =A2&"-"&C2&"|"&F2&"-"&H2&"|"&K2&"-"&M2&"|"&P2&"-"&R2

Sheet Analysis - 1v1
A1: Week Start | B1: Bonus Pool Per Week (Sub-Masters) | C1: Bonus Pool Per Week (Masters+GM) | D1: Cum. Bonus Pool (Sub-Masters) | E1: Cum. Bonus Pool (Masters+GM) | F1: Week # | H1: Program Run Notes
A2: 2014-07-07 | B2: 104.4 | C2: 180 | D2: =B2 -> 104.4 | E2: =C2 -> 180 | F2: 1 | H2: 7/29/2014 runtime:
A3: 2014-07-14 | B3: 104.4 | C3: 180 | D3: =D2+B3 -> 208.8 | E3: =E2+C3 -> 360 | F3: =F2+1 -> 2 | H3: start | I3: 2014-07-21T16:36:39
A4: 2014-07-21 | B4: 104.4 | C4: 180 | D4: =D3+B4 -> 313.2 | E4: =E3+C4 -> 540 | F4: =F3+1 -> 3 | H4: end | I4: 2014-07-22T00:17:21
A5: 2014-07-28 | B5: 104.4 | C5: 180 | D5: 417.6 | E5: 720 | F5: 4
A6: 2014-08-04 | B6: 104.4 | C6: 180 | D6: =D5+B6 -> 522 | E6: =E5+C6 -> 900 | F6: 5 | H6: 2014-08-27
A7: 2014-08-11 | B7: 104.4 | C7: 180 | D7: =D6+B7 -> 626.4 | E7: =E6+C7 -> 1080 | F7: 6 | H7: start | I7: 2014-08-26T21:31:02
A8: 2014-08-18 | B8: 104.4 | C8: 180 | D8: 730.8 | E8: 1260 | F8: 7 | H8: end | I8: 2014-08-27T01:47:55
A9: 2014-08-25 | B9: 104.4 | C9: 180 | D9: 835.2 | E9: 1440 | F9: 8 | G9: <-
A10: 2014-09-01 | B10: 104.4 | C10: 180 | D10: =D9+B10 -> 939.6 | E10: =E9+C10 -> 1620 | F10: 9
A11: 2014-09-08 | B11: 104.4 | C11: 180 | D11: 1044 | E11: 1800 | F11: 10
A12: 2014-09-15 | B12: 104.4 | C12: 180 | D12: 1148.4 | E12: 1980 | F12: 11
A13: 2014-09-22 | B13: 104.4 | C13: 180 | D13: 1252.8 | E13: 2160 | F13: 12
A14: 2014-09-29 | B14: 104.4 | C14: 180 | F14: 13
A15: 2014-10-06 | B15: 104.4 | C15: 180 | F15: 14
A16: 2014-10-13 | B16: 104.4 | C16: 180 | F16: 15
A17: 2014-10-20 | B17: 104.4 | C17: 180 | F17: 16
A18: 2014-10-27 | B18: 104.4 | C18: 180 | F18: 17
A19: 11/3/2014 (season lock) | B19: 104.4 | C19: 180 | F19: 18
A20: 2014-11-10 | B20: 104.4 | C20: 180 | F20: 19
A23: Raw Counts | K23: % Distributions | R23: Weeks Behind Averager: | S23: 8
A24: Weeks Remaining | B24: Bronze | C24: Silver | D24: Gold | E24: Platinum | F24: Diamond | G24: Master | H24: Grandmaster | I24: Totals | J24: Percentages of Total | K24: Bronze | L24: Silver | M24: Gold | N24: Platinum | O24: Diamond | P24: Master | R24: Bronze | S24: Silver | T24: Gold | U24: Platinum | V24: Diamond | W24: Master
A25: 1 | B25: 151 | C25: 360 | D25: 1876 | E25: 1440 | F25: 1420 | G25: 128 | H25: 197 | I25: =SUM(B25:H25) -> 5572 | J25: =I25/$I$44 -> 0.1040717221 | K25: =B25/$I25 -> 0.02709978464 | L25: =C25/$I25 -> 0.06460875808 | M25: =D25/$I25 -> 0.3366834171 | N25: =E25/$I25 -> 0.2584350323 | O25: =F25/$I25 -> 0.2548456569 | P25: =G25/$I25 -> 0.02297200287 | R25: =AVERAGEIFS(K25:K43,$A$25:$A$43,"<=8") -> 0.03234841079 | S25: =AVERAGEIFS(L25:L43,$A$25:$A$43,"<=8") -> 0.1152434364 | T25: =AVERAGEIFS(M25:M43,$A$25:$A$43,"<=8") -> 0.4093141256 | U25: =AVERAGEIFS(N25:N43,$A$25:$A$43,"<=8") -> 0.2347520171 | V25: =AVERAGEIFS(O25:O43,$A$25:$A$43,"<=8") -> 0.1731800963 | W25: =AVERAGEIFS(P25:P43,$A$25:$A$43,"<=8") -> 0.03074249542
A26: 2 | B26: 50 | C26: 160 | D26: 657 | E26: 486 | F26: 352 | G26: 48 | I26: =SUM(B26:H26) -> 1753 | J26: =I26/$I$44 -> 0.03274187523 | K26: =B26/$I26 -> 0.0285225328 | L26: =C26/$I26 -> 0.09127210496 | M26: =D26/$I26 -> 0.374786081 | N26: =E26/$I26 -> 0.2772390188 | O26: =F26/$I26 -> 0.2007986309 | P26: =G26/$I26 -> 0.02738163149
A27: 3 | B27: 51 | C27: 138 | D27: 530 | E27: 359 | F27: 261 | G27: 50 | I27: 1389 | J27: 0.02594322002 | K27: 0.03671706263 | L27: 0.09935205184 | M27: 0.3815694744 | N27: 0.2584593233 | O27: 0.1879049676 | P27: 0.03599712023
A28: 4 | B28: 60 | C28: 175 | D28: 632 | E28: 395 | F28: 291 | G28: 55 | I28: 1608 | J28: 0.03003361972 | K28: 0.03731343284 | L28: 0.1088308458 | M28: 0.3930348259 | N28: 0.2456467662 | O28: 0.1809701493 | P28: 0.0342039801
A29: 5 | B29: 61 | C29: 194 | D29: 696 | E29: 390 | F29: 289 | G29: 62 | I29: 1692 | J29: 0.03160254016 | K29: 0.03605200946 | L29: 0.1146572104 | M29: 0.4113475177 | N29: 0.2304964539 | O29: 0.1708037825 | P29: 0.036643026
A30: 6 | B30: 71 | C30: 261 | D30: 806 | E30: 439 | F30: 281 | G30: 63 | I30: 1921 | J30: 0.0358797161 | K30: 0.03695991671 | L30: 0.1358667361 | M30: 0.419573139 | N30: 0.228526809 | O30: 0.1462779802 | P30: 0.03279541905
A31: 7 | B31: 64 | C31: 339 | D31: 1088 | E31: 453 | F31: 312 | G31: 62 | I31: 2318 | J31: 0.04329473291 | K31: 0.02761000863 | L31: 0.1462467645 | M31: 0.4693701467 | N31: 0.1954270923 | O31: 0.1345987921 | P31: 0.02674719586
A32: 8 | B32: 83 | C32: 469 | D32: 1421 | E32: 535 | F32: 318 | G32: 85 | I32: =SUM(B32:H32) -> 2911 | J32: =I32/$I$44 -> 0.05437056406 | K32: =B32/$I32 -> 0.02851253865 | L32: =C32/$I32 -> 0.1611130196 | M32: =D32/$I32 -> 0.4881484026 | N32: =E32/$I32 -> 0.1837856407 | O32: =F32/$I32 -> 0.1092408107 | P32: =G32/$I32 -> 0.02919958777
A33: 9 | B33: 152 | C33: 778 | D33: 1867 | E33: 580 | F33: 335 | G33: 90 | I33: =SUM(B33:H33) -> 3802 | J33: 0.07101232723 | K33: =B33/$I33 -> 0.03997895844 | L33: =C33/$I33 -> 0.2046291426 | M33: =D33/$I33 -> 0.4910573382 | N33: =E33/$I33 -> 0.1525512888 | O33: =F33/$I33 -> 0.08811152025 | P33: =G33/$I33 -> 0.02367175171
A34: 10 | B34: 283 | C34: 1872 | D34: 2486 | E34: 620 | F34: 352 | G34: 98 | I34: 5711 | J34: 0.1066679118 | K34: 0.04955349326 | L34: 0.3277884784 | M34: 0.4353002977 | N34: 0.1085624234 | O34: 0.06163544038 | P34: 0.01715986692
A35: 11 | B35: 1328 | C35: 6448 | D35: 3498 | E35: 1072 | F35: 472 | G35: 118 | I35: 12936 | J35: 0.2416137467 | K35: 0.1026592455 | L35: 0.498453927 | M35: 0.2704081633 | N35: 0.08286951144 | O35: 0.0364873222 | P35: 0.00912183055
A36: =A35+1 -> 12 | B36: 2157 | C36: 6110 | D36: 2396 | E36: 930 | F36: 282 | G36: 52 | I36: 11927 | J36: 0.2227680239 | K36: 0.1808501719 | L36: 0.5122830553 | M36: 0.2008887398 | N36: 0.07797434393 | O36: 0.02364383332 | P36: 0.004359855789
A37: =A36+1 -> 13 | B37: 0 | C37: 0 | D37: 0 | E37: 0 | F37: 0 | G37: 0
A38: 14
A39: 15
A40: 16
A41: 17
A42: 18
A43: 19
A44: Totals | B44: =SUM(B25:B43) -> 4511 | C44: =SUM(C25:C43) -> 17304 | D44: 17953 | E44: 7699 | F44: 4965 | G44: 911 | H44: 197 | I44: =SUM(I25:I43) -> 53540 | K44: =B44/$I44 -> 0.08425476279 | L44: =C44/$I44 -> 0.3231976093 | M44: =D44/$I44 -> 0.3353193874 | N44: =E44/$I44 -> 0.1437990288 | O44: =F44/$I44 -> 0.09273440418 | P44: =G44/$I44 -> 0.01701531565
J45: Targets: | K45: 0.08 | L45: 0.2 | M45: 0.32 | N45: 0.2 | O45: 0.18 | P45: 0.02
A47: For Reddit tables
A48: =A25&"* | "&B25&" | "&C25&" | "&D25&" | "&E25&" | "&F25&" | "&G25 -> 1* | 151 | 360 | 1876 | 1440 | 1420 | 128 | K48: =A25&"* | "&ROUNDDOWN(K25,4)*100&"% | "&ROUNDDOWN(L25,4)*100&"% | "&ROUNDDOWN(M25,4)*100&"% | "&ROUNDDOWN(N25,4)*100&"% | "&ROUNDDOWN(O25,4)*100&"% | "&ROUNDDOWN(P25,4)*100&"%" -> 1* | 2.7% | 6.46% | 33.66% | 25.84% | 25.48% | 2.29%
A49: =A26&" | "&B26&" | "&C26&" | "&D26&" | "&E26&" | "&F26&" | "&G26 -> 2 | 50 | 160 | 657 | 486 | 352 | 48 | K49: =A26&" | "&ROUNDDOWN(K26,4)*100&"% | "&ROUNDDOWN(L26,4)*100&"% | "&ROUNDDOWN(M26,4)*100&"% | "&ROUNDDOWN(N26,4)*100&"% | "&ROUNDDOWN(O26,4)*100&"% | "&ROUNDDOWN(P26,4)*100&"%" -> 2 | 2.85% | 9.12% | 37.47% | 27.72% | 20.07% | 2.73%
A50: 3 | 51 | 138 | 530 | 359 | 261 | 50 | K50: 3 | 3.67% | 9.93% | 38.15% | 25.84% | 18.79% | 3.59%
A51: 4 | 60 | 175 | 632 | 395 | 291 | 55 | K51: 4 | 3.73% | 10.88% | 39.3% | 24.56% | 18.09% | 3.42%
A52: 5 | 61 | 194 | 696 | 390 | 289 | 62 | K52: 5 | 3.6% | 11.46% | 41.13% | 23.04% | 17.08% | 3.66%
A53: 6 | 71 | 261 | 806 | 439 | 281 | 63 | K53: 6 | 3.69% | 13.58% | 41.95% | 22.85% | 14.62% | 3.27%
A54: 7 | 64 | 339 | 1088 | 453 | 312 | 62 | K54: 7 | 2.76% | 14.62% | 46.93% | 19.54% | 13.45% | 2.67%
A55: 8 | 83 | 469 | 1421 | 535 | 318 | 85 | K55: 8 | 2.85% | 16.11% | 48.81% | 18.37% | 10.92% | 2.91%
A56: 9 | 152 | 778 | 1867 | 580 | 335 | 90 | K56: 9 | 3.99% | 20.46% | 49.1% | 15.25% | 8.81% | 2.36%
A57: 10 | 283 | 1872 | 2486 | 620 | 352 | 98 | K57: 10 | 4.95% | 32.77% | 43.53% | 10.85% | 6.16% | 1.71%
A58: =A35&" | "&B35&" | "&C35&" | "&D35&" | "&E35&" | "&F35&" | "&G35 -> 11 | 1328 | 6448 | 3498 | 1072 | 472 | 118 | K58: =A35&" | "&ROUNDDOWN(K35,4)*100&"% | "&ROUNDDOWN(L35,4)*100&"% | "&ROUNDDOWN(M35,4)*100&"% | "&ROUNDDOWN(N35,4)*100&"% | "&ROUNDDOWN(O35,4)*100&"% | "&ROUNDDOWN(P35,4)*100&"%" -> 11 | 10.26% | 49.84% | 27.04% | 8.28% | 3.64% | 0.91%
A59: =A36&" | "&B36&" | "&C36&" | "&D36&" | "&E36&" | "&F36&" | "&G36 -> 12 | 2157 | 6110 | 2396 | 930 | 282 | 52 | K59: =A36&" | "&ROUNDDOWN(K36,4)*100&"% | "&ROUNDDOWN(L36,4)*100&"% | "&ROUNDDOWN(M36,4)*100&"% | "&ROUNDDOWN(N36,4)*100&"% | "&ROUNDDOWN(O36,4)*100&"% | "&ROUNDDOWN(P36,4)*100&"%" -> 12 | 18.08% | 51.22% | 20.08% | 7.79% | 2.36% | 0.43%
A60: 13 | 0 | 0 | 0 | 0 | 0 | 0 | K60: 13 | 0% | 0% | 0% | 0% | 0% | 0%
A61: 14 | | | | | | | K61: 14 | 0% | 0% | 0% | 0% | 0% | 0%
A62: 15 | | | | | | | K62: 15 | 0% | 0% | 0% | 0% | 0% | 0%
A63: 16 | | | | | | | K63: 16 | 0% | 0% | 0% | 0% | 0% | 0%
A64: 17 | | | | | | | K64: 17 | 0% | 0% | 0% | 0% | 0% | 0%
A65: 18 | | | | | | | K65: 18 | 0% | 0% | 0% | 0% | 0% | 0%
A66: 19 | | | | | | | K66: 19 | 0% | 0% | 0% | 0% | 0% | 0%
A70: Race Stats
B71: Bronze | F71: Silver | J71: Gold | N71: Platinum | R71: Diamond | V71: Master | Z71: Grandmaster | AD71: Totals | AH71: Totals Overall
A72: Weeks Remaining | B72: Z | C72: T | D72: P | E72: R | F72: Z | G72: T | H72: P | I72: R | J72: Z | K72: T | L72: P | M72: R | N72: Z | O72: T | P72: P | Q72: R | R72: Z | S72: T | T72: P | U72: R | V72: Z | W72: T | X72: P | Y72: R | Z72: Z | AA72: T | AB72: P | AC72: R | AD72: Z | AE72: T | AF72: P | AG72: R
A73: 1 | B73: 31 | C73: 58 | D73: 46 | E73: 16 | F73: 59 | G73: 126 | H73: 135 | I73: 40 | J73: 442 | K73: 589 | L73: 625 | M73: 220 | N73: 416 | O73: 449 | P73: 439 | Q73: 136 | R73: 404 | S73: 494 | T73: 428 | U73: 94 | V73: 37 | W73: 51 | X73: 37 | Y73: 3 | Z73: 60 | AA73: 67 | AB73: 66 | AC73: 4 | AD73: =B73+F73+J73+N73+R73+V73+Z73 -> 1449 | AE73: =C73+G73+K73+O73+S73+W73+AA73 -> 1834 | AF73: 1776 | AG73: 513 | AH73: =SUM(AD73:AG73) -> 5572
A74: 2 | B74: 6 | C74: 22 | D74: 19 | E74: 3 | F74: 21 | G74: 67 | H74: 48 | I74: 24 | J74: 158 | K74: 195 | L74: 225 | M74: 79 | N74: 137 | O74: 156 | P74: 137 | Q74: 56 | R74: 117 | S74: 113 | T74: 103 | U74: 19 | V74: 15 | W74: 15 | X74: 13 | Y74: 5 | AD74: =B74+F74+J74+N74+R74+V74+Z74 -> 454 | AE74: 568 | AF74: 545 | AG74: 186 | AH74: =SUM(AD74:AG74) -> 1753
A75: 3 | B75: 7 | C75: 20 | D75: 20 | E75: 4 | F75: 24 | G75: 46 | H75: 53 | I75: 15 | J75: 132 | K75: 165 | L75: 179 | M75: 54 | N75: 110 | O75: 112 | P75: 108 | Q75: 29 | R75: 80 | S75: 100 | T75: 69 | U75: 12 | V75: 15 | W75: 18 | X75: 14 | Y75: 3 | AD75: 368 | AE75: 461 | AF75: 443 | AG75: 117 | AH75: 1389
A76: 4 | B76: 5 | C76: 17 | D76: 32 | E76: 6 | F76: 40 | G76: 60 | H76: 53 | I76: 22 | J76: 165 | K76: 185 | L76: 213 | M76: 69 | N76: 119 | O76: 120 | P76: 124 | Q76: 32 | R76: 81 | S76: 111 | T76: 83 | U76: 16 | V76: 19 | W76: 15 | X76: 19 | Y76: 2 | AD76: 429 | AE76: 508 | AF76: 524 | AG76: 147 | AH76: 1608
A77: 5 | B77: 16 | C77: 16 | D77: 27 | E77: 2 | F77: 36 | G77: 66 | H77: 71 | I77: 21 | J77: 153 | K77: 196 | L77: 267 | M77: 80 | N77: 125 | O77: 123 | P77: 108 | Q77: 34 | R77: 86 | S77: 100 | T77: 86 | U77: 17 | V77: 14 | W77: 20 | X77: 25 | Y77: 3 | AD77: 430 | AE77: 521 | AF77: 584 | AG77: 157 | AH77: 1692
A78: 6 | B78: 18 | C78: 27 | D78: 21 | E78: 5 | F78: 54 | G78: 92 | H78: 89 | I78: 26 | J78: 214 | K78: 248 | L78: 249 | M78: 95 | N78: 135 | O78: 125 | P78: 141 | Q78: 38 | R78: 88 | S78: 90 | T78: 85 | U78: 18 | V78: 19 | W78: 24 | X78: 18 | Y78: 2 | AD78: 528 | AE78: 606 | AF78: 603 | AG78: 184 | AH78: 1921
A79: 7 | B79: 11 | C79: 22 | D79: 24 | E79: 7 | F79: 72 | G79: 108 | H79: 130 | I79: 29 | J79: 308 | K79: 287 | L79: 365 | M79: 128 | N79: 146 | O79: 140 | P79: 126 | Q79: 41 | R79: 92 | S79: 105 | T79: 94 | U79: 21 | V79: 12 | W79: 23 | X79: 27 | AD79: 641 | AE79: 685 | AF79: 766 | AG79: 226 | AH79: 2318
A80: 8 | B80: 19 | C80: 28 | D80: 30 | E80: 6 | F80: 89 | G80: 171 | H80: 158 | I80: 51 | J80: 396 | K80: 413 | L80: 467 | M80: 145 | N80: 151 | O80: 187 | P80: 155 | Q80: 42 | R80: 91 | S80: 111 | T80: 95 | U80: 21 | V80: 32 | W80: 20 | X80: 30 | Y80: 3 | AD80: =B80+F80+J80+N80+R80+V80+Z80 -> 778 | AE80: =C80+G80+K80+O80+S80+W80+AA80 -> 930 | AF80: =D80+H80+L80+P80+T80+X80+AB80 -> 935 | AG80: =E80+I80+M80+Q80+U80+Y80+AC80 -> 268
A81: 9 | B81: 33 | C81: 64 | D81: 43 | E81: 12 | F81: 169 | G81: 244 | H81: 285 | I81: 80 | J81: 508 | K81: 545 | L81: 593 | M81: 221 | N81: 201 | O81: 174 | P81: 163 | Q81: 42 | R81: 96 | S81: 116 | T81: 95 | U81: 28 | V81: 29 | W81: 26 | X81: 30 | Y81: 5 | AD81: =B81+F81+J81+N81+R81+V81+Z81 -> 1036 | AE81: =C81+G81+K81+O81+S81+W81+AA81 -> 1169 | AF81: =D81+H81+L81+P81+T81+X81+AB81 -> 1209 | AG81: =E81+I81+M81+Q81+U81+Y81+AC81 -> 388
A82: 10 | B82: 60 | C82: 103 | D82: 103 | E82: 17 | F82: 412 | G82: 583 | H82: 667 | I82: 210 | J82: 674 | K82: 736 | L82: 780 | M82: 296 | N82: 183 | O82: 203 | P82: 169 | Q82: 65 | R82: 115 | S82: 101 | T82: 112 | U82: 24 | V82: 24 | W82: 32 | X82: 36 | Y82: 6 | AD82: 1468 | AE82: 1758 | AF82: 1867 | AG82: 618
A83: 11 | B83: 298 | C83: 466 | D83: 440 | E83: 124 | F83: 1655 | G83: 1997 | H83: 2074 | I83: 722 | J83: 1028 | K83: 1042 | L83: 1023 | M83: 405 | N83: 315 | O83: 360 | P83: 318 | Q83: 79 | R83: 141 | S83: 139 | T83: 160 | U83: 32 | V83: 41 | W83: 33 | X83: 39 | Y83: 5 | AD83: 3478 | AE83: 4037 | AF83: 4054 | AG83: 1367
A84: =A83+1 -> 12 | B84: 509 | C84: 775 | D84: 666 | E84: 207 | F84: 1463 | G84: 1965 | H84: 2010 | I84: 672 | J84: 656 | K84: 730 | L84: 772 | M84: 238 | N84: 279 | O84: 303 | P84: 251 | Q84: 97 | R84: 92 | S84: 96 | T84: 71 | U84: 23 | V84: 15 | W84: 17 | X84: 16 | Y84: 4 | AD84: 3014 | AE84: 3886 | AF84: 3786 | AG84: 1241
A85: =A84+1 -> 13
A86: 14
A87: 15
A88: 16
A89: 17
A90: 18
A91: 19
A92: Totals | B92: =SUM(B73:B83) -> 504 | C92: =SUM(C73:C83) -> 843 | D92: 805 | E92: 202 | F92: 2631 | G92: 3560 | H92: 3763 | I92: 1240 | J92: 4178 | K92: 4601 | L92: 4986 | M92: 1792 | N92: 2038 | O92: 2149 | P92: 1988 | Q92: 594 | R92: 1391 | S92: 1580 | T92: 1410 | U92: 302 | V92: 257 | W92: 277 | X92: 288 | Y92: 37 | Z92: 60 | AA92: 67 | AB92: 66 | AC92: 4 | AD92: =SUM(AD73:AD83) -> 11059 | AE92: 13077 | AF92: 13306 | AG92: 4171
A96: Percentages Race Stats
B97: Bronze | F97: Silver | J97: Gold | N97: Platinum | R97: Diamond | V97: Master | Z97: Grandmaster | AD97: Totals
A98: Weeks Remaining | B98: Z | C98: T | D98: P | E98: R | F98: Z | G98: T | H98: P | I98: R | J98: Z | K98: T | L98: P | M98: R | N98: Z | O98: T | P98: P | Q98: R | R98: Z | S98: T | T98: P | U98: R | V98: Z | W98: T | X98: P | Y98: R | Z98: Z | AA98: T | AB98: P | AC98: R | AD98: Z | AE98: T | AF98: P | AG98: R
A99: 1 | B99: =B73/$B25 -> 0.2052980132 | C99: 0.3841059603 | D99: 0.3046357616 | E99: 0.1059602649 | F99: =F73/$C25 -> 0.1638888889 | G99: 0.35 | H99: 0.375 | I99: 0.1111111111 | J99: =J73/$D25 -> 0.2356076759 | K99: 0.3139658849 | L99: 0.3331556503 | M99: 0.1172707889 | N99: =N73/$E25 -> 0.2888888889 | O99: 0.3118055556 | P99: 0.3048611111 | Q99: 0.09444444444 | R99: =R73/$F25 -> 0.2845070423 | S99: 0.3478873239 | T99: 0.3014084507 | U99: 0.0661971831 | V99: =V73/$G25 -> 0.2890625 | W99: 0.3984375 | X99: 0.2890625 | Y99: 0.0234375 | Z99: =Z73/$H25 -> 0.3045685279 | AA99: 0.3401015228 | AB99: =AB73/$H25 -> 0.3350253807 | AC99: =AC73/$H25 -> 0.02030456853 | AD99: =AD73/$I25 -> 0.2600502513 | AE99: 0.3291457286 | AF99: 0.3187365398 | AG99: 0.09206748026
A100: 2 | B100: 0.12 | C100: 0.44 | D100: 0.38 | E100: 0.06 | F100: 0.13125 | G100: 0.41875 | H100: 0.3 | I100: 0.15 | J100: 0.2404870624 | K100: 0.296803653 | L100: 0.3424657534 | M100: 0.1202435312 | N100: 0.2818930041 | O100: 0.3209876543 | P100: 0.2818930041 | Q100: 0.1152263374 | R100: 0.3323863636 | S100: 0.3210227273 | T100: 0.2926136364 | U100: 0.05397727273 | V100: 0.3125 | W100: 0.3125 | X100: 0.2708333333 | Y100: 0.1041666667 | AB100: =AH74/$H26 ->  | AD100: 0.2589845978 | AE100: 0.3240159726 | AF100: 0.3108956075 | AG100: 0.106103822
A101: 3 | B101: 0.137254902 | C101: 0.3921568627 | D101: 0.3921568627 | E101: 0.07843137255 | F101: 0.1739130435 | G101: 0.3333333333 | H101: 0.384057971 | I101: 0.1086956522 | J101: 0.2490566038 | K101: 0.3113207547 | L101: 0.3377358491 | M101: 0.1018867925 | N101: 0.3064066852 | O101: 0.3119777159 | P101: 0.3008356546 | Q101: 0.08077994429 | R101: 0.30651341 | S101: 0.3831417625 | T101: 0.2643678161 | U101: 0.04597701149 | V101: 0.3 | W101: 0.36 | X101: 0.28 | Y101: 0.06 | AD101: 0.2649388049 | AE101: 0.3318934485 | AF101: 0.3189344852 | AG101: 0.08423326134
A102: 4 | B102: 0.08333333333 | C102: 0.2833333333 | D102: 0.5333333333 | E102: 0.1 | F102: 0.2285714286 | G102: 0.3428571429 | H102: 0.3028571429 | I102: 0.1257142857 | J102: 0.2610759494 | K102: 0.292721519 | L102: 0.3370253165 | M102: 0.1091772152 | N102: 0.3012658228 | O102: 0.3037974684 | P102: 0.3139240506 | Q102: 0.08101265823 | R102: 0.2783505155 | S102: 0.381443299 | T102: 0.2852233677 | U102: 0.05498281787 | V102: 0.3454545455 | W102: 0.2727272727 | X102: 0.3454545455 | Y102: 0.03636363636 | AD102: 0.2667910448 | AE102: 0.315920398 | AF102: 0.3258706468 | AG102: 0.09141791045
A103: 5 | B103: 0.262295082 | C103: 0.262295082 | D103: 0.4426229508 | E103: 0.03278688525 | F103: 0.1855670103 | G103: 0.3402061856 | H103: 0.3659793814 | I103: 0.1082474227 | J103: 0.2198275862 | K103: 0.2816091954 | L103: 0.3836206897 | M103: 0.1149425287 | N103: 0.3205128205 | O103: 0.3153846154 | P103: 0.2769230769 | Q103: 0.08717948718 | R103: 0.2975778547 | S103: 0.3460207612 | T103: 0.2975778547 | U103: 0.05882352941 | V103: 0.2258064516 | W103: 0.3225806452 | X103: 0.4032258065 | Y103: 0.04838709677 | AD103: 0.2541371158 | AE103: 0.3079196217 | AF103: 0.3451536643 | AG103: 0.09278959811
A104: 6 | B104: 0.2535211268 | C104: 0.3802816901 | D104: 0.2957746479 | E104: 0.07042253521 | F104: 0.2068965517 | G104: 0.3524904215 | H104: 0.3409961686 | I104: 0.09961685824 | J104: 0.2655086849 | K104: 0.3076923077 | L104: 0.3089330025 | M104: 0.117866005 | N104: 0.3075170843 | O104: 0.284738041 | P104: 0.3211845103 | Q104: 0.08656036446 | R104: 0.3131672598 | S104: 0.3202846975 | T104: 0.3024911032 | U104: 0.0640569395 | V104: 0.3015873016 | W104: 0.380952381 | X104: 0.2857142857 | Y104: 0.03174603175 | AD104: 0.2748568454 | AE104: 0.3154606976 | AF104: 0.3138990109 | AG104: 0.09578344612
A105: 7 | B105: 0.171875 | C105: 0.34375 | D105: 0.375 | E105: 0.109375 | F105: 0.2123893805 | G105: 0.3185840708 | H105: 0.383480826 | I105: 0.08554572271 | J105: 0.2830882353 | K105: 0.2637867647 | L105: 0.3354779412 | M105: 0.1176470588 | N105: 0.3222958057 | O105: 0.3090507726 | P105: 0.2781456954 | Q105: 0.09050772627 | R105: 0.2948717949 | S105: 0.3365384615 | T105: 0.3012820513 | U105: 0.06730769231 | V105: 0.1935483871 | W105: 0.3709677419 | X105: 0.435483871 | Y105: 0 | AD105: 0.2765314927 | AE105: 0.2955133736 | AF105: 0.3304572908 | AG105: 0.09749784297
A106: 8 | B106: 0.2289156627 | C106: 0.3373493976 | D106: 0.3614457831 | E106: 0.07228915663 | F106: 0.1897654584 | G106: 0.3646055437 | H106: 0.3368869936 | I106: 0.1087420043 | J106: 0.278676988 | K106: 0.2906403941 | L106: 0.3286418015 | M106: 0.1020408163 | N106: 0.2822429907 | O106: 0.3495327103 | P106: 0.2897196262 | Q106: 0.0785046729 | R106: 0.286163522 | S106: 0.3490566038 | T106: 0.2987421384 | U106: 0.06603773585 | V106: 0.3764705882 | W106: 0.2352941176 | X106: 0.3529411765 | Y106: 0.03529411765 | AD106: 0.2672621092 | AE106: 0.3194778427 | AF106: 0.3211954655 | AG106: 0.09206458262
A107: 9 | B107: =B81/$B33 -> 0.2171052632 | C107: 0.4210526316 | D107: 0.2828947368 | E107: 0.07894736842 | F107: =F81/$C33 -> 0.2172236504 | G107: 0.3136246787 | H107: 0.3663239075 | I107: 0.1028277635 | J107: =J81/$D33 -> 0.2720942689 | K107: 0.2919121585 | L107: 0.3176218532 | M107: 0.1183717193 | N107: =N81/$E33 -> 0.3465517241 | O107: 0.3 | P107: 0.2810344828 | Q107: 0.0724137931 | R107: =R81/$F33 -> 0.2865671642 | S107: 0.3462686567 | T107: 0.2835820896 | U107: 0.08358208955 | V107: =V81/$G33 -> 0.3222222222 | W107: 0.2888888889 | X107: 0.3333333333 | Y107: 0.05555555556 | Z107: =Z81/$H33 ->  | AB107: =AH81/$H33 ->  | AD107: =AD81/$I33 -> 0.2724881641 | AE107: 0.3074697528 | AF107: 0.3179905313 | AG107: 0.1020515518
A108: 10 | B108: =B82/$B34 -> 0.2120141343 | C108: 0.3639575972 | D108: 0.3639575972 | E108: 0.06007067138 | F108: =F82/$C34 -> 0.2200854701 | G108: 0.3114316239 | H108: 0.3563034188 | I108: 0.1121794872 | J108: =J82/$D34 -> 0.2711182623 | K108: 0.2960579244 | L108: 0.3137570394 | M108: 0.1190667739 | N108: =N82/$E34 -> 0.2951612903 | O108: 0.3274193548 | P108: 0.2725806452 | Q108: 0.1048387097 | R108: =R82/$F34 -> 0.3267045455 | S108: 0.2869318182 | T108: 0.3181818182 | U108: 0.06818181818 | V108: =V82/$G34 -> 0.2448979592 | W108: 0.3265306122 | X108: 0.3673469388 | Y108: 0.0612244898 | Z108: =Z82/$H34 ->  | AD108: =AD82/$I34 -> 0.2570478025 | AE108: 0.3078270005 | AF108: 0.326912975 | AG108: 0.108212222
A109: 11 | B109: =B83/$B35 -> 0.2243975904 | C109: 0.3509036145 | D109: 0.3313253012 | E109: 0.09337349398 | F109: =F83/$C35 -> 0.2566687345 | G109: 0.3097084367 | H109: 0.3216501241 | I109: 0.1119727047 | J109: =J83/$D35 -> 0.2938822184 | K109: 0.2978845054 | L109: 0.2924528302 | M109: 0.115780446 | N109: =N83/$E35 -> 0.2938432836 | O109: 0.3358208955 | P109: 0.296641791 | Q109: 0.07369402985 | R109: =R83/$F35 -> 0.2987288136 | S109: 0.2944915254 | T109: 0.3389830508 | U109: 0.06779661017 | V109: =V83/$G35 -> 0.3474576271 | W109: 0.2796610169 | X109: 0.3305084746 | Y109: 0.04237288136 | Z109: =Z83/$H35 ->  | AD109: =AD83/$I35 -> 0.2688620903 | AE109: 0.3120748299 | AF109: 0.313388992 | AG109: 0.1056740878
A110: =A109+1 -> 12 | B110: =B84/$B36 -> 0.2359758924 | C110: 0.3592953176 | D110: 0.3087621697 | E110: 0.09596662031 | F110: =F84/$C36 -> 0.2394435352 | G110: 0.321603928 | H110: 0.3289689034 | I110: 0.1099836334 | J110: =J84/$D36 -> 0.2737896494 | K110: 0.3046744574 | L110: 0.3222036728 | M110: 0.09933222037 | N110: =N84/$E36 -> 0.3 | O110: 0.3258064516 | P110: 0.2698924731 | Q110: 0.1043010753 | R110: =R84/$F36 -> 0.3262411348 | S110: 0.3404255319 | T110: 0.2517730496 | U110: 0.08156028369 | V110: =V84/$G36 -> 0.2884615385 | W110: 0.3269230769 | X110: 0.3076923077 | Y110: 0.07692307692 | Z110: =Z84/$H36 ->  | AD110: =AD84/$I36 -> 0.252703949 | AE110: 0.3258153769 | AF110: 0.3174310388 | AG110: 0.1040496353
A111: =A110+1 -> 13
A112: 14
A113: 15
A114: 16
A115: 17
A116: 18
A117: 19
A122: Most Recent Games
B123: Bronze | D123: Silver | F123: Gold | H123: Platinum | J123: Diamond | L123: Master | N123: Grandmaster | P123: Totals
A124: Weeks Remaining | B124: Last Week | C124: Last Month | D124: Last Week | E124: Last Month | F124: Last Week | G124: Last Month | H124: Last Week | I124: Last Month | J124: Last Week | K124: Last Month | L124: Last Week | M124: Last Month | N124: Last Week | O124: Last Month | P124: Last Week | Q124: Last Month
A125: 1 | B125: 150 | C125: 1 | D125: 359 | E125: 1 | F125: 1875 | G125: 1 | H125: 1440 | J125: 1420 | L125: 128 | N125: 197 | P125: =B125+D125+F125+H125+J125+L125+N125 -> 5569 | Q125: =C125+E125+G125+I125+K125+M125+O125 -> 3
A126: 2 | B126: 43 | C126: 7 | D126: 125 | E126: 35 | F126: 513 | G126: 144 | H126: 342 | I126: 144 | J126: 241 | K126: 111 | L126: 43 | M126: 5 | P126: =B126+D126+F126+H126+J126+L126+N126 -> 1307 | Q126: 446
A127: 3 | B127: 32 | C127: 19 | D127: 96 | E127: 42 | F127: 343 | G127: 187 | H127: 208 | I127: 151 | J127: 142 | K127: 119 | L127: 40 | M127: 10 | P127: 861 | Q127: 528
A128: 4 | B128: 36 | C128: 24 | D128: 105 | E128: 70 | F128: 373 | G128: 259 | H128: 204 | I128: 191 | J128: 135 | K128: 156 | L128: 39 | M128: 16 | P128: 892 | Q128: 716
A129: 5 | B129: 30 | C129: 29 | D129: 121 | E129: 67 | F129: 377 | G129: 293 | H129: 179 | I129: 187 | J129: 113 | K129: 146 | L129: 32 | M129: 29 | P129: 852 | Q129: 751
A130: 6 | B130: 31 | C130: 31 | D130: 133 | E130: 91 | F130: 392 | G130: 300 | H130: 184 | I130: 161 | J130: 115 | K130: 93 | L130: 31 | M130: 24 | P130: 886 | Q130: 700
A131: 7 | B131: 34 | C131: 21 | D131: 173 | E131: 121 | F131: 516 | G131: 410 | H131: 152 | I131: 169 | J131: 107 | K131: 111 | L131: 31 | M131: 20 | P131: 1013 | Q131: 852
A132: 8 | B132: 34 | C132: 27 | D132: 209 | E132: 176 | F132: 584 | G132: 505 | H132: 183 | I132: 181 | J132: 119 | K132: 105 | L132: 36 | M132: 23 | P132: 1165 | Q132: 1017
A133: 9 | B133: 64 | C133: 53 | D133: 307 | E133: 281 | F133: 686 | G133: 707 | H133: 190 | I133: 183 | J133: 101 | K133: 104 | L133: 35 | M133: 23 | P133: 1383 | Q133: 1351
A134: 10 | B134: 87 | C134: 102 | D134: 600 | E134: 706 | F134: 683 | G134: 943 | H134: 147 | I134: 218 | J134: 83 | K134: 102 | L134: 29 | M134: 36 | P134: 1629 | Q134: 2107
A135: 11 | B135: 297 | C135: 442 | D135: 1218 | E135: 2296 | F135: 635 | G135: 1128 | H135: 181 | I135: 347 | J135: 93 | K135: 111 | L135: 34 | M135: 28 | P135: 2458 | Q135: 4352
A136: 12 | B136: 259 | C136: 594 | D136: 750 | E136: 1836 | F136: 341 | G136: 762 | H136: 115 | I136: 302 | J136: 45 | K136: 66 | L136: 7 | M136: 7 | P136: =B136+D136+F136+H136+J136+L136+N136 -> 1517 | Q136: =C136+E136+G136+I136+K136+M136+O136 -> 3567
A137: 13
A138: 14
A139: 15
A140: 16
A141: 17
A142: 18
A143: 19
A144: Totals | B144: =SUM(B125:B135) -> 838 | C144: =SUM(C125:C135) -> 756 | D144: =SUM(D125:D135) -> 3446 | E144: 3886 | F144: 6977 | G144: 4877 | H144: 3410 | I144: 1932 | J144: 2669 | K144: 1158 | L144: 478 | M144: 214 | N144: 197 | O144: 0 | P144: =SUM(P125:P135) -> 18015 | Q144: 12823
A145: At least 1 game in the last month | B145: =SUM(B144:C144) -> 1594 | D145: =SUM(D144:E144) -> 7332 | F145: =SUM(F144:G144) -> 11854 | H145: =SUM(H144:I144) -> 5342 | J145: =SUM(J144:K144) -> 3827 | L145: =SUM(L144:M144) -> 692 | N145: =SUM(N144:O144) -> 197 | P145: =SUM(P144:Q144) -> 30838
A149: Percentages - Most Recent Games
B150: Bronze | D150: Silver | F150: Gold | H150: Platinum | J150: Diamond | L150: Master | N150: Grandmaster | P150: Totals
A151: Weeks Remaining | B151: Last Week | C151: Last Month | D151: Last Week | E151: Last Month | F151: Last Week | G151: Last Month | H151: Last Week | I151: Last Month | J151: Last Week | K151: Last Month | L151: Last Week | M151: Last Month | N151: Last Week | O151: Last Month | P151: Last Week | Q151: Last Month
A152: 1 | B152: =B125/$I25 -> 0.02692031587 | C152: 0.0001794687724 | D152: 0.0644292893 | E152: 0.0001794687724 | F152: 0.3365039483 | G152: 0.0001794687724 | H152: 0.2584350323 | I152: 0 | J152: 0.2548456569 | K152: 0 | L152: 0.02297200287 | M152: 0 | N152: 0.03535534817 | O152: 0 | P152: 0.9994615937 | Q152: 0.0005384063173
A153: 2 | B153: =B126/$I26 -> 0.02452937821 | C153: 0.003993154592 | D153: 0.071306332 | E153: 0.01996577296 | F153: 0.2926411865 | G153: 0.08214489447 | H153: 0.1950941244 | I153: 0.08214489447 | J153: 0.1374786081 | K153: 0.06332002282 | L153: 0.02452937821 | M153: 0.00285225328 | N153: 0 | O153: 0 | P153: 0.7455790074 | Q153: 0.2544209926
A154: 3 | B154: =B127/$I27 -> 0.02303815695 | C154: 0.01367890569 | D154: 0.06911447084 | E154: 0.03023758099 | F154: 0.2469402448 | G154: 0.1346292297 | H154: 0.1497480202 | I154: 0.1087113031 | J154: 0.1022318215 | K154: 0.08567314615 | L154: 0.02879769618 | M154: 0.007199424046 | N154: 0 | O154: 0 | P154: 0.6198704104 | Q154: 0.3801295896
A155: 4 | B155: =B128/$I28 -> 0.0223880597 | C155: 0.01492537313 | D155: 0.06529850746 | E155: 0.04353233831 | F155: 0.2319651741 | G155: 0.1610696517 | H155: 0.1268656716 | I155: 0.1187810945 | J155: 0.08395522388 | K155: 0.09701492537 | L155: 0.02425373134 | M155: 0.009950248756 | N155: 0 | O155: 0 | P155: 0.5547263682 | Q155: 0.4452736318
A156: 5 | B156: =B129/$I29 -> 0.01773049645 | C156: 0.01713947991 | D156: 0.07151300236 | E156: 0.03959810875 | F156: 0.2228132388 | G156: 0.1731678487 | H156: 0.1057919622 | I156: 0.1105200946 | J156: 0.06678486998 | K156: 0.08628841608 | L156: 0.01891252955 | M156: 0.01713947991 | N156: 0 | O156: 0 | P156: 0.5035460993 | Q156: 0.4438534279
A157: 6 | B157: =B130/$I30 -> 0.01613742842 | C157: 0.01613742842 | D157: 0.06923477356 | E157: 0.04737116085 | F157: 0.2040603852 | G157: 0.1561686622 | H157: 0.09578344612 | I157: 0.08381051536 | J157: 0.05986465383 | K157: 0.04841228527 | L157: 0.01613742842 | M157: 0.01249349297 | N157: 0 | O157: 0 | P157: 0.4612181156 | Q157: 0.364393545
A158: 7 | B158: =B131/$I31 -> 0.01466781708 | C158: 0.009059534081 | D158: 0.07463330457 | E158: 0.05220017256 | F158: 0.2226056946 | G158: 0.1768766178 | H158: 0.06557377049 | I158: 0.07290767903 | J158: 0.04616048318 | K158: 0.04788610871 | L158: 0.01337359793 | M158: 0.008628127696 | N158: 0 | O158: 0 | P158: 0.4370146678 | Q158: 0.3675582399
A159: 8 | B159: =B132/$I32 -> 0.01167983511 | C159: 0.009275163174 | D159: 0.07179663346 | E159: 0.06046032291 | F159: 0.2006183442 | G159: 0.1734799038 | H159: 0.06286499485 | I159: 0.06217794572 | J159: 0.04087942288 | K159: 0.03607007901 | L159: 0.01236688423 | M159: 0.007901064926 | N159: 0 | O159: 0 | P159: 0.4002061147 | Q159: 0.3493644796
A160: 9 | B160: =B133/$I33 -> 0.01683324566 | C160: 0.01394003156 | D160: 0.08074697528 | E160: 0.07390846923 | F160: 0.1804313519 | G160: 0.1859547607 | H160: 0.04997369805 | I160: 0.04813256181 | J160: 0.02656496581 | K160: 0.0273540242 | L160: 0.00920568122 | M160: 0.006049447659 | N160: 0 | O160: 0 | P160: 0.3637559179 | Q160: 0.3553392951
A161: 10 | B161: =B134/$I34 -> 0.01523375941 | C161: 0.01786026966 | D161: 0.1050604097 | E161: 0.1236210821 | F161: 0.1195937664 | G161: 0.165119944 | H161: 0.02573980039 | I161: 0.03817194887 | J161: 0.01453335668 | K161: 0.01786026966 | L161: 0.005077919804 | M161: 0.006303624584 | N161: 0 | O161: 0 | P161: 0.2852390124 | Q161: 0.3689371389
A162: 11 | B162: =B135/$I35 -> 0.02295918367 | C162: 0.03416821274 | D162: 0.09415584416 | E162: 0.1774891775 | F162: 0.04908781694 | G162: 0.08719851577 | H162: 0.01399196042 | I162: 0.02682436611 | J162: 0.007189239332 | K162: 0.008580705009 | L162: 0.002628324057 | M162: 0.002164502165 | N162: 0 | O162: 0 | P162: 0.1900123686 | Q162: 0.3364254793
A163: 12 | B163: =B136/$I36 -> 0.02171543557 | C163: 0.04980296806 | D163: 0.06288253542 | E163: 0.1539364467 | F163: 0.02859059277 | G163: 0.06388865599 | H163: 0.009641988765 | I163: 0.02532070093 | J163: 0.003772952125 | K163: 0.005533663117 | L163: 0.000586903664 | M163: 0.000586903664 | N163: 0 | O163: 0 | P163: 0.1271904083 | Q163: 0.2990693385
A164: 13
A165: 14
A166: 15
A167: 16
A168: 17
A169: 18
A170: 19
A171: Totals | B171: =B144/$I44 -> 0.01565184908 | C171: 0.0141202839 | D171: 0.06436309301 | E171: 0.07258124767 | F171: 0.1303137841 | G171: 0.09109077325 | H171: 0.06369069854 | I171: 0.03608516997 | J171: 0.04985057901 | K171: 0.02162868883 | L171: 0.008927904371 | M171: 0.00399701158 | N171: 0.003679491969 | O171: 0 | P171: 0.3364774001 | Q171: 0.2395031752
A172: Percentage in the Last Month | B172: =SUM(B171:C171) -> 0.02977213298 | D172: =SUM(D171:E171) -> 0.1369443407 | F172: =SUM(F171:G171) -> 0.2214045573 | H172: =SUM(H171:I171) -> 0.09977586851 | J172: =SUM(J171:K171) -> 0.07147926784 | L172: =SUM(L171:M171) -> 0.01292491595 | N172: =SUM(N171:O171) -> 0.003679491969 | P172: =SUM(P171:Q171) -> 0.5759805753
A173: Percentage out of the specific league, in the last week | B173: =B144/B44 -> 0.1857681224 | D173: =D144/C44 -> 0.1991447064 | F173: =F144/D44 -> 0.3886258564 | H173: =H144/E44 -> 0.4429146642 | J173: =I144/F44 -> 0.3891238671 | L173: =L144/G44 -> 0.5246981339 | N173: =N144/H44 -> 1
A174: Percentage out of the specific league, in the last month | B174: =B145/B44 -> 0.3533584571 | D174: =D145/C44 -> 0.4237170596 | F174: =F145/D44 -> 0.660279619 | H174: =H145/E44 -> 0.693856345 | J174: =J145/F44 -> 0.770795569 | L174: =L145/G44 -> 0.7596048299 | N174: =N145/H44 -> 1
A176: Inactive Player Analysis (Max bonus pool weeks remaining that have not played a game in the last month) | B176: Bronze | C176: Silver | D176: Gold | E176: Platinum | F176: Diamond | G176: Master | H176: Totals
A177: Total Players | B177: =AVERAGEIFS('1v1'!$S$2:$S$111557,'1v1'!$F$2:$F$111557,'Analysis - 1v1'!B176,'1v1'!$Q$2:$Q$111557,MAX('1v1'!$Q$2:$Q$111557)) -> 3.705609643 | C177: =AVERAGEIFS('1v1'!$S$2:$S$111557,'1v1'!$F$2:$F$111557,'Analysis - 1v1'!C176,'1v1'!$Q$2:$Q$111557,MAX('1v1'!$Q$2:$Q$111557)) -> 3.034860884 | D177: =AVERAGEIFS('1v1'!$S$2:$S$111557,'1v1'!$F$2:$F$111557,'Analysis - 1v1'!D176,'1v1'!$Q$2:$Q$111557,MAX('1v1'!$Q$2:$Q$111557)) -> 3.852671119 | E177: =AVERAGEIFS('1v1'!$S$2:$S$111557,'1v1'!$F$2:$F$111557,'Analysis - 1v1'!E176,'1v1'!$Q$2:$Q$111557,MAX('1v1'!$Q$2:$Q$111557)) -> 3.621505376 | F177: =AVERAGEIFS('1v1'!$S$2:$S$111557,'1v1'!$F$2:$F$111557,'Analysis - 1v1'!F176,'1v1'!$Q$2:$Q$111557,MAX('1v1'!$Q$2:$Q$111557)) -> 1.69858156 | G177: =AVERAGEIFS('1v1'!$S$2:$S$111557,'1v1'!$F$2:$F$111557,'Analysis - 1v1'!G176,'1v1'!$Q$2:$Q$111557,MAX('1v1'!$Q$2:$Q$111557)) -> 2.019230769 | H177: =AVERAGEIFS('1v1'!S2:S111557,'1v1'!Q2:Q111557,MAX('1v1'!Q2:Q111557)) -> 3.330175233

Sheet 1v1
A1: PlayerID, ServerID, SubServerID, PlayerName, Race, League, DivisionName, Wins, Losses, Score, BonusPool, JoinDate, LastGame, LastUpdate, TrueID (A+C), Duplicate Check (sort by TrueID - if O curr row = O prev row then mark as 1 and then sort by Duplicate Check and delete all 1's), Bonus Pool Weeks Remaining, Ordered ID (used to preserve ordering from nios.kr) | B1: ServerID | C1: SubServerID | D1: PlayerName | E1: Race | F1: League | G1: DivisionName | H1: Wins | I1: Losses | J1: Score | K1: BonusPool | L1: JoinDate | M1: LastGame | N1: LastUpdate | O1: TrueID (A+C) | P1: Duplicate Check (sort by TrueID - if O curr row = O prev row then mark as 1 and then sort by Duplicate Check and delete all 1's) | Q1: Bonus Pool Weeks Remaining | R1: Ordered ID (used to preserve ordering from nios.kr) | S1: Total Games Played
A2: 2470886 | B2: kr | C2: 1 | D2: 멍멍 | E2: r | F2: Bronze | G2: 케이다린 시그마 조 | H2: 51 | I2: 47 | J2: 1239 | K2: 1058 | L2: 2014-09-15 | M2: 2 hours | N2: 2014-09-20T23:44:06 | O2: 2470886-1 | P2: 0 | Q2: 11 | R2: 2 | S2: 148
A3: 4160214 | B3: kr | C3: 1 | D3: kim | E3: p | F3: Bronze | G3: 계승자 그라비티 조 | H3: 1 | I3: 0 | J3: 0 | K3: 378 | L3: 2014-09-20 | M3: 8 hours | N3: 2014-09-21T04:14:12 | O3: 4160214-1 | P3: 0 | Q3: 4 | R3: 3 | S3: 166
A4: 4606602 | B4: kr | C4: 1 | D4: soma | E4: p | F4: Bronze | G4: 뮤탈리스크 마즈 조 | H4: 103 | I4: 84 | J4: 1343 | K4: 2 | L4: 2014-07-31 | M4: 8 hours | N4: 2014-09-21T04:48:55 | O4: 4606602-1 | P4: 0 | Q4: 1 | R4: 4 | S4: 343
A5: 786572 | B5: kr | C5: 2 | D5: WEFinally | E5: t | F5: Bronze | G5: 회색곰 리마 조 | H5: 60 | I5: 68 | J5: 1338 | K5: 4 | L5: 2014-09-01 | M5: 5 hours | N5: 2014-09-21T04:48:56 | O5: 786572-2 | P5: 0 | Q5: 1 | R5: 5 | S5: 293
A6: 559183 | B6: kr | C6: 1 | D6: 불타는깡다구 | E6: t | F6: Bronze | G6: 할시온 엡실론 조 | H6: 223 | I6: 235 | J6: 1325 | K6: 17 | L6: 2014-07-07 | M6: 12 hours | N6: 2014-09-21T04:48:57 | O6: 559183-1 | P6: 0 | Q6: 1 | R6: 6 | S6: 316
A7: 4402525 | B7: kr | C7: 1 | D7: RogueTurtle | E7: t | F7: Bronze | G7: 퓨리낙스 제드 조 | H7: 94 | I7: 89 | J7: 1325 | K7: 43 | L7: 2014-07-18 | M7: 1 days | N7: 2014-09-21T04:48:59 | O7: 4402525-1 | P7: 0 | Q7: 1 | R7: 7 | S7: 240
A8: 4096663 | B8: kr | C8: 1 | D8: 육오슬라비아 | E8: p | F8: Bronze | G8: 골리앗 베타 조 | H8: 61 | I8: 72 | J8: 1323 | K8: 14 | L8: 2014-08-17 | M8: 11 hours | N8: 2014-09-21T04:49:02 | O8: 4096663-1 | P8: 0 | Q8: 1 | R8: 8 | S8: 112
A9: 3970178 | B9: kr | C9: 1 | D9: 김보라바보 | E9: t | F9: Bronze | G9: 화염방사병 뉴 조 | H9: 65 | I9: 69 | J9: 1316 | K9: 9 | L9: 2014-07-06 | M9: 56 minutes | N9: 2014-09-21T04:49:06 | O9: 3970178-1 | P9: 0 | Q9: 1 | R9: 9 | S9: 208
A10: 403824 | B10: kr | C10: 1 | D10: strom | E10: p | F10: Bronze | G10: 알자다르 로 조 | H10: 62 | I10: 71 | J10: 1311 | K10: 11 | L10: 2014-07-24 | M10: 2 hours | N10: 2014-09-21T04:49:10 | O10: 403824-1 | P10: 0 | Q10: 1 | R10: 10 | S10: 101
A11: 2854555 | B11: kr | C11: 1 | D11: 승리하고만다 | E11: z | F11: Bronze | G11: 회색곰 리마 조 | H11: 128 | I11: 140 | J11: 1289 | K11: 3 | L11: 2014-09-02 | M11: 1 hours | N11: 2014-09-21T04:49:15 | O11: 2854555-1 | P11: 0 | Q11: 1 | R11: 11 | S11: 362
A12: 321650 | B12: kr | C12: 1 | D12: max | E12: t | F12: Bronze | G12: 밴시 프사이 조 | H12: 74 | I12: 77 | J12: 1288 | K12: 1 | L12: 2014-07-08 | M12: 1 days | N12: 2014-09-21T04:49:18 | O12: 321650-1 | P12: 0 | Q12: 1 | R12: 12 | S12: 147
A13: 2252592 | B13: kr | C13: 1 | D13: imagoodboy | E13: r | F13: Bronze | G13: 펠라니스 폭스트롯 조 | H13: 118 | I13: 116 | J13: 1287 | K13: 12 | L13: 2014-07-12 | M13: 3 hours | N13: 2014-09-21T04:49:19 | O13: 2252592-1 | P13: 0 | Q13: 1 | R13: 13 | S13: 175
A14: 795400 | B14: kr | C14: 1 | D14: ABMM | E14: p | F14: Bronze | G14: 할시온 엡실론 조 | H14: 232 | I14: 248 | J14: 1286 | K14: 20 | L14: 2014-07-07 | M14: 16 hours | N14: 2014-09-21T04:49:20 | O14: 795400-1 | P14: 0 | Q14: 1 | R14: 14 | S14: 152
A15: 155381 | B15: kr | C15: 1 | D15: che | E15: t | F15: Bronze | G15: 신관 뮤 조 | H15: 46 | I15: 52 | J15: 1278 | K15: 14 | L15: 2014-07-09 | M15: 7 hours | N15: 2014-09-21T04:49:21 | O15: 155381-1 | P15: 0 | Q15: 1 | R15: 15 | S15: 130
A16: 3521425 | B16: kr | C16: 1 | D16: 마탄의사수 | E16: r | F16: Bronze | G16: 타락귀 파이 조 | H16: 70 | I16: 56 | J16: 1278 | K16: 43 | L16: 2014-07-10 | M16: 1 days | N16: 2014-09-21T04:49:26 | O16: 3521425-1 | P16: 0 | Q16: 1 | R16: 16 | S16: 201
A17: 4732272 | B17: kr | C17: 1 | D17: Regentropfen | E17: t | F17: Bronze | G17: 케이다린 시그마 조 | H17: 47 | I17: 61 | J17: 1278 | K17: 17 | L17: 2014-09-11 | M17: 11 hours | N17: 2014-09-21T04:49:29 | O17: 4732272-1 | P17: 0 | Q17: 1 | R17: 17 | S17: 125
A18: 4314953 | B18: kr | C18: 1 | D18: 아이템풀 | E18: p | F18: Bronze | G18: 스완 오미크론 조 | H18: 101 | I18: 103 | J18: 1272 | K18: 27 | L18: 2014-07-08 | M18: 1 days | N18: 2014-09-21T04:49:30 | O18: 4314953-1 | P18: 0 | Q18: 1 | R18: 18 | S18: 106
A19: 560287 | B19: kr | C19: 1 | D19: 해리어 | E19: t | F19: Bronze | G19: 투락시스 빅터 조 | H19: 76 | I19: 72 | J19: 1270 | K19: 5 | L19: 2014-07-07 | M19: 16 hours | N19: 2014-09-21T04:49:31 | O19: 560287-1 | P19: 0 | Q19: 1 | R19: 19 | S19: 201
A20: 46243 | B20: kr | C20: 2 | D20: GzRouSe | E20: t | F20: Bronze | G20: 집정관 요타 조 | H20: 87 | I20: 79 | J20: 1267 | K20: 42 | L20: 2014-07-10 | M20: 2 days | N20: 2014-09-21T04:49:35 | O20: 46243-2 | P20: 0 | Q20: 1 | R20: 20 | S20: 101
A21: 738130 | B21: kr | C21: 2 | D21: Migo | E21: t | F21: Bronze | G21: 듀갈 에타 조 | H21: 166 | I21: 177 | J21: 1266 | K21: 6 | L21: 2014-07-07 | M21: 11 hours | N21: 2014-09-21T04:49:39 | O21: 738130-2 | P21: 0 | Q21: 1 | R21: 21 | S21: 183
A22: 3423200 | B22: kr | C22: 1 | D22: winwooin | E22: p | F22: Bronze | G22: 펠라니스 폭스트롯 조 | H22: 136 | I22: 157 | J22: 1266 | K22: 1 | L22: 2014-07-11 | M22: 9 hours | N22: 2014-09-21T04:49:41 | O22: 3423200-1 | P22: 0 | Q22: 1 | R22: 22 | S22: 234
A23: 904370 | B23: kr | C23: 2 | D23: 王小虎 | E23: t | F23: Bronze | G23: 투락시스 빅터 조 | H23: 155 | I23: 161 | J23: 1260 | K23: 26 | L23: 2014-07-07 | M23: 1 days | N23: 2014-09-21T04:49:41 | O23: 904370-2 | P23: 0 | Q23: 1 | R23: 23 | S23: 211
A24: 773496 | B24: kr | C24: 1 | D24: WhisperLive | E24: p | F24: Bronze | G24: 골리앗 베타 조 | H24: 116 | I24: 124 | J24: 1259 | K24: 92 | L24: 2014-08-15 | M24: 5 days | N24: 2014-09-21T04:49:42 | O24: 773496-1 | P24: 0 | Q24: 1 | R24: 24 | S24: 152
A25: 2069448 | B25: kr | C25: 1 | D25: tmdxofl | E25: t | F25: Bronze | G25: 펠라니스 폭스트롯 조 | H25: 45 | I25: 67 | J25: 1253 | K25: 34 | L25: 2014-07-12 | M25: 1 days | N25: 2014-09-21T04:49:43 | O25: 2069448-1 | P25: 0 | Q25: 1 | R25: 25 | S25: 452
A26: 2326890 | B26: kr | C26: 1 | D26: 째마리 | E26: t | F26: Bronze | G26: 듀갈 에타 조 | H26: 103 | I26: 105 | J26: 1252 | K26: 20 | L26: 2014-07-07 | M26: 1 days | N26: 2014-09-21T04:49:44 | O26: 2326890-1 | P26: 0 | Q26: 1 | R26: 26 | S26: 264
A27: 4252664 | B27: kr | C27: 1 | D27: 으헤헤헤 | E27: t | F27: Bronze | G27: 아지마르 알파 조 | H27: 48 | I27: 53 | J27: 1251 | K27: 2 | L27: 2014-07-12 | M27: 3 hours | N27: 2014-09-21T04:49:45 | O27: 4252664-1 | P27: 0 | Q27: 1 | R27: 27 | S27: 173
A28: 905728 | B28: kr | C28: 2 | D28: wowsugar | E28: z | F28: Bronze | G28: 밴시 프사이 조 | H28: 174 | I28: 188 | J28: 1248 | K28: 42 | L28: 2014-07-08 | M28: 3 hours | N28: 2014-09-21T04:49:46 | O28: 905728-2 | P28: 0 | Q28: 1 | R28: 28 | S28: 174
A29: 958374 | B29: kr | C29: 2 | D29: Gamera | E29: t | F29: Bronze | G29: 타락귀 파이 조 | H29: 67 | I29: 80 | J29: 1248 | K29: 1 | L29: 2014-07-10 | M29: 10 hours | N29: 2014-09-21T04:49:47 | O29: 958374-2 | P29: 0 | Q29: 1 | R29: 29 | S29: 158
A30: 2329184 | B30: kr | C30: 1 | D30: 마늘빵 | E30: r | F30: Bronze | G30: 사카이 양키 조 | H30: 86 | I30: 89 | J30: 1247 | K30: 6 | L30: 2014-09-06 | M30: 6 hours | N30: 2014-09-21T04:49:48 | O30: 2329184-1 | P30: 0 | Q30: 1 | R30: 30 | S30: 286
A31: 3642092 | B31: kr | C31: 1 | D31: 먹고보니할매 | E31: p | F31: Bronze | G31: 스완 오미크론 조 | H31: 75 | I31: 77 | J31: 1247 | K31: 3 | L31: 2014-07-08 | M31: 15 hours | N31: 2014-09-21T04:49:52 | O31: 3642092-1 | P31: 0 | Q31: 1 | R31: 31 | S31: 102
A32: 1926483 | B32: kr | C32: 1 | D32: Marin | E32: p | F32: Bronze | G32: 집정관 요타 조 | H32: 61 | I32: 69 | J32: 1246 | K32: 14 | L32: 2014-07-10 | M32: 6 hours | N32: 2014-09-21T04:49:56 | O32: 1926483-1 | P32: 0 | Q32: 1 | R32: 32 | S32: 366
A33: 379063 | B33: kr | C33: 2 | D33: Harry | E33: t | F33: Bronze | G33: 브락시스 딕시 조 | H33: 94 | I33: 107 | J33: 1243 | K33: 11 | L33: 2014-07-07 | M33: 3 hours | N33: 2014-09-21T04:50:00 | O33: 379063-2 | P33: 0 | Q33: 1 | R33: 33 | S33: 149
A34: 4584267 | B34: kr | C34: 1 | D34: genius | E34: z | F34: Bronze | G34: 법무관 호크 조 | H34: 65 | I34: 60 | J34: 1243 | K34: 53 | L34: 2014-07-08 | M34: 2 days | N34: 2014-09-21T04:50:01 | O34: 4584267-1 | P34: 0 | Q34: 1 | R34: 34 | S34: 205
A35: 1058680 | B35: kr | C35: 1 | D35: 오라오라 | E35: t | F35: Bronze | G35: 투락시스 빅터 조 | H35: 54 | I35: 52 | J35: 1242 | K35: 15 | L35: 2014-07-07 | M35: 9 hours | N35: 2014-09-21T04:50:02 | O35: 1058680-1 | P35: 0 | Q35: 1 | R35: 35 | S35: 325
A36: 781918 | B36: kr | C36: 2 | D36: Triton | E36: z | F36: Bronze | G36: 군락 제타 조 | H36: 97 | I36: 104 | J36: 1240 | K36: 21 | L36: 2014-07-09 | M36: 5 hours | N36: 2014-09-21T04:50:03 | O36: 781918-2 | P36: 0 | Q36: 1 | R36: 36 | S36: 273
A37: 3385713 | B37: kr | C37: 1 | D37: 디멘티움 | E37: p | F37: Bronze | G37: 공성 전차 입실론 조 | H37: 47 | I37: 54 | J37: 1240 | K37: 2 | L37: 2014-09-07 | M37: 4 hours | N37: 2014-09-21T04:50:04 | O37: 3385713-1 | P37: 0 | Q37: 1 | R37: 37 | S37: 191
A38: 196555 | B38: kr | C38: 2 | D38: Undertaker | E38: z | F38: Bronze | G38: 알자다르 로 조 | H38: 93 | I38: 90 | J38: 1236 | K38: 54 | L38: 2014-07-16 | M38: 1 days | N38: 2014-09-21T04:50:08 | O38: 196555-2 | P38: 0 | Q38: 1 | R38: 38 | S38: 104
A39: 815200 | B39: kr | C39: 2 | D39: ttnwinf | E39: t | F39: Bronze | G39: 투락시스 빅터 조 | H39: 114 | I39: 120 | J39: 1236 | K39: 1 | L39: 2014-07-07 | M39: 1 days | N39: 2014-09-21T04:50:09 | O39: 815200-2 | P39: 0 | Q39: 1 | R39: 39 | S39: 439
A40: 374666 | B40: kr | C40: 2 | D40: 神鬼驚嘆 | E40: p | F40: Bronze | G40: 투락시스 빅터 조 | H40: 107 | I40: 104 | J40: 1234 | K40: 4 | L40: 2014-07-07 | M40: 1 hours | N40: 2014-09-21T04:50:10 | O40: 374666-2 | P40: 0 | Q40: 1 | R40: 40 | S40: 207
A41: 1241759 | B41: kr | C41: 2 | D41: COPYCAT | E41: p | F41: Bronze | G41: 화염방사병 뉴 조 | H41: 68 | I41: 84 | J41: 1234 | K41: 31 | L41: 2014-07-06 | M41: 1 days | N41: 2014-09-21T04:50:14 | O41: 1241759-2 | P41: 0 | Q41: 1 | R41: 41 | S41: 733
A42: 1422767 | B42: kr | C42: 1 | D42: 싼쵸 | E42: p | F42: Bronze | G42: 코로니스 감마 조 | H42: 220 | I42: 232 | J42: 1234 | K42: 59 | L42: 2014-07-06 | M42: 1 days | N42: 2014-09-21T04:50:15 | O42: 1422767-1 | P42: 0 | Q42: 1 | R42: 42 | S42: 285
A43: 901639 | B43: kr | C43: 2 | D43: Uan | E43: p | F43: Bronze | G43: 법무관 호크 조 | H43: 120 | I43: 144 | J43: 1233 | K43: 4 | L43: 2014-07-07 | M43: 5 hours | N43: 2014-09-21T04:50:16 | O43: 901639-2 | P43: 0 | Q43: 1 | R43: 43 | S43: 155
A44: 4563489 | B44: kr | C44: 1 | D44: KAKA | E44: r | F44: Bronze | G44: 화염방사병 뉴 조 | H44: 85 | I44: 88 | J44: 1233 | K44: 15 | L44: 2014-07-06 | M44: 9 hours | N44: 2014-09-21T04:50:17 | O44: 4563489-1 | P44: 0 | Q44: 1 | R44: 44 | S44: 155
A45: 4673642 | B45: kr | C45: 1 | D45: 성기사요 | E45: p | F45: Bronze | G45: 카스 알라모 조 | H45: 80 | I45: 94 | J45: 1233 | K45: 34 | L45: 2014-08-21 | M45: 1 days | N45: 2014-09-21T04:50:18 | O45: 4673642-1 | P45: 0 | Q45: 1 | R45: 45 | S45: 103
A46: 535598 | B46: kr | C46: 1 | D46: dssf | E46: t | F46: Bronze | G46: 화염방사병 뉴 조 | H46: 69 | I46: 89 | J46: 1232 | K46: 23 | L46: 2014-07-06 | M46: 3 days | N46: 2014-09-21T04:50:19 | O46: 535598-1 | P46: 0 | Q46: 1 | R46: 46 | S46: 123
A47: 3175002 | B47: kr | C47: 1 | D47: peace | E47: p | F47: Bronze | G47: 아지마르 알파 조 | H47: 133 | I47: 153 | J47: 1231 | K47: 22 | L47: 2014-07-12 | M47: 20 hours | N47: 2014-09-21T04:50:20 | O47: 3175002-1 | P47: 0 | Q47: 1 | R47: 47 | S47: 181
A48: 4402136 | B48: kr | C48: 1 | D48: 식중독크림빵 | E48: z | F48: Bronze | G48: 갈귀 찰리 조 | H48: 47 | I48: 55 | J48: 1228 | K48: 2 | L48: 2014-08-16 | M48: 2 days | N48: 2014-09-21T04:50:21 | O48: 4402136-1 | P48: 0 | Q48: 1 | R48: 48 | S48: 380
A49: 1172655 | B49: kr | C49: 2 | D49: 禁區 | E49: p | F49: Bronze | G49: 법무관 호크 조 | H49: 171 | I49: 195 | J49: 1227 | K49: 16 | L49: 2014-07-07 | M49: 10 hours | N49: 2014-09-21T04:50:25 | O49: 1172655-2 | P49: 0 | Q49: 1 | R49: 49 | S49: 212
A50: 862134 | B50: kr | C50: 2 | D50: Arthur | E50: t | F50: Bronze | G50: 용기병 시에라 조 | H50: 74 | I50: 75 | J50: 1224 | K50: 3 | L50: 2014-07-08 | M50: 2 hours | N50: 2014-09-21T04:50:29 | O50: 862134-2 | P50: 0 | Q50: 1 | R50: 50 | S50: 221
A51: 4057650 | B51: kr | C51: 1 | D51: 킈다리 | E51: p | F51: Bronze | G51: 아지마르 알파 조 | H51: 89 | I51: 116 | J51: 1224 | K51: 3 | L51: 2014-07-12 | M51: 6 hours | N51: 2014-09-21T04:50:30 | O51: 4057650-1 | P51: 0 | Q51: 1 | R51: 51 | S51: 113
A52: 936337 | B52: kr | C52: 2 | D52: 牛寶寶 | E52: z | F52: Bronze | G52: 군락 제타 조 | H52: 157 | I52: 168 | J52: 1222 | K52: 3 | L52: 2014-07-07 | M52: 3 hours | N52: 2014-09-21T04:50:31 | O52: 936337-2 | P52: 0 | Q52: 1 | R52: 52 | S52: 175
A53: 4586810 | B53: kr | C53: 1 | D53: david | E53: p | F53: Bronze | G53: 할시온 엡실론 조 | H53: 141 | I53: 132 | J53: 1222 | K53: 135 | L53: 2014-07-07 | M53: 1 days | N53: 2014-09-21T04:50:32 | O53: 4586810-1 | P53: 0 | Q53: 2 | R53: 53 | S53: 148
A54: 4661394 | B54: kr | C54: 1 | D54: 조랑말 | E54: p | F54: Bronze | G54: 정찰기 줄리엣 조 | H54: 95 | I54: 96 | J54: 1222 | K54: 97 | L54: 2014-08-09 | M54: 1 days | N54: 2014-09-21T04:50:33 | O54: 4661394-1 | P54: 0 | Q54: 1 | R54: 54 | S54: 262
A55: 656542 | B55: kr | C55: 1 | D55: 엘비와이 | E55: t | F55: Bronze | G55: 아이어 델타 조 | H55: 54 | I55: 50 | J55: 1220 | K55: 111 | L55: 2014-07-07 | M55: 1 days | N55: 2014-09-21T04:50:37 | O55: 656542-1 | P55: 0 | Q55: 2 | R55: 55 | S55: 188
A56: 4594332 | B56: kr | C56: 1 | D56: 히틀러 | E56: p | F56: Bronze | G56: 투락시스 빅터 조 | H56: 211 | I56: 228 | J56: 1220 | K56: 16 | L56: 2014-07-07 | M56: 11 hours | N56: 2014-09-21T04:50:41 | O56: 4594332-1 | P56: 0 | Q56: 1 | R56: 56 | S56: 295
A57: 823600 | B57: kr | C57: 1 | D57: 대장 | E57: p | F57: Bronze | G57: 신관 뮤 조 | H57: 96 | I57: 111 | J57: 1219 | K57: 3 | L57: 2014-07-09 | M57: 14 hours | N57: 2014-09-21T04:50:42 | O57: 823600-1 | P57: 0 | Q57: 1 | R57: 57 | S57: 162
A58: 3815861 | B58: kr | C58: 1 | D58: JGJG | E58: t | F58: Bronze | G58: 투락시스 빅터 조 | H58: 349 | I58: 384 | J58: 1216 | K58: 14 | L58: 2014-07-07 | M58: 7 hours | N58: 2014-09-21T04:50:43 | O58: 3815861-1 | P58: 0 | Q58: 1 | R58: 58 | S58: 490
A59: 570276 | B59: kr | C59: 1 | D59: marin | E59: t | F59: Bronze | G59: 코로니스 감마 조 | H59: 134 | I59: 151 | J59: 1215 | K59: 1 | L59: 2014-07-06 | M59: 2 hours | N59: 2014-09-21T04:50:44 | O59: 570276-1 | P59: 0 | Q59: 1 | R59: 59 | S59: 260
A60: 3846443 | B60: kr | C60: 1 | D60: 토토의신 | E60: p | F60: Bronze | G60: 전쟁광 용병단 오스카 조 | H60: 68 | I60: 87 | J60: 1215 | K60: 18 | L60: 2014-07-26 | M60: 14 hours | N60: 2014-09-21T04:50:45 | O60: 3846443-1 | P60: 0 | Q60: 1 | R60: 60 | S60: 351
A61: 196793 | B61: kr | C61: 1 | D61: Flash | E61: z | F61: Bronze | G61: 집정관 요타 조 | H61: 62 | I61: 93 | J61: 1213 | K61: 2 | L61: 2014-07-10 | M61: 5 hours | N61: 2014-09-21T04:50:49 | O61: 196793-1 | P61: 0 | Q61: 1 | R61: 61 | S61: 161
A62: 285137 | B62: kr | C62: 1 | D62: 오닉시아 | E62: z | F62: Bronze | G62: 계승자 그라비티 조 | H62: 46 | I62: 57 | J62: 1213 | K62: 19 | L62: 2014-07-11 | M62: 4 hours | N62: 2014-09-21T04:50:53 | O62: 285137-1 | P62: 0 | Q62: 1 | R62: 62 | S62: 135
A63: 3823355 | B63: kr | C63: 1 | D63: StarTerran | E63: t | F63: Bronze | G63: 공성 전차 입실론 조 | H63: 60 | I63: 63 | J63: 1211 | K63: 1 | L63: 2014-09-07 | M63: 4 hours | N63: 2014-09-21T04:50:54 | O63: 3823355-1 | P63: 0 | Q63: 1 | R63: 63 | S63: 103
A64: 1255664 | B64: kr | C64: 2 | D64: 大炮 | E64: p | F64: Bronze | G64: 정찰기 줄리엣 조 | H64: 84 | I64: 97 | J64: 1210 | K64: 13 | L64: 2014-07-07 | M64: 5 hours | N64: 2014-09-21T04:50:55 | O64: 1255664-2 | P64: 0 | Q64: 1 | R64: 64 | S64: 337
A65: 972740 | B65: kr | C65: 2 | D65: Josdare | E65: p | F65: Bronze | G65: 아이어 델타 조 | H65: 182 | I65: 198 | J65: 1209 | K65: 41 | L65: 2014-07-07 | M65: 16 hours | N65: 2014-09-21T04:50:59 | O65: 972740-2 | P65: 0 | Q65: 1 | R65: 65 | S65: 180
A66: 3720345 | B66: kr | C66: 1 | D66: 워크 | E66: r | F66: Bronze | G66: 계승자 그라비티 조 | H66: 101 | I66: 111 | J66: 1209 | K66: 60 | L66: 2014-07-09 | M66: 3 days | N66: 2014-09-21T04:51:00 | O66: 3720345-1 | P66: 0 | Q66: 1 | R66: 66 | S66: 293
A67: 4343010 | B67: kr | C67: 1 | D67: 사신 | E67: p | F67: Bronze | G67: 연결체 람다 조 | H67: 114 | I67: 107 | J67: 1209 | K67: 60 | L67: 2014-07-29 | M67: 3 days | N67: 2014-09-21T04:51:01 | O67: 4343010-1 | P67: 0 | Q67: 1 | R67: 67 | S67: 597
A68: 704989 | B68: kr | C68: 1 | D68: 후니훈 | E68: t | F68: Bronze | G68: 용기병 시에라 조 | H68: 53 | I68: 60 | J68: 1208 | K68: 15 | L68: 2014-07-08 | M68: 1 days | N68: 2014-09-21T04:51:01 | O68: 704989-1 | P68: 0 | Q68: 1 | R68: 68 | S68: 115
A69: 4364296 | B69: kr | C69: 1 | D69: 미친테란 | E69: t | F69: Bronze | G69: 사카이 양키 조 | H69: 74 | I69: 101 | J69: 1208 | K69: 2 | L69: 2014-08-23 | M69: 6 hours | N69: 2014-09-21T04:51:02 | O69: 4364296-1 | P69: 0 | Q69: 1 | R69: 69 | S69: 107
A70: 664313 | B70: kr | C70: 1 | D70: Jupiter | E70: t | F70: Bronze | G70: 할시온 엡실론 조 | H70: 68 | I70: 80 | J70: 1206 | K70: 12 | L70: 2014-07-07 | M70: 4 hours | N70: 2014-09-21T04:51:06 | O70: 664313-1 | P70: 0 | Q70: 1 | R70: 70 | S70: 180
A71: 4411976 | B71: kr | C71: 1 | D71: jeff | E71: z | F71: Bronze | G71: 듀갈 에타 조 | H71: 119 | I71: 143 | J71: 1206 | K71: 17 | L71: 2014-07-07 | M71: 11 hours | N71: 2014-09-21T04:51:07 | O71: 4411976-1 | P71: 0 | Q71: 1 | R71: 71 | S71: 130
A72: 1046625 | B72: kr | C72: 2 | D72: Louis | E72: t | F72: Bronze | G72: 할시온 엡실론 조 | H72: 79 | I72: 109 | J72: 1205 | K72: 2 | L72: 2014-07-07 | M72: 6 hours | N72: 2014-09-21T04:51:08 | O72: 1046625-2 | P72: 0 | Q72: 1 | R72: 72 | S72: 159
A73: 1272083 | B73: kr | C73: 1 | D73: 할리와스타투맨 | E73: t | F73: Bronze | G73: 아지마르 알파 조 | H73: 138 | I73: 157 | J73: 1205 | K73: 8 | L73: 2014-07-12 | M73: 1 minutes | N73: 2014-09-21T04:51:09 | O73: 1272083-1 | P73: 0 | Q73: 1 | R73: 73 | S73: 378
A74: 2564086 | B74: kr | C74: 1 | D74: gogodk | E74: t | F74: Bronze | G74: 브락시스 딕시 조 | H74: 73 | I74: 89 | J74: 1205 | K74: 2 | L74: 2014-07-07 | M74: 7 hours | N74: 2014-09-21T04:51:13 | O74: 2564086-1 | P74: 0 | Q74: 1 | R74: 74 | S74: 121
A75: 172025 | B75: kr | C75: 1 | D75: scuffle | E75: z | F75: Bronze | G75: 군락 제타 조 | H75: 204 | I75: 286 | J75: 1204 | K75: 12 | L75: 2014-07-07 | M75: 4 hours | N75: 2014-09-21T04:51:14 | O75: 172025-1 | P75: 0 | Q75: 1 | R75: 75 | S75: 113
A76: 469215 | B76: kr | C76: 1 | D76: 슬픈늑대 | E76: t | F76: Bronze | G76: 투락시스 빅터 조 | H76: 123 | I76: 137 | J76: 1204 | K76: 1 | L76: 2014-07-07 | M76: 9 hours | N76: 2014-09-21T04:51:15 | O76: 469215-1 | P76: 0 | Q76: 1 | R76: 76 | S76: 169
A77: 488327 | B77: kr | C77: 2 | D77: 鹽巴哥 | E77: p | F77: Bronze | G77: 코로니스 감마 조 | H77: 167 | I77: 184 | J77: 1204 | K77: 2 | L77: 2014-07-06 | M77: 5 hours | N77: 2014-09-21T04:51:16 | O77: 488327-2 | P77: 0 | Q77: 1 | R77: 77 | S77: 223
A78: 2153747 | B78: kr | C78: 1 | D78: 찰스 | E78: z | F78: Bronze | G78: 정찰기 줄리엣 조 | H78: 65 | I78: 96 | J78: 1204 | K78: 14 | L78: 2014-07-06 | M78: 21 hours | N78: 2014-09-21T04:51:17 | O78: 2153747-1 | P78: 0 | Q78: 1 | R78: 78 | S78: 158
A79: 232607 | B79: kr | C79: 1 | D79: bigboy | E79: t | F79: Bronze | G79: 타이커스 로미오 조 | H79: 60 | I79: 75 | J79: 1203 | K79: 15 | L79: 2014-07-12 | M79: 9 hours | N79: 2014-09-21T04:51:18 | O79: 232607-1 | P79: 0 | Q79: 1 | R79: 79 | S79: 306
A80: 4693303 | B80: kr | C80: 1 | D80: 황금정자 | E80: p | F80: Bronze | G80: 브락시스 딕시 조 | H80: 39 | I80: 64 | J80: 1202 | K80: 61 | L80: 2014-08-12 | M80: 7 hours | N80: 2014-09-21T04:51:19 | O80: 4693303-1 | P80: 0 | Q80: 1 | R80: 80 | S80: 125
A81: 875429 | B81: kr | C81: 2 | D81: 凤牙雷神 | E81: z | F81: Bronze | G81: 군락 제타 조 | H81: 163 | I81: 174 | J81: 1200 | K81: 86 | L81: 2014-07-07 | M81: 4 days | N81: 2014-09-21T04:51:20 | O81: 875429-2 | P81: 0 | Q81: 1 | R81: 81 | S81: 125
A82: 4448462 | B82: kr | C82: 1 | D82: RobRoyce | E82: t | F82: Bronze | G82: 타림 엑스레이 조 | H82: 85 | I82: 95 | J82: 1200 | K82: 74 | L82: 2014-07-25 | M82: 4 days | N82: 2014-09-21T04:51:21 | O82: 4448462-1 | P82: 0 | Q82: 1 | R82: 82 | S82: 148
A83: 755767 | B83: kr | C83: 2 | D83: 生命之光 | E83: z | F83: Bronze | G83: 아이어 델타 조 | H83: 145 | I83: 148 | J83: 1197 | K83: 37 | L83: 2014-07-07 | M83: 3 days | N83: 2014-09-21T04:51:22 | O83: 755767-2 | P83: 0 | Q83: 1 | R83: 83 | S83: 145
A84: 4516163 | B84: kr | C84: 1 | D84: startrack | E84: p | F84: Bronze | G84: 듀갈 에타 조 | H84: 283 | I84: 314 | J84: 1196 | K84: 4 | L84: 2014-07-07 | M84: 13 hours | N84: 2014-09-21T04:51:23 | O84: 4516163-1 | P84: 0 | Q84: 1 | R84: 84 | S84: 150
A85: 1038442 | B85: kr | C85: 1 | D85: 메탈리카 | E85: r | F85: Bronze | G85: 타락귀 파이 조 | H85: 53 | I85: 62 | J85: 1195 | K85: 3 | L85: 2014-07-10 | M85: 12 hours | N85: 2014-09-21T04:51:27 | O85: 1038442-1 | P85: 0 | Q85: 1 | R85: 85 | S85: 537
A86: 878450 | B86: kr | C86: 1 | D86: los | E86: t | F86: Bronze | G86: 코로니스 감마 조 | H86: 48 | I86: 59 | J86: 1194 | K86: 69 | L86: 2014-07-06 | M86: 5 hours | N86: 2014-09-21T04:51:28 | O86: 878450-1 | P86: 0 | Q86: 1 | R86: 86 | S86: 428
A87: 950335 | B87: kr | C87: 1 | D87: wnteoaos | E87: z | F87: Bronze | G87: 투락시스 빅터 조 | H87: 89 | I87: 91 | J87: 1193 | K87: 30 | L87: 2014-07-07 | M87: 1 days | N87: 2014-09-21T04:51:29 | O87: 950335-1 | P87: 0 | Q87: 1 | R87: 87 | S87: 252
A88: 4683454 | B88: kr | C88: 1 | D88: 마노 | E88: z | F88: Bronze | G88: 코로니스 감마 조 | H88: 62 | I88: 68 | J88: 1193 | K88: 15 | L88: 2014-07-28 | M88: 8 hours | N88: 2014-09-21T04:51:30 | O88: 4683454-1 | P88: 0 | Q88: 1 | R88: 88 | S88: 216
A89: 2609833 | B89: kr | C89: 1 | D89: 똥싼맹구 | E89: p | F89: Bronze | G89: 펠라니스 폭스트롯 조 | H89: 79 | I89: 80 | J89: 1192 | K89: 114 | L89: 2014-07-11 | M89: 6 days | N89: 2014-09-21T04:51:31 | O89: 2609833-1 | P89: 0 | Q89: 2 | R89: 89 | S89: 411
A90: 3326967 | B90: kr | C90: 1 | D90: SlayersAZM | E90: t | F90: Bronze | G90: 타림 엑스레이 조 | H90: 162 | I90: 216 | J90: 1189 | K90: 4 | L90: 2014-07-25 | M90: 4 hours | N90: 2014-09-21T04:51:35 | O90: 3326967-1 | P90: 0 | Q90: 1 | R90: 90 | S90: 127
A91: 4615058 | B91: kr | C91: 1 | D91: 빵먹어라죽빵 | E91: t | F91: Bronze | G91: 타림 엑스레이 조 | H91: 63 | I91: 58 | J91: 1189 | K91: 81 | L91: 2014-07-25 | M91: 7 days | N91: 2014-09-21T04:51:36 | O91: 4615058-1 | P91: 0 | Q91: 1 | R91: 91 | S91: 163
A92: 4711158 | B92: kr | C92: 1 | D92: 호주니 | E92: t | F92: Bronze | G92: 갈귀 찰리 조 | H92: 55 | I92: 58 | J92: 1189 | K92: 77 | L92: 2014-08-16 | M92: 3 days | N92: 2014-09-21T04:51:37 | O92: 4711158-1 | P92: 0 | Q92: 1 | R92: 92 | S92: 292
A93: 4604393 | B93: kr | C93: 1 | D93: 용깡 | E93: z | F93: Bronze | G93: 할시온 엡실론 조 | H93: 84 | I93: 85 | J93: 1188 | K93: 64 | L93: 2014-08-21 | M93: 2 days | N93: 2014-09-21T04:51:38 | O93: 4604393-1 | P93: 0 | Q93: 1 | R93: 93 | S93: 108
A94: 4040206 | B94: kr | C94: 1 | D94: 진인환 | E94: z | F94: Bronze | G94: 신관 뮤 조 | H94: 104 | I94: 119 | J94: 1187 | K94: 81 | L94: 2014-07-09 | M94: 2 days | N94: 2014-09-21T04:51:39 | O94: 4040206-1 | P94: 0 | Q94: 1 | R94: 94 | S94: 271
A95: 1682631 | B95: kr | C95: 1 | D95: 그림자폭풍 | E95: t | F95: Bronze | G95: 타락귀 파이 조 | H95: 75 | I95: 83 | J95: 1186 | K95: 2 | L95: 2014-07-10 | M95: 3 hours | N95: 2014-09-21T04:51:43 | O95: 1682631-1 | P95: 0 | Q95: 1 | R95: 95 | S95: 223
A96: 2465862 | B96: kr | C96: 1 | D96: WarZimi | E96: p | F96: Bronze | G96: 화염방사병 뉴 조 | H96: 138 | I96: 168 | J96: 1186 | K96: 1 | L96: 2014-07-06 | M96: 5 hours | N96: 2014-09-21T04:51:47 | O96: 2465862-1 | P96: 0 | Q96: 1 | R96: 96 | S96: 89
A97: 4231426 | B97: kr | C97: 1 | D97: DoubleP | E97: z | F97: Bronze | G97: 사카이 양키 조 | H97: 56 | I97: 69 | J97: 1186 | K97: 1 | L97: 2014-08-24 | M97: 7 hours | N97: 2014-09-21T04:51:48 | O97: 4231426-1 | P97: 0 | Q97: 1 | R97: 97 | S97: 164
A98: 4470234 | B98: kr | C98: 1 | D98: 황제의귀환 | E98: p | F98: Bronze | G98: 타이커스 로미오 조 | H98: 62 | I98: 63 | J98: 1184 | K98: 56 | L98: 2014-08-17 | M98: 3 days | N98: 2014-09-21T04:51:49 | O98: 4470234-1 | P98: 0 | Q98: 1 | R98: 98 | S98: 114
A99: 250482 | B99: kr | C99: 1 | D99: 조깐막걸리 | E99: z | F99: Bronze | G99: 화염방사병 뉴 조 | H99: 70 | I99: 78 | J99: 1183 | K99: 13 | L99: 2014-07-06 | M99: 5 hours | N99: 2014-09-21T04:51:53 | O99: 250482-1 | P99: 0 | Q99: 1 | R99: 99 | S99: 256
A100: 139513 | B100: kr | C100: 2 | D100: ZerGG | E100: z | F100: Bronze | G100: 타락귀 파이 조 | H100: 60 | I100: 85 | J100: 1182 | K100: 13 | L100: 2014-08-30 | M100: 5 hours | N100: 2014-09-21T04:51:57 | O100: 139513-2 | P100: 0 | Q100: 1 | R100: 100 | S100: 242
A101: 1484788 | B101: kr | C101: 1 | D101: Awesome | E101: p | F101: Bronze | G101: 계승자 그라비티 조 | H101: 54 | I101: 96 | J101: 1182 | K101: 1 | L101: 2014-07-13 | M101: 13 hours | N101: 2014-09-21T04:51:58 | O101: 1484788-1 | P101: 0 | Q101: 1 | R101: 101 | S101: 130
A102: 211820 | B102: kr | C102: 2 | D102: PennySR | E102: r | F102: Bronze | G102: 코로니스 감마 조 | H102: 246 | I102: 291 | J102: 1180 | K102: 1 | L102: 2014-07-06 | M102: 4 hours | N102: 2014-09-21T04:52:02 | O102: 211820-2 | P102: 0 | Q102: 1 | R102: 102 | S102: 392
A103: 823527 | B103: kr | C103: 2 | D103: AOSHIMA | E103: t | F103: Bronze | G103: 펠라니스 폭스트롯 조 | H103: 180 | I103: 248 | J103: 1179 | K103: 68 | L103: 2014-08-22 | M103: 3 days | N103: 2014-09-21T04:52:06 | O103: 823527-2 | P103: 0 | Q103: 1 | R103: 103 | S103: 158
A104: 1326558 | B104: kr | C104: 2 | D104: FAIRYTAIL | E104: t | F104: Bronze | G104: 화염방사병 뉴 조 | H104: 129 | I104: 123 | J104: 1179 | K104: 152 | L104: 2014-07-06 | M104: 6 days | N104: 2014-09-21T04:52:07 | O104: 1326558-2 | P104: 0 | Q104: 2 | R104: 104 | S104: 324
A105: 4071965 | B105: kr | C105: 1 | D105: 베스트 | E105: t | F105: Bronze | G105: 듀갈 에타 조 | H105: 108 | I105: 108 | J105: 1179 | K105: 57 | L105: 2014-07-07 | M105: 3 days | N105: 2014-09-21T04:52:08 | O105: 4071965-1 | P105: 0 | Q105: 1 | R105: 105 | S105: 337
A106: 4546923 | B106: kr | C106: 1 | D106: trololol | E106: r | F106: Bronze | G106: 집정관 요타 조 | H106: 146 | I106: 265 | J106: 1179 | K106: 14 | L106: 2014-07-09 | M106: 7 hours | N106: 2014-09-21T04:52:09 | O106: 4546923-1 | P106: 0 | Q106: 1 | R106: 106 | S106: 132
A107: 4380301 | B107: kr | C107: 1 | D107: 애키호용 | E107: z | F107: Bronze | G107: 타이커스 로미오 조 | H107: 60 | I107: 67 | J107: 1177 | K107: 1 | L107: 2014-09-06 | M107: 8 hours | N107: 2014-09-21T04:52:13 | O107: 4380301-1 | P107: 0 | Q107: 1 | R107: 107 | S107: 197
A108: 3026822 | B108: kr | C108: 1 | D108: neoforce | E108: t | F108: Bronze | G108: 타락귀 파이 조 | H108: 85 | I108: 78 | J108: 1176 | K108: 102 | L108: 2014-07-10 | M108: 6 days | N108: 2014-09-21T04:52:14 | O108: 3026822-1 | P108: 0 | Q108: 1 | R108: 108 | S108: 107
A109: 4291977 | B109: kr | C109: 1 | D109: zeus | E109: r | F109: Bronze | G109: 브락시스 딕시 조 | H109: 129 | I109: 163 | J109: 1176 | K109: 16 | L109: 2014-07-07 | M109: 10 hours | N109: 2014-09-21T04:52:15 | O109: 4291977-1 | P109: 0 | Q109: 1 | R109: 109 | S109: 225
A110: 4730187 | B110: kr | C110: 1 | D110: 클라우드 | E110: t | F110: Bronze | G110: 카스 알라모 조 | H110: 51 | I110: 57 | J110: 1176 | K110: 0 | L110: 2014-09-12 | M110: 1 days | N110: 2014-09-21T04:52:19 | O110: 4730187-1 | P110: 0 | Q110: 1 | R110: 110 | S110: 120
A111: 2068161 | B111: kr | C111: 1 | D111: fluxusnamu | E111: p | F111: Bronze | G111: 화염방사병 뉴 조 | H111: 132 | I111: 139 | J111: 1172 | K111: 41 | L111: 2014-07-06 | M111: 2 days | N111: 2014-09-21T04:52:20 | O111: 2068161-1 | P111: 0 | Q111: 1 | R111: 111 | S111: 118
A112: 4405561 | B112: kr | C112: 1 | D112: 나야나 | E112: p | F112: Bronze | G112: 타락귀 파이 조 | H112: 113 | I112: 110 | J112: 1171 | K112: 0 | L112: 2014-07-10 | M112: 2 days | N112: 2014-09-21T04:52:20 | O112: 4405561-1 | P112: 0 | Q112: 1 | R112: 112 | S112: 141
A113: 4674885 | B113: kr | C113: 1 | D113: 에너자이져 | E113: p | F113: Bronze | G113: 브락시스 딕시 조 | H113: 42 | I113: 47 | J113: 1170 | K113: 29 | L113: 2014-07-07 | M113: 9 hours | N113: 2014-09-21T04:52:22 | O113: 4674885-1 | P113: 0 | Q113: 1 | R113: 113 | S113: 96
A114: 905170 | B114: kr | C114: 2 | D114: 海龍王 | E114: z | F114: Bronze | G114: 할시온 엡실론 조 | H114: 80 | I114: 84 | J114: 1169 | K114: 76 | L114: 2014-07-07 | M114: 1 days | N114: 2014-09-21T04:52:23 | O114: 905170-2 | P114: 0 | Q114: 1 | R114: 114 | S114: 310
A115: 4293251 | B115: kr | C115: 1 | D115: 이스리 | E115: p | F115: Bronze | G115: 화염방사병 뉴 조 | H115: 46 | I115: 68 | J115: 1166 | K115: 9 | L115: 2014-07-06 | M115: 1 days | N115: 2014-09-21T04:52:24 | O115: 4293251-1 | P115: 0 | Q115: 1 | R115: 115 | S115: 201
A116: 221487 | B116: kr | C116: 1 | D116: 천그루 | E116: t | F116: Bronze | G116: 코로니스 감마 조 | H116: 119 | I116: 137 | J116: 1164 | K116: 10 | L116: 2014-07-06 | M116: 23 minutes | N116: 2014-09-21T04:52:25 | O116: 221487-1 | P116: 0 | Q116: 1 | R116: 116 | S116: 211
A117: 4029635 | B117: kr | C117: 1 | D117: 미니맥스 | E117: p | F117: Bronze | G117: 화염방사병 뉴 조 | H117: 110 | I117: 132 | J117: 1162 | K117: 27 | L117: 2014-07-06 | M117: 1 days | N117: 2014-09-21T04:52:29 | O117: 4029635-1 | P117: 0 | Q117: 1 | R117: 117 | S117: 206
A118: 825121 | B118: kr | C118: 2 | D118: stargogo | E118: t | F118: Bronze | G118: 화염방사병 뉴 조 | H118: 54 | I118: 76 | J118: 1161 | K118: 7 | L118: 2014-07-06 | M118: 2 days | N118: 2014-09-21T04:52:33 | O118: 825121-2 | P118: 0 | Q118: 1 | R118: 118 | S118: 83
A119: 115725 | B119: kr | C119: 2 | D119: 紅花油 | E119: p | F119: Bronze | G119: 화염방사병 뉴 조 | H119: 164 | I119: 228 | J119: 1160 | K119: 1 | L119: 2014-07-06 | M119: 17 minutes | N119: 2014-09-21T04:52:34 | O119: 115725-2 | P119: 0 | Q119: 1 | R119: 119 | S119: 114
A120: 4404614 | B120: kr | C120: 1 | D120: Flash | E120: t | F120: Bronze | G120: 브락시스 딕시 조 | H120: 69 | I120: 89 | J120: 1160 | K120: 3 | L120: 2014-07-07 | M120: 18 hours | N120: 2014-09-21T04:52:35 | O120: 4404614-1 | P120: 0 | Q120: 1 | R120: 120 | S120: 119
A121: 848194 | B121: kr | C121: 2 | D121: Fomula | E121: z | F121: Bronze | G121: 스완 오미크론 조 | H121: 150 | I121: 174 | J121: 1159 | K121: 86 | L121: 2014-07-08 | M121: 2 days | N121: 2014-09-21T04:52:36 | O121: 848194-2 | P121: 0 | Q121: 1 | R121: 121 | S121: 114
A122: 944021 | B122: kr | C122: 2 | D122: 賊小文 | E122: t | F122: Bronze | G122: 투락시스 빅터 조 | H122: 162 | I122: 175 | J122: 1159 | K122: 17 | L122: 2014-07-07 | M122: 2 hours | N122: 2014-09-21T04:52:37 | O122: 944021-2 | P122: 0 | Q122: 1 | R122: 122 | S122: 83
A123: 1077422 | B123: kr | C123: 2 | D123: bill | E123: z | F123: Bronze | G123: 투락시스 빅터 조 | H123: 58 | I123: 74 | J123: 1159 | K123: 24 | L123: 2014-07-07 | M123: 9 hours | N123: 2014-09-21T04:52:41 | O123: 1077422-2 | P123: 0 | Q123: 1 | R123: 123 | S123: 104
A124: 4053387 | B124: kr | C124: 1 | D124: WAY | E124: z | F124: Bronze | G124: 전쟁광 용병단 오스카 조 | H124: 86 | I124: 111 | J124: 1156 | K124: 16 | L124: 2014-07-23 | M124: 9 hours | N124: 2014-09-21T04:52:42 | O124: 4053387-1 | P124: 0 | Q124: 1 | R124: 124 | S124: 285
A125: 583438 | B125: kr | C125: 1 | D125: 태권 | E125: z | F125: Bronze | G125: 계승자 그라비티 조 | H125: 49 | I125: 58 | J125: 1155 | K125: 43 | L125: 2014-07-30 | M125: 2 days | N125: 2014-09-21T04:52:43 | O125: 583438-1 | P125: 0 | Q125: 1 | R125: 125 | S125: 151
A126: 2084472 | B126: kr | C126: 1 | D126: lionet | E126: p | F126: Bronze | G126: 아지마르 알파 조 | H126: 109 | I126: 116 | J126: 1154 | K126: 120 | L126: 2014-07-12 | M126: 4 hours | N126: 2014-09-21T04:52:43 | O126: 2084472-1 | P126: 0 | Q126: 2 | R126: 126 | S126: 150
A127: 1062703 | B127: kr | C127: 2 | D127: keelaho | E127: z | F127: Bronze | G127: 회색곰 리마 조 | H127: 43 | I127: 77 | J127: 1153 | K127: 5 | L127: 2014-09-12 | M127: 8 hours | N127: 2014-09-21T04:52:45 | O127: 1062703-2 | P127: 0 | Q127: 1 | R127: 127 | S127: 124
A128: 227320 | B128: kr | C128: 1 | D128: 난참차케 | E128: p | F128: Bronze | G128: 집정관 요타 조 | H128: 56 | I128: 62 | J128: 1152 | K128: 105 | L128: 2014-07-12 | M128: 1 days | N128: 2014-09-21T04:52:46 | O128: 227320-1 | P128: 0 | Q128: 2 | R128: 128 | S128: 282
A129: 3996666 | B129: kr | C129: 1 | D129: 닉노이 | E129: t | F129: Bronze | G129: 토라스크 피 조 | H129: 64 | I129: 77 | J129: 1151 | K129: 17 | L129: 2014-07-13 | M129: 11 hours | N129: 2014-09-21T04:52:47 | O129: 3996666-1 | P129: 0 | Q129: 1 | R129: 129 | S129: 203
A130: 3041216 | B130: kr | C130: 1 | D130: 어둠의집행관 | E130: p | F130: Bronze | G130: 뮤탈리스크 마즈 조 | H130: 39 | I130: 57 | J130: 1150 | K130: 19 | L130: 2014-08-06 | M130: 15 hours | N130: 2014-09-21T04:52:48 | O130: 3041216-1 | P130: 0 | Q130: 1 | R130: 130 | S130: 99
A131: 3741419 | B131: kr | C131: 1 | D131: 인공지능 | E131: r | F131: Bronze | G131: 골리앗 베타 조 | H131: 123 | I131: 187 | J131: 1150 | K131: 14 | L131: 2014-08-08 | M131: 7 hours | N131: 2014-09-21T04:52:52 | O131: 3741419-1 | P131: 0 | Q131: 1 | R131: 131 | S131: 87
A132: 1129793 | B132: kr | C132: 1 | D132: 싸울아비 | E132: r | F132: Bronze | G132: 투락시스 빅터 조 | H132: 89 | I132: 112 | J132: 1149 | K132: 27 | L132: 2014-07-07 | M132: 1 days | N132: 2014-09-21T04:52:56 | O132: 1129793-1 | P132: 0 | Q132: 1 | R132: 132 | S132: 88
A133: 3744318 | B133: kr | C133: 1 | D133: 왕달려 | E133: t | F133: Bronze | G133: 코로니스 감마 조 | H133: 98 | I133: 113 | J133: 1149 | K133: 151 | L133: 2014-07-06 | M133: 6 days | N133: 2014-09-21T04:52:57 | O133: 3744318-1 | P133: 0 | Q133: 2 | R133: 133 | S133: 146
A134: 1033821 | B134: kr | C134: 1 | D134: 포풍같은러쉬 | E134: t | F134: Bronze | G134: 코로니스 감마 조 | H134: 98 | I134: 108 | J134: 1148 | K134: 95 | L134: 2014-07-06 | M134: 3 days | N134: 2014-09-21T04:52:58 | O134: 1033821-1 | P134: 0 | Q134: 1 | R134: 134 | S134: 86
A135: 4652569 | B135: kr | C135: 1 | D135: wslee | E135: p | F135: Bronze | G135: 몬리스 크시 조 | H135: 46 | I135: 37 | J135: 1148 | K135: 200 | L135: 2014-09-01 | M135: 2 days | N135: 2014-09-21T04:53:02 | O135: 4652569-1 | P135: 0 | Q135: 2 | R135: 135 | S135: 151
A136: 1726680 | B136: kr | C136: 1 | D136: SimpleIsBest | E136: r | F136: Bronze | G136: 차원 분광기 세타 조 | H136: 45 | I136: 69 | J136: 1147 | K136: 2 | L136: 2014-09-14 | M136: 1 days | N136: 2014-09-21T04:53:06 | O136: 1726680-1 | P136: 0 | Q136: 1 | R136: 136 | S136: 156
A137: 3137916 | B137: kr | C137: 1 | D137: 통큰대장부 | E137: r | F137: Bronze | G137: 펠라니스 폭스트롯 조 | H137: 55 | I137: 64 | J137: 1146 | K137: 4 | L137: 2014-07-13 | M137: 6 hours | N137: 2014-09-21T04:53:10 | O137: 3137916-1 | P137: 0 | Q137: 1 | R137: 137 | S137: 89
A138: 4704007 | B138: kr | C138: 1 | D138: 앞마당지켜야제 | E138: p | F138: Bronze | G138: 갈귀 찰리 조 | H138: 51 | I138: 63 | J138: 1141 | K138: 90 | L138: 2014-08-17 | M138: 5 days | N138: 2014-09-21T04:53:14 | O138: 4704007-1 | P138: 0 | Q138: 1 | R138: 138 | S138: 131
A139: 4096445 | B139: kr | C139: 1 | D139: 임전무퇴 | E139: t | F139: Bronze | G139: 타락귀 파이 조 | H139: 51 | I139: 32 | J139: 1140 | K139: 746 | L139: 2014-07-23 | M139: 6 hours | N139: 2014-09-21T04:53:18 | O139: 4096445-1 | P139: 0 | Q139: 8 | R139: 139 | S139: 310
A140: 192523 | B140: kr | C140: 1 | D140: PEACEWALKER | E140: t | F140: Bronze | G140: 알렉산더 타우 조 | H140: 38 | I140: 66 | J140: 1139 | K140: 13 | L140: 2014-08-11 | M140: 4 hours | N140: 2014-09-21T04:53:19 | O140: 192523-1 | P140: 0 | Q140: 1 | R140: 140 | S140: 107
A141: 688484 | B141: kr | C141: 2 | D141: GoodTake | E141: r | F141: Bronze | G141: 전쟁광 용병단 오스카 조 | H141: 131 | I141: 154 | J141: 1138 | K141: 60 | L141: 2014-07-24 | M141: 3 days | N141: 2014-09-21T04:53:23 | O141: 688484-2 | P141: 0 | Q141: 1 | R141: 141 | S141: 136
A142: 774592 | B142: kr | C142: 2 | D142: 草莓棉花糖 | E142: r | F142: Bronze | G142: 화염방사병 뉴 조 | H142: 72 | I142: 79 | J142: 1135 | K142: 37 | L142: 2014-07-06 | M142: 10 days | N142: 2014-09-21T04:53:24 | O142: 774592-2 | P142: 0 | Q142: 1 | R142: 142 | S142: 336
A143: 4203746 | B143: kr | C143: 1 | D143: lllOvOlll | E143: z | F143: Bronze | G143: 법무관 호크 조 | H143: 64 | I143: 86 | J143: 1132 | K143: 35 | L143: 2014-07-08 | M143: 2 days | N143: 2014-09-21T04:53:25 | O143: 4203746-1 | P143: 0 | Q143: 1 | R143: 143 | S143: 81
A144: 4487842 | B144: kr | C144: 1 | D144: Shell | E144: t | F144: Bronze | G144: 계승자 그라비티 조 | H144: 48 | I144: 76 | J144: 1132 | K144: 25 | L144: 2014-07-09 | M144: 8 hours | N144: 2014-09-21T04:53:26 | O144: 4487842-1 | P144: 0 | Q144: 1 | R144: 144 | S144: 90
A145: 398604 | B145: kr | C145: 1 | D145: wtlohscvehsc | E145: z | F145: Bronze | G145: 정찰기 줄리엣 조 | H145: 128 | I145: 154 | J145: 1131 | K145: 27 | L145: 2014-07-06 | M145: 1 days | N145: 2014-09-21T04:53:27 | O145: 398604-1 | P145: 0 | Q145: 1 | R145: 145 | S145: 105
A146: 4630274 | B146: kr | C146: 1 | D146: Ubermensch | E146: t | F146: Bronze | G146: 망령 오메가 조 | H146: 101 | I146: 102 | J146: 1130 | K146: 169 | L146: 2014-07-14 | M146: 3 days | N146: 2014-09-21T04:53:28 | O146: 4630274-1 | P146: 0 | Q146: 2 | R146: 146 | S146: 98
A147: 4386669 | B147: kr | C147: 1 | D147: 야박 | E147: p | F147: Bronze | G147: 투락시스 빅터 조 | H147: 46 | I147: 53 | J147: 1128 | K147: 130 | L147: 2014-07-07 | M147: 1 days | N147: 2014-09-21T04:53:29 | O147: 4386669-1 | P147: 0 | Q147: 2 | R147: 147 | S147: 145
A148: 4585912 | B148: kr | C148: 1 | D148: Zinger | E148: t | F148: Bronze | G148: 듀갈 에타 조 | H148: 41 | I148: 46 | J148: 1128 | K148: 63 | L148: 2014-07-07 | M148: 6 hours | N148: 2014-09-21T04:53:30 | O148: 4585912-1 | P148: 0 | Q148: 1 | R148: 148 | S148: 82
A149: 4438622 | B149: kr | C149: 1 | D149: Telon | E149: t | F149: Bronze | G149: 법무관 호크 조 | H149: 39 | I149: 49 | J149: 1126 | K149: 89 | L149: 2014-09-09 | M149: 7 hours | N149: 2014-09-21T04:53:34 | O149: 4438622-1 | P149: 0 | Q149: 1 | R149: 149 | S149: 135
A150: 4094807 | B150: kr | C150: 1 | D150: 마의 | E150: t | F150: Bronze | G150: 타락귀 파이 조 | H150: 66 | I150: 80 | J150: 1123 | K150: 136 | L150: 2014-07-11 | M150: 6 days | N150: 2014-09-21T04:53:35 | O150: 4094807-1 | P150: 0 | Q150: 2 | R150: 150 | S150: 141
A151: 4605731 | B151: kr | C151: 1 | D151: 다뿌살끼다 | E151: z | F151: Bronze | G151: 계승자 그라비티 조 | H151: 45 | I151: 41 | J151: 1123 | K151: 167 | L151: 2014-07-09 | M151: 8 hours | N151: 2014-09-21T04:53:36 | O151: 4605731-1 | P151: 0 | Q151: 2 | R151: 151 | S151: 134
A152: 1050430 | B152: kr | C152: 1 | D152: 아놔아나아나아난 | E152: p | F152: Bronze | G152: 아지마르 알파 조 | H152: 72 | I152: 79 | J152: 1119 | K152: 121 | L152: 2014-07-12 | M152: 2 hours | N152: 2014-09-21T04:53:40 | O152: 1050430-1 | P152: 0 | Q152: 2 | R152: 152 | S152: 86
A153: 4310696 | B153: kr | C153: 1 | D153: lhh | E153: p | F153: Bronze | G153: 일벌레 탱고 조 | H153: 73 | I153: 83 | J153: 1119 | K153: 3 | L153: 2014-07-11 | M153: 17 hours | N153: 2014-09-21T04:53:44 | O153: 4310696-1 | P153: 0 | Q153: 1 | R153: 153 | S153: 134
A154: 226376 | B154: kr | C154: 2 | D154: saweaz | E154: z | F154: Bronze | G154: 용기병 시에라 조 | H154: 44 | I154: 45 | J154: 1117 | K154: 113 | L154: 2014-07-08 | M154: 15 hours | N154: 2014-09-21T04:53:45 | O154: 226376-2 | P154: 0 | Q154: 2 | R154: 154 | S154: 81
A155: 3945061 | B155: kr | C155: 1 | D155: tosin | E155: p | F155: Bronze | G155: 계승자 그라비티 조 | H155: 68 | I155: 63 | J155: 1117 | K155: 236 | L155: 2014-08-04 | M155: 15 days | N155: 2014-09-21T04:53:46 | O155: 3945061-1 | P155: 0 | Q155: 3 | R155: 155 | S155: 302
A156: 1003348 | B156: kr | C156: 2 | D156: BlackAngeL | E156: r | F156: Bronze | G156: 케이다린 시그마 조 | H156: 118 | I156: 192 | J156: 1116 | K156: 1 | L156: 2014-09-11 | M156: 2 hours | N156: 2014-09-21T04:53:50 | O156: 1003348-2 | P156: 0 | Q156: 1 | R156: 156 | S156: 112
A157: 759270 | B157: kr | C157: 2 | D157: YODA | E157: z | F157: Bronze | G157: 법무관 호크 조 | H157: 46 | I157: 61 | J157: 1113 | K157: 88 | L157: 2014-07-07 | M157: 2 hours | N157: 2014-09-21T04:53:54 | O157: 759270-2 | P157: 0 | Q157: 1 | R157: 157 | S157: 92
A158: 197877 | B158: kr | C158: 1 | D158: 호미베베 | E158: p | F158: Bronze | G158: 법무관 호크 조 | H158: 66 | I158: 70 | J158: 1112 | K158: 183 | L158: 2014-07-07 | M158: 4 days | N158: 2014-09-21T04:53:55 | O158: 197877-1 | P158: 0 | Q158: 2 | R158: 158 | S158: 116
A159: 721233 | B159: kr | C159: 2 | D159: JACK | E159: t | F159: Bronze | G159: 할시온 엡실론 조 | H159: 151 | I159: 185 | J159: 1112 | K159: 14 | L159: 2014-07-07 | M159: 7 hours | N159: 2014-09-21T04:53:56 | O159: 721233-2 | P159: 0 | Q159: 1 | R159: 159 | S159: 90
A160: 1107899 | B160: kr | C160: 2 | D160: FaDay | E160: p | F160: Bronze | G160: 보로스 인디고 조 | H160: 49 | I160: 32 | J160: 1112 | K160: 197 | L160: 2014-08-25 | M160: 2 days | N160: 2014-09-21T04:53:57 | O160: 1107899-2 | P160: 0 | Q160: 2 | R160: 160 | S160: 161
A161: 1354310 | B161: kr | C161: 2 | D161: LoWay | E161: p | F161: Bronze | G161: 몬리스 크시 조 | H161: 47 | I161: 43 | J161: 1112 | K161: 113 | L161: 2014-08-14 | M161: 6 days | N161: 2014-09-21T04:53:58 | O161: 1354310-2 | P161: 0 | Q161: 2 | R161: 161 | S161: 328
A162: 3766568 | B162: kr | C162: 1 | D162: 대마왕 | E162: p | F162: Bronze | G162: 화염방사병 뉴 조 | H162: 48 | I162: 57 | J162: 1112 | K162: 95 | L162: 2014-07-06 | M162: 1 days | N162: 2014-09-21T04:54:02 | O162: 3766568-1 | P162: 0 | Q162: 1 | R162: 162 | S162: 105
A163: 4366546 | B163: kr | C163: 1 | D163: 박윤춘 | E163: t | F163: Bronze | G163: 듀갈 에타 조 | H163: 47 | I163: 51 | J163: 1111 | K163: 150 | L163: 2014-07-08 | M163: 10 hours | N163: 2014-09-21T04:54:06 | O163: 4366546-1 | P163: 0 | Q163: 2 | R163: 163 | S163: 87
A164: 4671269 | B164: kr | C164: 1 | D164: mydnjswl | E164: p | F164: Bronze | G164: 파멸충 에코 조 | H164: 64 | I164: 81 | J164: 1108 | K164: 73 | L164: 2014-08-09 | M164: 4 days | N164: 2014-09-21T04:54:10 | O164: 4671269-1 | P164: 0 | Q164: 1 | R164: 164 | S164: 91
A165: 4616503 | B165: kr | C165: 1 | D165: stuka | E165: p | F165: Bronze | G165: 사카이 양키 조 | H165: 40 | I165: 42 | J165: 1106 | K165: 149 | L165: 2014-08-27 | M165: 3 days | N165: 2014-09-21T04:54:11 | O165: 4616503-1 | P165: 0 | Q165: 2 | R165: 165 | S165: 83
A166: 2332280 | B166: kr | C166: 1 | D166: 검은안개 | E166: p | F166: Bronze | G166: 아지마르 알파 조 | H166: 67 | I166: 68 | J166: 1105 | K166: 182 | L166: 2014-07-15 | M166: 22 hours | N166: 2014-09-21T04:54:12 | O166: 2332280-1 | P166: 0 | Q166: 2 | R166: 166 | S166: 75
A167: 4187866 | B167: kr | C167: 1 | D167: 머털도사 | E167: p | F167: Bronze | G167: 법무관 호크 조 | H167: 58 | I167: 83 | J167: 1104 | K167: 28 | L167: 2014-07-08 | M167: 19 hours | N167: 2014-09-21T04:54:13 | O167: 4187866-1 | P167: 0 | Q167: 1 | R167: 167 | S167: 161
A168: 2635051 | B168: kr | C168: 1 | D168: 구하라챙년 | E168: p | F168: Bronze | G168: 신관 뮤 조 | H168: 62 | I168: 72 | J168: 1099 | K168: 148 | L168: 2014-07-28 | M168: 8 days | N168: 2014-09-21T04:54:14 | O168: 2635051-1 | P168: 0 | Q168: 2 | R168: 168 | S168: 237
A169: 4593572 | B169: kr | C169: 1 | D169: Magikarp | E169: t | F169: Bronze | G169: 코로니스 감마 조 | H169: 43 | I169: 43 | J169: 1094 | K169: 173 | L169: 2014-07-07 | M169: 9 days | N169: 2014-09-21T04:54:18 | O169: 4593572-1 | P169: 0 | Q169: 2 | R169: 169 | S169: 188
A170: 4666430 | B170: kr | C170: 1 | D170: DKhr | E170: z | F170: Bronze | G170: 계승자 그라비티 조 | H170: 62 | I170: 72 | J170: 1094 | K170: 105 | L170: 2014-08-28 | M170: 6 days | N170: 2014-09-21T04:54:19 | O170: 4666430-1 | P170: 0 | Q170: 2 | R170: 170 | S170: 95
A171: 2805295 | B171: kr | C171: 1 | D171: 박종혁 | E171: t | F171: Bronze | G171: 공성 전차 입실론 조 | H171: 38 | I171: 43 | J171: 1090 | K171: 131 | L171: 2014-09-07 | M171: 12 hours | N171: 2014-09-21T04:54:20 | O171: 2805295-1 | P171: 0 | Q171: 2 | R171: 171 | S171: 115
A172: 4678151 | B172: kr | C172: 1 | D172: PopCon | E172: t | F172: Bronze | G172: 파멸충 에코 조 | H172: 122 | I172: 180 | J172: 1090 | K172: 1 | L172: 2014-07-28 | M172: 7 hours | N172: 2014-09-21T04:54:24 | O172: 4678151-1 | P172: 0 | Q172: 1 | R172: 172 | S172: 78
A173: 2510380 | B173: kr | C173: 1 | D173: ghost | E173: t | F173: Bronze | G173: 용기병 시에라 조 | H173: 54 | I173: 58 | J173: 1087 | K173: 170 | L173: 2014-07-08 | M173: 2 hours | N173: 2014-09-21T04:54:25 | O173: 2510380-1 | P173: 0 | Q173: 2 | R173: 173 | S173: 287
A174: 797116 | B174: kr | C174: 1 | D174: Kuki | E174: p | F174: Bronze | G174: 정찰기 줄리엣 조 | H174: 40 | I174: 52 | J174: 1085 | K174: 117 | L174: 2014-07-21 | M174: 5 hours | N174: 2014-09-21T04:54:29 | O174: 797116-1 | P174: 0 | Q174: 2 | R174: 174 | S174: 88
A175: 319649 | B175: kr | C175: 2 | D175: ming | E175: t | F175: Bronze | G175: 알자다르 로 조 | H175: 53 | I175: 63 | J175: 1082 | K175: 177 | L175: 2014-07-16 | M175: 11 days | N175: 2014-09-21T04:54:33 | O175: 319649-2 | P175: 0 | Q175: 2 | R175: 175 | S175: 119
A176: 2005490 | B176: kr | C176: 1 | D176: StarHero | E176: p | F176: Bronze | G176: 토라스크 피 조 | H176: 44 | I176: 46 | J176: 1081 | K176: 237 | L176: 2014-07-13 | M176: 7 days | N176: 2014-09-21T04:54:34 | O176: 2005490-1 | P176: 0 | Q176: 3 | R176: 176 | S176: 221
A177: 1340353 | B177: kr | C177: 1 | D177: 떳다찬영 | E177: r | F177: Bronze | G177: 아이어 델타 조 | H177: 74 | I177: 87 | J177: 1079 | K177: 114 | L177: 2014-07-12 | M177: 6 hours | N177: 2014-09-21T04:54:35 | O177: 1340353-1 | P177: 0 | Q177: 2 | R177: 177 | S177: 113
A178: 2699875 | B178: kr | C178: 1 | D178: 막떠깡 | E178: p | F178: Bronze | G178: 브락시스 딕시 조 | H178: 155 | I178: 173 | J178: 1078 | K178: 116 | L178: 2014-07-07 | M178: 7 days | N178: 2014-09-21T04:54:36 | O178: 2699875-1 | P178: 0 | Q178: 2 | R178: 178 | S178: 84
A179: 786554 | B179: kr | C179: 2 | D179: san | E179: t | F179: Bronze | G179: 신관 뮤 조 | H179: 36 | I179: 69 | J179: 1077 | K179: 1 | L179: 2014-07-09 | M179: 8 hours | N179: 2014-09-21T04:54:37 | O179: 786554-2 | P179: 0 | Q179: 1 | R179: 179 | S179: 100
A180: 2987884 | B180: kr | C180: 1 | D180: LullabyforEO | E180: t | F180: Bronze | G180: 타락귀 파이 조 | H180: 39 | I180: 48 | J180: 1076 | K180: 116 | L180: 2014-07-10 | M180: 2 days | N180: 2014-09-21T04:54:38 | O180: 2987884-1 | P180: 0 | Q180: 2 | R180: 180 | S180: 94
A181: 1055235 | B181: kr | C181: 2 | D181: OscarCool | E181: t | F181: Bronze | G181: 법무관 호크 조 | H181: 41 | I181: 50 | J181: 1075 | K181: 91 | L181: 2014-07-07 | M181: 3 days | N181: 2014-09-21T04:54:39 | O181: 1055235-2 | P181: 0 | Q181: 1 | R181: 181 | S181: 79
A182: 2971019 | B182: kr | C182: 1 | D182: Hazel | E182: p | F182: Bronze | G182: 연결체 람다 조 | H182: 39 | I182: 44 | J182: 1072 | K182: 212 | L182: 2014-07-30 | M182: 2 days | N182: 2014-09-21T04:54:42 | O182: 2971019-1 | P182: 0 | Q182: 3 | R182: 182 | S182: 86
A183: 4583083 | B183: kr | C183: 1 | D183: Anoava | E183: t | F183: Bronze | G183: 몬리스 크시 조 | H183: 44 | I183: 31 | J183: 1072 | K183: 206 | L183: 2014-08-14 | M183: 13 hours | N183: 2014-09-21T04:54:43 | O183: 4583083-1 | P183: 0 | Q183: 2 | R183: 183 | S183: 180
A184: 1052018 | B184: kr | C184: 2 | D184: 速度決定一切 | E184: t | F184: Bronze | G184: 타이커스 로미오 조 | H184: 79 | I184: 82 | J184: 1070 | K184: 192 | L184: 2014-07-12 | M184: 12 days | N184: 2014-09-21T04:54:45 | O184: 1052018-2 | P184: 0 | Q184: 2 | R184: 184 | S184: 87
A185: 1317998 | B185: kr | C185: 2 | D185: 滄月無淚 | E185: p | F185: Bronze | G185: 펠라니스 폭스트롯 조 | H185: 124 | I185: 113 | J185: 1070 | K185: 230 | L185: 2014-07-28 | M185: 3 hours | N185: 2014-09-21T04:54:49 | O185: 1317998-2 | P185: 0 | Q185: 3 | R185: 185 | S185: 133
A186: 4177896 | B186: kr | C186: 1 | D186: Hard | E186: t | F186: Bronze | G186: 코로니스 감마 조 | H186: 84 | I186: 104 | J186: 1067 | K186: 179 | L186: 2014-07-06 | M186: 2 hours | N186: 2014-09-21T04:54:50 | O186: 4177896-1 | P186: 0 | Q186: 2 | R186: 186 | S186: 340
A187: 974314 | B187: kr | C187: 1 | D187: gkstjdals | E187: r | F187: Bronze | G187: 집정관 요타 조 | H187: 34 | I187: 61 | J187: 1066 | K187: 142 | L187: 2014-08-11 | M187: 2 days | N187: 2014-09-21T04:54:51 | O187: 974314-1 | P187: 0 | Q187: 2 | R187: 187 | S187: 164
A188: 4374470 | B188: kr | C188: 1 | D188: 핵언더 | E188: p | F188: Bronze | G188: 군락 제타 조 | H188: 53 | I188: 62 | J188: 1060 | K188: 266 | L188: 2014-07-07 | M188: 17 days | N188: 2014-09-21T04:54:52 | O188: 4374470-1 | P188: 0 | Q188: 3 | R188: 188 | S188: 76
A189: 4325471 | B189: kr | C189: 1 | D189: ghkdwogns | E189: t | F189: Bronze | G189: 보로스 인디고 조 | H189: 39 | I189: 39 | J189: 1058 | K189: 93 | L189: 2014-09-09 | M189: 2 hours | N189: 2014-09-21T04:54:56 | O189: 4325471-1 | P189: 0 | Q189: 1 | R189: 189 | S189: 121
A190: 4599966 | B190: kr | C190: 1 | D190: dimaria | E190: p | F190: Bronze | G190: 계승자 그라비티 조 | H190: 125 | I190: 162 | J190: 1053 | K190: 93 | L190: 2014-07-09 | M190: 1 days | N190: 2014-09-21T04:54:57 | O190: 4599966-1 | P190: 0 | Q190: 1 | R190: 190 | S190: 79
A191: 1350479 | B191: kr | C191: 1 | D191: KBS | E191: t | F191: Bronze | G191: 타림 엑스레이 조 | H191: 40 | I191: 48 | J191: 1052 | K191: 139 | L191: 2014-09-06 | M191: 11 minutes | N191: 2014-09-21T04:54:58 | O191: 1350479-1 | P191: 0 | Q191: 2 | R191: 191 | S191: 94
A192: 2976502 | B192: kr | C192: 1 | D192: spay | E192: t | F192: Bronze | G192: 타락귀 파이 조 | H192: 50 | I192: 69 | J192: 1050 | K192: 146 | L192: 2014-07-10 | M192: 4 days | N192: 2014-09-21T04:54:59 | O192: 2976502-1 | P192: 0 | Q192: 2 | R192: 192 | S192: 73
A193: 943979 | B193: kr | C193: 1 | D193: 라디오스타 | E193: p | F193: Bronze | G193: 투락시스 빅터 조 | H193: 89 | I193: 132 | J193: 1049 | K193: 11 | L193: 2014-07-07 | M193: 2 hours | N193: 2014-09-21T04:55:00 | O193: 943979-1 | P193: 0 | Q193: 1 | R193: 193 | S193: 85
A194: 1896543 | B194: kr | C194: 1 | D194: 택배머신 | E194: t | F194: Bronze | G194: 버밀리언 노벰버 조 | H194: 49 | I194: 64 | J194: 1049 | K194: 158 | L194: 2014-08-03 | M194: 12 hours | N194: 2014-09-21T04:55:01 | O194: 1896543-1 | P194: 0 | Q194: 2 | R194: 194 | S194: 109
A195: 3953651 | B195: kr | C195: 1 | D195: 키다리아들 | E195: z | F195: Bronze | G195: 갈귀 찰리 조 | H195: 38 | I195: 46 | J195: 1048 | K195: 160 | L195: 2014-08-18 | M195: 2 days | N195: 2014-09-21T04:55:02 | O195: 3953651-1 | P195: 0 | Q195: 2 | R195: 195 | S195: 74
A196: 823979 | B196: kr | C196: 2 | D196: lorenz | E196: p | F196: Bronze | G196: 펠라니스 폭스트롯 조 | H196: 47 | I196: 53 | J196: 1046 | K196: 243 | L196: 2014-07-11 | M196: 3 days | N196: 2014-09-21T04:55:03 | O196: 823979-2 | P196: 0 | Q196: 3 | R196: 196 | S196: 127
A197: 1105197 | B197: kr | C197: 2 | D197: CHICHENG | E197: t | F197: Bronze | G197: 법무관 호크 조 | H197: 39 | I197: 55 | J197: 1046 | K197: 24 | L197: 2014-07-08 | M197: 6 days | N197: 2014-09-21T04:55:07 | O197: 1105197-2 | P197: 0 | Q197: 1 | R197: 197 | S197: 157
A198: 4586455 | B198: kr | C198: 1 | D198: 빡도 | E198: t | F198: Bronze | G198: 군락 제타 조 | H198: 39 | I198: 40 | J198: 1044 | K198: 161 | L198: 2014-08-18 | M198: 14 hours | N198: 2014-09-21T04:55:11 | O198: 4586455-1 | P198: 0 | Q198: 2 | R198: 198 | S198: 87
A199: 1335061 | B199: kr | C199: 2 | D199: IIIIIIIIIII | E199: r | F199: Bronze | G199: 브락시스 딕시 조 | H199: 41 | I199: 45 | J199: 1040 | K199: 236 | L199: 2014-07-07 | M199: 2 days | N199: 2014-09-21T04:55:15 | O199: 1335061-2 | P199: 0 | Q199: 3 | R199: 199 | S199: 70
A200: 2714318 | B200: kr | C200: 1 | D200: Siege | E200: p | F200: Bronze | G200: 투락시스 빅터 조 | H200: 85 | I200: 95 | J200: 1030 | K200: 303 | L200: 2014-07-07 | M200: 6 days | N200: 2014-09-21T04:55:16 | O200: 2714318-1 | P200: 0 | Q200: 3 | R200: 200 | S200: 84
... 4300 more rows

Sheet Analysis - Team
A1: 2v2 - Most Recent Games
B2: Bronze | D2: Silver | F2: Gold | H2: Platinum | J2: Diamond | L2: Master | N2: Totals | P2: Total Team Count
A3: Category | B3: Last Week | C3: Last Month | D3: Last Week | E3: Last Month | F3: Last Week | G3: Last Month | H3: Last Week | I3: Last Month | J3: Last Week | K3: Last Month | L3: Last Week | M3: Last Month | N3: Last Week | O3: Last Month
A4: Totals | B4: 831 | C4: 1696 | D4: 892 | E4: 1594 | F4: 854 | G4: 1268 | H4: 364 | I4: 392 | J4: 89 | K4: 100 | L4: 30 | M4: 33 | N4: 3060 | O4: 5083
A5: At least 1 game within the last month | B5: 2527 | D5: 2486 | F5: 2122 | H5: 756 | J5: 189 | L5: 63 | N5: 8143
B6: Avg Wins | C6: Avg Losses | D6: Avg Wins | E6: Avg Losses | F6: Avg Wins | G6: Avg Losses | H6: Avg Wins | I6: Avg Losses | J6: Avg Wins | K6: Avg Losses | L6: Avg Wins | M6: Avg Losses | N6: Avg Wins | O6: Avg Losses
A7: Games Count | B7: 4.025311288 | C7: 5.60236783 | D7: 8.123803162 | E7: 7.503674015 | F7: 14.87757405 | G7: 11.81212976 | H7: 26.86267902 | I7: 20.30244313 | J7: 32.72426471 | K7: 21.56985294 | L7: 53.42352941 | M7: 22.35294118 | N7: 10.65494855 | O7: 9.315905795
A8: Avg Score | B8: 95.98632374 | D8: 167.6855934 | F8: 251.5359661 | H8: 348.8871104 | J8: 401.5 | L8: 484.5882353 | N8: 185.0635403
A9: Total Team Count | B9: 4899 | D9: 4491 | F9: 3545 | H9: 1187 | J9: 272 | L9: 85 | N9: 14479
A13: 3v3 - Most Recent Games
B14: Bronze | D14: Silver | F14: Gold | H14: Platinum | J14: Diamond | L14: Master | N14: Totals | P14: Total Team Count
A15: Category | B15: Last Week | C15: Last Month | D15: Last Week | E15: Last Month | F15: Last Week | G15: Last Month | H15: Last Week | I15: Last Month | J15: Last Week | K15: Last Month | L15: Last Week | M15: Last Month | N15: Last Week | O15: Last Month
A16: Totals | B16: 220 | C16: 630 | D16: 402 | E16: 884 | F16: 339 | G16: 654 | H16: 133 | I16: 233 | J16: 19 | K16: 47 | L16: 3 | M16: 7 | N16: 1116 | O16: 2455
A17: At least 1 game within the last month | B17: 850 | D17: 1286 | F17: 993 | H17: 366 | J17: 66 | L17: 10 | N17: 3571
B18: Avg Wins | C18: Avg Losses | D18: Avg Wins | E18: Avg Losses | F18: Avg Wins | G18: Avg Losses | H18: Avg Wins | I18: Avg Losses | J18: Avg Wins | K18: Avg Losses | L18: Avg Wins | M18: Avg Losses | N18: Avg Wins | O18: Avg Losses
A19: Games Count | B19: 3.622122403 | C19: 4.663672094 | D19: 6.149112426 | E19: 5.566863905 | F19: 9.949125596 | G19: 6.906200318 | H19: 13.76946108 | I19: 7.610778443 | J19: 22.71929825 | K19: 10.76315789 | L19: 42.46666667 | M19: 12.93333333 | N19: 8.254142857 | O19: 6.265
A20: Avg Score | B20: 77.41381246 | D20: 105.3558185 | F20: 132.9888712 | H20: 143.6631737 | J20: 211.3333333 | L20: 268.7333333 | N20: 117.3115714
A21: Total Team Count | B21: 1781 | D21: 2535 | F21: 1887 | H21: 668 | J21: 114 | L21: 15 | N21: 7000
A25: 4v4 - Most Recent Games
B26: Bronze | D26: Silver | F26: Gold | H26: Platinum | J26: Diamond | L26: Master | N26: Totals | P26: Total Team Count
A27: Category | B27: Last Week | C27: Last Month | D27: Last Week | E27: Last Month | F27: Last Week | G27: Last Month | H27: Last Week | I27: Last Month | J27: Last Week | K27: Last Month | L27: Last Week | M27: Last Month | N27: Last Week | O27: Last Month
A28: Totals | B28: 57 | C28: 171 | D28: 114 | E28: 384 | F28: 55 | G28: 129 | H28: 26 | I28: 85 | J28: 4 | K28: 6 | M28: 1 | N28: 256 | O28: 776
A29: At least 1 game within the last month | B29: 228 | D29: 498 | F29: 184 | H29: 111 | J29: 10 | L29: 1 | N29: 1032
B30: Avg Wins | C30: Avg Losses | D30: Avg Wins | E30: Avg Losses | F30: Avg Wins | G30: Avg Losses | H30: Avg Wins | I30: Avg Losses | J30: Avg Wins | K30: Avg Losses | L30: Avg Wins | M30: Avg Losses | N30: Avg Wins | O30: Avg Losses
A31: Games Count | B31: 2.869230769 | C31: 4.178846154 | D31: 4.753968254 | E31: 3.911706349 | F31: 7.757575758 | G31: 4.614325069 | H31: 5.946808511 | I31: 1.262411348 | J31: 8.653846154 | K31: 1.538461538 | L31: 38 | M31: 0 | N31: 5.307727273 | O31: 3.809545455
A32: Avg Score | B32: 59.16923077 | D32: 71.21527778 | F32: 102.5179063 | H32: 38.44680851 | J32: 72.84615385 | L32: 361 | N32: 71.31590909
A33: Total Team Count | B33: 520 | D33: 1008 | F33: 363 | H33: 282 | J33: 26 | L33: 1 | N33: 2200
A37: 2v2r - Most Recent Games
B38: Bronze | D38: Silver | F38: Gold | H38: Platinum | J38: Diamond | L38: Master | N38: Totals
A39: Category | B39: Last Week | C39: Last Month | D39: Last Week | E39: Last Month | F39: Last Week | G39: Last Month | H39: Last Week | I39: Last Month | J39: Last Week | K39: Last Month | L39: Last Week | M39: Last Month | N39: Last Week | O39: Last Month
A40: Totals | B40: 237 | C40: 502 | D40: 982 | E40: 1120 | F40: 790 | G40: 646 | H40: 504 | I40: 280 | J40: 182 | K40: 98 | L40: 80 | M40: 39 | N40: 2775 | O40: 2685
A41: At least 1 game within the last month | B41: 739 | D41: 2102 | F41: 1436 | H41: 784 | J41: 280 | L41: 119 | N41: 5460
B42: Avg Wins | C42: Avg Losses | D42: Avg Wins | E42: Avg Losses | F42: Avg Wins | G42: Avg Losses | H42: Avg Wins | I42: Avg Losses | J42: Avg Wins | K42: Avg Losses | L42: Avg Wins | M42: Avg Losses | N42: Avg Wins | O42: Avg Losses
A43: Games Count | B43: 0 | C43: 5.598119122 | D43: 0 | E43: 11.16111111 | F43: 0 | G43: 24.24344023 | H43: 0 | I43: 44.00467727 | J43: 0 | K43: 58.26988636 | L43: 0 | M43: 58.24647887 | N43: 0 | O43: 20.01111626
A44: Avg Score | B44: 65.57742947 | D44: 208.2915205 | F44: 412.9008746 | H44: 598.5444341 | J44: 676.0113636 | L44: 822.9647887 | N44: 308.1709125
A45: Total Player Count | B45: 1595 | D45: 3420 | F45: 2058 | H45: 1069 | J45: 352 | L45: 142 | N45: 8636
A49: 3v3r - Most Recent Games
B50: Bronze | D50: Silver | F50: Gold | H50: Platinum | J50: Diamond | L50: Master | N50: Totals
A51: Category | B51: Last Week | C51: Last Month | D51: Last Week | E51: Last Month | F51: Last Week | G51: Last Month | H51: Last Week | I51: Last Month | J51: Last Week | K51: Last Month | L51: Last Week | M51: Last Month | N51: Last Week | O51: Last Month
A52: Totals | B52: 326 | C52: 542 | D52: 1658 | E52: 1667 | F52: 1394 | G52: 887 | H52: 654 | I52: 336 | J52: 216 | K52: 112 | N52: 4248 | O52: 3544
A53: At least 1 game within the last month | B53: 868 | D53: 3325 | F53: 2281 | H53: 990 | J53: 328 | N53: 7792
B54: Avg Wins | C54: Avg Losses | D54: Avg Wins | E54: Avg Losses | F54: Avg Wins | G54: Avg Losses | H54: Avg Wins | I54: Avg Losses | J54: Avg Wins | K54: Avg Losses | L54: Avg Wins | M54: Avg Losses | N54: Avg Wins | O54: Avg Losses
A55: Games Count | B55: 0 | C55: 14.24423963 | D55: 0 | E55: 18.14393017 | F55: 0 | G55: 37.08595524 | H55: 0 | I55: 52.57653458 | J55: 0 | K55: 58.57553957 | N55: 0 | O55: 28.71901476
A56: Avg Score | B56: 107.6797235 | D56: 293.7298011 | F56: 520.9244243 | H56: 621.7637918 | J56: 656.9496403 | N56: 387.0096952
A57: Total Player Count | B57: 1736 | D57: 4926 | F57: 3083 | H57: 1287 | J57: 417 | N57: 11449
A61: 4v4r - Most Recent Games
B62: Bronze | D62: Silver | F62: Gold | H62: Platinum | J62: Diamond | L62: Master | N62: Totals
A63: Category | B63: Last Week | C63: Last Month | D63: Last Week | E63: Last Month | F63: Last Week | G63: Last Month | H63: Last Week | I63: Last Month | J63: Last Week | K63: Last Month | L63: Last Week | M63: Last Month | N63: Last Week | O63: Last Month
A64: Totals | B64: 197 | C64: 379 | D64: 712 | E64: 703 | F64: 445 | G64: 301 | H64: 104 | I64: 77 | J64: 24 | K64: 29 | N64: 1482 | O64: 1489
A65: At least 1 game within the last month | B65: 576 | D65: 1415 | F65: 746 | H65: 181 | J65: 53 | N65: 2971
B66: Avg Wins | C66: Avg Losses | D66: Avg Wins | E66: Avg Losses | F66: Avg Wins | G66: Avg Losses | H66: Avg Wins | I66: Avg Losses | J66: Avg Wins | K66: Avg Losses | L66: Avg Wins | M66: Avg Losses | N66: Avg Wins | O66: Avg Losses
A67: Games Count | B67: 0 | C67: 7.602842809 | D67: 0 | E67: 17.25034388 | F67: 0 | G67: 34.70764763 | H67: 0 | I67: 17.46308725 | J67: 0 | K67: 5.815217391 | N67: 0 | O67: 23.48625
A68: Avg Score | B68: 65.63210702 | D68: 276.0353049 | F68: 518.5992256 | H68: 302.8624161 | J68: 147.5652174 | N68: 332.0872917
A69: Total Player Count | B69: 1196 | D69: 2181 | F69: 1033 | H69: 298 | J69: 92 | N69: 4800
A73: Most Recent Game Played
A74: Percentages of Total | B74: Last Week | C74: Last Month
A75: 2v2 | B75: =N4/N9 -> 0.2113405622 | C75: =N5/N9 -> 0.5624007183
A76: 3v3 | B76: =N16/N21 -> 0.1594285714 | C76: =N17/N21 -> 0.5101428571
A77: 4v4 | B77: =N28/N33 -> 0.1163636364 | C77: =N29/N33 -> 0.4690909091
A78: 2v2 Random | B78: =N40/N45 -> 0.3213293191 | C78: =N41/N45 -> 0.6322371468
A79: 3v3 Random | B79: =N52/N57 -> 0.3710367718 | C79: =N53/N57 -> 0.6805834571
A80: 4v4 Random | B80: =N64/N69 -> 0.30875 | C80: =N65/N69 -> 0.6189583333
A84: Unique Player Counts
A85: Team Type | B85: Counts
A86: 2v2 | B86: =N9 -> 14479
A87: 3v3 | B87: =N21 -> 7000
A88: 4v4 | B88: =N33 -> 2200
A89: 2v2 Random | B89: =N45 -> 8636
A90: 3v3 Random | B90: =N57 -> 11449
A91: 4v4 Random | B91: =N69 -> 4800
A95: League Distributions - Based on Having Played At Least 1 Game Last Month | I95: League Distributions - All Teams
A96: Team Type | B96: Bronze | C96: Silver | D96: Gold | E96: Platinum | F96: Diamond | G96: Master | I96: Team Type | J96: Bronze | K96: Silver | L96: Gold | M96: Platinum | N96: Diamond | O96: Master
A97: 2v2 | B97: =B5/N5 -> 0.310327889 | C97: =D5/N5 -> 0.3052928896 | D97: =F5/N5 -> 0.2605919194 | E97: =H5/N5 -> 0.09284047648 | F97: =J5/N5 -> 0.02321011912 | G97: =L5/N5 -> 0.007736706374 | I97: 2v2 | J97: =B9/N9 -> 0.3383520961 | K97: =D9/N9 -> 0.3101733545 | L97: =F9/N9 -> 0.2448373506 | M97: =H9/N9 -> 0.08198079978 | N97: =J9/N9 -> 0.01878582775 | O97: =L9/N9 -> 0.005870571172
A98: 3v3 | B98: =B17/N17 -> 0.2380285634 | C98: =D17/N17 -> 0.3601232148 | D98: =F17/N17 -> 0.2780733688 | E98: =H17/N17 -> 0.1024922991 | F98: =J17/N17 -> 0.01848221787 | G98: =L17/N17 -> 0.00280033604 | I98: 3v3 | J98: =B21/N21 -> 0.2544285714 | K98: =D21/N21 -> 0.3621428571 | L98: =F21/N21 -> 0.2695714286 | M98: =H21/N21 -> 0.09542857143 | N98: =J21/N21 -> 0.01628571429 | O98: =L21/N21 -> 0.002142857143
A99: 4v4 | B99: =B29/N29 -> 0.2209302326 | C99: =D29/N29 -> 0.4825581395 | D99: =F29/N29 -> 0.1782945736 | E99: =H29/N29 -> 0.1075581395 | F99: =J29/N29 -> 0.009689922481 | G99: =L29/N29 -> 0.0009689922481 | I99: 4v4 | J99: =B33/N33 -> 0.2363636364 | K99: =D33/N33 -> 0.4581818182 | L99: =F33/N33 -> 0.165 | M99: =H33/N33 -> 0.1281818182 | N99: =J33/N33 -> 0.01181818182 | O99: =L33/N33 -> 0.0004545454545
A100: 2v2 Random | B100: =B41/N41 -> 0.1353479853 | C100: =D41/N41 -> 0.384981685 | D100: =F41/N41 -> 0.263003663 | E100: =H41/N41 -> 0.1435897436 | F100: =J41/N41 -> 0.05128205128 | G100: =L41/N41 -> 0.02179487179 | I100: 2v2 Random | J100: =B45/N45 -> 0.184691987 | K100: =D45/N45 -> 0.3960166744 | L100: =F45/N45 -> 0.2383047707 | M100: =H45/N45 -> 0.1237841593 | N100: =J45/N45 -> 0.04075961093 | O100: =L45/N45 -> 0.01644279759
A101: 3v3 Random | B101: =B53/N53 -> 0.1113963039 | C101: =D53/N53 -> 0.4267197125 | D101: =F53/N53 -> 0.2927361396 | E101: =H53/N53 -> 0.1270533881 | F101: =J53/N53 -> 0.04209445585 | G101: =L53/N53 -> 0 | I101: 3v3 Random | J101: =B57/N57 -> 0.1516289632 | K101: =D57/N57 -> 0.4302559175 | L101: =F57/N57 -> 0.2692811599 | M101: =H57/N57 -> 0.1124115643 | N101: =J57/N57 -> 0.03642239497 | O101: =L57/N57 -> 0
A102: 4v4 Random | B102: =B65/N65 -> 0.1938741165 | C102: =D65/N65 -> 0.476270616 | D102: =F65/N65 -> 0.2510939078 | E102: =H65/N65 -> 0.0609222484 | F102: =J65/N65 -> 0.01783911141 | G102: =L65/N65 -> 0 | I102: 4v4 Random | J102: =B69/N69 -> 0.2491666667 | K102: =D69/N69 -> 0.454375 | L102: =F69/N69 -> 0.2152083333 | M102: =H69/N69 -> 0.06208333333 | N102: =J69/N69 -> 0.01916666667 | O102: =L69/N69 -> 0
A104: 2v2 matched | B104: =A104&": "&$B$96&": "&ROUNDDOWN(B97,2)*100 & "% | " &$C$96&": "&ROUNDDOWN(C97,2)*100 & "% | " &$D$96&": "&ROUNDDOWN(D97,2)*100 & "% | " &$E$96&": "&ROUNDDOWN(E97,2)*100 & "% | " &$F$96&": "&ROUNDDOWN(F97,2)*100 & "% | " &$G$96&": "&ROUND(G97*100,2) & "% | " -> 2v2 matched: Bronze: 31% | Silver: 30% | Gold: 26% | Platinum: 9% | Diamond: 2% | Master: 0.77% |
A105: 3v3 matched | B105: =A105&": "&$B$96&": "&ROUNDDOWN(B98,2)*100 & "% | " &$C$96&": "&ROUNDDOWN(C98,2)*100 & "% | " &$D$96&": "&ROUNDDOWN(D98,2)*100 & "% | " &$E$96&": "&ROUNDDOWN(E98,2)*100 & "% | " &$F$96&": "&ROUNDDOWN(F98,2)*100 & "% | " &$G$96&": "&ROUND(G98*100,2) & "% | " -> 3v3 matched: Bronze: 23% | Silver: 36% | Gold: 27% | Platinum: 10% | Diamond: 1% | Master: 0.28% |
A106: 4v4 matched | B106: 4v4 matched: Bronze: 22% | Silver: 48% | Gold: 17% | Platinum: 10% | Diamond: 0% | Master: 0.1% |
A107: 2v2 random | B107: 2v2 random: Bronze: 13% | Silver: 38% | Gold: 26% | Platinum: 14% | Diamond: 5% | Master: 2.18% |
A108: 3v3 random | B108: 3v3 random: Bronze: 11% | Silver: 42% | Gold: 29% | Platinum: 12% | Diamond: 4% | Master: 0% |
A109: 4v4 random | B109: 4v4 random: Bronze: 19% | Silver: 47% | Gold: 25% | Platinum: 6% | Diamond: 1% | Master: 0% |

Sheet IDs
A1: Player IDs | B1: Team Type | D1: Unique IDs | E1: # of team types | F1: Only in team games (if error) | G1: Unique 1v1 | H1: Only in 1v1 (if error) | I1: # of team types | J1: # of team-only players | K1: # of 1v1-only players
A2: 1000044-2 | B2: 2v2Team | D2: 1000044-2 | E2: 1 | G2: 1000075-2 | H2: 1000075-2 | I2: =IF(ISERROR(H2),0,VLOOKUP(G2,$D$2:$E$37821,2,FALSE)) -> 3 | J2: =COUNTIF(F2:F110919,"#N/A") -> 21678 | K2: =COUNTIF(H2:H110919,"#N/A") -> 37398
A3: 1000075-2 | B3: 2v2r | D3: 1000075-2 | E3: 3 | F3: 1000075-2 | G3: 100016-1 | H3: 100016-1 | I3: =IF(ISERROR(H3),0,VLOOKUP(G3,$D$2:$E$37821,2,FALSE)) -> 1
A4: 1000075-2 | B4: 3v3r | D4: 100016-1 | E4: 1 | F4: 100016-1 | G4: 1000241-2 | I4: 0 | J4: Total 1v1 players | K4: =COUNTA(G2:G100402) -> 53540
A5: 1000075-2 | B5: 4v4r | D5: 1000324-2 | E5: 1 | G5: 1000341-2 | H5: 1000341-2 | I5: 20 | J5: 1v1 players that also placed with a team type | K5: =K4-K2 -> 16142 | L5: =K5/K4 -> 0.3014942099
A6: 100016-1 | B6: 2v2Team | D6: 1000341-2 | E6: 20 | F6: 1000341-2 | G6: 1000378-2 | I6: 0 | J6: # of 1v1 players that have completed placement matches for 3 or more team types | K6: =COUNTIF(I2:I45080,">=3") -> 3263
A7: 1000324-2 | B7: 2v2Team | D7: 1000380-2 | E7: 1 | F7: 1000380-2 | G7: 1000380-2 | H7: 1000380-2 | I7: 1 | J7: Team players that only placed with 1 team | K7: =COUNTIFS(E2:E110919,1,F2:F110919,"#N/A") -> 15139
A8: 1000341-2 | B8: 2v2Team | D8: 1000387-2 | E8: 4 | G8: 1000467-2 | I8: 0 | J8: % of team-only with only 1 team | K8: =K7/J2 -> 0.6983577821
A9: 1000341-2 | B9: 3v3Team | D9: 1000449-2 | E9: 2 | G9: 1000600-2 | I9: 0 | J9: Most teams placed with | K9: =MAX(E2:E110919) -> 74
A10: 1000341-2 | B10: 3v3Team | D10: 1000549-2 | E10: 1 | G10: 1000691-2 | H10: 1000691-2 | I10: 1 | J10: Average # of team types | K10: =AVERAGE(E2:E31274) -> 1.868480798
A11: 1000341-2 | B11: 3v3Team | D11: 1000691-2 | E11: 1 | F11: 1000691-2 | G11: 1000696-1 | I11: 0
A12: 1000341-2 | B12: 3v3Team | D12: 1000710-2 | E12: 2 | F12: 1000710-2 | G12: 1000710-2 | H12: 1000710-2 | I12: 2
A13: 1000341-2 | B13: 3v3Team | D13: 1000748-1 | E13: 1 | G13: 1000732-2 | I13: 0
A14: 1000341-2 | B14: 3v3Team | D14: 1000782-1 | E14: 1 | F14: 1000782-1 | G14: 1000754-2 | I14: 0
A15: 1000341-2 | B15: 4v4Team | D15: 1000848-2 | E15: 2 | F15: 1000848-2 | G15: 1000782-1 | H15: 1000782-1 | I15: 1
A16: 1000341-2 | B16: 4v4Team | D16: 100090-1 | E16: 1 | G16: 1000848-2 | H16: 1000848-2 | I16: 2
A17: 1000341-2 | B17: 4v4Team | D17: 1001135-2 | E17: 2 | G17: 1000937-2 | I17: 0
A18: 1000341-2 | B18: 4v4Team | D18: 1001145-1 | E18: 2 | G18: 1000967-1 | I18: 0
A19: 1000341-2 | B19: 4v4Team | D19: 100116-1 | E19: 3 | G19: 1000971-2 | I19: 0
A20: 1000341-2 | B20: 4v4Team | D20: 1001204-2 | E20: 1 | G20: 1000997-1 | I20: 0
A21: 1000341-2 | B21: 4v4Team | D21: 1001235-1 | E21: 2 | F21: 1001235-1 | G21: 1001028-2 | I21: 0
A22: 1000341-2 | B22: 4v4Team | D22: 1001274-1 | E22: 4 | F22: 1001274-1 | G22: 1001042-2 | I22: 0
A23: 1000341-2 | B23: 4v4Team | D23: 1001286-2 | E23: 4 | F23: 1001286-2 | G23: 1001235-1 | H23: 1001235-1 | I23: 2
A24: 1000341-2 | B24: 4v4Team | D24: 1001315-2 | E24: 1 | F24: 1001315-2 | G24: 1001272-2 | I24: 0
A25: 1000341-2 | B25: 4v4Team | D25: 1001378-2 | E25: 3 | G25: 1001274-1 | H25: 1001274-1 | I25: 4
A26: 1000341-2 | B26: 3v3r | D26: 1001409-1 | E26: 2 | F26: 1001409-1 | G26: 1001286-2 | H26: 1001286-2 | I26: 4
A27: 1000341-2 | B27: 4v4r | D27: 1001441-2 | E27: 3 | F27: 1001441-2 | G27: 1001315-2 | H27: 1001315-2 | I27: 1
A28: 1000380-2 | B28: 2v2Team | D28: 1001453-2 | E28: 1 | F28: 1001453-2 | G28: 1001401-2 | I28: 0
A29: 1000387-2 | B29: 2v2Team | D29: 1001491-2 | E29: 9 | F29: 1001491-2 | G29: 1001409-1 | H29: 1001409-1 | I29: 2
A30: 1000387-2 | B30: 3v3Team | D30: 1001603-2 | E30: 2 | G30: 1001441-2 | H30: 1001441-2 | I30: 3
A31: 1000387-2 | B31: 2v2r | D31: 100162-2 | E31: 1 | F31: 100162-2 | G31: 1001453-2 | H31: 1001453-2 | I31: 1
A32: 1000387-2 | B32: 3v3r | D32: 100164-2 | E32: 2 | G32: 1001491-2 | H32: 1001491-2 | I32: 9
A33: 1000449-2 | B33: 2v2Team | D33: 1001646-1 | E33: 1 | G33: 1001529-2 | I33: 0
A34: 1000449-2 | B34: 3v3r | D34: 100166-1 | E34: 1 | G34: 1001557-2 | I34: 0
A35: 1000549-2 | B35: 2v2Team | D35: 100168-1 | E35: 2 | G35: 1001611-2 | I35: 0
A36: 1000691-2 | B36: 2v2Team | D36: 1001682-1 | E36: 5 | G36: 100162-2 | H36: 100162-2 | I36: 1
A37: 1000710-2 | B37: 2v2Team | D37: 1001725-2 | E37: 2 | G37: 1001624-2 | I37: 0
A38: 1000710-2 | B38: 3v3Team | D38: 1001760-1 | E38: 1 | G38: 1001691-2 | I38: 0
A39: 1000748-1 | B39: 4v4r | D39: 1001784-2 | E39: 30 | F39: 1001784-2 | G39: 1001760-2 | I39: 0
A40: 1000782-1 | B40: 2v2Team | D40: 1001924-2 | E40: 2 | F40: 1001924-2 | G40: 1001784-2 | H40: 1001784-2 | I40: 30
A41: 1000848-2 | B41: 2v2Team | D41: 1002262-2 | E41: 1 | F41: 1002262-2 | G41: 1001924-2 | H41: 1001924-2 | I41: 2
A42: 1000848-2 | B42: 3v3Team | D42: 1002263-2 | E42: 2 | F42: 1002263-2 | G42: 1001962-2 | I42: 0
A43: 100090-1 | B43: 2v2Team | D43: 1002270-1 | E43: 2 | G43: 1001989-1 | I43: 0
A44: 1001135-2 | B44: 2v2Team | D44: 1002292-2 | E44: 2 | F44: 1002292-2 | G44: 100199-2 | I44: 0
A45: 1001135-2 | B45: 2v2r | D45: 1002303-2 | E45: 1 | G45: 100207-1 | I45: 0
A46: 1001145-1 | B46: 3v3r | D46: 1002421-1 | E46: 2 | F46: 1002421-1 | G46: 1002109-2 | I46: 0
A47: 1001145-1 | B47: 4v4r | D47: 1002423-1 | E47: 1 | F47: 1002423-1 | G47: 1002130-2 | I47: 0
A48: 100116-1 | B48: 2v2Team | D48: 1002495-2 | E48: 2 | G48: 1002262-2 | H48: 1002262-2 | I48: 1
A49: 100116-1 | B49: 2v2Team | D49: 100256-1 | E49: 1 | G49: 1002263-2 | H49: 1002263-2 | I49: 2
A50: 100116-1 | B50: 2v2Team | D50: 1002656-2 | E50: 1 | G50: 1002292-2 | H50: 1002292-2 | I50: 2
A51: 1001204-2 | B51: 3v3r | D51: 1002722-2 | E51: 1 | G51: 1002343-2 | I51: 0
A52: 1001235-1 | B52: 2v2Team | D52: 1002764-1 | E52: 1 | G52: 1002365-1 | I52: 0
A53: 1001235-1 | B53: 3v3Team | D53: 1002821-1 | E53: 1 | F53: 1002821-1 | G53: 1002374-2 | I53: 0
A54: 1001274-1 | B54: 2v2Team | D54: 1002891-2 | E54: 1 | F54: 1002891-2 | G54: 1002421-1 | H54: 1002421-1 | I54: 2
A55: 1001274-1 | B55: 3v3Team | D55: 1002892-2 | E55: 1 | F55: 1002892-2 | G55: 1002423-1 | H55: 1002423-1 | I55: 1
A56: 1001274-1 | B56: 3v3Team | D56: 1002901-2 | E56: 2 | G56: 1002448-2 | I56: 0
A57: 1001274-1 | B57: 2v2r | D57: 100297-1 | E57: 1 | F57: 100297-1 | G57: 1002581-2 | I57: 0
A58: 1001286-2 | B58: 2v2Team | D58: 1002987-2 | E58: 1 | G58: 1002584-2 | I58: 0
A59: 1001286-2 | B59: 3v3Team | D59: 1003103-2 | E59: 3 | F59: 1003103-2 | G59: 1002723-2 | I59: 0
A60: 1001286-2 | B60: 3v3Team | D60: 1003257-1 | E60: 2 | G60: 1002821-1 | H60: 1002821-1 | I60: 1
A61: 1001286-2 | B61: 4v4Team | D61: 1003296-1 | E61: 4 | G61: 1002891-2 | H61: 1002891-2 | I61: 1
A62: 1001315-2 | B62: 3v3Team | D62: 1003327-1 | E62: 1 | G62: 1002892-2 | H62: 1002892-2 | I62: 1
A63: 1001378-2 | B63: 2v2Team | D63: 1003336-2 | E63: 1 | F63: 1003336-2 | G63: 1002941-2 | I63: 0
A64: 1001378-2 | B64: 2v2r | D64: 1003375-2 | E64: 1 | F64: 1003375-2 | G64: 100297-1 | H64: 100297-1 | I64: 1
A65: 1001378-2 | B65: 3v3r | D65: 1003431-2 | E65: 1 | G65: 1002975-2 | I65: 0
A66: 1001409-1 | B66: 2v2Team | D66: 1003458-2 | E66: 1 | G66: 1003010-1 | I66: 0
A67: 1001409-1 | B67: 4v4r | D67: 1003526-1 | E67: 1 | F67: 1003526-1 | G67: 1003063-2 | I67: 0
A68: 1001441-2 | B68: 2v2Team | D68: 1003527-2 | E68: 1 | G68: 1003103-2 | H68: 1003103-2 | I68: 3
A69: 1001441-2 | B69: 2v2Team | D69: 1003530-1 | E69: 2 | G69: 1003190-2 | I69: 0
A70: 1001441-2 | B70: 3v3Team | D70: 100353-1 | E70: 1 | F70: 100353-1 | G70: 1003209-2 | I70: 0
A71: 1001453-2 | B71: 2v2r | D71: 1003536-2 | E71: 4 | F71: 1003536-2 | G71: 1003266-2 | I71: 0
A72: 1001491-2 | B72: 2v2Team | D72: 1003539-2 | E72: 1 | G72: 1003336-2 | H72: 1003336-2 | I72: 1
A73: 1001491-2 | B73: 2v2Team | D73: 100359-2 | E73: 8 | G73: 1003348-2 | I73: 0
A74: 1001491-2 | B74: 2v2Team | D74: 100363-2 | E74: 6 | F74: 100363-2 | G74: 1003375-2 | H74: 1003375-2 | I74: 1
A75: 1001491-2 | B75: 3v3Team | D75: 1003640-1 | E75: 1 | F75: 1003640-1 | G75: 1003453-1 | I75: 0
A76: 1001491-2 | B76: 3v3Team | D76: 1003755-1 | E76: 3 | F76: 1003755-1 | G76: 100352-1 | I76: 0
A77: 1001491-2 | B77: 3v3Team | D77: 100376-1 | E77: 1 | G77: 1003526-1 | H77: 1003526-1 | I77: 1
A78: 1001491-2 | B78: 3v3Team | D78: 100389-1 | E78: 1 | G78: 100353-1 | H78: 100353-1 | I78: 1
A79: 1001491-2 | B79: 3v3Team | D79: 1003966-1 | E79: 1 | F79: 1003966-1 | G79: 1003536-2 | H79: 1003536-2 | I79: 4
A80: 1001491-2 | B80: 4v4Team | D80: 1003966-2 | E80: 3 | F80: 1003966-2 | G80: 1003552-2 | I80: 0
A81: 1001603-2 | B81: 2v2Team | D81: 1004052-1 | E81: 1 | F81: 1004052-1 | G81: 1003577-2 | I81: 0
A82: 1001603-2 | B82: 3v3Team | D82: 1004104-1 | E82: 1 | F82: 1004104-1 | G82: 1003584-2 | I82: 0
A83: 100162-2 | B83: 2v2Team | D83: 1004108-2 | E83: 1 | F83: 1004108-2 | G83: 1003595-1 | I83: 0
A84: 100164-2 | B84: 3v3r | D84: 100415-1 | E84: 1 | F84: 100415-1 | G84: 1003624-2 | I84: 0
A85: 100164-2 | B85: 4v4r | D85: 1004178-2 | E85: 1 | F85: 1004178-2 | G85: 100363-2 | H85: 100363-2 | I85: 6
A86: 1001646-1 | B86: 2v2Team | D86: 100418-1 | E86: 1 | G86: 1003640-1 | H86: 1003640-1 | I86: 1
A87: 100166-1 | B87: 2v2r | D87: 1004374-1 | E87: 2 | G87: 1003724-2 | I87: 0
A88: 100168-1 | B88: 2v2Team | D88: 1004393-1 | E88: 2 | F88: 1004393-1 | G88: 1003732-2 | I88: 0
A89: 100168-1 | B89: 3v3r | D89: 100449-1 | E89: 2 | G89: 1003754-2 | I89: 0
A90: 1001682-1 | B90: 2v2Team | D90: 1004520-2 | E90: 1 | G90: 1003755-1 | H90: 1003755-1 | I90: 3
A91: 1001682-1 | B91: 2v2Team | D91: 1004592-2 | E91: 1 | G91: 100381-1 | I91: 0
A92: 1001682-1 | B92: 2v2Team | D92: 1004598-2 | E92: 6 | F92: 1004598-2 | G92: 1003837-2 | I92: 0
A93: 1001682-1 | B93: 2v2r | D93: 1004600-1 | E93: 1 | G93: 1003858-2 | I93: 0
A94: 1001682-1 | B94: 3v3r | D94: 1004607-2 | E94: 1 | F94: 1004607-2 | G94: 1003884-2 | I94: 0
A95: 1001725-2 | B95: 3v3Team | D95: 100462-1 | E95: 1 | F95: 100462-1 | G95: 1003966-1 | H95: 1003966-1 | I95: 1
A96: 1001725-2 | B96: 4v4r | D96: 1004760-2 | E96: 33 | F96: 1004760-2 | G96: 1003966-2 | H96: 1003966-2 | I96: 3
A97: 1001760-1 | B97: 3v3r | D97: 1004789-1 | E97: 1 | G97: 1004052-1 | H97: 1004052-1 | I97: 1
A98: 1001784-2 | B98: 2v2Team | D98: 1004851-1 | E98: 4 | G98: 1004104-1 | H98: 1004104-1 | I98: 1
A99: 1001784-2 | B99: 2v2Team | D99: 1004999-2 | E99: 1 | F99: 1004999-2 | G99: 1004108-2 | H99: 1004108-2 | I99: 1
A100: 1001784-2 | B100: 2v2Team | D100: 1005025-2 | E100: 2 | F100: 1005025-2 | G100: 100415-1 | H100: 100415-1 | I100: 1
A101: 1001784-2 | B101: 2v2Team | D101: 1005040-2 | E101: 1 | G101: 1004178-2 | H101: 1004178-2 | I101: 1
A102: 1001784-2 | B102: 2v2Team | D102: 1005108-2 | E102: 1 | F102: 1005108-2 | G102: 1004192-1 | I102: 0
A103: 1001784-2 | B103: 2v2Team | D103: 1005121-2 | E103: 1 | G103: 1004206-2 | I103: 0
A104: 1001784-2 | B104: 2v2Team | D104: 1005172-2 | E104: 1 | G104: 1004239-2 | I104: 0
A105: 1001784-2 | B105: 2v2Team | D105: 100519-1 | E105: 4 | F105: 100519-1 | G105: 1004317-2 | I105: 0
A106: 1001784-2 | B106: 2v2Team | D106: 1005280-2 | E106: 3 | F106: 1005280-2 | G106: 100432-1 | I106: 0
A107: 1001784-2 | B107: 2v2Team | D107: 1005409-2 | E107: 1 | F107: 1005409-2 | G107: 1004393-1 | H107: 1004393-1 | I107: 2
A108: 1001784-2 | B108: 2v2Team | D108: 100543-1 | E108: 2 | G108: 1004483-2 | I108: 0
A109: 1001784-2 | B109: 2v2Team | D109: 1005442-2 | E109: 12 | G109: 1004486-1 | I109: 0
A110: 1001784-2 | B110: 2v2Team | D110: 1005473-1 | E110: 3 | G110: 1004577-2 | I110: 0
A111: 1001784-2 | B111: 2v2Team | D111: 1005538-2 | E111: 2 | G111: 1004596-2 | I111: 0
A112: 1001784-2 | B112: 2v2Team | D112: 1005539-2 | E112: 2 | F112: 1005539-2 | G112: 1004598-2 | H112: 1004598-2 | I112: 6
A113: 1001784-2 | B113: 3v3Team | D113: 1005599-1 | E113: 1 | F113: 1005599-1 | G113: 100460-1 | I113: 0
A114: 1001784-2 | B114: 3v3Team | D114: 1005666-2 | E114: 3 | F114: 1005666-2 | G114: 1004607-2 | H114: 1004607-2 | I114: 1
A115: 1001784-2 | B115: 3v3Team | D115: 1005708-1 | E115: 1 | F115: 1005708-1 | G115: 1004616-2 | I115: 0
A116: 1001784-2 | B116: 3v3Team | D116: 1005806-2 | E116: 1 | F116: 1005806-2 | G116: 100462-1 | H116: 100462-1 | I116: 1
A117: 1001784-2 | B117: 3v3Team | D117: 1005824-1 | E117: 1 | F117: 1005824-1 | G117: 1004728-2 | I117: 0
A118: 1001784-2 | B118: 3v3Team | D118: 100584-1 | E118: 1 | F118: 100584-1 | G118: 1004760-2 | H118: 1004760-2 | I118: 33
A119: 1001784-2 | B119: 3v3Team | D119: 1005858-1 | E119: 1 | G119: 1004887-2 | I119: 0
A120: 1001784-2 | B120: 3v3Team | D120: 1006017-2 | E120: 1 | G120: 1004902-1 | I120: 0
A121: 1001784-2 | B121: 3v3Team | D121: 1006345-1 | E121: 38 | G121: 1004999-2 | H121: 1004999-2 | I121: 1
A122: 1001784-2 | B122: 4v4Team | D122: 1006486-2 | E122: 1 | F122: 1006486-2 | G122: 1005025-2 | H122: 1005025-2 | I122: 2
A123: 1001784-2 | B123: 4v4Team | D123: 1006586-2 | E123: 1 | F123: 1006586-2 | G123: 100507-1 | I123: 0
A124: 1001784-2 | B124: 4v4Team | D124: 1006655-2 | E124: 1 | G124: 1005108-2 | H124: 1005108-2 | I124: 1
A125: 1001784-2 | B125: 2v2r | D125: 1006683-1 | E125: 1 | G125: 1005111-2 | I125: 0
A126: 1001784-2 | B126: 3v3r | D126: 1006713-1 | E126: 1 | F126: 1006713-1 | G126: 1005183-2 | I126: 0
A127: 1001784-2 | B127: 4v4r | D127: 1006884-2 | E127: 3 | F127: 1006884-2 | G127: 100519-1 | H127: 100519-1 | I127: 4
A128: 1001924-2 | B128: 2v2Team | D128: 1006893-2 | E128: 1 | F128: 1006893-2 | G128: 1005280-2 | H128: 1005280-2 | I128: 3
A129: 1001924-2 | B129: 2v2Team | D129: 1006916-1 | E129: 2 | F129: 1006916-1 | G129: 1005330-2 | I129: 0
A130: 1002262-2 | B130: 3v3r | D130: 1007081-2 | E130: 6 | F130: 1007081-2 | G130: 1005339-2 | I130: 0
A131: 1002263-2 | B131: 3v3Team | D131: 1007200-1 | E131: 1 | G131: 1005345-2 | I131: 0
A132: 1002263-2 | B132: 3v3r | D132: 1007215-2 | E132: 1 | G132: 1005393-2 | I132: 0
A133: 1002270-1 | B133: 2v2Team | D133: 1007354-2 | E133: 1 | G133: 1005409-2 | H133: 1005409-2 | I133: 1
A134: 1002270-1 | B134: 3v3Team | D134: 1007366-1 | E134: 5 | G134: 1005453-2 | I134: 0
A135: 1002292-2 | B135: 2v2Team | D135: 1007393-1 | E135: 2 | G135: 1005539-2 | H135: 1005539-2 | I135: 2
A136: 1002292-2 | B136: 2v2Team | D136: 100740-1 | E136: 1 | G136: 1005545-2 | I136: 0
A137: 1002303-2 | B137: 2v2Team | D137: 100742-1 | E137: 1 | G137: 1005583-2 | I137: 0
A138: 1002421-1 | B138: 3v3Team | D138: 1007473-1 | E138: 1 | G138: 1005599-1 | H138: 1005599-1 | I138: 1
A139: 1002421-1 | B139: 3v3r | D139: 1007546-1 | E139: 1 | G139: 1005666-2 | H139: 1005666-2 | I139: 3
A140: 1002423-1 | B140: 2v2r | D140: 1007549-2 | E140: 7 | F140: 1007549-2 | G140: 1005708-1 | H140: 1005708-1 | I140: 1
A141: 1002495-2 | B141: 2v2Team | D141: 1007570-2 | E141: 1 | G141: 1005765-2 | I141: 0
A142: 1002495-2 | B142: 3v3Team | D142: 1007706-2 | E142: 4 | F142: 1007706-2 | G142: 1005806-2 | H142: 1005806-2 | I142: 1
A143: 100256-1 | B143: 3v3r | D143: 100773-1 | E143: 1 | F143: 100773-1 | G143: 1005818-2 | I143: 0
A144: 1002656-2 | B144: 3v3r | D144: 100779-1 | E144: 2 | F144: 100779-1 | G144: 1005824-1 | H144: 1005824-1 | I144: 1
A145: 1002722-2 | B145: 3v3r | D145: 1007811-2 | E145: 1 | F145: 1007811-2 | G145: 100584-1 | H145: 100584-1 | I145: 1
A146: 1002764-1 | B146: 2v2Team | D146: 1007875-1 | E146: 3 | F146: 1007875-1 | G146: 1005944-1 | I146: 0
A147: 1002821-1 | B147: 3v3r | D147: 1007933-1 | E147: 2 | F147: 1007933-1 | G147: 1005970-2 | I147: 0
A148: 1002891-2 | B148: 2v2Team | D148: 1007945-2 | E148: 1 | F148: 1007945-2 | G148: 1005983-1 | I148: 0
A149: 1002892-2 | B149: 2v2Team | D149: 1008023-2 | E149: 2 | F149: 1008023-2 | G149: 1006025-2 | I149: 0
A150: 1002901-2 | B150: 2v2Team | D150: 100805-1 | E150: 1 | G150: 1006201-1 | I150: 0
A151: 1002901-2 | B151: 3v3Team | D151: 1008174-2 | E151: 1 | F151: 1008174-2 | G151: 1006327-2 | I151: 0
A152: 100297-1 | B152: 2v2Team | D152: 1008182-2 | E152: 8 | G152: 100636-1 | I152: 0
A153: 1002987-2 | B153: 3v3Team | D153: 100823-1 | E153: 3 | G153: 1006426-2 | I153: 0
A154: 1003103-2 | B154: 3v3Team | D154: 1008292-2 | E154: 1 | G154: 1006475-1 | I154: 0
A155: 1003103-2 | B155: 2v2r | D155: 1008391-1 | E155: 1 | G155: 1006483-2 | I155: 0
A156: 1003103-2 | B156: 3v3r | D156: 1008408-1 | E156: 1 | G156: 1006486-2 | H156: 1006486-2 | I156: 1
A157: 1003257-1 | B157: 2v2r | D157: 1008451-2 | E157: 1 | G157: 1006536-1 | I157: 0
A158: 1003257-1 | B158: 3v3r | D158: 1008464-2 | E158: 3 | F158: 1008464-2 | G158: 1006578-2 | I158: 0
A159: 1003296-1 | B159: 2v2Team | D159: 1008477-1 | E159: 15 | F159: 1008477-1 | G159: 1006586-2 | H159: 1006586-2 | I159: 1
A160: 1003296-1 | B160: 3v3Team | D160: 100860-1 | E160: 1 | G160: 1006621-1 | I160: 0
A161: 1003296-1 | B161: 3v3Team | D161: 100866-1 | E161: 1 | G161: 1006630-2 | I161: 0
A162: 1003296-1 | B162: 3v3r | D162: 100875-1 | E162: 1 | F162: 100875-1 | G162: 1006695-2 | I162: 0
A163: 1003327-1 | B163: 2v2Team | D163: 1008786-2 | E163: 3 | F163: 1008786-2 | G163: 1006705-2 | I163: 0
A164: 1003336-2 | B164: 2v2Team | D164: 1008820-1 | E164: 1 | G164: 100671-1 | I164: 0
A165: 1003375-2 | B165: 2v2Team | D165: 1008829-1 | E165: 1 | F165: 1008829-1 | G165: 1006713-1 | H165: 1006713-1 | I165: 1
A166: 1003431-2 | B166: 2v2Team | D166: 100883-1 | E166: 1 | G166: 1006755-2 | I166: 0
A167: 1003458-2 | B167: 2v2r | D167: 1008910-2 | E167: 2 | F167: 1008910-2 | G167: 1006787-1 | I167: 0
A168: 1003526-1 | B168: 2v2Team | D168: 1008944-1 | E168: 2 | F168: 1008944-1 | G168: 1006845-1 | I168: 0
A169: 1003527-2 | B169: 2v2Team | D169: 1008985-2 | E169: 2 | F169: 1008985-2 | G169: 1006868-1 | I169: 0
A170: 1003530-1 | B170: 2v2Team | D170: 1009017-1 | E170: 3 | G170: 1006884-2 | H170: 1006884-2 | I170: 3
A171: 1003530-1 | B171: 3v3r | D171: 1009043-2 | E171: 9 | G171: 1006893-2 | H171: 1006893-2 | I171: 1
A172: 100353-1 | B172: 2v2Team | D172: 1009074-2 | E172: 1 | F172: 1009074-2 | G172: 1006916-1 | H172: 1006916-1 | I172: 2
A173: 1003536-2 | B173: 2v2Team | D173: 1009098-1 | E173: 1 | G173: 1006926-2 | I173: 0
A174: 1003536-2 | B174: 3v3Team | D174: 100914-1 | E174: 3 | F174: 100914-1 | G174: 1007015-2 | I174: 0
A175: 1003536-2 | B175: 3v3Team | D175: 1009210-1 | E175: 1 | G175: 1007029-1 | I175: 0
A176: 1003536-2 | B176: 3v3r | D176: 1009341-1 | E176: 1 | G176: 100705-1 | I176: 0
A177: 1003539-2 | B177: 3v3Team | D177: 1009401-2 | E177: 1 | F177: 1009401-2 | G177: 1007081-2 | H177: 1007081-2 | I177: 6
A178: 100359-2 | B178: 2v2Team | D178: 100942-2 | E178: 4 | F178: 100942-2 | G178: 1007210-2 | I178: 0
A179: 100359-2 | B179: 2v2Team | D179: 1009434-2 | E179: 1 | F179: 1009434-2 | G179: 1007426-2 | I179: 0
A180: 100359-2 | B180: 2v2Team | D180: 1009624-1 | E180: 8 | G180: 1007453-1 | I180: 0
A181: 100359-2 | B181: 2v2Team | D181: 1009734-2 | E181: 11 | F181: 1009734-2 | G181: 1007472-2 | I181: 0
A182: 100359-2 | B182: 3v3Team | D182: 1009758-2 | E182: 4 | F182: 1009758-2 | G182: 1007476-2 | I182: 0
A183: 100359-2 | B183: 2v2r | D183: 1009808-2 | E183: 1 | F183: 1009808-2 | G183: 1007526-2 | I183: 0
A184: 100359-2 | B184: 3v3r | D184: 1009874-1 | E184: 2 | G184: 1007549-2 | H184: 1007549-2 | I184: 7
A185: 100359-2 | B185: 4v4r | D185: 1009891-1 | E185: 1 | G185: 100763-1 | I185: 0
A186: 100363-2 | B186: 2v2Team | D186: 1009918-1 | E186: 2 | G186: 100767-1 | I186: 0
A187: 100363-2 | B187: 2v2Team | D187: 100993-1 | E187: 1 | G187: 1007688-2 | I187: 0
A188: 100363-2 | B188: 2v2Team | D188: 1010292-2 | E188: 2 | F188: 1010292-2 | G188: 1007706-2 | H188: 1007706-2 | I188: 4
A189: 100363-2 | B189: 2v2Team | D189: 1010322-1 | E189: 1 | G189: 100773-1 | H189: 100773-1 | I189: 1
A190: 100363-2 | B190: 2v2r | D190: 1010411-2 | E190: 1 | G190: 1007744-2 | I190: 0
A191: 100363-2 | B191: 3v3r | D191: 1010443-2 | E191: 2 | F191: 1010443-2 | G191: 1007785-2 | I191: 0
A192: 1003640-1 | B192: 2v2Team | D192: 1010480-2 | E192: 1 | G192: 100779-1 | H192: 100779-1 | I192: 2
A193: 1003755-1 | B193: 2v2Team | D193: 1010547-2 | E193: 3 | F193: 1010547-2 | G193: 1007811-2 | H193: 1007811-2 | I193: 1
A194: 1003755-1 | B194: 2v2Team | D194: 1010566-2 | E194: 1 | G194: 100782-1 | I194: 0
A195: 1003755-1 | B195: 3v3Team | D195: 1010588-1 | E195: 1 | G195: 1007838-2 | I195: 0
A196: 100376-1 | B196: 2v2Team | D196: 1010590-1 | E196: 1 | G196: 1007875-1 | H196: 1007875-1 | I196: 3
A197: 100389-1 | B197: 2v2Team | D197: 1010608-1 | E197: 2 | F197: 1010608-1 | G197: 1007933-1 | H197: 1007933-1 | I197: 2
A198: 1003966-1 | B198: 2v2r | D198: 1010635-2 | E198: 4 | F198: 1010635-2 | G198: 1007945-2 | H198: 1007945-2 | I198: 1
A199: 1003966-2 | B199: 2v2Team | D199: 1010640-2 | E199: 2 | F199: 1010640-2 | G199: 1007972-2 | I199: 0
A200: 1003966-2 | B200: 3v3Team | D200: 1010670-2 | E200: 1 | F200: 1010670-2 | G200: 100799-1 | I200: 0
... 4300 more rows

Sheet 2v2Team
A1: Player ID 1 | B1: Player 1 Region | C1: Player 1 Subregion | D1: Player 1 Name | E1: Player 1 Race | F1: Player ID 2 | G1: Player 2 Region | H1: Player 2 Subregion | I1: Player 2 Name | J1: Player 2 Race | K1: League | L1: Win | M1: Loss | N1: Score | O1: Date Joined | P1: Last Game | Q1: Timestamp | R1: TrueID | S1: Duplicate Check | T1: Ordered ID
A2: 3001631 | B2: kr | C2: 1 | D2: UNIQUESTAR | E2: p | F2: 2204833 | G2: kr | H2: 1 | I2: Candytwo | J2: z | K2: Bronze | L2: 34 | M2: 40 | N2: 942 | O2: 2014-07-07 | P2: 20 hours | Q2: 2014-09-21T06:06:24 | R2: 3001631-1|2204833-1 | S2: 0 | T2: 2
A3: 1776579 | B3: kr | C3: 1 | D3: wind | E3: p | F3: 1773150 | G3: kr | H3: 1 | I3: hjh | J3: t | K3: Bronze | L3: 110 | M3: 131 | N3: 936 | O3: 2014-07-13 | P3: 15 minutes | Q3: 2014-09-21T06:06:24 | R3: 1776579-1|1773150-1 | S3: 0 | T3: 3
A4: 516616 | B4: kr | C4: 1 | D4: í•„ë¦¬í•€ë…¸ë™ìžì˜¤ì£¼ | E4: r | F4: 411468 | G4: kr | H4: 1 | I4: Toshiya | J4: r | K4: Bronze | L4: 63 | M4: 80 | N4: 923 | O4: 2014-08-24 | P4: 1 days | Q4: 2014-09-21T06:06:24 | R4: 516616-1|411468-1 | S4: 0 | T4: 4
A5: 4243996 | B5: kr | C5: 1 | D5: ì¸ê³µì§€ëŠ¥ | E5: t | F5: 802197 | G5: kr | H5: 1 | I5: JaEverWish | J5: t | K5: Bronze | L5: 54 | M5: 64 | N5: 921 | O5: 2014-08-19 | P5: 6 hours | Q5: 2014-09-21T06:06:24 | R5: 4243996-1|802197-1 | S5: 0 | T5: 5
A6: 1921236 | B6: kr | C6: 1 | D6: SKungK | E6: z | F6: 1836961 | G6: kr | H6: 1 | I6: DEpressOR | J6: t | K6: Bronze | L6: 33 | M6: 38 | N6: 918 | O6: 2014-08-09 | P6: 4 hours | Q6: 2014-09-21T06:06:24 | R6: 1921236-1|1836961-1 | S6: 0 | T6: 6
A7: 1198089 | B7: kr | C7: 2 | D7: mumu | E7: t | F7: 1195463 | G7: kr | H7: 2 | I7: OCELOT | J7: p | K7: Bronze | L7: 94 | M7: 115 | N7: 913 | O7: 2014-07-06 | P7: 2 days | Q7: 2014-09-21T06:06:24 | R7: 1198089-2|1195463-2 | S7: 0 | T7: 7
A8: 3779975 | B8: kr | C8: 1 | D8: ì €ê¸€ë§ | E8: z | F8: 1449545 | G8: kr | H8: 1 | I8: ë´‰íŒ”ì´ | J8: t | K8: Bronze | L8: 30 | M8: 30 | N8: 906 | O8: 2014-07-09 | P8: 1 days | Q8: 2014-09-21T06:06:24 | R8: 3779975-1|1449545-1 | S8: 0 | T8: 8
A9: 1778461 | B9: kr | C9: 1 | D9: ìžë£Œì‹¤ | E9: p | F9: 1029290 | G9: kr | H9: 1 | I9: ë‘ë”ì§€ìˆ˜ì—¼ | J9: p | K9: Bronze | L9: 43 | M9: 44 | N9: 901 | O9: 2014-07-30 | P9: 3 days | Q9: 2014-09-21T06:06:24 | R9: 1778461-1|1029290-1 | S9: 0 | T9: 9
A10: 3098622 | B10: kr | C10: 1 | D10: dOdO | E10: t | F10: 2530187 | G10: kr | H10: 1 | I10: leehmc | J10: z | K10: Bronze | L10: 42 | M10: 47 | N10: 901 | O10: 2014-09-11 | P10: 14 hours | Q10: 2014-09-21T06:06:24 | R10: 3098622-1|2530187-1 | S10: 0 | T10: 10
A11: 4105889 | B11: kr | C11: 1 | D11: ì œì´ì œì´ | E11: r | F11: 2158216 | G11: kr | H11: 1 | I11: ëˆ„ë ì´ | J11: t | K11: Bronze | L11: 52 | M11: 69 | N11: 896 | O11: 2014-07-07 | P11: 1 days | Q11: 2014-09-21T06:06:24 | R11: 4105889-1|2158216-1 | S11: 0 | T11: 11
A12: 4689057 | B12: kr | C12: 1 | D12: kimlovely | E12: t | F12: 3281982 | G12: kr | H12: 1 | I12: í¡í˜ˆí† ë¼ | J12: p | K12: Bronze | L12: 40 | M12: 51 | N12: 888 | O12: 2014-07-24 | P12: 1 days | Q12: 2014-09-21T06:06:24 | R12: 4689057-1|3281982-1 | S12: 0 | T12: 12
A13: 614851 | B13: kr | C13: 1 | D13: Recessed | E13: r | F13: 561515 | G13: kr | H13: 1 | I13: ì•„ë¡ | J13: p | K13: Bronze | L13: 32 | M13: 37 | N13: 886 | O13: 2014-07-24 | P13: 2 days | Q13: 2014-09-21T06:06:24 | R13: 614851-1|561515-1 | S13: 0 | T13: 13
A14: 3848442 | B14: kr | C14: 1 | D14: ê°ˆë¦¬í• ë¦¬ | E14: t | F14: 584718 | G14: kr | H14: 1 | I14: í• ë¦¬ê°ˆë¦¬ | J14: r | K14: Bronze | L14: 50 | M14: 70 | N14: 884 | O14: 2014-08-13 | P14: 2 hours | Q14: 2014-09-21T06:06:24 | R14: 3848442-1|584718-1 | S14: 0 | T14: 14
A15: 4566110 | B15: kr | C15: 1 | D15: JackRipper | E15: t | F15: 4006650 | G15: kr | H15: 1 | I15: ìƒ˜ìœ¤ | J15: t | K15: Bronze | L15: 47 | M15: 53 | N15: 883 | O15: 2014-08-28 | P15: 1 days | Q15: 2014-09-21T06:06:24 | R15: 4566110-1|4006650-1 | S15: 0 | T15: 15
A16: 1067190 | B16: kr | C16: 2 | D16: aquarius | E16: p | F16: 274575 | G16: kr | H16: 2 | I16: æ³°ç‘ž | J16: p | K16: Bronze | L16: 43 | M16: 48 | N16: 863 | O16: 2014-07-14 | P16: 1 days | Q16: 2014-09-21T06:06:24 | R16: 1067190-2|274575-2 | S16: 0 | T16: 16
A17: 757562 | B17: kr | C17: 2 | D17: Sarevok | E17: p | F17: 39634 | G17: kr | H17: 2 | I17: violentRed | J17: p | K17: Bronze | L17: 40 | M17: 53 | N17: 857 | O17: 2014-07-12 | P17: 22 hours | Q17: 2014-09-21T06:06:24 | R17: 757562-2|39634-2 | S17: 0 | T17: 17
A18: 3362098 | B18: kr | C18: 1 | D18: Adun | E18: r | F18: 3134558 | G18: kr | H18: 1 | I18: ì…°í”„ì œì´ | J18: r | K18: Bronze | L18: 53 | M18: 88 | N18: 855 | O18: 2014-07-09 | P18: 18 hours | Q18: 2014-09-21T06:06:24 | R18: 3362098-1|3134558-1 | S18: 0 | T18: 18
A19: 4270919 | B19: kr | C19: 1 | D19: ì¤‘ë…ìžë°•ê³° | E19: t | F19: 1900434 | G19: kr | H19: 1 | I19: chopist | J19: p | K19: Bronze | L19: 91 | M19: 100 | N19: 849 | O19: 2014-07-12 | P19: 20 hours | Q19: 2014-09-21T06:06:24 | R19: 4270919-1|1900434-1 | S19: 0 | T19: 19
A20: 4612465 | B20: kr | C20: 1 | D20: special | E20: z | F20: 4156501 | G20: kr | H20: 1 | I20: IlIlllIlIl | J20: z | K20: Bronze | L20: 42 | M20: 45 | N20: 846 | O20: 2014-08-11 | P20: 5 days | Q20: 2014-09-21T06:06:24 | R20: 4612465-1|4156501-1 | S20: 0 | T20: 20
A21: 1977840 | B21: kr | C21: 1 | D21: ANTiChEETo | E21: t | F21: 1831010 | G21: kr | H21: 1 | I21: AirBone | J21: t | K21: Bronze | L21: 32 | M21: 29 | N21: 838 | O21: 2014-09-09 | P21: 1 hours | Q21: 2014-09-21T06:06:24 | R21: 1977840-1|1831010-1 | S21: 0 | T21: 21
A22: 2948482 | B22: kr | C22: 1 | D22: íƒ±ê¸€ì´ | E22: p | F22: 1193200 | G22: kr | H22: 1 | I22: ì£¼ì‚¬ìž¥ | J22: p | K22: Bronze | L22: 40 | M22: 59 | N22: 835 | O22: 2014-07-07 | P22: 20 hours | Q22: 2014-09-21T06:06:24 | R22: 2948482-1|1193200-1 | S22: 0 | T22: 22
A23: 3086007 | B23: kr | C23: 1 | D23: oidmobile | E23: p | F23: 1477058 | G23: kr | H23: 1 | I23: Kura | J23: r | K23: Bronze | L23: 63 | M23: 95 | N23: 831 | O23: 2014-07-07 | P23: 19 hours | Q23: 2014-09-21T06:06:24 | R23: 3086007-1|1477058-1 | S23: 0 | T23: 23
A24: 4701477 | B24: kr | C24: 1 | D24: ë‹¬ëž˜ì˜ | E24: t | F24: 3924102 | G24: kr | H24: 1 | I24: StarRusH | J24: p | K24: Bronze | L24: 28 | M24: 34 | N24: 824 | O24: 2014-09-02 | P24: 6 days | Q24: 2014-09-21T06:06:24 | R24: 4701477-1|3924102-1 | S24: 0 | T24: 24
A25: 438075 | B25: kr | C25: 1 | D25: ê¿ˆê¾¸ëŠ”ì‚¬íƒ•ë² ê²Œ | E25: p | F25: 245615 | G25: kr | H25: 1 | I25: ë„¥ì„œìŠ¤ | J25: p | K25: Bronze | L25: 36 | M25: 38 | N25: 821 | O25: 2014-08-09 | P25: 1 days | Q25: 2014-09-21T06:06:24 | R25: 438075-1|245615-1 | S25: 0 | T25: 25
A26: 3379623 | B26: kr | C26: 1 | D26: angels | E26: p | F26: 1025208 | G26: kr | H26: 1 | I26: ì¹˜ì„ | J26: r | K26: Bronze | L26: 61 | M26: 74 | N26: 819 | O26: 2014-07-25 | P26: 2 days | Q26: 2014-09-21T06:06:24 | R26: 3379623-1|1025208-1 | S26: 0 | T26: 26
A27: 1187329 | B27: kr | C27: 2 | D27: å¶å°æ˜•æ‰“å¤§æ€ªå…½ | E27: z | F27: 1112832 | G27: kr | H27: 2 | I27: MacrossVF | J27: p | K27: Bronze | L27: 39 | M27: 53 | N27: 817 | O27: 2014-07-12 | P27: 2 days | Q27: 2014-09-21T06:06:24 | R27: 1187329-2|1112832-2 | S27: 0 | T27: 27
A28: 4003964 | B28: kr | C28: 1 | D28: í”„ë¦¬ì¦Œë¸Œë ˆì´í¬ | E28: p | F28: 1818161 | G28: kr | H28: 1 | I28: ë°±ì˜ì²œì‚¬ | J28: z | K28: Bronze | L28: 42 | M28: 45 | N28: 807 | O28: 2014-07-20 | P28: 1 days | Q28: 2014-09-21T06:06:24 | R28: 4003964-1|1818161-1 | S28: 0 | T28: 28
A29: 275411 | B29: kr | C29: 1 | D29: ì„±ê°€ë¸Œë¦¬ì—˜ | E29: p | F29: 220151 | G29: kr | H29: 1 | I29: ìš”ì‹œ | J29: t | K29: Bronze | L29: 30 | M29: 33 | N29: 802 | O29: 2014-09-03 | P29: 1 days | Q29: 2014-09-21T06:06:24 | R29: 275411-1|220151-1 | S29: 0 | T29: 29
A30: 3938514 | B30: kr | C30: 1 | D30: í˜œì„±ì´ëž‘ | E30: p | F30: 319170 | G30: kr | H30: 1 | I30: í™©ê°„ì§€ | J30: z | K30: Bronze | L30: 27 | M30: 36 | N30: 802 | O30: 2014-08-13 | P30: 1 days | Q30: 2014-09-21T06:06:24 | R30: 3938514-1|319170-1 | S30: 0 | T30: 30
A31: 4110635 | B31: kr | C31: 1 | D31: ë²”ìˆ˜ë‹¤ | E31: p | F31: 2613715 | G31: kr | H31: 1 | I31: ì˜í˜„ì´ë‹« | J31: z | K31: Bronze | L31: 31 | M31: 32 | N31: 800 | O31: 2014-08-05 | P31: 8 days | Q31: 2014-09-21T06:06:24 | R31: 4110635-1|2613715-1 | S31: 0 | T31: 31
A32: 4269319 | B32: kr | C32: 1 | D32: Cosmic | E32: r | F32: 4268941 | G32: kr | H32: 1 | I32: RGzToto | J32: r | K32: Bronze | L32: 30 | M32: 37 | N32: 785 | O32: 2014-08-31 | P32: 10 days | Q32: 2014-09-21T06:06:24 | R32: 4269319-1|4268941-1 | S32: 0 | T32: 32
A33: 810552 | B33: kr | C33: 1 | D33: ê´‘í­í˜ˆì£¼ | E33: r | F33: 300609 | G33: kr | H33: 1 | I33: ë§ˆë¥´í‹°ë„¤ìŠ¤ | J33: r | K33: Bronze | L33: 27 | M33: 22 | N33: 762 | O33: 2014-08-05 | P33: 8 days | Q33: 2014-09-21T06:06:24 | R33: 810552-1|300609-1 | S33: 0 | T33: 33
A34: 791308 | B34: kr | C34: 1 | D34: ì°ì°ì° | E34: r | F34: 164879 | G34: kr | H34: 1 | I34: Neo | J34: r | K34: Bronze | L34: 159 | M34: 217 | N34: 762 | O34: 2014-07-18 | P34: 24 days | Q34: 2014-09-21T06:06:24 | R34: 791308-1|164879-1 | S34: 0 | T34: 34
A35: 4662886 | B35: kr | C35: 1 | D35: êµ°ìˆ˜ê³µìž¥ | E35: p | F35: 3169206 | G35: kr | H35: 1 | I35: ê½ƒë²¤ì‹œ | J35: t | K35: Bronze | L35: 52 | M35: 64 | N35: 760 | O35: 2014-07-16 | P35: 3 hours | Q35: 2014-09-21T06:06:24 | R35: 4662886-1|3169206-1 | S35: 0 | T35: 35
A36: 4641089 | B36: kr | C36: 1 | D36: IIIIIIIIII | E36: p | F36: 4501296 | G36: kr | H36: 1 | I36: circleroot | J36: p | K36: Bronze | L36: 32 | M36: 32 | N36: 758 | O36: 2014-07-14 | P36: 11 days | Q36: 2014-09-21T06:06:24 | R36: 4641089-1|4501296-1 | S36: 0 | T36: 36
A37: 4367449 | B37: kr | C37: 1 | D37: ìžìœ ê´€ | E37: t | F37: 4302481 | G37: kr | H37: 1 | I37: Nippert | J37: r | K37: Bronze | L37: 25 | M37: 33 | N37: 756 | O37: 2014-07-20 | P37: 7 days | Q37: 2014-09-21T06:06:24 | R37: 4367449-1|4302481-1 | S37: 0 | T37: 37
A38: 1260843 | B38: kr | C38: 2 | D38: starmark | E38: p | F38: 524790 | G38: kr | H38: 2 | I38: DENNIS | J38: t | K38: Bronze | L38: 31 | M38: 66 | N38: 751 | O38: 2014-08-12 | P38: 16 hours | Q38: 2014-09-21T06:06:24 | R38: 1260843-2|524790-2 | S38: 0 | T38: 38
A39: 4529388 | B39: kr | C39: 1 | D39: ê³ ìŠ¤í‹°ë¸Œìž¡ìŠ¤ | E39: z | F39: 636729 | G39: kr | H39: 1 | I39: êµì›êµ¬ëª¬ | J39: t | K39: Bronze | L39: 138 | M39: 213 | N39: 742 | O39: 2014-08-28 | P39: 6 days | Q39: 2014-09-21T06:06:24 | R39: 4529388-1|636729-1 | S39: 0 | T39: 39
A40: 1058298 | B40: kr | C40: 2 | D40: æ¢…åŸé›ª | E40: t | F40: 987734 | G40: kr | H40: 2 | I40: å¤©ç—• | J40: r | K40: Bronze | L40: 26 | M40: 37 | N40: 740 | O40: 2014-07-12 | P40: 22 hours | Q40: 2014-09-21T06:06:24 | R40: 1058298-2|987734-2 | S40: 0 | T40: 40
A41: 4659725 | B41: kr | C41: 1 | D41: ì••êµ¬ì •ë™ | E41: z | F41: 218453 | G41: kr | H41: 1 | I41: ë§ˆì¿¤ | J41: p | K41: Bronze | L41: 26 | M41: 43 | N41: 740 | O41: 2014-07-13 | P41: 8 days | Q41: 2014-09-21T06:06:24 | R41: 4659725-1|218453-1 | S41: 0 | T41: 41
A42: 1213916 | B42: kr | C42: 2 | D42: outaker | E42: t | F42: 963208 | G42: kr | H42: 2 | I42: handsomeboy | J42: z | K42: Bronze | L42: 23 | M42: 27 | N42: 738 | O42: 2014-08-23 | P42: 7 days | Q42: 2014-09-21T06:06:24 | R42: 1213916-2|963208-2 | S42: 0 | T42: 42
A43: 2823259 | B43: kr | C43: 1 | D43: ì–´ë””ì•¼ | E43: r | F43: 2756439 | G43: kr | H43: 1 | I43: dragonzone | J43: p | K43: Bronze | L43: 40 | M43: 63 | N43: 735 | O43: 2014-07-20 | P43: 4 days | Q43: 2014-09-21T06:06:24 | R43: 2823259-1|2756439-1 | S43: 0 | T43: 43
A44: 1177335 | B44: kr | C44: 1 | D44: WonderWall | E44: z | F44: 696114 | G44: kr | H44: 1 | I44: Destiny | J44: p | K44: Bronze | L44: 39 | M44: 38 | N44: 729 | O44: 2014-08-19 | P44: 18 days | Q44: 2014-09-21T06:06:24 | R44: 1177335-1|696114-1 | S44: 0 | T44: 44
A45: 3682826 | B45: kr | C45: 1 | D45: Torres | E45: p | F45: 2616964 | G45: kr | H45: 1 | I45: ë””ìŠ¤ | J45: t | K45: Bronze | L45: 27 | M45: 25 | N45: 708 | O45: 2014-07-22 | P45: 1 days | Q45: 2014-09-21T06:06:24 | R45: 3682826-1|2616964-1 | S45: 0 | T45: 45
A46: 943782 | B46: kr | C46: 1 | D46: Vayz | E46: t | F46: 297970 | G46: kr | H46: 1 | I46: ì„¤íƒ•ìƒìž | J46: p | K46: Bronze | L46: 27 | M46: 26 | N46: 708 | O46: 2014-07-26 | P46: 1 days | Q46: 2014-09-21T06:06:24 | R46: 943782-1|297970-1 | S46: 0 | T46: 46
A47: 3339979 | B47: kr | C47: 1 | D47: ëƒí•˜í•˜ì•„í˜¸ì•„ | E47: p | F47: 2733744 | G47: kr | H47: 1 | I47: ì¨°ë¿Œëž´ | J47: p | K47: Bronze | L47: 25 | M47: 34 | N47: 700 | O47: 2014-08-29 | P47: 9 days | Q47: 2014-09-21T06:06:24 | R47: 3339979-1|2733744-1 | S47: 0 | T47: 47
A48: 1131254 | B48: kr | C48: 1 | D48: WOoK | E48: t | F48: 1003526 | G48: kr | H48: 1 | I48: GanJI | J48: t | K48: Bronze | L48: 26 | M48: 27 | N48: 696 | O48: 2014-07-28 | P48: 5 days | Q48: 2014-09-21T06:06:24 | R48: 1131254-1|1003526-1 | S48: 0 | T48: 48
A49: 4591140 | B49: kr | C49: 1 | D49: hangbee | E49: p | F49: 3003331 | G49: kr | H49: 1 | I49: ë‹ˆì½œë¦¬ì½œ | J49: z | K49: Bronze | L49: 21 | M49: 38 | N49: 696 | O49: 2014-07-26 | P49: 5 days | Q49: 2014-09-21T06:06:24 | R49: 4591140-1|3003331-1 | S49: 0 | T49: 49
A50: 1053075 | B50: kr | C50: 2 | D50: å°å¶‹é™½èœ | E50: z | F50: 791499 | G50: kr | H50: 2 | I50: KevinRush | J50: p | K50: Bronze | L50: 33 | M50: 33 | N50: 691 | O50: 2014-07-22 | P50: 22 days | Q50: 2014-09-21T06:06:24 | R50: 1053075-2|791499-2 | S50: 0 | T50: 50
A51: 457727 | B51: kr | C51: 1 | D51: ë„ì‚¬ | E51: p | F51: 377460 | G51: kr | H51: 1 | I51: ì­ˆì•¼ë¥´ | J51: t | K51: Bronze | L51: 26 | M51: 35 | N51: 691 | O51: 2014-07-16 | P51: 19 days | Q51: 2014-09-21T06:06:24 | R51: 457727-1|377460-1 | S51: 0 | T51: 51
A52: 4679806 | B52: kr | C52: 1 | D52: ë¶ˆê½ƒë†€ì´ | E52: r | F52: 922836 | G52: kr | H52: 1 | I52: ì¹´ë¼ì‹œ | J52: r | K52: Bronze | L52: 26 | M52: 45 | N52: 691 | O52: 2014-09-10 | P52: 6 days | Q52: 2014-09-21T06:06:24 | R52: 4679806-1|922836-1 | S52: 0 | T52: 52
A53: 2925448 | B53: kr | C53: 1 | D53: ì˜¤í›„í•œë•Œì†Œë‚˜ê¸° | E53: t | F53: 1504264 | G53: kr | H53: 1 | I53: SoSAe | J53: p | K53: Bronze | L53: 25 | M53: 26 | N53: 690 | O53: 2014-08-18 | P53: 5 days | Q53: 2014-09-21T06:06:24 | R53: 2925448-1|1504264-1 | S53: 0 | T53: 53
A54: 3687780 | B54: kr | C54: 1 | D54: ìƒˆë²½ì†Œë¦¬ | E54: p | F54: 1277962 | G54: kr | H54: 1 | I54: harefoot | J54: t | K54: Bronze | L54: 37 | M54: 41 | N54: 687 | O54: 2014-07-11 | P54: 13 minutes | Q54: 2014-09-21T06:06:24 | R54: 3687780-1|1277962-1 | S54: 0 | T54: 54
A55: 3711869 | B55: kr | C55: 1 | D55: ëŒ€ìž¥ìŠ¤ìŠ¹ë‹˜ | E55: t | F55: 3582191 | G55: kr | H55: 1 | I55: ì¹˜í›ˆìŠ¤ìŠ¹ë‹˜ | J55: p | K55: Bronze | L55: 26 | M55: 17 | N55: 684 | O55: 2014-08-03 | P55: 23 days | Q55: 2014-09-21T06:06:24 | R55: 3711869-1|3582191-1 | S55: 0 | T55: 55
A56: 1225063 | B56: kr | C56: 2 | D56: Gary | E56: z | F56: 1145815 | G56: kr | H56: 2 | I56: Arthur | J56: t | K56: Bronze | L56: 28 | M56: 36 | N56: 682 | O56: 2014-07-29 | P56: 17 days | Q56: 2014-09-21T06:06:24 | R56: 1225063-2|1145815-2 | S56: 0 | T56: 56
A57: 4015701 | B57: kr | C57: 1 | D57: OneMarin | E57: t | F57: 534220 | G57: kr | H57: 1 | I57: OneGhost | J57: t | K57: Bronze | L57: 30 | M57: 46 | N57: 681 | O57: 2014-08-15 | P57: 14 days | Q57: 2014-09-21T06:06:24 | R57: 4015701-1|534220-1 | S57: 0 | T57: 57
A58: 4569033 | B58: kr | C58: 1 | D58: KimJongEun | E58: z | F58: 4378263 | G58: kr | H58: 1 | I58: jade | J58: z | K58: Bronze | L58: 28 | M58: 25 | N58: 680 | O58: 2014-07-25 | P58: 8 days | Q58: 2014-09-21T06:06:24 | R58: 4569033-1|4378263-1 | S58: 0 | T58: 58
A59: 1885735 | B59: kr | C59: 1 | D59: ë ˆì¢… | E59: t | F59: 1885057 | G59: kr | H59: 1 | I59: í“¨ì–´ì›” | J59: r | K59: Bronze | L59: 21 | M59: 32 | N59: 680 | O59: 2014-07-27 | P59: 1 days | Q59: 2014-09-21T06:06:24 | R59: 1885735-1|1885057-1 | S59: 0 | T59: 59
A60: 79633 | B60: kr | C60: 2 | D60: æž—è€ | E60: t | F60: 63946 | G60: kr | H60: 2 | I60: é˜¿åˆŠ | J60: z | K60: Bronze | L60: 25 | M60: 25 | N60: 679 | O60: 2014-07-28 | P60: 11 days | Q60: 2014-09-21T06:06:24 | R60: 79633-2|63946-2 | S60: 0 | T60: 60
A61: 4668633 | B61: kr | C61: 1 | D61: í•˜ê·œì | E61: r | F61: 4558105 | G61: kr | H61: 1 | I61: Linu | J61: p | K61: Bronze | L61: 24 | M61: 28 | N61: 678 | O61: 2014-08-21 | P61: 2 hours | Q61: 2014-09-21T06:06:24 | R61: 4668633-1|4558105-1 | S61: 0 | T61: 61
A62: 3514369 | B62: kr | C62: 1 | D62: í•˜í•˜í•˜ | E62: t | F62: 1560049 | G62: kr | H62: 1 | I62: ížˆë”©ë¸Œ | J62: t | K62: Bronze | L62: 25 | M62: 45 | N62: 674 | O62: 2014-07-12 | P62: 22 hours | Q62: 2014-09-21T06:06:24 | R62: 3514369-1|1560049-1 | S62: 0 | T62: 62
A63: 225164 | B63: kr | C63: 2 | D63: ç‰™ç±¤ | E63: p | F63: 110265 | G63: kr | H63: 2 | I63: flybird | J63: t | K63: Bronze | L63: 53 | M63: 62 | N63: 671 | O63: 2014-07-08 | P63: 3 days | Q63: 2014-09-21T06:06:24 | R63: 225164-2|110265-2 | S63: 0 | T63: 63
A64: 738256 | B64: kr | C64: 2 | D64: noid | E64: r | F64: 737187 | G64: kr | H64: 2 | I64: vAn | J64: r | K64: Bronze | L64: 118 | M64: 250 | N64: 671 | O64: 2014-07-08 | P64: 1 days | Q64: 2014-09-21T06:06:24 | R64: 738256-2|737187-2 | S64: 0 | T64: 64
A65: 762000 | B65: kr | C65: 2 | D65: HuskeyJason | E65: t | F65: 59734 | G65: kr | H65: 2 | I65: å”ä¼¯å”¬ | J65: p | K65: Bronze | L65: 25 | M65: 30 | N65: 670 | O65: 2014-08-28 | P65: 7 days | Q65: 2014-09-21T06:06:24 | R65: 762000-2|59734-2 | S65: 0 | T65: 65
A66: 2752749 | B66: kr | C66: 1 | D66: ì—”ì§€ | E66: r | F66: 1563440 | G66: kr | H66: 1 | I66: ê¸”ì—½ê¸” | J66: t | K66: Bronze | L66: 24 | M66: 26 | N66: 668 | O66: 2014-08-30 | P66: 7 days | Q66: 2014-09-21T06:06:24 | R66: 2752749-1|1563440-1 | S66: 0 | T66: 66
A67: 4686140 | B67: kr | C67: 1 | D67: RiCCardi | E67: r | F67: 858707 | G67: kr | H67: 1 | I67: Flyingbud | J67: p | K67: Bronze | L67: 24 | M67: 29 | N67: 668 | O67: 2014-08-09 | P67: 13 days | Q67: 2014-09-21T06:06:24 | R67: 4686140-1|858707-1 | S67: 0 | T67: 67
A68: 4669426 | B68: kr | C68: 1 | D68: í…Œëž€ | E68: t | F68: 4314344 | G68: kr | H68: 1 | I68: ì„¸ì†ì˜¤ê³„ | J68: r | K68: Bronze | L68: 24 | M68: 26 | N68: 662 | O68: 2014-08-09 | P68: 1 hours | Q68: 2014-09-21T06:06:24 | R68: 4669426-1|4314344-1 | S68: 0 | T68: 68
A69: 1952544 | B69: kr | C69: 1 | D69: ì–Œë§ˆ | E69: t | F69: 177400 | G69: kr | H69: 1 | I69: overthedark | J69: p | K69: Bronze | L69: 22 | M69: 20 | N69: 660 | O69: 2014-08-16 | P69: 10 days | Q69: 2014-09-21T06:06:24 | R69: 1952544-1|177400-1 | S69: 0 | T69: 69
A70: 3850122 | B70: kr | C70: 1 | D70: Incurable | E70: t | F70: 986621 | G70: kr | H70: 1 | I70: sniper | J70: z | K70: Bronze | L70: 21 | M70: 18 | N70: 646 | O70: 2014-08-17 | P70: 9 days | Q70: 2014-09-21T06:06:24 | R70: 3850122-1|986621-1 | S70: 0 | T70: 70
A71: 1333975 | B71: kr | C71: 2 | D71: SLeezer | E71: p | F71: 1022638 | G71: kr | H71: 2 | I71: QceanStorM | J71: t | K71: Bronze | L71: 19 | M71: 36 | N71: 646 | O71: 2014-09-03 | P71: 3 days | Q71: 2014-09-21T06:06:24 | R71: 1333975-2|1022638-2 | S71: 0 | T71: 71
A72: 1231180 | B72: kr | C72: 2 | D72: ZXC | E72: t | F72: 1075412 | G72: kr | H72: 2 | I72: Tom | J72: z | K72: Bronze | L72: 25 | M72: 23 | N72: 645 | O72: 2014-07-07 | P72: 6 hours | Q72: 2014-09-21T06:06:24 | R72: 1231180-2|1075412-2 | S72: 0 | T72: 72
A73: 2358756 | B73: kr | C73: 1 | D73: ê·¸ëŠ˜ë‚ ê°œ | E73: t | F73: 2096488 | G73: kr | H73: 1 | I73: ì‹ ì¸ìœ ì € | J73: p | K73: Bronze | L73: 22 | M73: 29 | N73: 644 | O73: 2014-09-03 | P73: 21 hours | Q73: 2014-09-21T06:06:24 | R73: 2358756-1|2096488-1 | S73: 0 | T73: 73
A74: 819452 | B74: kr | C74: 2 | D74: RYA | E74: t | F74: 810133 | G74: kr | H74: 2 | I74: TWDeatX | J74: t | K74: Bronze | L74: 26 | M74: 28 | N74: 641 | O74: 2014-08-14 | P74: 15 days | Q74: 2014-09-21T06:06:24 | R74: 819452-2|810133-2 | S74: 0 | T74: 74
A75: 4059707 | B75: kr | C75: 1 | D75: ë•¡ì´ | E75: r | F75: 4058818 | G75: kr | H75: 1 | I75: ì€ì‚êµ°ë‹¨ | J75: p | K75: Bronze | L75: 23 | M75: 28 | N75: 640 | O75: 2014-07-26 | P75: 22 hours | Q75: 2014-09-21T06:06:24 | R75: 4059707-1|4058818-1 | S75: 0 | T75: 75
A76: 554284 | B76: kr | C76: 2 | D76: Nicholas | E76: t | F76: 74132 | G76: kr | H76: 2 | I76: ayumiowen | J76: p | K76: Bronze | L76: 23 | M76: 27 | N76: 637 | O76: 2014-07-12 | P76: 24 days | Q76: 2014-09-21T06:06:24 | R76: 554284-2|74132-2 | S76: 0 | T76: 76
A77: 4734701 | B77: kr | C77: 1 | D77: ê³ ìž | E77: p | F77: 4733615 | G77: kr | H77: 1 | I77: ë‚´êº¼í•˜ìž | J77: z | K77: Bronze | L77: 21 | M77: 40 | N77: 634 | O77: 2014-09-10 | P77: 1 hours | Q77: 2014-09-21T06:06:24 | R77: 4734701-1|4733615-1 | S77: 0 | T77: 77
A78: 933977 | B78: kr | C78: 2 | D78: ç‚Žèˆž | E78: t | F78: 930567 | G78: kr | H78: 2 | I78: HoNer | J78: z | K78: Bronze | L78: 25 | M78: 78 | N78: 627 | O78: 2014-07-25 | P78: 23 hours | Q78: 2014-09-21T06:06:24 | R78: 933977-2|930567-2 | S78: 0 | T78: 78
A79: 4658978 | B79: kr | C79: 1 | D79: leeleleelee | E79: t | F79: 4386281 | G79: kr | H79: 1 | I79: PumBa | J79: r | K79: Bronze | L79: 21 | M79: 22 | N79: 625 | O79: 2014-07-11 | P79: 11 days | Q79: 2014-09-21T06:06:24 | R79: 4658978-1|4386281-1 | S79: 0 | T79: 79
A80: 4342634 | B80: kr | C80: 1 | D80: youngchulje | E80: t | F80: 729347 | G80: kr | H80: 1 | I80: jones | J80: p | K80: Bronze | L80: 20 | M80: 20 | N80: 624 | O80: 2014-07-09 | P80: 2 days | Q80: 2014-09-21T06:06:24 | R80: 4342634-1|729347-1 | S80: 0 | T80: 80
A81: 1545430 | B81: kr | C81: 1 | D81: yurang | E81: p | F81: 1519038 | G81: kr | H81: 1 | I81: selly | J81: p | K81: Bronze | L81: 24 | M81: 24 | N81: 610 | O81: 2014-07-06 | P81: 17 days | Q81: 2014-09-21T06:06:24 | R81: 1545430-1|1519038-1 | S81: 0 | T81: 81
A82: 4110478 | B82: kr | C82: 1 | D82: ë„ë¯¸ë‹ˆì–¸ | E82: t | F82: 266495 | G82: kr | H82: 1 | I82: Nightmare | J82: p | K82: Bronze | L82: 20 | M82: 26 | N82: 610 | O82: 2014-07-19 | P82: 13 days | Q82: 2014-09-21T06:06:24 | R82: 4110478-1|266495-1 | S82: 0 | T82: 82
A83: 4582886 | B83: kr | C83: 1 | D83: AnarchyEzio | E83: p | F83: 4264316 | G83: kr | H83: 1 | I83: ë¯¸ë‚˜ë¯¸ | J83: r | K83: Bronze | L83: 21 | M83: 22 | N83: 608 | O83: 2014-08-23 | P83: 3 days | Q83: 2014-09-21T06:06:24 | R83: 4582886-1|4264316-1 | S83: 0 | T83: 83
A84: 2298213 | B84: kr | C84: 1 | D84: ì²­ë©´ìˆ˜ | E84: p | F84: 2172314 | G84: kr | H84: 1 | I84: ê³°ì¥ | J84: r | K84: Bronze | L84: 21 | M84: 27 | N84: 606 | O84: 2014-07-13 | P84: 6 days | Q84: 2014-09-21T06:06:24 | R84: 2298213-1|2172314-1 | S84: 0 | T84: 84
A85: 83109 | B85: kr | C85: 1 | D85: ë¶ˆê³°ì™• | E85: t | F85: 82450 | G85: kr | H85: 1 | I85: ìœ ë ¹ì™• | J85: p | K85: Bronze | L85: 19 | M85: 26 | N85: 600 | O85: 2014-09-08 | P85: 1 hours | Q85: 2014-09-21T06:06:24 | R85: 83109-1|82450-1 | S85: 0 | T85: 85
A86: 4450314 | B86: kr | C86: 1 | D86: í˜¸êµ¬ì™”ëŠ¥ê°€ | E86: t | F86: 3349108 | G86: kr | H86: 1 | I86: mulsasin | J86: t | K86: Bronze | L86: 24 | M86: 21 | N86: 596 | O86: 2014-07-20 | P86: 36 days | Q86: 2014-09-21T06:06:24 | R86: 4450314-1|3349108-1 | S86: 0 | T86: 86
A87: 830117 | B87: kr | C87: 1 | D87: ë™í•´ë°”ë‹¤ | E87: z | F87: 561070 | G87: kr | H87: 1 | I87: Varshian | J87: t | K87: Bronze | L87: 20 | M87: 21 | N87: 596 | O87: 2014-07-15 | P87: 4 days | Q87: 2014-09-21T06:06:24 | R87: 830117-1|561070-1 | S87: 0 | T87: 87
A88: 3143142 | B88: kr | C88: 1 | D88: ìµœë¯¼í˜ | E88: z | F88: 673669 | G88: kr | H88: 1 | I88: ë‹ˆì–¼êµ´ | J88: p | K88: Bronze | L88: 23 | M88: 28 | N88: 587 | O88: 2014-07-18 | P88: 1 days | Q88: 2014-09-21T06:06:24 | R88: 3143142-1|673669-1 | S88: 0 | T88: 88
A89: 2013610 | B89: kr | C89: 1 | D89: Arondight | E89: t | F89: 264387 | G89: kr | H89: 1 | I89: FrostMagic | J89: t | K89: Bronze | L89: 31 | M89: 36 | N89: 586 | O89: 2014-07-07 | P89: 17 days | Q89: 2014-09-21T06:06:24 | R89: 2013610-1|264387-1 | S89: 0 | T89: 89
A90: 1354557 | B90: kr | C90: 2 | D90: LEE | E90: z | F90: 1139871 | G90: kr | H90: 2 | I90: MIKE | J90: r | K90: Bronze | L90: 20 | M90: 31 | N90: 586 | O90: 2014-07-29 | P90: 10 days | Q90: 2014-09-21T06:06:24 | R90: 1354557-2|1139871-2 | S90: 0 | T90: 90
A91: 4318243 | B91: kr | C91: 1 | D91: ë…¸ëž€ê³°ëŒì´ | E91: z | F91: 4057705 | G91: kr | H91: 1 | I91: ì§ì„¤ì ì´êµ° | J91: p | K91: Bronze | L91: 20 | M91: 30 | N91: 582 | O91: 2014-08-17 | P91: 7 hours | Q91: 2014-09-21T06:06:24 | R91: 4318243-1|4057705-1 | S91: 0 | T91: 91
A92: 164879 | B92: kr | C92: 1 | D92: Neo | E92: r | F92: 76646 | G92: kr | H92: 1 | I92: í—‰í—‰í—‰ | J92: r | K92: Bronze | L92: 39 | M92: 55 | N92: 580 | O92: 2014-07-15 | P92: 31 days | Q92: 2014-09-21T06:06:24 | R92: 164879-1|76646-1 | S92: 0 | T92: 92
A93: 4112636 | B93: kr | C93: 1 | D93: í† ì‚¬ìž¥ì•„ë“¤ | E93: t | F93: 1399126 | G93: kr | H93: 1 | I93: ìš´ë™ìž¥ì€ë‚´ì•ˆë°© | J93: p | K93: Bronze | L93: 20 | M93: 16 | N93: 578 | O93: 2014-08-26 | P93: 2 days | Q93: 2014-09-21T06:06:24 | R93: 4112636-1|1399126-1 | S93: 0 | T93: 93
A94: 3946840 | B94: kr | C94: 1 | D94: ì¸ìƒì˜ì°¸ëœê²ƒ | E94: p | F94: 1523743 | G94: kr | H94: 1 | I94: Sparky | J94: z | K94: Bronze | L94: 21 | M94: 18 | N94: 578 | O94: 2014-07-29 | P94: 14 days | Q94: 2014-09-21T06:06:24 | R94: 3946840-1|1523743-1 | S94: 0 | T94: 94
A95: 4272132 | B95: kr | C95: 1 | D95: ê°œê°€ë©ë© | E95: p | F95: 4170229 | G95: kr | H95: 1 | I95: enducenim | J95: r | K95: Bronze | L95: 46 | M95: 62 | N95: 578 | O95: 2014-07-08 | P95: 36 days | Q95: 2014-09-21T06:06:24 | R95: 4272132-1|4170229-1 | S95: 0 | T95: 95
A96: 653136 | B96: kr | C96: 1 | D96: í™ˆëŸ°ë³¼ | E96: t | F96: 554322 | G96: kr | H96: 1 | I96: MatthewJ | J96: t | K96: Bronze | L96: 19 | M96: 29 | N96: 572 | O96: 2014-07-24 | P96: 7 days | Q96: 2014-09-21T06:06:24 | R96: 653136-1|554322-1 | S96: 0 | T96: 96
A97: 2778821 | B97: kr | C97: 1 | D97: ê°„ì´ˆ | E97: t | F97: 2161592 | G97: kr | H97: 1 | I97: ì„¸íŒ”ì´ | J97: p | K97: Bronze | L97: 42 | M97: 51 | N97: 569 | O97: 2014-07-08 | P97: 6 days | Q97: 2014-09-21T06:06:24 | R97: 2778821-1|2161592-1 | S97: 0 | T97: 97
A98: 3521425 | B98: kr | C98: 1 | D98: ë§ˆíƒ„ì˜ì‚¬ìˆ˜ | E98: z | F98: 1965040 | G98: kr | H98: 1 | I98: Mercury | J98: z | K98: Bronze | L98: 41 | M98: 62 | N98: 562 | O98: 2014-07-14 | P98: 2 days | Q98: 2014-09-21T06:06:24 | R98: 3521425-1|1965040-1 | S98: 0 | T98: 98
A99: 4710431 | B99: kr | C99: 1 | D99: ë¯¸ì•„ë‚˜ë”° | E99: p | F99: 737144 | G99: kr | H99: 1 | I99: ë§ˆë‹¤ê±°ìŠ¤ì»¤ | J99: z | K99: Bronze | L99: 26 | M99: 44 | N99: 561 | O99: 2014-08-14 | P99: 22 days | Q99: 2014-09-21T06:06:24 | R99: 4710431-1|737144-1 | S99: 0 | T99: 99
A100: 4445168 | B100: kr | C100: 1 | D100: chuno | E100: z | F100: 3078314 | G100: kr | H100: 1 | I100: Romantist | J100: t | K100: Bronze | L100: 19 | M100: 17 | N100: 560 | O100: 2014-07-08 | P100: 17 days | Q100: 2014-09-21T06:06:24 | R100: 4445168-1|3078314-1 | S100: 0 | T100: 100
A101: 3022268 | B101: kr | C101: 1 | D101: ìµœë°°ë‹¬ | E101: t | F101: 628391 | G101: kr | H101: 1 | I101: TheSp | J101: t | K101: Bronze | L101: 26 | M101: 36 | N101: 560 | O101: 2014-07-08 | P101: 15 days | Q101: 2014-09-21T06:06:24 | R101: 3022268-1|628391-1 | S101: 0 | T101: 101
A102: 1077201 | B102: kr | C102: 2 | D102: davidliin | E102: p | F102: 822003 | G102: kr | H102: 2 | I102: Soleil | J102: p | K102: Bronze | L102: 30 | M102: 34 | N102: 557 | O102: 2014-07-06 | P102: 34 days | Q102: 2014-09-21T06:06:24 | R102: 1077201-2|822003-2 | S102: 0 | T102: 102
A103: 4710814 | B103: kr | C103: 1 | D103: ì£¼íš½ | E103: t | F103: 2760039 | G103: kr | H103: 1 | I103: kim | J103: z | K103: Bronze | L103: 20 | M103: 31 | N103: 556 | O103: 2014-08-18 | P103: 8 days | Q103: 2014-09-21T06:06:24 | R103: 4710814-1|2760039-1 | S103: 0 | T103: 103
A104: 4585856 | B104: kr | C104: 1 | D104: ì„±ìš±ì§± | E104: t | F104: 702184 | G104: kr | H104: 1 | I104: ë§ˆë‹ˆ | J104: r | K104: Bronze | L104: 18 | M104: 35 | N104: 556 | O104: 2014-08-23 | P104: 42 minutes | Q104: 2014-09-21T06:06:24 | R104: 4585856-1|702184-1 | S104: 0 | T104: 104
A105: 4684692 | B105: kr | C105: 1 | D105: ì£¼ê±°ì£¼ê±°ì‹œí‚¤ì•¼ | E105: p | F105: 1649028 | G105: kr | H105: 1 | I105: ë°œë‚˜ìš°ë„ | J105: r | K105: Bronze | L105: 33 | M105: 47 | N105: 554 | O105: 2014-07-14 | P105: 15 days | Q105: 2014-09-21T06:06:24 | R105: 4684692-1|1649028-1 | S105: 0 | T105: 105
A106: 2424979 | B106: kr | C106: 1 | D106: ì¨ë‹ˆí… | E106: t | F106: 1285807 | G106: kr | H106: 1 | I106: ëŒ€ë¶€ë‹˜ | J106: r | K106: Bronze | L106: 17 | M106: 18 | N106: 548 | O106: 2014-09-13 | P106: 16 hours | Q106: 2014-09-21T06:06:24 | R106: 2424979-1|1285807-1 | S106: 0 | T106: 106
A107: 4675326 | B107: kr | C107: 1 | D107: ëˆë”°ìž | E107: p | F107: 4674010 | G107: kr | H107: 1 | I107: ëª…ëž‘ì§±êµ¬ | J107: p | K107: Bronze | L107: 29 | M107: 43 | N107: 547 | O107: 2014-07-13 | P107: 22 days | Q107: 2014-09-21T06:06:24 | R107: 4675326-1|4674010-1 | S107: 0 | T107: 107
A108: 857590 | B108: kr | C108: 2 | D108: Turbo | E108: p | F108: 72639 | G108: kr | H108: 2 | I108: freehero | J108: z | K108: Bronze | L108: 57 | M108: 103 | N108: 545 | O108: 2014-07-13 | P108: 7 hours | Q108: 2014-09-21T06:06:24 | R108: 857590-2|72639-2 | S108: 0 | T108: 108
A109: 4676894 | B109: kr | C109: 1 | D109: ë‹¹ë‚˜ê·€ì•¼ | E109: t | F109: 2790604 | G109: kr | H109: 1 | I109: ì•™ì¦ëˆˆì›ƒìŒ | J109: p | K109: Bronze | L109: 22 | M109: 27 | N109: 544 | O109: 2014-08-05 | P109: 14 days | Q109: 2014-09-21T06:06:24 | R109: 4676894-1|2790604-1 | S109: 0 | T109: 109
A110: 3135523 | B110: kr | C110: 1 | D110: ì—¬ì›”í¬ | E110: p | F110: 474642 | G110: kr | H110: 1 | I110: SuHwaRin | J110: p | K110: Bronze | L110: 18 | M110: 24 | N110: 540 | O110: 2014-08-26 | P110: 11 days | Q110: 2014-09-21T06:06:24 | R110: 3135523-1|474642-1 | S110: 0 | T110: 110
A111: 1363392 | B111: kr | C111: 1 | D111: í•˜ëŠ¬ì‚¼ì¶˜ | E111: p | F111: 854668 | G111: kr | H111: 1 | I111: í•˜ëŠ¬íŒ | J111: t | K111: Bronze | L111: 19 | M111: 26 | N111: 540 | O111: 2014-08-02 | P111: 27 days | Q111: 2014-09-21T06:06:24 | R111: 1363392-1|854668-1 | S111: 0 | T111: 111
A112: 1095496 | B112: kr | C112: 1 | D112: ì©Œë¦¬ | E112: r | F112: 849855 | G112: kr | H112: 1 | I112: Limhw | J112: r | K112: Bronze | L112: 19 | M112: 23 | N112: 536 | O112: 2014-07-22 | P112: 8 days | Q112: 2014-09-21T06:06:24 | R112: 1095496-1|849855-1 | S112: 0 | T112: 112
A113: 892251 | B113: kr | C113: 1 | D113: ê¶Œë ¥ | E113: r | F113: 354530 | G113: kr | H113: 1 | I113: í˜•ì˜¤ì…§ì–´ìš” | J113: t | K113: Bronze | L113: 17 | M113: 31 | N113: 534 | O113: 2014-08-14 | P113: 20 days | Q113: 2014-09-21T06:06:24 | R113: 892251-1|354530-1 | S113: 0 | T113: 113
A114: 1107761 | B114: kr | C114: 2 | D114: ForeverLove | E114: p | F114: 786891 | G114: kr | H114: 2 | I114: ä¹‚è‚šçš®ä¹‚ | J114: r | K114: Bronze | L114: 16 | M114: 16 | N114: 532 | O114: 2014-08-03 | P114: 7 days | Q114: 2014-09-21T06:06:24 | R114: 1107761-2|786891-2 | S114: 0 | T114: 114
A115: 2054885 | B115: kr | C115: 1 | D115: ê°œë–µê¼¬ | E115: p | F115: 1803762 | G115: kr | H115: 1 | I115: ë¹ ë¼ë“œë ¤ìš” | J115: p | K115: Bronze | L115: 20 | M115: 22 | N115: 530 | O115: 2014-08-02 | P115: 27 days | Q115: 2014-09-21T06:06:24 | R115: 2054885-1|1803762-1 | S115: 0 | T115: 115
A116: 325431 | B116: kr | C116: 2 | D116: yychen | E116: z | F116: 91030 | G116: kr | H116: 2 | I116: ReDrAy | J116: z | K116: Bronze | L116: 21 | M116: 23 | N116: 528 | O116: 2014-07-08 | P116: 1 days | Q116: 2014-09-21T06:06:24 | R116: 325431-2|91030-2 | S116: 0 | T116: 116
A117: 4160214 | B117: kr | C117: 1 | D117: kim | E117: r | F117: 4003149 | G117: kr | H117: 1 | I117: í˜¸ì‹œê¸° | J117: p | K117: Bronze | L117: 18 | M117: 22 | N117: 522 | O117: 2014-07-19 | P117: 53 minutes | Q117: 2014-09-21T06:06:24 | R117: 4160214-1|4003149-1 | S117: 0 | T117: 117
A118: 4641501 | B118: kr | C118: 1 | D118: ë¥˜í˜¸ë¹µ | E118: z | F118: 3992702 | G118: kr | H118: 1 | I118: í™©ì œì¤€ì˜ | J118: r | K118: Bronze | L118: 17 | M118: 17 | N118: 518 | O118: 2014-07-29 | P118: 1 days | Q118: 2014-09-21T06:06:24 | R118: 4641501-1|3992702-1 | S118: 0 | T118: 118
A119: 2945164 | B119: kr | C119: 1 | D119: ì‹œì•¼ë‚˜ | E119: p | F119: 2589373 | G119: kr | H119: 1 | I119: ê³ ë¼ | J119: p | K119: Bronze | L119: 34 | M119: 60 | N119: 514 | O119: 2014-07-07 | P119: 2 days | Q119: 2014-09-21T06:06:24 | R119: 2945164-1|2589373-1 | S119: 0 | T119: 119
A120: 2722778 | B120: kr | C120: 1 | D120: ì•„ë””ì´ | E120: t | F120: 2566895 | G120: kr | H120: 1 | I120: ì„œìš¸í˜„ë¹ˆ | J120: p | K120: Bronze | L120: 16 | M120: 13 | N120: 506 | O120: 2014-07-28 | P120: 1 days | Q120: 2014-09-21T06:06:24 | R120: 2722778-1|2566895-1 | S120: 0 | T120: 120
A121: 1474919 | B121: kr | C121: 1 | D121: ìŠ¤ë‚˜ì´í¼ | E121: p | F121: 1328722 | G121: kr | H121: 1 | I121: íŠ¹ì „ì‚¬ | J121: r | K121: Bronze | L121: 17 | M121: 10 | N121: 504 | O121: 2014-08-15 | P121: 9 days | Q121: 2014-09-21T06:06:24 | R121: 1474919-1|1328722-1 | S121: 0 | T121: 121
A122: 2867726 | B122: kr | C122: 1 | D122: heaven | E122: t | F122: 2713348 | G122: kr | H122: 1 | I122: í¬ë‚˜í¬ | J122: p | K122: Bronze | L122: 14 | M122: 24 | N122: 504 | O122: 2014-07-31 | P122: 1 days | Q122: 2014-09-21T06:06:24 | R122: 2867726-1|2713348-1 | S122: 0 | T122: 122
A123: 4478390 | B123: kr | C123: 1 | D123: ì‹ì´ë‹¹ | E123: p | F123: 4136361 | G123: kr | H123: 1 | I123: ìš¸ì‚°ë‚¨êµ¬ì‚¼ì‚°ë™ | J123: r | K123: Bronze | L123: 15 | M123: 13 | N123: 498 | O123: 2014-08-12 | P123: 20 days | Q123: 2014-09-21T06:06:24 | R123: 4478390-1|4136361-1 | S123: 0 | T123: 123
A124: 2340540 | B124: kr | C124: 1 | D124: spolee | E124: p | F124: 204064 | G124: kr | H124: 1 | I124: Hierarch | J124: p | K124: Bronze | L124: 17 | M124: 19 | N124: 492 | O124: 2014-09-13 | P124: 1 days | Q124: 2014-09-21T06:06:24 | R124: 2340540-1|204064-1 | S124: 0 | T124: 124
A125: 1344894 | B125: kr | C125: 2 | D125: LocKeYXX | E125: p | F125: 77614 | G125: kr | H125: 2 | I125: losfair | J125: r | K125: Bronze | L125: 47 | M125: 58 | N125: 492 | O125: 2014-07-09 | P125: 38 days | Q125: 2014-09-21T06:06:24 | R125: 1344894-2|77614-2 | S125: 0 | T125: 125
A126: 1105216 | B126: kr | C126: 1 | D126: Megas | E126: r | F126: 413201 | G126: kr | H126: 1 | I126: Specialist | J126: r | K126: Bronze | L126: 20 | M126: 20 | N126: 490 | O126: 2014-07-27 | P126: 1 hours | Q126: 2014-09-21T06:06:24 | R126: 1105216-1|413201-1 | S126: 0 | T126: 126
A127: 4470576 | B127: kr | C127: 1 | D127: íƒœí—Œì®¸ | E127: r | F127: 873779 | G127: kr | H127: 1 | I127: LeaP | J127: r | K127: Bronze | L127: 16 | M127: 13 | N127: 488 | O127: 2014-07-12 | P127: 17 days | Q127: 2014-09-21T06:06:24 | R127: 4470576-1|873779-1 | S127: 0 | T127: 127
A128: 486734 | B128: kr | C128: 2 | D128: å…‰ä¸€è‰¾å…‹ç¾…å‚‘ç‘ž | E128: p | F128: 361689 | G128: kr | H128: 2 | I128: å°æ©‹ç…§å½¥ | J128: p | K128: Bronze | L128: 17 | M128: 13 | N128: 486 | O128: 2014-07-20 | P128: 7 days | Q128: 2014-09-21T06:06:24 | R128: 486734-2|361689-2 | S128: 0 | T128: 128
A129: 82448 | B129: kr | C129: 2 | D129: æš—å½± | E129: t | F129: 72705 | G129: kr | H129: 2 | I129: Roleplayerxp | J129: t | K129: Bronze | L129: 15 | M129: 12 | N129: 478 | O129: 2014-08-20 | P129: 1 days | Q129: 2014-09-21T06:06:24 | R129: 82448-2|72705-2 | S129: 0 | T129: 129
A130: 1001378 | B130: kr | C130: 2 | D130: saintswin | E130: z | F130: 1001135 | G130: kr | H130: 2 | I130: SaintsKee | J130: z | K130: Bronze | L130: 21 | M130: 42 | N130: 476 | O130: 2014-07-07 | P130: 24 days | Q130: 2014-09-21T06:06:24 | R130: 1001378-2|1001135-2 | S130: 0 | T130: 130
A131: 4707843 | B131: kr | C131: 1 | D131: ê¹€ì–‘ì¯” | E131: z | F131: 325040 | G131: kr | H131: 1 | I131: ë¬¼ë¦¬ì¹˜ë£Œì¤‘ | J131: p | K131: Bronze | L131: 16 | M131: 24 | N131: 474 | O131: 2014-08-22 | P131: 8 days | Q131: 2014-09-21T06:06:24 | R131: 4707843-1|325040-1 | S131: 0 | T131: 131
A132: 1413700 | B132: kr | C132: 1 | D132: ì œì´í‹° | E132: t | F132: 1141368 | G132: kr | H132: 1 | I132: Art | J132: p | K132: Bronze | L132: 14 | M132: 8 | N132: 470 | O132: 2014-08-15 | P132: 11 days | Q132: 2014-09-21T06:06:24 | R132: 1413700-1|1141368-1 | S132: 0 | T132: 132
A133: 1129493 | B133: kr | C133: 1 | D133: ì›…ë¹„ì„±ìœ ë¦¬ | E133: p | F133: 543401 | G133: kr | H133: 1 | I133: ì–´ë–¤ê²Œì¢‹ì„ê¹Œ | J133: r | K133: Bronze | L133: 15 | M133: 12 | N133: 468 | O133: 2014-07-19 | P133: 7 days | Q133: 2014-09-21T06:06:24 | R133: 1129493-1|543401-1 | S133: 0 | T133: 133
A134: 4695270 | B134: kr | C134: 1 | D134: ë°±í•© | E134: z | F134: 1653396 | G134: kr | H134: 1 | I134: íƒ€ë²„ë¦°ë¶ˆê³ ê¸° | J134: t | K134: Bronze | L134: 15 | M134: 9 | N134: 462 | O134: 2014-09-04 | P134: 2 days | Q134: 2014-09-21T06:06:24 | R134: 4695270-1|1653396-1 | S134: 0 | T134: 134
A135: 3217624 | B135: kr | C135: 1 | D135: ë²Œë ˆ | E135: z | F135: 1253156 | G135: kr | H135: 1 | I135: ì´ë£¨ë§ˆ | J135: z | K135: Bronze | L135: 16 | M135: 17 | N135: 462 | O135: 2014-08-10 | P135: 19 days | Q135: 2014-09-21T06:06:24 | R135: 3217624-1|1253156-1 | S135: 0 | T135: 135
A136: 4684508 | B136: kr | C136: 1 | D136: íŠ¸ë¦¬í”Œìƒí•œê°€ | E136: z | F136: 1600236 | G136: kr | H136: 1 | I136: IIIIII | J136: r | K136: Bronze | L136: 15 | M136: 30 | N136: 460 | O136: 2014-07-26 | P136: 3 minutes | Q136: 2014-09-21T06:06:24 | R136: 4684508-1|1600236-1 | S136: 0 | T136: 136
A137: 1984370 | B137: kr | C137: 1 | D137: ë¶€ìží˜„í˜¸ | E137: p | F137: 1574768 | G137: kr | H137: 1 | I137: ë”°ê¹Œë¦¬ | J137: p | K137: Bronze | L137: 15 | M137: 26 | N137: 458 | O137: 2014-08-26 | P137: 11 days | Q137: 2014-09-21T06:06:24 | R137: 1984370-1|1574768-1 | S137: 0 | T137: 137
A138: 4110777 | B138: kr | C138: 1 | D138: ì°¨ë‹ˆ | E138: p | F138: 2610612 | G138: kr | H138: 1 | I138: íƒœê²¸ì´ | J138: t | K138: Bronze | L138: 17 | M138: 25 | N138: 456 | O138: 2014-07-21 | P138: 10 days | Q138: 2014-09-21T06:06:24 | R138: 4110777-1|2610612-1 | S138: 0 | T138: 138
A139: 714281 | B139: kr | C139: 2 | D139: Nick | E139: p | F139: 713462 | G139: kr | H139: 2 | I139: Jimmy | J139: t | K139: Bronze | L139: 20 | M139: 23 | N139: 455 | O139: 2014-07-08 | P139: 25 days | Q139: 2014-09-21T06:06:24 | R139: 714281-2|713462-2 | S139: 0 | T139: 139
A140: 4465463 | B140: kr | C140: 1 | D140: swom | E140: t | F140: 3199597 | G140: kr | H140: 1 | I140: marobono | J140: z | K140: Bronze | L140: 14 | M140: 6 | N140: 454 | O140: 2014-07-22 | P140: 16 hours | Q140: 2014-09-21T06:06:24 | R140: 4465463-1|3199597-1 | S140: 0 | T140: 140
A141: 4101234 | B141: kr | C141: 1 | D141: í† í† ë¡œì‚¿ëŒ€ìž | E141: t | F141: 3010815 | G141: kr | H141: 1 | I141: ë»‘ìª„ìš” | J141: p | K141: Bronze | L141: 15 | M141: 21 | N141: 452 | O141: 2014-08-13 | P141: 11 days | Q141: 2014-09-21T06:06:24 | R141: 4101234-1|3010815-1 | S141: 0 | T141: 141
A142: 2028445 | B142: kr | C142: 1 | D142: Hotbear | E142: p | F142: 822011 | G142: kr | H142: 1 | I142: ìžë‘ë§›ë–¡ | J142: t | K142: Bronze | L142: 31 | M142: 38 | N142: 451 | O142: 2014-07-11 | P142: 30 days | Q142: 2014-09-21T06:06:24 | R142: 2028445-1|822011-1 | S142: 0 | T142: 142
A143: 1670415 | B143: kr | C143: 1 | D143: HaHaHam | E143: p | F143: 714255 | G143: kr | H143: 1 | I143: happyto | J143: t | K143: Bronze | L143: 15 | M143: 21 | N143: 450 | O143: 2014-07-28 | P143: 3 days | Q143: 2014-09-21T06:06:24 | R143: 1670415-1|714255-1 | S143: 0 | T143: 143
A144: 59804 | B144: kr | C144: 2 | D144: Phoniex | E144: p | F144: 54622 | G144: kr | H144: 2 | I144: çš®å¡ä¸˜ | J144: t | K144: Bronze | L144: 15 | M144: 22 | N144: 450 | O144: 2014-08-15 | P144: 13 days | Q144: 2014-09-21T06:06:24 | R144: 59804-2|54622-2 | S144: 0 | T144: 144
A145: 1095132 | B145: kr | C145: 2 | D145: PeterLin | E145: z | F145: 621288 | G145: kr | H145: 2 | I145: NickyHsieh | J145: p | K145: Bronze | L145: 14 | M145: 26 | N145: 450 | O145: 2014-07-24 | P145: 11 days | Q145: 2014-09-21T06:06:24 | R145: 1095132-2|621288-2 | S145: 0 | T145: 145
A146: 3019379 | B146: kr | C146: 1 | D146: í•œë²ˆì›ƒì–´ì¤„ê»˜ | E146: r | F146: 697025 | G146: kr | H146: 1 | I146: í•˜ë£¨ë¹¨ë¦¬ | J146: r | K146: Bronze | L146: 15 | M146: 15 | N146: 448 | O146: 2014-07-15 | P146: 24 days | Q146: 2014-09-21T06:06:24 | R146: 3019379-1|697025-1 | S146: 0 | T146: 146
A147: 1508919 | B147: kr | C147: 1 | D147: miniuncle | E147: p | F147: 1138598 | G147: kr | H147: 1 | I147: icetea | J147: t | K147: Bronze | L147: 14 | M147: 17 | N147: 448 | O147: 2014-09-10 | P147: 7 days | Q147: 2014-09-21T06:06:24 | R147: 1508919-1|1138598-1 | S147: 0 | T147: 147
A148: 402932 | B148: kr | C148: 1 | D148: íš¨ì° | E148: t | F148: 153139 | G148: kr | H148: 1 | I148: ë– ë„ë¦¬ | J148: z | K148: Bronze | L148: 15 | M148: 23 | N148: 446 | O148: 2014-07-13 | P148: 28 days | Q148: 2014-09-21T06:06:24 | R148: 402932-1|153139-1 | S148: 0 | T148: 148
A149: 822002 | B149: kr | C149: 2 | D149: æ´‹çš‡ | E149: z | F149: 818352 | G149: kr | H149: 2 | I149: BILL | J149: t | K149: Bronze | L149: 22 | M149: 26 | N149: 445 | O149: 2014-07-10 | P149: 12 days | Q149: 2014-09-21T06:06:24 | R149: 822002-2|818352-2 | S149: 0 | T149: 149
A150: 2010075 | B150: kr | C150: 1 | D150: ì§€ë‹ˆ | E150: r | F150: 475432 | G150: kr | H150: 1 | I150: lion | J150: r | K150: Bronze | L150: 16 | M150: 20 | N150: 444 | O150: 2014-08-12 | P150: 11 days | Q150: 2014-09-21T06:06:24 | R150: 2010075-1|475432-1 | S150: 0 | T150: 150
A151: 4504450 | B151: kr | C151: 1 | D151: Edwin | E151: p | F151: 1041646 | G151: kr | H151: 1 | I151: ëƒ‰ê°•ë•¡ì´ | J151: z | K151: Bronze | L151: 16 | M151: 29 | N151: 442 | O151: 2014-08-07 | P151: 23 days | Q151: 2014-09-21T06:06:24 | R151: 4504450-1|1041646-1 | S151: 0 | T151: 151
A152: 1025468 | B152: kr | C152: 1 | D152: matahari | E152: t | F152: 546439 | G152: kr | H152: 1 | I152: ë˜˜ë¼ | J152: r | K152: Bronze | L152: 14 | M152: 5 | N152: 440 | O152: 2014-08-13 | P152: 14 days | Q152: 2014-09-21T06:06:24 | R152: 1025468-1|546439-1 | S152: 0 | T152: 152
A153: 4599329 | B153: kr | C153: 1 | D153: corost | E153: z | F153: 4598982 | G153: kr | H153: 1 | I153: ëŒ€í•œë¯¼êµ­ | J153: t | K153: Bronze | L153: 17 | M153: 11 | N153: 440 | O153: 2014-09-01 | P153: 2 days | Q153: 2014-09-21T06:06:24 | R153: 4599329-1|4598982-1 | S153: 0 | T153: 153
A154: 4233923 | B154: kr | C154: 1 | D154: Andreas | E154: p | F154: 894169 | G154: kr | H154: 1 | I154: ìµœìŠ¹í˜ | J154: p | K154: Bronze | L154: 15 | M154: 37 | N154: 440 | O154: 2014-07-07 | P154: 45 minutes | Q154: 2014-09-21T06:06:24 | R154: 4233923-1|894169-1 | S154: 0 | T154: 154
A155: 1700144 | B155: kr | C155: 1 | D155: obiwan | E155: p | F155: 1699063 | G155: kr | H155: 1 | I155: ì–„ë  | J155: t | K155: Bronze | L155: 14 | M155: 13 | N155: 438 | O155: 2014-08-23 | P155: 14 days | Q155: 2014-09-21T06:06:24 | R155: 1700144-1|1699063-1 | S155: 0 | T155: 155
A156: 2725121 | B156: kr | C156: 1 | D156: slavernoten | E156: z | F156: 424816 | G156: kr | H156: 1 | I156: JaeHYUN | J156: r | K156: Bronze | L156: 15 | M156: 13 | N156: 436 | O156: 2014-07-30 | P156: 5 days | Q156: 2014-09-21T06:06:24 | R156: 2725121-1|424816-1 | S156: 0 | T156: 156
A157: 1324463 | B157: kr | C157: 2 | D157: èŠ±ç¦ª | E157: p | F157: 729487 | G157: kr | H157: 2 | I157: Xing | J157: r | K157: Bronze | L157: 27 | M157: 29 | N157: 432 | O157: 2014-07-07 | P157: 46 days | Q157: 2014-09-21T06:06:24 | R157: 1324463-2|729487-2 | S157: 0 | T157: 157
A158: 3871234 | B158: kr | C158: 1 | D158: ëŒ€ë°©ë™ | E158: p | F158: 154508 | G158: kr | H158: 1 | I158: ìžìœ ì˜ë‚ ê°œ | J158: t | K158: Bronze | L158: 13 | M158: 10 | N158: 430 | O158: 2014-08-10 | P158: 8 days | Q158: 2014-09-21T06:06:24 | R158: 3871234-1|154508-1 | S158: 0 | T158: 158
A159: 4650024 | B159: kr | C159: 1 | D159: ë•êµ¬ | E159: p | F159: 858707 | G159: kr | H159: 1 | I159: Flyingbud | J159: p | K159: Bronze | L159: 36 | M159: 46 | N159: 429 | O159: 2014-07-06 | P159: 30 days | Q159: 2014-09-21T06:06:24 | R159: 4650024-1|858707-1 | S159: 0 | T159: 159
A160: 843120 | B160: kr | C160: 2 | D160: RELLIK | E160: t | F160: 767862 | G160: kr | H160: 2 | I160: é­¯å•¦å•¦ | J160: t | K160: Bronze | L160: 14 | M160: 8 | N160: 428 | O160: 2014-07-22 | P160: 1 days | Q160: 2014-09-21T06:06:24 | R160: 843120-2|767862-2 | S160: 0 | T160: 160
A161: 1294235 | B161: kr | C161: 2 | D161: Soda | E161: p | F161: 148322 | G161: kr | H161: 2 | I161: MikeZTM | J161: r | K161: Bronze | L161: 16 | M161: 28 | N161: 427 | O161: 2014-07-18 | P161: 42 days | Q161: 2014-09-21T06:06:24 | R161: 1294235-2|148322-2 | S161: 0 | T161: 161
A162: 4157346 | B162: kr | C162: 1 | D162: í˜¸ì˜¹ì´ | E162: p | F162: 141675 | G162: kr | H162: 1 | I162: ì£¼ì°½ë‹¬ | J162: p | K162: Bronze | L162: 14 | M162: 7 | N162: 426 | O162: 2014-07-25 | P162: 7 days | Q162: 2014-09-21T06:06:24 | R162: 4157346-1|141675-1 | S162: 0 | T162: 162
A163: 4376076 | B163: kr | C163: 1 | D163: ë§¤ë ¥íŒ¡íŒ¡ | E163: z | F163: 4224910 | G163: kr | H163: 1 | I163: Scotch | J163: z | K163: Bronze | L163: 14 | M163: 11 | N163: 426 | O163: 2014-07-18 | P163: 47 days | Q163: 2014-09-21T06:06:24 | R163: 4376076-1|4224910-1 | S163: 0 | T163: 163
A164: 728306 | B164: kr | C164: 1 | D164: ë–¡ë³¸ì¢Œ | E164: r | F164: 726648 | G164: kr | H164: 1 | I164: ë°œë†ˆì´ | J164: r | K164: Bronze | L164: 15 | M164: 18 | N164: 424 | O164: 2014-07-16 | P164: 1 hours | Q164: 2014-09-21T06:06:24 | R164: 728306-1|726648-1 | S164: 0 | T164: 164
A165: 2079539 | B165: kr | C165: 1 | D165: sabin | E165: p | F165: 132801 | G165: kr | H165: 1 | I165: Revenge | J165: r | K165: Bronze | L165: 10 | M165: 4 | N165: 422 | O165: 2014-07-27 | P165: 8 days | Q165: 2014-09-21T06:06:24 | R165: 2079539-1|132801-1 | S165: 0 | T165: 165
A166: 4640248 | B166: kr | C166: 1 | D166: TEDgamecount | E166: t | F166: 2728797 | G166: kr | H166: 1 | I166: Drsong | J166: p | K166: Bronze | L166: 16 | M166: 14 | N166: 422 | O166: 2014-07-15 | P166: 41 days | Q166: 2014-09-21T06:06:24 | R166: 4640248-1|2728797-1 | S166: 0 | T166: 166
A167: 2528060 | B167: kr | C167: 1 | D167: ë¯¼ì¤€ì§± | E167: p | F167: 2464455 | G167: kr | H167: 1 | I167: erenc | J167: p | K167: Bronze | L167: 13 | M167: 10 | N167: 420 | O167: 2014-08-01 | P167: 35 days | Q167: 2014-09-21T06:06:24 | R167: 2528060-1|2464455-1 | S167: 0 | T167: 167
A168: 1004760 | B168: kr | C168: 2 | D168: zliang | E168: z | F168: 398301 | G168: kr | H168: 2 | I168: é˜¿æ¦® | J168: p | K168: Bronze | L168: 15 | M168: 17 | N168: 418 | O168: 2014-07-08 | P168: 12 days | Q168: 2014-09-21T06:06:24 | R168: 1004760-2|398301-2 | S168: 0 | T168: 168
A169: 2860326 | B169: kr | C169: 1 | D169: ê°€ì¯”ì˜¤ìš°ë™ | E169: p | F169: 718959 | G169: kr | H169: 1 | I169: ê¹€ë°¥íŒ”ì•„ | J169: p | K169: Bronze | L169: 20 | M169: 26 | N169: 417 | O169: 2014-07-07 | P169: 43 days | Q169: 2014-09-21T06:06:24 | R169: 2860326-1|718959-1 | S169: 0 | T169: 169
A170: 4673581 | B170: kr | C170: 1 | D170: ì™€í˜¸í›„ | E170: p | F170: 3514918 | G170: kr | H170: 1 | I170: ì•¼ì‚½ | J170: t | K170: Bronze | L170: 16 | M170: 40 | N170: 417 | O170: 2014-07-07 | P170: 19 hours | Q170: 2014-09-21T06:06:24 | R170: 4673581-1|3514918-1 | S170: 0 | T170: 170
A171: 4058177 | B171: kr | C171: 1 | D171: ê·¸ë¦°ìœ ì¹˜ì› | E171: t | F171: 300634 | G171: kr | H171: 1 | I171: ê·¸ë¦°ìœ ì¹˜ì›í–‡ì‚´ë°˜ | J171: z | K171: Bronze | L171: 11 | M171: 6 | N171: 412 | O171: 2014-07-13 | P171: 3 days | Q171: 2014-09-21T06:06:24 | R171: 4058177-1|300634-1 | S171: 0 | T171: 171
A172: 2719540 | B172: kr | C172: 1 | D172: ìž¥ë‹¬ | E172: r | F172: 2022213 | G172: kr | H172: 1 | I172: ìž¬êµ¬ë§¤í• ì¸ì¿ í° | J172: t | K172: Bronze | L172: 15 | M172: 17 | N172: 412 | O172: 2014-07-19 | P172: 36 days | Q172: 2014-09-21T06:06:24 | R172: 2719540-1|2022213-1 | S172: 0 | T172: 172
A173: 4233729 | B173: kr | C173: 1 | D173: Aresimham | E173: p | F173: 3390129 | G173: kr | H173: 1 | I173: ì „ì§„íˆ¬ë³‘ì˜ | J173: p | K173: Bronze | L173: 14 | M173: 20 | N173: 410 | O173: 2014-08-24 | P173: 7 days | Q173: 2014-09-21T06:06:24 | R173: 4233729-1|3390129-1 | S173: 0 | T173: 173
A174: 1928462 | B174: kr | C174: 1 | D174: ì œë¹µì™•í˜„ìš± | E174: t | F174: 1928356 | G174: kr | H174: 1 | I174: ëˆ„êµ¬ëˆ„êµ¬ëˆ„êµ¬ | J174: z | K174: Bronze | L174: 14 | M174: 23 | N174: 410 | O174: 2014-07-12 | P174: 30 days | Q174: 2014-09-21T06:06:24 | R174: 1928462-1|1928356-1 | S174: 0 | T174: 174
A175: 518924 | B175: kr | C175: 1 | D175: ê·€ì—¼ë‘¥ë‘¥ì´ | E175: z | F175: 353974 | G175: kr | H175: 1 | I175: jasonkim | J175: t | K175: Bronze | L175: 13 | M175: 12 | N175: 408 | O175: 2014-08-29 | P175: 5 days | Q175: 2014-09-21T06:06:24 | R175: 518924-1|353974-1 | S175: 0 | T175: 175
A176: 2415246 | B176: kr | C176: 1 | D176: thsgmltmd | E176: z | F176: 2407631 | G176: kr | H176: 1 | I176: ì†¡ë„ë¹„ë£¡ | J176: p | K176: Bronze | L176: 14 | M176: 13 | N176: 408 | O176: 2014-07-19 | P176: 27 days | Q176: 2014-09-21T06:06:24 | R176: 2415246-1|2407631-1 | S176: 0 | T176: 176
A177: 4701999 | B177: kr | C177: 1 | D177: syj | E177: r | F177: 1232199 | G177: kr | H177: 1 | I177: wonbinsida | J177: t | K177: Bronze | L177: 13 | M177: 16 | N177: 408 | O177: 2014-08-03 | P177: 42 days | Q177: 2014-09-21T06:06:24 | R177: 4701999-1|1232199-1 | S177: 0 | T177: 177
A178: 2579915 | B178: kr | C178: 1 | D178: í™ë‹¹ë¬´ | E178: z | F178: 167999 | G178: kr | H178: 1 | I178: hhs | J178: p | K178: Bronze | L178: 15 | M178: 25 | N178: 408 | O178: 2014-07-21 | P178: 25 days | Q178: 2014-09-21T06:06:24 | R178: 2579915-1|167999-1 | S178: 0 | T178: 178
A179: 4636998 | B179: kr | C179: 1 | D179: vovka | E179: z | F179: 422659 | G179: kr | H179: 1 | I179: MooN | J179: p | K179: Bronze | L179: 17 | M179: 14 | N179: 407 | O179: 2014-07-10 | P179: 4 days | Q179: 2014-09-21T06:06:24 | R179: 4636998-1|422659-1 | S179: 0 | T179: 179
A180: 3023459 | B180: kr | C180: 1 | D180: êµ¿ëª¨ë‹ì—ë¸Œë¦¬ì› | E180: t | F180: 2810894 | G180: kr | H180: 1 | I180: ì•ˆë˜ê² ëŠ”ë°ìš” | J180: p | K180: Bronze | L180: 11 | M180: 6 | N180: 406 | O180: 2014-07-28 | P180: 4 days | Q180: 2014-09-21T06:06:24 | R180: 3023459-1|2810894-1 | S180: 0 | T180: 180
A181: 4244528 | B181: kr | C181: 1 | D181: ë˜ëŠ”ë˜ë¡œí‡´í•™ | E181: z | F181: 3259939 | G181: kr | H181: 1 | I181: dfafa | J181: p | K181: Bronze | L181: 14 | M181: 9 | N181: 406 | O181: 2014-08-03 | P181: 32 days | Q181: 2014-09-21T06:06:24 | R181: 4244528-1|3259939-1 | S181: 0 | T181: 181
A182: 2798554 | B182: kr | C182: 1 | D182: ì‚¬ì‹ í† ìŠ¤ | E182: t | F182: 569542 | G182: kr | H182: 1 | I182: DEEPANIC | J182: r | K182: Bronze | L182: 14 | M182: 17 | N182: 406 | O182: 2014-08-14 | P182: 18 days | Q182: 2014-09-21T06:06:24 | R182: 2798554-1|569542-1 | S182: 0 | T182: 182
A183: 4566285 | B183: kr | C183: 1 | D183: Ssat | E183: p | F183: 4563475 | G183: kr | H183: 1 | I183: í”Œë ˆì¸ìš”êµ¬ë¥´íŠ¸ | J183: t | K183: Bronze | L183: 13 | M183: 30 | N183: 406 | O183: 2014-08-27 | P183: 7 days | Q183: 2014-09-21T06:06:24 | R183: 4566285-1|4563475-1 | S183: 0 | T183: 183
A184: 3566181 | B184: kr | C184: 1 | D184: ìž¥ëš± | E184: p | F184: 2719540 | G184: kr | H184: 1 | I184: ìž¥ë‹¬ | J184: r | K184: Bronze | L184: 12 | M184: 13 | N184: 404 | O184: 2014-07-17 | P184: 26 days | Q184: 2014-09-21T06:06:24 | R184: 3566181-1|2719540-1 | S184: 0 | T184: 184
A185: 426678 | B185: kr | C185: 2 | D185: æ¯€ç„¡ç—• | E185: t | F185: 170196 | G185: kr | H185: 2 | I185: é»‘è‰²ç–¾é¢¨ | J185: r | K185: Bronze | L185: 31 | M185: 35 | N185: 403 | O185: 2014-07-12 | P185: 15 days | Q185: 2014-09-21T06:06:24 | R185: 426678-2|170196-2 | S185: 0 | T185: 185
A186: 4705999 | B186: kr | C186: 1 | D186: fesjke | E186: p | F186: 2197353 | G186: kr | H186: 1 | I186: ê³°íƒ±ì´ë§ˆì™• | J186: t | K186: Bronze | L186: 15 | M186: 20 | N186: 402 | O186: 2014-08-13 | P186: 30 days | Q186: 2014-09-21T06:06:24 | R186: 4705999-1|2197353-1 | S186: 0 | T186: 186
A187: 729144 | B187: kr | C187: 2 | D187: JohnWen | E187: t | F187: 718007 | G187: kr | H187: 2 | I187: PhilipWen | J187: t | K187: Bronze | L187: 14 | M187: 33 | N187: 402 | O187: 2014-08-04 | P187: 3 hours | Q187: 2014-09-21T06:06:24 | R187: 729144-2|718007-2 | S187: 0 | T187: 187
A188: 960788 | B188: kr | C188: 1 | D188: fousbyus | E188: r | F188: 917926 | G188: kr | H188: 1 | I188: ì•„ë ˆë„¤ì´ | J188: r | K188: Bronze | L188: 12 | M188: 11 | N188: 400 | O188: 2014-07-27 | P188: 14 days | Q188: 2014-09-21T06:06:24 | R188: 960788-1|917926-1 | S188: 0 | T188: 188
A189: 163507 | B189: kr | C189: 1 | D189: ì“°ë ˆê¸° | E189: p | F189: 160911 | G189: kr | H189: 1 | I189: í”¼ì¹´ì¸„ | J189: t | K189: Bronze | L189: 13 | M189: 15 | N189: 398 | O189: 2014-08-03 | P189: 5 days | Q189: 2014-09-21T06:06:24 | R189: 163507-1|160911-1 | S189: 0 | T189: 189
A190: 4360176 | B190: kr | C190: 1 | D190: ino | E190: p | F190: 801392 | G190: kr | H190: 1 | I190: sin | J190: p | K190: Bronze | L190: 12 | M190: 15 | N190: 398 | O190: 2014-07-31 | P190: 14 days | Q190: 2014-09-21T06:06:24 | R190: 4360176-1|801392-1 | S190: 0 | T190: 190
A191: 1271557 | B191: kr | C191: 2 | D191: Sam | E191: p | F191: 450441 | G191: kr | H191: 2 | I191: äºžå€«å°åˆ» | J191: z | K191: Bronze | L191: 24 | M191: 26 | N191: 397 | O191: 2014-07-10 | P191: 43 days | Q191: 2014-09-21T06:06:24 | R191: 1271557-2|450441-2 | S191: 0 | T191: 191
A192: 2096419 | B192: kr | C192: 1 | D192: ë‘ì‚°ë² ì–´ìŠ¤ | E192: r | F192: 908214 | G192: kr | H192: 1 | I192: ë£¨í”¼ | J192: t | K192: Bronze | L192: 14 | M192: 10 | N192: 396 | O192: 2014-07-28 | P192: 5 days | Q192: 2014-09-21T06:06:24 | R192: 2096419-1|908214-1 | S192: 0 | T192: 192
A193: 1680981 | B193: kr | C193: 1 | D193: NoTBuG | E193: p | F193: 463776 | G193: kr | H193: 1 | I193: Dark | J193: t | K193: Bronze | L193: 17 | M193: 12 | N193: 394 | O193: 2014-09-15 | P193: 1 days | Q193: 2014-09-21T06:06:24 | R193: 1680981-1|463776-1 | S193: 0 | T193: 193
A194: 4313414 | B194: kr | C194: 1 | D194: ì‹ ìƒí•˜ | E194: t | F194: 1933309 | G194: kr | H194: 1 | I194: Monica | J194: r | K194: Bronze | L194: 13 | M194: 10 | N194: 394 | O194: 2014-07-27 | P194: 10 days | Q194: 2014-09-21T06:06:24 | R194: 4313414-1|1933309-1 | S194: 0 | T194: 194
A195: 1448660 | B195: kr | C195: 1 | D195: ì½©ì¤˜ | E195: t | F195: 92866 | G195: kr | H195: 1 | I195: ì°¸ì¹˜ëŒ€ë±ƒì‚´êµ° | J195: p | K195: Bronze | L195: 14 | M195: 11 | N195: 394 | O195: 2014-09-06 | P195: 4 minutes | Q195: 2014-09-21T06:06:24 | R195: 1448660-1|92866-1 | S195: 0 | T195: 195
A196: 3990666 | B196: kr | C196: 1 | D196: ìƒ¥ê¸° | E196: t | F196: 656913 | G196: kr | H196: 1 | I196: ë§˜ë¹„ | J196: r | K196: Bronze | L196: 12 | M196: 12 | N196: 394 | O196: 2014-07-07 | P196: 21 days | Q196: 2014-09-21T06:06:24 | R196: 3990666-1|656913-1 | S196: 0 | T196: 196
A197: 2527419 | B197: kr | C197: 1 | D197: ê²½í˜¸ì§± | E197: p | F197: 1880165 | G197: kr | H197: 1 | I197: ë™ì´ë‹˜ | J197: r | K197: Bronze | L197: 13 | M197: 13 | N197: 394 | O197: 2014-09-07 | P197: 1 days | Q197: 2014-09-21T06:06:24 | R197: 2527419-1|1880165-1 | S197: 0 | T197: 197
A198: 874760 | B198: kr | C198: 2 | D198: Mercury | E198: p | F198: 842649 | G198: kr | H198: 2 | I198: xFreeDomx | J198: z | K198: Bronze | L198: 12 | M198: 9 | N198: 392 | O198: 2014-08-03 | P198: 16 hours | Q198: 2014-09-21T06:06:24 | R198: 874760-2|842649-2 | S198: 0 | T198: 198
A199: 970509 | B199: kr | C199: 1 | D199: ì†Œë‚˜ê¸° | E199: p | F199: 969558 | G199: kr | H199: 1 | I199: ë¹ ê°€ì•¼ë¡œ | J199: t | K199: Bronze | L199: 15 | M199: 13 | N199: 392 | O199: 2014-07-17 | P199: 5 days | Q199: 2014-09-21T06:06:24 | R199: 970509-1|969558-1 | S199: 0 | T199: 199
A200: 719907 | B200: kr | C200: 1 | D200: ì†ìˆ˜ë¹ˆ | E200: p | F200: 227701 | G200: kr | H200: 1 | I200: ê°¸ë¦‰ | J200: t | K200: Bronze | L200: 15 | M200: 15 | N200: 392 | O200: 2014-09-15 | P200: 3 days | Q200: 2014-09-21T06:06:24 | R200: 719907-1|227701-1 | S200: 0 | T200: 200
... 4300 more rows

Sheet 3v3Team
A1: Player ID 1 | B1: Player 1 Region | C1: Player 1 Subregion | D1: Player 1 Name | E1: Player 1 Race | F1: Player ID 2 | G1: Player 2 Region | H1: Player 2 Subregion | I1: Player 2 Name | J1: Player 2 Race | K1: Player ID 3 | L1: Player 3 Region | M1: Player 3 Subregion | N1: Player 3 Name | O1: Player 3 Race | P1: League | Q1: Win | R1: Loss | S1: Score | T1: Date Joined | U1: Last Game | V1: Timestamp | W1: TrueID | X1: Duplicate Check | Y1: Ordered ID
A2: 4704063 | B2: kr | C2: 1 | D2: ì—ìŠ¤íŠ¸ë¦¬ë“œí‚´ | E2: p | F2: 4641501 | G2: kr | H2: 1 | I2: ë¥˜í˜¸ë¹µ | J2: z | K2: 3992702 | L2: kr | M2: 1 | N2: í™©ì œì¤€ì˜ | O2: r | P2: Bronze | Q2: 42 | R2: 47 | S2: 551 | T2: 2014-08-06 | U2: 3 days | V2: 2014-09-21T06:07:14 | W2: 4704063-1|4641501-1|3992702-1 | X2: 0 | Y2: 2
A3: 3414103 | B3: kr | C3: 1 | D3: JJANGOON | E3: p | F3: 3395370 | G3: kr | H3: 1 | I3: Tom | J3: p | K3: 1923501 | L3: kr | M3: 1 | N3: TitaNium | O3: z | P3: Bronze | Q3: 20 | R3: 27 | S3: 524 | T3: 2014-08-17 | U3: 3 days | V3: 2014-09-21T06:07:14 | W3: 3414103-1|3395370-1|1923501-1 | X3: 0 | Y3: 3
A4: 999267 | B4: kr | C4: 2 | D4: MrWait | E4: p | F4: 998031 | G4: kr | H4: 2 | I4: Hork | J4: t | K4: 930697 | L4: kr | M4: 2 | N4: ä¸Šé‚ª | O4: z | P4: Bronze | Q4: 73 | R4: 108 | S4: 515 | T4: 2014-07-08 | U4: 3 days | V4: 2014-09-21T06:07:14 | W4: 999267-2|998031-2|930697-2 | X4: 0 | Y4: 4
A5: 2661080 | B5: kr | C5: 1 | D5: ë„ˆë§ê³ ë‹ˆì–¸ë‹ˆ | E5: z | F5: 2055734 | G5: kr | H5: 1 | I5: BlueTeddy | J5: p | K5: 297652 | L5: kr | M5: 1 | N5: Cocoa | O5: p | P5: Bronze | Q5: 21 | R5: 28 | S5: 508 | T5: 2014-08-21 | U5: 1 days | V5: 2014-09-21T06:07:14 | W5: 2661080-1|2055734-1|297652-1 | X5: 0 | Y5: 5
A6: 3450127 | B6: kr | C6: 1 | D6: ê¹€ì„¸ì¢… | E6: t | F6: 2107706 | G6: kr | H6: 1 | I6: ì´ê²Œë¨¸ì§€ | J6: z | K6: 446809 | L6: kr | M6: 1 | N6: í…Œëž€ì˜ìžìœ ë‚ ê°œ | O6: p | P6: Bronze | Q6: 21 | R6: 26 | S6: 507 | T6: 2014-09-12 | U6: 5 days | V6: 2014-09-21T06:07:14 | W6: 3450127-1|2107706-1|446809-1 | X6: 0 | Y6: 6
A7: 615261 | B7: kr | C7: 2 | D7: å°è‘‰å­ | E7: z | F7: 387829 | G7: kr | H7: 2 | I7: Houston | J7: r | K7: 92185 | L7: kr | M7: 2 | N7: MayDayGun | O7: t | P7: Bronze | Q7: 59 | R7: 58 | S7: 504 | T7: 2014-07-22 | U7: 2 days | V7: 2014-09-21T06:07:14 | W7: 615261-2|387829-2|92185-2 | X7: 0 | Y7: 7
A8: 325431 | B8: kr | C8: 2 | D8: yychen | E8: z | F8: 141401 | G8: kr | H8: 2 | I8: Jerry | J8: t | K8: 91030 | L8: kr | M8: 2 | N8: ReDrAy | O8: t | P8: Bronze | Q8: 28 | R8: 33 | S8: 500 | T8: 2014-07-08 | U8: 18 hours | V8: 2014-09-21T06:07:14 | W8: 325431-2|141401-2|91030-2 | X8: 0 | Y8: 8
A9: 1358546 | B9: kr | C9: 2 | D9: Azrael | E9: p | F9: 550789 | G9: kr | H9: 2 | I9: ç¶²å­ | J9: t | K9: 116254 | L9: kr | M9: 2 | N9: è‰¾å°” | O9: p | P9: Bronze | Q9: 31 | R9: 45 | S9: 485 | T9: 2014-08-21 | U9: 16 minutes | V9: 2014-09-21T06:07:14 | W9: 1358546-2|550789-2|116254-2 | X9: 0 | Y9: 9
A10: 1170439 | B10: kr | C10: 1 | D10: SuperMan | E10: r | F10: 1060432 | G10: kr | H10: 1 | I10: ë¹™êµ¬ | J10: r | K10: 686394 | L10: kr | M10: 1 | N10: ìžë¹„ì—ë¥´ | O10: t | P10: Bronze | Q10: 38 | R10: 45 | S10: 479 | T10: 2014-08-27 | U10: 6 days | V10: 2014-09-21T06:07:14 | W10: 1170439-1|1060432-1|686394-1 | X10: 0 | Y10: 10
A11: 775000 | B11: kr | C11: 2 | D11: AllenChen | E11: t | F11: 769884 | G11: kr | H11: 2 | I11: breaksoul | J11: t | K11: 691255 | L11: kr | M11: 2 | N11: White | O11: z | P11: Bronze | Q11: 17 | R11: 11 | S11: 478 | T11: 2014-07-24 | U11: 2 days | V11: 2014-09-21T06:07:14 | W11: 775000-2|769884-2|691255-2 | X11: 0 | Y11: 11
A12: 3522696 | B12: kr | C12: 1 | D12: ì• ì •ë‚¨ | E12: z | F12: 3522371 | G12: kr | H12: 1 | I12: ì–¼êµ´ì´ì†ìž„ìˆ˜ | J12: p | K12: 3148394 | L12: kr | M12: 1 | N12: ìš¸íŠ¸ë¼ìº¡ì§± | O12: t | P12: Bronze | Q12: 32 | R12: 31 | S12: 478 | T12: 2014-07-10 | U12: 19 hours | V12: 2014-09-21T06:07:14 | W12: 3522696-1|3522371-1|3148394-1 | X12: 0 | Y12: 12
A13: 4529388 | B13: kr | C13: 1 | D13: ê³ ìŠ¤í‹°ë¸Œìž¡ìŠ¤ | E13: t | F13: 636729 | G13: kr | H13: 1 | I13: êµì›êµ¬ëª¬ | J13: t | K13: 144083 | L13: kr | M13: 1 | N13: ì™¸ìƒí›„í†µì¦ | O13: r | P13: Bronze | Q13: 45 | R13: 56 | S13: 471 | T13: 2014-07-14 | U13: 7 days | V13: 2014-09-21T06:07:14 | W13: 4529388-1|636729-1|144083-1 | X13: 0 | Y13: 13
A14: 1425288 | B14: kr | C14: 1 | D14: ë˜ì¹˜í‚¹ | E14: p | F14: 1339071 | G14: kr | H14: 1 | I14: ê°•íšŒìž¥ë‹˜ | J14: p | K14: 1254823 | L14: kr | M14: 1 | N14: ì €í†µí™©ì œ | O14: t | P14: Bronze | Q14: 25 | R14: 25 | S14: 462 | T14: 2014-08-05 | U14: 3 days | V14: 2014-09-21T06:07:14 | W14: 1425288-1|1339071-1|1254823-1 | X14: 0 | Y14: 14
A15: 979932 | B15: kr | C15: 1 | D15: ë¼ì„¼ì¹¸ | E15: p | F15: 239351 | G15: kr | H15: 1 | I15: ê³ ë„ë¦¬ | J15: p | K15: 137311 | L15: kr | M15: 1 | N15: APPLE | O15: p | P15: Bronze | Q15: 22 | R15: 30 | S15: 452 | T15: 2014-08-06 | U15: 10 days | V15: 2014-09-21T06:07:14 | W15: 979932-1|239351-1|137311-1 | X15: 0 | Y15: 15
A16: 4431250 | B16: kr | C16: 1 | D16: jsangel | E16: p | F16: 4260944 | G16: kr | H16: 1 | I16: StevePark | J16: z | K16: 667563 | L16: kr | M16: 1 | N16: Emporer | O16: p | P16: Bronze | Q16: 39 | R16: 49 | S16: 451 | T16: 2014-07-07 | U16: 3 days | V16: 2014-09-21T06:07:14 | W16: 4431250-1|4260944-1|667563-1 | X16: 0 | Y16: 16
A17: 619496 | B17: kr | C17: 2 | D17: TCH | E17: t | F17: 277684 | G17: kr | H17: 2 | I17: gbeansoup | J17: z | K17: 32862 | L17: kr | M17: 2 | N17: PZST | O17: r | P17: Bronze | Q17: 30 | R17: 40 | S17: 447 | T17: 2014-07-06 | U17: 13 days | V17: 2014-09-21T06:07:14 | W17: 619496-2|277684-2|32862-2 | X17: 0 | Y17: 17
A18: 1215542 | B18: kr | C18: 1 | D18: ì§í—¬í¼íŠ¸ | E18: p | F18: 1184394 | G18: kr | H18: 1 | I18: ë“œì™€ì´íŠ¸ìŠˆë¥´íŠ¸ | J18: z | K18: 84224 | L18: kr | M18: 1 | N18: ë§ˆì´í´ìŠ¤ìº‡ | O18: t | P18: Bronze | Q18: 25 | R18: 26 | S18: 440 | T18: 2014-07-18 | U18: 14 days | V18: 2014-09-21T06:07:14 | W18: 1215542-1|1184394-1|84224-1 | X18: 0 | Y18: 18
A19: 2424979 | B19: kr | C19: 1 | D19: ë‚´ë ë ì—ìº”ë”” | E19: r | F19: 2026234 | G19: kr | H19: 1 | I19: ë¹Œê²Œì´ì¸ | J19: z | K19: 1285807 | L19: kr | M19: 1 | N19: ëŒ€ë¶€ë‹˜ | O19: r | P19: Bronze | Q19: 14 | R19: 14 | S19: 435 | T19: 2014-08-09 | U19: 11 days | V19: 2014-09-21T06:07:14 | W19: 2424979-1|2026234-1|1285807-1 | X19: 0 | Y19: 19
A20: 3366241 | B20: kr | C20: 1 | D20: xkrrnwkd | E20: p | F20: 2909772 | G20: kr | H20: 1 | I20: ì”¨ë³´ | J20: t | K20: 263764 | L20: kr | M20: 1 | N20: Toad | O20: t | P20: Bronze | Q20: 16 | R20: 18 | S20: 433 | T20: 2014-08-31 | U20: 11 days | V20: 2014-09-21T06:07:14 | W20: 3366241-1|2909772-1|263764-1 | X20: 0 | Y20: 20
A21: 4395879 | B21: kr | C21: 1 | D21: ê±¸ì–´ì„œí•˜ëŠ˜ê¹Œì§€ | E21: p | F21: 4029883 | G21: kr | H21: 1 | I21: ì²œìž¬ëŸ¬ì‰­ | J21: p | K21: 4028623 | L21: kr | M21: 1 | N21: ì•ˆë³‘ì„± | O21: z | P21: Bronze | Q21: 15 | R21: 14 | S21: 432 | T21: 2014-08-20 | U21: 1 days | V21: 2014-09-21T06:07:14 | W21: 4395879-1|4029883-1|4028623-1 | X21: 0 | Y21: 21
A22: 4629980 | B22: kr | C22: 1 | D22: eogmlrla | E22: t | F22: 3085448 | G22: kr | H22: 1 | I22: ì–‘ë”± | J22: z | K22: 1808662 | L22: kr | M22: 1 | N22: ë‹¤ë¤ë²¼ | O22: p | P22: Bronze | Q22: 18 | R22: 21 | S22: 432 | T22: 2014-07-23 | U22: 11 days | V22: 2014-09-21T06:07:14 | W22: 4629980-1|3085448-1|1808662-1 | X22: 0 | Y22: 22
A23: 4492673 | B23: kr | C23: 1 | D23: Dream | E23: t | F23: 3345484 | G23: kr | H23: 1 | I23: ë³‘ì‹ ë“¤ë§Œë§Œë‚˜ | J23: r | K23: 2166425 | L23: kr | M23: 1 | N23: lueny | O23: p | P23: Bronze | Q23: 20 | R23: 21 | S23: 430 | T23: 2014-07-12 | U23: 15 days | V23: 2014-09-21T06:07:14 | W23: 4492673-1|3345484-1|2166425-1 | X23: 0 | Y23: 23
A24: 791308 | B24: kr | C24: 1 | D24: ì°ì°ì° | E24: r | F24: 164879 | G24: kr | H24: 1 | I24: Neo | J24: r | K24: 76646 | L24: kr | M24: 1 | N24: í—‰í—‰í—‰ | O24: r | P24: Bronze | Q24: 38 | R24: 42 | S24: 427 | T24: 2014-07-16 | U24: 26 days | V24: 2014-09-21T06:07:14 | W24: 791308-1|164879-1|76646-1 | X24: 0 | Y24: 24
A25: 4256025 | B25: kr | C25: 1 | D25: ë ˆì´ì˜¨ì§€ | E25: p | F25: 327796 | G25: kr | H25: 1 | I25: Siz | J25: r | K25: 180669 | L25: kr | M25: 1 | N25: King | O25: p | P25: Bronze | Q25: 31 | R25: 36 | S25: 425 | T25: 2014-07-12 | U25: 21 days | V25: 2014-09-21T06:07:14 | W25: 4256025-1|327796-1|180669-1 | X25: 0 | Y25: 25
A26: 3385018 | B26: kr | C26: 1 | D26: ì¼ê¾¼ì²­ë…„ | E26: t | F26: 2358756 | G26: kr | H26: 1 | I26: ê·¸ëŠ˜ë‚ ê°œ | J26: t | K26: 2096488 | L26: kr | M26: 1 | N26: ì‹ ì¸ìœ ì € | O26: p | P26: Bronze | Q26: 24 | R26: 41 | S26: 423 | T26: 2014-09-03 | U26: 18 hours | V26: 2014-09-21T06:07:14 | W26: 3385018-1|2358756-1|2096488-1 | X26: 0 | Y26: 26
A27: 4687240 | B27: kr | C27: 1 | D27: ê°œë¯¼ìš°ì£½ì–´ë¼ | E27: p | F27: 4687074 | G27: kr | H27: 1 | I27: ê°œìš°ì„±ë˜¥ê¼¬ | J27: z | K27: 137095 | L27: kr | M27: 1 | N27: ZARD | O27: t | P27: Bronze | Q27: 28 | R27: 43 | S27: 418 | T27: 2014-09-10 | U27: 2 days | V27: 2014-09-21T06:07:14 | W27: 4687240-1|4687074-1|137095-1 | X27: 0 | Y27: 27
A28: 2298213 | B28: kr | C28: 1 | D28: ì²­ë©´ìˆ˜ | E28: p | F28: 2172314 | G28: kr | H28: 1 | I28: ê³°ì¥ | J28: r | K28: 868034 | L28: kr | M28: 1 | N28: ë‚ ì•„ë¼ìŠˆì¦ˆ | O28: t | P28: Bronze | Q28: 15 | R28: 16 | S28: 400 | T28: 2014-07-18 | U28: 13 days | V28: 2014-09-21T06:07:14 | W28: 2298213-1|2172314-1|868034-1 | X28: 0 | Y28: 28
A29: 3946436 | B29: kr | C29: 1 | D29: í˜ˆê³µìž | E29: p | F29: 1910823 | G29: kr | H29: 1 | I29: JinHeeNoWiD | J29: t | K29: 364063 | L29: kr | M29: 1 | N29: Take | O29: z | P29: Bronze | Q29: 14 | R29: 8 | S29: 392 | T29: 2014-07-11 | U29: 23 days | V29: 2014-09-21T06:07:14 | W29: 3946436-1|1910823-1|364063-1 | X29: 0 | Y29: 29
A30: 979202 | B30: kr | C30: 2 | D30: Rubo | E30: p | F30: 133398 | G30: kr | H30: 2 | I30: CFG | J30: z | K30: 131027 | L30: kr | M30: 2 | N30: CatCfrco | O30: p | P30: Bronze | Q30: 21 | R30: 30 | S30: 392 | T30: 2014-07-18 | U30: 7 days | V30: 2014-09-21T06:07:14 | W30: 979202-2|133398-2|131027-2 | X30: 0 | Y30: 30
A31: 4294165 | B31: kr | C31: 1 | D31: ì—ë°˜ | E31: t | F31: 3060139 | G31: kr | H31: 1 | I31: ë‹¤ì´ë¡œê·¸ | J31: t | K31: 1650102 | L31: kr | M31: 1 | N31: ì§€ëž­ì´ | O31: p | P31: Bronze | Q31: 22 | R31: 26 | S31: 388 | T31: 2014-07-08 | U31: 14 days | V31: 2014-09-21T06:07:14 | W31: 4294165-1|3060139-1|1650102-1 | X31: 0 | Y31: 31
A32: 4385494 | B32: kr | C32: 1 | D32: ë™êµ´íŠ¸ë¡¤ | E32: p | F32: 2974519 | G32: kr | H32: 1 | I32: íˆ¬ì£¼ëˆ„ | J32: p | K32: 226527 | L32: kr | M32: 1 | N32: ì ‘ì†ì²´í¬ì¤‘ | O32: t | P32: Bronze | Q32: 14 | R32: 5 | S32: 382 | T32: 2014-07-24 | U32: 26 days | V32: 2014-09-21T06:07:14 | W32: 4385494-1|2974519-1|226527-1 | X32: 0 | Y32: 32
A33: 4569422 | B33: kr | C33: 1 | D33: ì¼€ë¤¼ | E33: z | F33: 4550966 | G33: kr | H33: 1 | I33: ë¡œì´ë¡œì´ë¡œì´ | J33: p | K33: 2168495 | L33: kr | M33: 1 | N33: acidhead | O33: p | P33: Bronze | Q33: 18 | R33: 19 | S33: 380 | T33: 2014-08-02 | U33: 20 days | V33: 2014-09-21T06:07:14 | W33: 4569422-1|4550966-1|2168495-1 | X33: 0 | Y33: 33
A34: 4689057 | B34: kr | C34: 1 | D34: kimlovely | E34: z | F34: 3281982 | G34: kr | H34: 1 | I34: í¡í˜ˆí† ë¼ | J34: p | K34: 687411 | L34: kr | M34: 1 | N34: ë‚´ê°€ë°”ë‹¥ | O34: p | P34: Bronze | Q34: 21 | R34: 9 | S34: 379 | T34: 2014-07-29 | U34: 17 hours | V34: 2014-09-21T06:07:14 | W34: 4689057-1|3281982-1|687411-1 | X34: 0 | Y34: 34
A35: 4685272 | B35: kr | C35: 1 | D35: ì˜¤ì´ìƒìš© | E35: p | F35: 4465564 | G35: kr | H35: 1 | I35: Flash | J35: z | K35: 3950662 | L35: kr | M35: 1 | N35: ì¹ ë°±ì´ì‹­ì¹ | O35: t | P35: Bronze | Q35: 19 | R35: 24 | S35: 378 | T35: 2014-07-12 | U35: 23 days | V35: 2014-09-21T06:07:14 | W35: 4685272-1|4465564-1|3950662-1 | X35: 0 | Y35: 35
A36: 2504996 | B36: kr | C36: 1 | D36: whiteAngel | E36: p | F36: 2178665 | G36: kr | H36: 1 | I36: DarkAngelJin | J36: z | K36: 473204 | L36: kr | M36: 1 | N36: ë§ê°€ì§„ì¸í˜• | O36: t | P36: Bronze | Q36: 16 | R36: 21 | S36: 377 | T36: 2014-08-13 | U36: 26 days | V36: 2014-09-21T06:07:14 | W36: 2504996-1|2178665-1|473204-1 | X36: 0 | Y36: 36
A37: 4653891 | B37: kr | C37: 1 | D37: í•˜ì•…ìž‰ | E37: r | F37: 4360627 | G37: kr | H37: 1 | I37: ë¯¸ë˜¥êµ¬ë¦¬êµ¬ë¦¬ | J37: z | K37: 3995591 | L37: kr | M37: 1 | N37: ì—ë¥´ë¯¸ìŠ¤ | O37: p | P37: Bronze | Q37: 11 | R37: 2 | S37: 376 | T37: 2014-08-29 | U37: 8 days | V37: 2014-09-21T06:07:14 | W37: 4653891-1|4360627-1|3995591-1 | X37: 0 | Y37: 37
A38: 4102773 | B38: kr | C38: 1 | D38: Eastar | E38: t | F38: 1635114 | G38: kr | H38: 1 | I38: ì•„ë¦° | J38: r | K38: 1507077 | L38: kr | M38: 1 | N38: rltkflrj | O38: p | P38: Bronze | Q38: 15 | R38: 17 | S38: 375 | T38: 2014-07-11 | U38: 25 days | V38: 2014-09-21T06:07:14 | W38: 4102773-1|1635114-1|1507077-1 | X38: 0 | Y38: 38
A39: 819452 | B39: kr | C39: 2 | D39: RYA | E39: p | F39: 810133 | G39: kr | H39: 2 | I39: TWDeatX | J39: t | K39: 808938 | L39: kr | M39: 2 | N39: Incertin | O39: p | P39: Bronze | Q39: 32 | R39: 46 | S39: 374 | T39: 2014-08-15 | U39: 17 days | V39: 2014-09-21T06:07:14 | W39: 819452-2|810133-2|808938-2 | X39: 0 | Y39: 39
A40: 1369268 | B40: kr | C40: 2 | D40: JeffHuang | E40: p | F40: 1041180 | G40: kr | H40: 2 | I40: é˜¿è€€ | J40: t | K40: 919356 | L40: kr | M40: 2 | N40: é¾é€¤ç—• | O40: p | P40: Bronze | Q40: 12 | R40: 19 | S40: 370 | T40: 2014-08-26 | U40: 1 days | V40: 2014-09-21T06:07:14 | W40: 1369268-2|1041180-2|919356-2 | X40: 0 | Y40: 40
A41: 3153107 | B41: kr | C41: 1 | D41: sutvin | E41: r | F41: 2027883 | G41: kr | H41: 1 | I41: ìŒë‘¥ì´ê·¼ì„± | J41: t | K41: 262897 | L41: kr | M41: 1 | N41: ë¼ë¼ëŸ¬ëŸ¬ | O41: r | P41: Bronze | Q41: 16 | R41: 32 | S41: 360 | T41: 2014-07-07 | U41: 14 days | V41: 2014-09-21T06:07:14 | W41: 3153107-1|2027883-1|262897-1 | X41: 0 | Y41: 41
A42: 1281154 | B42: kr | C42: 1 | D42: ìº¡í‹´ì‚°íƒ€ | E42: t | F42: 1142574 | G42: kr | H42: 1 | I42: ë¶ˆê³° | J42: p | K42: 173902 | L42: kr | M42: 1 | N42: í‹°ë¦¬ì˜¨ | O42: r | P42: Bronze | Q42: 11 | R42: 14 | S42: 348 | T42: 2014-07-09 | U42: 3 days | V42: 2014-09-21T06:07:14 | W42: 1281154-1|1142574-1|173902-1 | X42: 0 | Y42: 42
A43: 4550966 | B43: kr | C43: 1 | D43: ë¡œì´ë¡œì´ë¡œì´ | E43: p | F43: 2168495 | G43: kr | H43: 1 | I43: acidhead | J43: p | K43: 600175 | L43: kr | M43: 1 | N43: ë„ˆêµ¬ë¦¬ì˜†ì°¨ê¸° | O43: t | P43: Bronze | Q43: 13 | R43: 17 | S43: 348 | T43: 2014-07-26 | U43: 26 days | V43: 2014-09-21T06:07:14 | W43: 4550966-1|2168495-1|600175-1 | X43: 0 | Y43: 43
A44: 4394187 | B44: kr | C44: 1 | D44: head | E44: r | F44: 4321863 | G44: kr | H44: 1 | I44: rush | J44: r | K44: 922546 | L44: kr | M44: 1 | N44: ë˜¥íŒ”ì´ì—¬ì™• | O44: p | P44: Bronze | Q44: 12 | R44: 11 | S44: 346 | T44: 2014-08-07 | U44: 16 days | V44: 2014-09-21T06:07:14 | W44: 4394187-1|4321863-1|922546-1 | X44: 0 | Y44: 44
A45: 344669 | B45: kr | C45: 2 | D45: ä¸ƒä¸ƒ | E45: p | F45: 207687 | G45: kr | H45: 2 | I45: Ted | J45: r | K45: 171552 | L45: kr | M45: 2 | N45: çŸ‡é¢åŠ è²è²“ | O45: p | P45: Bronze | Q45: 11 | R45: 3 | S45: 344 | T45: 2014-07-13 | U45: 32 days | V45: 2014-09-21T06:07:14 | W45: 344669-2|207687-2|171552-2 | X45: 0 | Y45: 45
A46: 4054867 | B46: kr | C46: 1 | D46: kwan | E46: t | F46: 679045 | G46: kr | H46: 1 | I46: Loooo | J46: z | K46: 647004 | L46: kr | M46: 1 | N46: gentleguy | O46: t | P46: Bronze | Q46: 9 | R46: 4 | S46: 344 | T46: 2014-08-19 | U46: 6 hours | V46: 2014-09-21T06:07:14 | W46: 4054867-1|679045-1|647004-1 | X46: 0 | Y46: 46
A47: 2497955 | B47: kr | C47: 1 | D47: ì œë¼ë“œë“€ê±¸ | E47: t | F47: 2092751 | G47: kr | H47: 1 | I47: Elle | J47: p | K47: 1919301 | L47: kr | M47: 1 | N47: qurqe | O47: z | P47: Bronze | Q47: 10 | R47: 4 | S47: 342 | T47: 2014-09-01 | U47: 19 days | V47: 2014-09-21T06:07:14 | W47: 2497955-1|2092751-1|1919301-1 | X47: 0 | Y47: 47
A48: 4137001 | B48: kr | C48: 1 | D48: ìœ ì§„ì§± | E48: p | F48: 3717659 | G48: kr | H48: 1 | I48: ìž¥ìœ ì§„ | J48: p | K48: 1633263 | L48: kr | M48: 1 | N48: ìƒë³´ | O48: z | P48: Bronze | Q48: 18 | R48: 22 | S48: 339 | T48: 2014-08-09 | U48: 26 days | V48: 2014-09-21T06:07:14 | W48: 4137001-1|3717659-1|1633263-1 | X48: 0 | Y48: 48
A49: 3208989 | B49: kr | C49: 1 | D49: ë¶ˆì–´ì‚¬ì „ | E49: z | F49: 1882814 | G49: kr | H49: 1 | I49: í‘¸í£ | J49: p | K49: 1711468 | L49: kr | M49: 1 | N49: í˜¸ë¡¤ë¡œë¡œ | O49: p | P49: Bronze | Q49: 14 | R49: 9 | S49: 337 | T49: 2014-07-13 | U49: 1 days | V49: 2014-09-21T06:07:14 | W49: 3208989-1|1882814-1|1711468-1 | X49: 0 | Y49: 49
A50: 791308 | B50: kr | C50: 1 | D50: ì°ì°ì° | E50: r | F50: 164879 | G50: kr | H50: 1 | I50: Neo | J50: r | K50: 162942 | L50: kr | M50: 1 | N50: í½í½í½ | O50: t | P50: Bronze | Q50: 9 | R50: 23 | S50: 337 | T50: 2014-08-20 | U50: 29 days | V50: 2014-09-21T06:07:14 | W50: 791308-1|164879-1|162942-1 | X50: 0 | Y50: 50
A51: 4636147 | B51: kr | C51: 1 | D51: ì£¼ì›”ë™ | E51: t | F51: 4632160 | G51: kr | H51: 1 | I51: ì£¼ì›”ë™ì™• | J51: p | K51: 4128694 | L51: kr | M51: 1 | N51: joyoungtae | O51: p | P51: Bronze | Q51: 24 | R51: 36 | S51: 335 | T51: 2014-07-17 | U51: 27 days | V51: 2014-09-21T06:07:14 | W51: 4636147-1|4632160-1|4128694-1 | X51: 0 | Y51: 51
A52: 3836469 | B52: kr | C52: 1 | D52: Jintae | E52: r | F52: 1477986 | G52: kr | H52: 1 | I52: ë•…í¬ë³´ì´ | J52: p | K52: 294300 | L52: kr | M52: 1 | N52: ë³„ë¹›ê¸ˆì†ì¿ í¬ë¦¬ | O52: r | P52: Bronze | Q52: 11 | R52: 10 | S52: 334 | T52: 2014-08-17 | U52: 14 days | V52: 2014-09-21T06:07:14 | W52: 3836469-1|1477986-1|294300-1 | X52: 0 | Y52: 52
A53: 2013610 | B53: kr | C53: 1 | D53: Arondight | E53: t | F53: 264387 | G53: kr | H53: 1 | I53: FrostMagic | J53: p | K53: 169570 | L53: kr | M53: 1 | N53: Jason | O53: r | P53: Bronze | Q53: 22 | R53: 33 | S53: 326 | T53: 2014-08-12 | U53: 27 days | V53: 2014-09-21T06:07:14 | W53: 2013610-1|264387-1|169570-1 | X53: 0 | Y53: 53
A54: 2532367 | B54: kr | C54: 1 | D54: ì €ê·¸ | E54: z | F54: 1714322 | G54: kr | H54: 1 | I54: ì„±ëŒ€ì‚¼ì„ ë‚¨ | J54: z | K54: 1597720 | L54: kr | M54: 1 | N54: Playmaster | O54: p | P54: Bronze | Q54: 9 | R54: 1 | S54: 320 | T54: 2014-08-25 | U54: 15 days | V54: 2014-09-21T06:07:14 | W54: 2532367-1|1714322-1|1597720-1 | X54: 0 | Y54: 54
A55: 592304 | B55: kr | C55: 1 | D55: ì¶©ìŒ¤ | E55: r | F55: 420093 | G55: kr | H55: 1 | I55: hwantap | J55: p | K55: 368386 | L55: kr | M55: 1 | N55: ë¹„ì† | O55: z | P55: Bronze | Q55: 11 | R55: 7 | S55: 318 | T55: 2014-07-19 | U55: 1 days | V55: 2014-09-21T06:07:14 | W55: 592304-1|420093-1|368386-1 | X55: 0 | Y55: 55
A56: 1848675 | B56: kr | C56: 1 | D56: ë„¤ìŠ¤ | E56: t | F56: 1748591 | G56: kr | H56: 1 | I56: mlucifer | J56: p | K56: 189469 | L56: kr | M56: 1 | N56: íŽ˜ì´ìŠ¤ë§¨ | O56: p | P56: Bronze | Q56: 10 | R56: 2 | S56: 310 | T56: 2014-08-10 | U56: 14 days | V56: 2014-09-21T06:07:14 | W56: 1848675-1|1748591-1|189469-1 | X56: 0 | Y56: 56
A57: 4725728 | B57: kr | C57: 1 | D57: ronaldo | E57: z | F57: 3377693 | G57: kr | H57: 1 | I57: í˜•ë¥ ê³ ì¶” | J57: r | K57: 2547460 | L57: kr | M57: 1 | N57: Melody | O57: r | P57: Bronze | Q57: 9 | R57: 9 | S57: 310 | T57: 2014-09-02 | U57: 11 days | V57: 2014-09-21T06:07:14 | W57: 4725728-1|3377693-1|2547460-1 | X57: 0 | Y57: 57
A58: 3586122 | B58: kr | C58: 1 | D58: Mints | E58: z | F58: 3205857 | G58: kr | H58: 1 | I58: ë„ˆêµ´ë„ˆêµ´ | J58: t | K58: 424908 | L58: kr | M58: 1 | N58: cndgus | O58: r | P58: Bronze | Q58: 9 | R58: 6 | S58: 308 | T58: 2014-08-16 | U58: 10 days | V58: 2014-09-21T06:07:14 | W58: 3586122-1|3205857-1|424908-1 | X58: 0 | Y58: 58
A59: 345733 | B59: kr | C59: 2 | D59: MaDRoLL | E59: r | F59: 243462 | G59: kr | H59: 2 | I59: MaDKYO | J59: r | K59: 155761 | L59: kr | M59: 2 | N59: MaDevil | O59: r | P59: Bronze | Q59: 10 | R59: 7 | S59: 308 | T59: 2014-08-05 | U59: 25 days | V59: 2014-09-21T06:07:14 | W59: 345733-2|243462-2|155761-2 | X59: 0 | Y59: 59
A60: 2823259 | B60: kr | C60: 1 | D60: ì–´ë””ì•¼ | E60: p | F60: 2822782 | G60: kr | H60: 1 | I60: Pacemit | J60: p | K60: 2756439 | L60: kr | M60: 1 | N60: dragonzone | O60: p | P60: Bronze | Q60: 13 | R60: 15 | S60: 308 | T60: 2014-08-15 | U60: 36 days | V60: 2014-09-21T06:07:14 | W60: 2823259-1|2822782-1|2756439-1 | X60: 0 | Y60: 60
A61: 3362003 | B61: kr | C61: 1 | D61: ìŠ¤íƒ€ì—ëŒ€í•œì—´ì • | E61: p | F61: 1974414 | G61: kr | H61: 1 | I61: ë°”ì¿ | J61: t | K61: 1972960 | L61: kr | M61: 1 | N61: Fivlsm | O61: z | P61: Bronze | Q61: 9 | R61: 8 | S61: 306 | T61: 2014-07-15 | U61: 46 days | V61: 2014-09-21T06:07:14 | W61: 3362003-1|1974414-1|1972960-1 | X61: 0 | Y61: 61
A62: 4634933 | B62: kr | C62: 1 | D62: ë‚ ì”¬í•œí•˜ë§ˆ | E62: z | F62: 3849938 | G62: kr | H62: 1 | I62: ì§„ì´ | J62: r | K62: 548068 | L62: kr | M62: 1 | N62: ì°¸ì¹˜ë‹Œìž | O62: z | P62: Bronze | Q62: 8 | R62: 2 | S62: 304 | T62: 2014-08-15 | U62: 14 days | V62: 2014-09-21T06:07:14 | W62: 4634933-1|3849938-1|548068-1 | X62: 0 | Y62: 62
A63: 3803019 | B63: kr | C63: 1 | D63: íƒœë°• | E63: z | F63: 2872988 | G63: kr | H63: 1 | I63: ì¢ì¤€ | J63: t | K63: 1940259 | L63: kr | M63: 1 | N63: ê·œëŒ• | O63: t | P63: Bronze | Q63: 10 | R63: 11 | S63: 297 | T63: 2014-07-16 | U63: 45 days | V63: 2014-09-21T06:07:14 | W63: 3803019-1|2872988-1|1940259-1 | X63: 0 | Y63: 63
A64: 2221740 | B64: kr | C64: 1 | D64: acemmx | E64: p | F64: 573922 | G64: kr | H64: 1 | I64: ë•ë§Œì´ | J64: z | K64: 197669 | L64: kr | M64: 1 | N64: ì‹œí—˜ì§€ëŠ”ë•”ê° | O64: z | P64: Bronze | Q64: 9 | R64: 7 | S64: 296 | T64: 2014-07-26 | U64: 35 days | V64: 2014-09-21T06:07:14 | W64: 2221740-1|573922-1|197669-1 | X64: 0 | Y64: 64
A65: 609204 | B65: kr | C65: 2 | D65: ç­å‚‘æ˜Ž | E65: p | F65: 414582 | G65: kr | H65: 2 | I65: å‡œå†¬ | J65: p | K65: 97839 | L65: kr | M65: 2 | N65: ä¸€å­¤å³°ä¸€ | O65: z | P65: Bronze | Q65: 10 | R65: 17 | S65: 296 | T65: 2014-07-12 | U65: 7 days | V65: 2014-09-21T06:07:14 | W65: 609204-2|414582-2|97839-2 | X65: 0 | Y65: 65
A66: 1336164 | B66: kr | C66: 2 | D66: IIIIIIIIIIII | E66: t | F66: 1334644 | G66: kr | H66: 2 | I66: æµæ°´ | J66: z | K66: 4251394 | L66: kr | M66: 1 | N66: ê¸°ë¦° | O66: r | P66: Bronze | Q66: 25 | R66: 34 | S66: 293 | T66: 2014-07-08 | U66: 38 days | V66: 2014-09-21T06:07:14 | W66: 1336164-2|1334644-2|4251394-1 | X66: 0 | Y66: 66
A67: 1870321 | B67: kr | C67: 1 | D67: ë¹ ì¶©ë² | E67: r | F67: 1758102 | G67: kr | H67: 1 | I67: í…Œëž€ëŒ€ë§ˆì™• | J67: t | K67: 669917 | L67: kr | M67: 1 | N67: í˜¸ì´ë°” | O67: z | P67: Bronze | Q67: 9 | R67: 6 | S67: 292 | T67: 2014-09-09 | U67: 11 days | V67: 2014-09-21T06:07:14 | W67: 1870321-1|1758102-1|669917-1 | X67: 0 | Y67: 67
A68: 4558688 | B68: kr | C68: 1 | D68: UTLfirst | E68: p | F68: 4488959 | G68: kr | H68: 1 | I68: azisai | J68: t | K68: 4386259 | L68: kr | M68: 1 | N68: UtopianF | O68: z | P68: Bronze | Q68: 7 | R68: 7 | S68: 292 | T68: 2014-09-09 | U68: 1 days | V68: 2014-09-21T06:07:14 | W68: 4558688-1|4488959-1|4386259-1 | X68: 0 | Y68: 68
A69: 2677897 | B69: kr | C69: 1 | D69: Altitude | E69: t | F69: 2671026 | G69: kr | H69: 1 | I69: ë¥´ë„¤ìƒìŠ¤ | J69: z | K69: 101590 | L69: kr | M69: 1 | N69: ì˜¤ë Œì§€í”¼ì‹œë°© | O69: p | P69: Bronze | Q69: 9 | R69: 12 | S69: 290 | T69: 2014-07-16 | U69: 45 days | V69: 2014-09-21T06:07:14 | W69: 2677897-1|2671026-1|101590-1 | X69: 0 | Y69: 69
A70: 4206045 | B70: kr | C70: 1 | D70: youna | E70: z | F70: 2574575 | G70: kr | H70: 1 | I70: JotJoongDing | J70: p | K70: 1682535 | L70: kr | M70: 1 | N70: ì˜ê°ì„ë‹¬ë¼ | O70: r | P70: Bronze | Q70: 9 | R70: 1 | S70: 284 | T70: 2014-07-31 | U70: 49 days | V70: 2014-09-21T06:07:14 | W70: 4206045-1|2574575-1|1682535-1 | X70: 0 | Y70: 70
A71: 1037201 | B71: kr | C71: 2 | D71: ALEX | E71: z | F71: 1004760 | G71: kr | H71: 2 | I71: zliang | J71: z | K71: 398301 | L71: kr | M71: 2 | N71: é˜¿æ¦® | O71: p | P71: Bronze | Q71: 9 | R71: 7 | S71: 284 | T71: 2014-09-05 | U71: 21 hours | V71: 2014-09-21T06:07:14 | W71: 1037201-2|1004760-2|398301-2 | X71: 0 | Y71: 71
A72: 2030531 | B72: kr | C72: 1 | D72: íŒí”¼ë¦°í | E72: p | F72: 1503194 | G72: kr | H72: 1 | I72: ì§­ìª¼ë¦„í•´ | J72: p | K72: 399150 | L72: kr | M72: 1 | N72: ê²½ê¸°ë„ì§ˆëŸ¿ | O72: t | P72: Bronze | Q72: 9 | R72: 9 | S72: 284 | T72: 2014-07-26 | U72: 22 hours | V72: 2014-09-21T06:07:14 | W72: 2030531-1|1503194-1|399150-1 | X72: 0 | Y72: 72
A73: 627160 | B73: kr | C73: 1 | D73: ì´ìƒí•´ì”¨ | E73: t | F73: 338740 | G73: kr | H73: 1 | I73: ê¼¬ë¶€ê¸° | J73: z | K73: 194726 | L73: kr | M73: 1 | N73: íŒŒì´ë¦¬ | O73: p | P73: Bronze | Q73: 10 | R73: 6 | S73: 282 | T73: 2014-09-03 | U73: 3 hours | V73: 2014-09-21T06:07:14 | W73: 627160-1|338740-1|194726-1 | X73: 0 | Y73: 73
A74: 4660916 | B74: kr | C74: 1 | D74: ì•„ëª°ë¼ | E74: p | F74: 1955447 | G74: kr | H74: 1 | I74: dnm | J74: p | K74: 332435 | L74: kr | M74: 1 | N74: Goodboy | O74: z | P74: Bronze | Q74: 10 | R74: 9 | S74: 282 | T74: 2014-07-19 | U74: 1 days | V74: 2014-09-21T06:07:14 | W74: 4660916-1|1955447-1|332435-1 | X74: 0 | Y74: 74
A75: 3857230 | B75: kr | C75: 1 | D75: Takuma | E75: p | F75: 1108375 | G75: kr | H75: 1 | I75: ë ˆì´ë„ˆì§ | J75: r | K75: 1075230 | L75: kr | M75: 1 | N75: kooz | O75: p | P75: Bronze | Q75: 9 | R75: 9 | S75: 282 | T75: 2014-09-05 | U75: 1 days | V75: 2014-09-21T06:07:14 | W75: 3857230-1|1108375-1|1075230-1 | X75: 0 | Y75: 75
A76: 2945164 | B76: kr | C76: 1 | D76: ì‹œì•¼ë‚˜ | E76: t | F76: 2694735 | G76: kr | H76: 1 | I76: ìŠˆìš´ | J76: z | K76: 2589373 | L76: kr | M76: 1 | N76: ê³ ë¼ | O76: p | P76: Bronze | Q76: 27 | R76: 29 | S76: 282 | T76: 2014-07-17 | U76: 46 days | V76: 2014-09-21T06:07:14 | W76: 2945164-1|2694735-1|2589373-1 | X76: 0 | Y76: 76
A77: 4672896 | B77: kr | C77: 1 | D77: ì´ì¤‘ì‚¬ | E77: p | F77: 4664076 | G77: kr | H77: 1 | I77: ë©”ì´ë“œíƒ‘ | J77: z | K77: 4662817 | L77: kr | M77: 1 | N77: ëª…í’ˆì„±ê¸° | O77: p | P77: Bronze | Q77: 19 | R77: 19 | S77: 281 | T77: 2014-07-22 | U77: 32 days | V77: 2014-09-21T06:07:14 | W77: 4672896-1|4664076-1|4662817-1 | X77: 0 | Y77: 77
A78: 4364342 | B78: kr | C78: 1 | D78: innnovation | E78: p | F78: 4346756 | G78: kr | H78: 1 | I78: SpecialJH | J78: t | K78: 1883978 | L78: kr | M78: 1 | N78: í—Œí„°ì˜¤ë Œì§€ | O78: r | P78: Bronze | Q78: 9 | R78: 6 | S78: 280 | T78: 2014-07-19 | U78: 14 days | V78: 2014-09-21T06:07:14 | W78: 4364342-1|4346756-1|1883978-1 | X78: 0 | Y78: 78
A79: 1372766 | B79: kr | C79: 1 | D79: ì•Œì²œ | E79: z | F79: 736550 | G79: kr | H79: 1 | I79: KIllERBlACK | J79: t | K79: 645372 | L79: kr | M79: 1 | N79: íƒ€ì´ê±°ì˜¤ë‚˜ë¯¸ | O79: z | P79: Bronze | Q79: 8 | R79: 1 | S79: 278 | T79: 2014-09-08 | U79: 12 days | V79: 2014-09-21T06:07:14 | W79: 1372766-1|736550-1|645372-1 | X79: 0 | Y79: 79
A80: 4332519 | B80: kr | C80: 1 | D80: ë“„ì„œì• ë¹„ | E80: p | F80: 4315195 | G80: kr | H80: 1 | I80: ë°œê´‘í•˜ë…¸ | J80: p | K80: 762126 | L80: kr | M80: 1 | N80: ë¹ ë£¨ | O80: z | P80: Bronze | Q80: 9 | R80: 6 | S80: 278 | T80: 2014-07-29 | U80: 16 days | V80: 2014-09-21T06:07:14 | W80: 4332519-1|4315195-1|762126-1 | X80: 0 | Y80: 80
A81: 848194 | B81: kr | C81: 2 | D81: Fomula | E81: z | F81: 681228 | G81: kr | H81: 2 | I81: Dante | J81: p | K81: 77135 | L81: kr | M81: 2 | N81: Reinhard | O81: t | P81: Bronze | Q81: 9 | R81: 8 | S81: 278 | T81: 2014-08-30 | U81: 22 days | V81: 2014-09-21T06:07:14 | W81: 848194-2|681228-2|77135-2 | X81: 0 | Y81: 81
A82: 2566784 | B82: kr | C82: 1 | D82: eodhkdwkawkf | E82: p | F82: 2224939 | G82: kr | H82: 1 | I82: whyjay | J82: z | K82: 835065 | L82: kr | M82: 1 | N82: someday | O82: t | P82: Bronze | Q82: 10 | R82: 11 | S82: 278 | T82: 2014-07-31 | U82: 16 days | V82: 2014-09-21T06:07:14 | W82: 2566784-1|2224939-1|835065-1 | X82: 0 | Y82: 82
A83: 4612943 | B83: kr | C83: 1 | D83: í—Œí„°ìž„ | E83: t | F83: 4611509 | G83: kr | H83: 1 | I83: IIIllllIII | J83: z | K83: 4611189 | L83: kr | M83: 1 | N83: IIIlllIIIlll | O83: p | P83: Bronze | Q83: 10 | R83: 5 | S83: 276 | T83: 2014-08-28 | U83: 23 days | V83: 2014-09-21T06:07:14 | W83: 4612943-1|4611509-1|4611189-1 | X83: 0 | Y83: 83
A84: 2904125 | B84: kr | C84: 1 | D84: ê¹ì¶© | E84: p | F84: 2889788 | G84: kr | H84: 1 | I84: í–¥ê¸‹í•œì•„ë¡œë§ˆ | J84: t | K84: 2859513 | L84: kr | M84: 1 | N84: KILLYOU | O84: p | P84: Bronze | Q84: 24 | R84: 32 | S84: 276 | T84: 2014-08-10 | U84: 34 days | V84: 2014-09-21T06:07:14 | W84: 2904125-1|2889788-1|2859513-1 | X84: 0 | Y84: 84
A85: 756868 | B85: kr | C85: 2 | D85: sandou | E85: p | F85: 488327 | G85: kr | H85: 2 | I85: é¹½å·´å“¥ | J85: z | K85: 59435 | L85: kr | M85: 2 | N85: å–¬å°¼ | O85: p | P85: Bronze | Q85: 8 | R85: 2 | S85: 274 | T85: 2014-07-22 | U85: 2 hours | V85: 2014-09-21T06:07:14 | W85: 756868-2|488327-2|59435-2 | X85: 0 | Y85: 85
A86: 4198092 | B86: kr | C86: 1 | D86: Mtale | E86: z | F86: 3522066 | G86: kr | H86: 1 | I86: Daniel | J86: t | K86: 1053254 | L86: kr | M86: 1 | N86: Rpoint | O86: p | P86: Bronze | Q86: 9 | R86: 6 | S86: 274 | T86: 2014-09-05 | U86: 21 hours | V86: 2014-09-21T06:07:14 | W86: 4198092-1|3522066-1|1053254-1 | X86: 0 | Y86: 86
A87: 4186295 | B87: kr | C87: 1 | D87: cpeter | E87: p | F87: 2948063 | G87: kr | H87: 1 | I87: kaprea | J87: t | K87: 378590 | L87: kr | M87: 1 | N87: í•œêµ­í˜¸ëž‘ì´ | O87: r | P87: Bronze | Q87: 15 | R87: 14 | S87: 274 | T87: 2014-07-26 | U87: 44 days | V87: 2014-09-21T06:07:14 | W87: 4186295-1|2948063-1|378590-1 | X87: 0 | Y87: 87
A88: 905334 | B88: kr | C88: 2 | D88: å°æœˆä¸¸è™Ÿ | E88: z | F88: 891079 | G88: kr | H88: 2 | I88: JingGeSmida | J88: z | K88: 873581 | L88: kr | M88: 2 | N88: Terry | O88: t | P88: Bronze | Q88: 9 | R88: 9 | S88: 272 | T88: 2014-08-09 | U88: 38 days | V88: 2014-09-21T06:07:14 | W88: 905334-2|891079-2|873581-2 | X88: 0 | Y88: 88
A89: 609204 | B89: kr | C89: 2 | D89: ç­å‚‘æ˜Ž | E89: p | F89: 448769 | G89: kr | H89: 2 | I89: CoreExtreme | J89: t | K89: 414582 | L89: kr | M89: 2 | N89: å‡œå†¬ | O89: p | P89: Bronze | Q89: 10 | R89: 15 | S89: 271 | T89: 2014-07-11 | U89: 13 days | V89: 2014-09-21T06:07:14 | W89: 609204-2|448769-2|414582-2 | X89: 0 | Y89: 89
A90: 2351864 | B90: kr | C90: 1 | D90: ê¹€í•œê¸° | E90: r | F90: 2096419 | G90: kr | H90: 1 | I90: ë‘ì‚°ë² ì–´ìŠ¤ | J90: r | K90: 1320365 | L90: kr | M90: 1 | N90: shadow | O90: z | P90: Bronze | Q90: 8 | R90: 5 | S90: 270 | T90: 2014-09-09 | U90: 12 days | V90: 2014-09-21T06:07:14 | W90: 2351864-1|2096419-1|1320365-1 | X90: 0 | Y90: 90
A91: 2584494 | B91: kr | C91: 1 | D91: gara | E91: p | F91: 2516311 | G91: kr | H91: 1 | I91: SmartMICKEY | J91: t | K91: 1448338 | L91: kr | M91: 1 | N91: ì˜¤ëŠ˜ì²˜ìŒ | O91: t | P91: Bronze | Q91: 16 | R91: 11 | S91: 270 | T91: 2014-07-17 | U91: 52 days | V91: 2014-09-21T06:07:14 | W91: 2584494-1|2516311-1|1448338-1 | X91: 0 | Y91: 91
A92: 3521425 | B92: kr | C92: 1 | D92: ë§ˆíƒ„ì˜ì‚¬ìˆ˜ | E92: z | F92: 2500139 | G92: kr | H92: 1 | I92: ë³´ë…¸ìƒ¿ë…€ë‹ˆ | J92: p | K92: 1965040 | L92: kr | M92: 1 | N92: Mercury | O92: r | P92: Bronze | Q92: 11 | R92: 18 | S92: 268 | T92: 2014-08-08 | U92: 14 days | V92: 2014-09-21T06:07:14 | W92: 3521425-1|2500139-1|1965040-1 | X92: 0 | Y92: 92
A93: 4145421 | B93: kr | C93: 1 | D93: ê¸ˆë³´íŠ¸íŽ˜ | E93: r | F93: 1502975 | G93: kr | H93: 1 | I93: ë§ˆëª¨ë£¨ | J93: t | K93: 811462 | L93: kr | M93: 1 | N93: ë…ì‚°ì„ ë‚¨ì„ ë…€ | O93: p | P93: Bronze | Q93: 11 | R93: 10 | S93: 267 | T93: 2014-08-07 | U93: 44 days | V93: 2014-09-21T06:07:14 | W93: 4145421-1|1502975-1|811462-1 | X93: 0 | Y93: 93
A94: 1361406 | B94: kr | C94: 1 | D94: blueiris | E94: r | F94: 1093048 | G94: kr | H94: 1 | I94: ìš°ë¦¬ì§€ê¸ˆë§Œë‚˜ | J94: r | K94: 697025 | L94: kr | M94: 1 | N94: í•˜ë£¨ë¹¨ë¦¬ | O94: r | P94: Bronze | Q94: 8 | R94: 5 | S94: 266 | T94: 2014-07-19 | U94: 33 days | V94: 2014-09-21T06:07:14 | W94: 1361406-1|1093048-1|697025-1 | X94: 0 | Y94: 94
A95: 3950241 | B95: kr | C95: 1 | D95: ì‘¤ë¯¼ì²­ | E95: r | F95: 1088540 | G95: kr | H95: 1 | I95: ë ˆì´ë‚˜ìŠ¤ | J95: r | K95: 804952 | L95: kr | M95: 1 | N95: ë„ˆì˜í˜• | O95: r | P95: Bronze | Q95: 9 | R95: 6 | S95: 266 | T95: 2014-08-12 | U95: 12 days | V95: 2014-09-21T06:07:14 | W95: 3950241-1|1088540-1|804952-1 | X95: 0 | Y95: 95
A96: 3535424 | B96: kr | C96: 1 | D96: ì„œê¸° | E96: p | F96: 1769187 | G96: kr | H96: 1 | I96: í•´ê²°ì‚¬ | J96: p | K96: 279855 | L96: kr | M96: 1 | N96: ë¡œë Œì„¸ì´ | O96: z | P96: Bronze | Q96: 9 | R96: 10 | S96: 266 | T96: 2014-08-06 | U96: 44 days | V96: 2014-09-21T06:07:14 | W96: 3535424-1|1769187-1|279855-1 | X96: 0 | Y96: 96
A97: 3458908 | B97: kr | C97: 1 | D97: QueenSunny | E97: r | F97: 2756987 | G97: kr | H97: 1 | I97: ë‚©ê½ì¹˜ | J97: p | K97: 1371281 | L97: kr | M97: 1 | N97: ì—ë¡œí‹±í•œëŒì§„ | O97: p | P97: Bronze | Q97: 8 | R97: 10 | S97: 266 | T97: 2014-08-07 | U97: 35 days | V97: 2014-09-21T06:07:14 | W97: 3458908-1|2756987-1|1371281-1 | X97: 0 | Y97: 97
A98: 345733 | B98: kr | C98: 2 | D98: MaDRoLL | E98: r | F98: 155761 | G98: kr | H98: 2 | I98: MaDevil | J98: r | K98: 93758 | L98: kr | M98: 2 | N98: dOrEmI | O98: r | P98: Bronze | Q98: 7 | R98: 9 | S98: 266 | T98: 2014-08-14 | U98: 33 days | V98: 2014-09-21T06:07:14 | W98: 345733-2|155761-2|93758-2 | X98: 0 | Y98: 98
A99: 1135594 | B99: kr | C99: 2 | D99: AlmostHim | E99: z | F99: 1073877 | G99: kr | H99: 2 | I99: Andy | J99: p | K99: 943071 | L99: kr | M99: 2 | N99: NeXusRad | O99: t | P99: Bronze | Q99: 11 | R99: 16 | S99: 266 | T99: 2014-07-08 | U99: 21 days | V99: 2014-09-21T06:07:14 | W99: 1135594-2|1073877-2|943071-2 | X99: 0 | Y99: 99
A100: 3318554 | B100: kr | C100: 1 | D100: íŒŒì´ë¦¬ | E100: z | F100: 832358 | G100: kr | H100: 1 | I100: ê¼¬ë¶€ê¸° | J100: p | K100: 182108 | L100: kr | M100: 1 | N100: ì´ìƒí•´ì”¨ | O100: t | P100: Bronze | Q100: 8 | R100: 1 | S100: 264 | T100: 2014-08-08 | U100: 16 days | V100: 2014-09-21T06:07:14 | W100: 3318554-1|832358-1|182108-1 | X100: 0 | Y100: 100
A101: 3915473 | B101: kr | C101: 1 | D101: ë‚˜íŒ”ê´€ë¸Œë ˆì´ì»¤ | E101: p | F101: 2266169 | G101: kr | H101: 1 | I101: ìžê¶ë¸Œë ˆì´ì»¤ | J101: r | K101: 2098011 | L101: kr | M101: 1 | N101: ì •ìš°ì„± | O101: r | P101: Bronze | Q101: 8 | R101: 2 | S101: 264 | T101: 2014-08-02 | U101: 15 days | V101: 2014-09-21T06:07:14 | W101: 3915473-1|2266169-1|2098011-1 | X101: 0 | Y101: 101
A102: 3491596 | B102: kr | C102: 1 | D102: ë„ˆêµ¬ë¦¬ | E102: t | F102: 1086984 | G102: kr | H102: 1 | I102: ê³ ë¼ë‹ˆ | J102: z | K102: 590276 | L102: kr | M102: 1 | N102: ë¯¸ì¹œì¡´ìž¬ê° | O102: p | P102: Bronze | Q102: 9 | R102: 5 | S102: 264 | T102: 2014-07-11 | U102: 45 days | V102: 2014-09-21T06:07:14 | W102: 3491596-1|1086984-1|590276-1 | X102: 0 | Y102: 102
A103: 2392815 | B103: kr | C103: 1 | D103: ChaosTail | E103: t | F103: 213521 | G103: kr | H103: 1 | I103: Asran | J103: p | K103: 130216 | L103: kr | M103: 1 | N103: Killgameshi | O103: z | P103: Bronze | Q103: 9 | R103: 5 | S103: 264 | T103: 2014-07-26 | U103: 7 days | V103: 2014-09-21T06:07:14 | W103: 2392815-1|213521-1|130216-1 | X103: 0 | Y103: 103
A104: 2596582 | B104: kr | C104: 1 | D104: ì˜¤ê±°ë¦¬íŒŒ | E104: p | F104: 2578506 | G104: kr | H104: 1 | I104: EtoosinKH | J104: r | K104: 2037628 | L104: kr | M104: 1 | N104: ê³µê²© | O104: t | P104: Bronze | Q104: 13 | R104: 13 | S104: 264 | T104: 2014-07-20 | U104: 16 days | V104: 2014-09-21T06:07:14 | W104: 2596582-1|2578506-1|2037628-1 | X104: 0 | Y104: 104
A105: 681009 | B105: kr | C105: 2 | D105: è‚‰è…³æ˜¯ä½ | E105: t | F105: 620902 | G105: kr | H105: 2 | I105: Anthony | J105: t | K105: 617734 | L105: kr | M105: 2 | N105: Lazyming | O105: r | P105: Bronze | Q105: 12 | R105: 11 | S105: 261 | T105: 2014-07-13 | U105: 28 days | V105: 2014-09-21T06:07:14 | W105: 681009-2|620902-2|617734-2 | X105: 0 | Y105: 105
A106: 4729692 | B106: kr | C106: 1 | D106: ì‹ ê±°í¬ | E106: t | F106: 1880294 | G106: kr | H106: 1 | I106: janus | J106: p | K106: 1622137 | L106: kr | M106: 1 | N106: ê³ ë¬¼ìƒ | O106: t | P106: Bronze | Q106: 10 | R106: 5 | S106: 258 | T106: 2014-09-07 | U106: 13 days | V106: 2014-09-21T06:07:14 | W106: 4729692-1|1880294-1|1622137-1 | X106: 0 | Y106: 106
A107: 3810866 | B107: kr | C107: 1 | D107: ì—í¬ë§Œ | E107: r | F107: 3511686 | G107: kr | H107: 1 | I107: ì‹¬ì‹¬í•˜ë‹¤ | J107: p | K107: 531745 | L107: kr | M107: 1 | N107: ìž‰ì–´í‚¹ | O107: p | P107: Bronze | Q107: 9 | R107: 3 | S107: 256 | T107: 2014-09-07 | U107: 7 days | V107: 2014-09-21T06:07:14 | W107: 3810866-1|3511686-1|531745-1 | X107: 0 | Y107: 107
A108: 649101 | B108: kr | C108: 2 | D108: ChrisYCLin | E108: p | F108: 457106 | G108: kr | H108: 2 | I108: å°è³“è³“ | J108: r | K108: 455073 | L108: kr | M108: 2 | N108: Ted | O108: p | P108: Bronze | Q108: 8 | R108: 8 | S108: 256 | T108: 2014-08-29 | U108: 13 days | V108: 2014-09-21T06:07:14 | W108: 649101-2|457106-2|455073-2 | X108: 0 | Y108: 108
A109: 2191817 | B109: kr | C109: 1 | D109: JHK | E109: t | F109: 1877085 | G109: kr | H109: 1 | I109: ì¥¬ë…¸ | J109: p | K109: 476545 | L109: kr | M109: 1 | N109: í…Œëž€ | O109: t | P109: Bronze | Q109: 14 | R109: 14 | S109: 255 | T109: 2014-07-18 | U109: 54 days | V109: 2014-09-21T06:07:14 | W109: 2191817-1|1877085-1|476545-1 | X109: 0 | Y109: 109
A110: 2744342 | B110: kr | C110: 1 | D110: ë¹¨ëŒ€ì†Œë…„ | E110: t | F110: 2390267 | G110: kr | H110: 1 | I110: imagecho | J110: p | K110: 1010322 | L110: kr | M110: 1 | N110: ë¦¼ìž¬ë°œ | O110: p | P110: Bronze | Q110: 8 | R110: 8 | S110: 250 | T110: 2014-08-16 | U110: 35 days | V110: 2014-09-21T06:07:14 | W110: 2744342-1|2390267-1|1010322-1 | X110: 0 | Y110: 110
A111: 822002 | B111: kr | C111: 2 | D111: æ´‹çš‡ | E111: z | F111: 818352 | G111: kr | H111: 2 | I111: BILL | J111: t | K111: 814893 | L111: kr | M111: 2 | N111: Michael | O111: p | P111: Bronze | Q111: 15 | R111: 20 | S111: 249 | T111: 2014-07-10 | U111: 34 days | V111: 2014-09-21T06:07:14 | W111: 822002-2|818352-2|814893-2 | X111: 0 | Y111: 111
A112: 3450636 | B112: kr | C112: 1 | D112: ëª©ì‚¬ë‹˜ | E112: z | F112: 1364841 | G112: kr | H112: 1 | I112: wnfm | J112: r | K112: 310181 | L112: kr | M112: 1 | N112: ê²€ì€ë‚ ê°œ | O112: p | P112: Bronze | Q112: 10 | R112: 9 | S112: 248 | T112: 2014-07-08 | U112: 48 days | V112: 2014-09-21T06:07:14 | W112: 3450636-1|1364841-1|310181-1 | X112: 0 | Y112: 112
A113: 1362518 | B113: kr | C113: 2 | D113: è¥¿é–€å¤§å®˜äºº | E113: z | F113: 283455 | G113: kr | H113: 2 | I113: å·¥å…µç®¡åˆ¶å£« | J113: p | K113: 143070 | L113: kr | M113: 2 | N113: ä½ä½æœ¨ | O113: t | P113: Bronze | Q113: 9 | R113: 9 | S113: 248 | T113: 2014-08-13 | U113: 17 days | V113: 2014-09-21T06:07:14 | W113: 1362518-2|283455-2|143070-2 | X113: 0 | Y113: 113
A114: 1422977 | B114: kr | C114: 1 | D114: ì•¼í‚¤ë§ˆ | E114: r | F114: 1287932 | G114: kr | H114: 1 | I114: ë¹¡ì‹œë¬´ìŠ¤ | J114: p | K114: 965622 | L114: kr | M114: 1 | N114: llllllllllll | O114: p | P114: Bronze | Q114: 9 | R114: 16 | S114: 248 | T114: 2014-09-11 | U114: 3 days | V114: 2014-09-21T06:07:14 | W114: 1422977-1|1287932-1|965622-1 | X114: 0 | Y114: 114
A115: 781060 | B115: kr | C115: 1 | D115: greedy | E115: z | F115: 601259 | G115: kr | H115: 1 | I115: ë•¡ì¹ | J115: p | K115: 588547 | L115: kr | M115: 1 | N115: Namc | O115: t | P115: Bronze | Q115: 7 | R115: 2 | S115: 246 | T115: 2014-09-11 | U115: 9 days | V115: 2014-09-21T06:07:14 | W115: 781060-1|601259-1|588547-1 | X115: 0 | Y115: 115
A116: 1948141 | B116: kr | C116: 1 | D116: ì¸íŠ¸ë§ˆìŠ¤í„° | E116: r | F116: 1947146 | G116: kr | H116: 1 | I116: ì†Œë‹‰ | J116: p | K116: 1441703 | L116: kr | M116: 1 | N116: ì›ƒê¸°ëƒ | O116: z | P116: Bronze | Q116: 8 | R116: 17 | S116: 246 | T116: 2014-07-27 | U116: 7 days | V116: 2014-09-21T06:07:14 | W116: 1948141-1|1947146-1|1441703-1 | X116: 0 | Y116: 116
A117: 1224013 | B117: kr | C117: 1 | D117: BlackStone | E117: r | F117: 1074445 | G117: kr | H117: 1 | I117: BLUEMARBLE | J117: r | K117: 640906 | L117: kr | M117: 1 | N117: laknia | O117: r | P117: Bronze | Q117: 8 | R117: 12 | S117: 244 | T117: 2014-09-13 | U117: 20 hours | V117: 2014-09-21T06:07:14 | W117: 1224013-1|1074445-1|640906-1 | X117: 0 | Y117: 117
A118: 1864028 | B118: kr | C118: 1 | D118: ì €ê¸€ë§ | E118: z | F118: 661443 | G118: kr | H118: 1 | I118: íƒì‚¬ì • | J118: p | K118: 330452 | L118: kr | M118: 1 | N118: Notaloneme | O118: p | P118: Bronze | Q118: 9 | R118: 9 | S118: 243 | T118: 2014-07-30 | U118: 48 days | V118: 2014-09-21T06:07:14 | W118: 1864028-1|661443-1|330452-1 | X118: 0 | Y118: 118
A119: 949341 | B119: kr | C119: 2 | D119: æ®ºæ‰‹ | E119: z | F119: 762498 | G119: kr | H119: 2 | I119: æ¶ˆå¤±çš„æƒ¡é­” | J119: r | K119: 761924 | L119: kr | M119: 2 | N119: Hunter | O119: t | P119: Bronze | Q119: 8 | R119: 4 | S119: 242 | T119: 2014-07-22 | U119: 36 days | V119: 2014-09-21T06:07:14 | W119: 949341-2|762498-2|761924-2 | X119: 0 | Y119: 119
A120: 4360176 | B120: kr | C120: 1 | D120: ino | E120: p | F120: 2657190 | G120: kr | H120: 1 | I120: ê³µì¸ìˆ˜ | J120: t | K120: 801392 | L120: kr | M120: 1 | N120: sin | O120: p | P120: Bronze | Q120: 10 | R120: 14 | S120: 242 | T120: 2014-07-26 | U120: 27 days | V120: 2014-09-21T06:07:14 | W120: 4360176-1|2657190-1|801392-1 | X120: 0 | Y120: 120
A121: 1320365 | B121: kr | C121: 1 | D121: shadow | E121: z | F121: 908536 | G121: kr | H121: 1 | I121: AraMir | J121: r | K121: 908214 | L121: kr | M121: 1 | N121: ë£¨í”¼ | O121: t | P121: Bronze | Q121: 12 | R121: 6 | S121: 241 | T121: 2014-07-19 | U121: 64 days | V121: 2014-09-21T06:07:14 | W121: 1320365-1|908536-1|908214-1 | X121: 0 | Y121: 121
A122: 1101495 | B122: kr | C122: 2 | D122: æž—å¸¥éŸ‹ | E122: p | F122: 898756 | G122: kr | H122: 2 | I122: fire | J122: z | K122: 123283 | L122: kr | M122: 2 | N122: å¤§é–€ä¼éƒŽ | O122: z | P122: Bronze | Q122: 8 | R122: 6 | S122: 240 | T122: 2014-07-24 | U122: 35 days | V122: 2014-09-21T06:07:14 | W122: 1101495-2|898756-2|123283-2 | X122: 0 | Y122: 122
A123: 1053773 | B123: kr | C123: 2 | D123: CTerNal | E123: z | F123: 1053075 | G123: kr | H123: 2 | I123: å°å¶‹é™½èœ | J123: t | K123: 791499 | L123: kr | M123: 2 | N123: KevinRush | O123: p | P123: Bronze | Q123: 9 | R123: 14 | S123: 240 | T123: 2014-07-22 | U123: 39 days | V123: 2014-09-21T06:07:14 | W123: 1053773-2|1053075-2|791499-2 | X123: 0 | Y123: 123
A124: 4054867 | B124: kr | C124: 1 | D124: kwan | E124: t | F124: 1592018 | G124: kr | H124: 1 | I124: loku | J124: p | K124: 647004 | L124: kr | M124: 1 | N124: gentleguy | O124: t | P124: Bronze | Q124: 9 | R124: 4 | S124: 238 | T124: 2014-07-30 | U124: 1 days | V124: 2014-09-21T06:07:14 | W124: 4054867-1|1592018-1|647004-1 | X124: 0 | Y124: 124
A125: 549861 | B125: kr | C125: 2 | D125: Mark | E125: p | F125: 180999 | G125: kr | H125: 2 | I125: è–å…‰å¯©åˆ¤ | J125: r | K125: 134132 | L125: kr | M125: 2 | N125: SamForce | O125: r | P125: Bronze | Q125: 8 | R125: 4 | S125: 238 | T125: 2014-08-06 | U125: 45 days | V125: 2014-09-21T06:07:14 | W125: 549861-2|180999-2|134132-2 | X125: 0 | Y125: 125
A126: 2925448 | B126: kr | C126: 1 | D126: ì˜¤í›„í•œë•Œì†Œë‚˜ê¸° | E126: r | F126: 2858418 | G126: kr | H126: 1 | I126: ì—¿ë¨¹ì–´ | J126: t | K126: 1504264 | L126: kr | M126: 1 | N126: SoSAe | O126: p | P126: Bronze | Q126: 8 | R126: 10 | S126: 238 | T126: 2014-09-10 | U126: 11 days | V126: 2014-09-21T06:07:14 | W126: 2925448-1|2858418-1|1504264-1 | X126: 0 | Y126: 126
A127: 1211602 | B127: kr | C127: 2 | D127: Victory | E127: z | F127: 1198089 | G127: kr | H127: 2 | I127: mumu | J127: t | K127: 1195463 | L127: kr | M127: 2 | N127: OCELOT | O127: p | P127: Bronze | Q127: 8 | R127: 12 | S127: 238 | T127: 2014-07-23 | U127: 13 days | V127: 2014-09-21T06:07:14 | W127: 1211602-2|1198089-2|1195463-2 | X127: 0 | Y127: 127
A128: 3506997 | B128: kr | C128: 1 | D128: ì§„ì„ì•„ì‚¬ëž‘í•´ | E128: t | F128: 1926236 | G128: kr | H128: 1 | I128: ìƒí’ˆê¶Œ | J128: t | K128: 1600205 | L128: kr | M128: 1 | N128: SshipduckK | O128: t | P128: Bronze | Q128: 9 | R128: 14 | S128: 238 | T128: 2014-08-22 | U128: 20 days | V128: 2014-09-21T06:07:14 | W128: 3506997-1|1926236-1|1600205-1 | X128: 0 | Y128: 128
A129: 1136809 | B129: kr | C129: 1 | D129: ë©€í‹°í•µ | E129: z | F129: 492743 | G129: kr | H129: 1 | I129: Ironytic | J129: p | K129: 405563 | L129: kr | M129: 1 | N129: ê²Œë¥´ë§Œì¡± | O129: p | P129: Bronze | Q129: 7 | R129: 11 | S129: 238 | T129: 2014-08-19 | U129: 26 days | V129: 2014-09-21T06:07:14 | W129: 1136809-1|492743-1|405563-1 | X129: 0 | Y129: 129
A130: 4393842 | B130: kr | C130: 1 | D130: ì¸ë‘ì¸ë‘ | E130: p | F130: 4393090 | G130: kr | H130: 1 | I130: shin | J130: p | K130: 4341169 | L130: kr | M130: 1 | N130: í›„ë‹ˆí›ˆ | O130: p | P130: Bronze | Q130: 12 | R130: 16 | S130: 237 | T130: 2014-07-20 | U130: 38 days | V130: 2014-09-21T06:07:14 | W130: 4393842-1|4393090-1|4341169-1 | X130: 0 | Y130: 130
A131: 4043285 | B131: kr | C131: 1 | D131: ìžì›ì´ë¶€ì¡±í•©ë‹ˆë‹¤ | E131: z | F131: 1072598 | G131: kr | H131: 1 | I131: Tessadar | J131: p | K131: 848952 | L131: kr | M131: 1 | N131: ë”ë¸”ë°ë¯¸ì§€ | O131: t | P131: Bronze | Q131: 9 | R131: 2 | S131: 235 | T131: 2014-07-18 | U131: 21 hours | V131: 2014-09-21T06:07:14 | W131: 4043285-1|1072598-1|848952-1 | X131: 0 | Y131: 131
A132: 757016 | B132: kr | C132: 2 | D132: YLFYS | E132: r | F132: 450552 | G132: kr | H132: 2 | I132: Zozo | J132: p | K132: 440733 | L132: kr | M132: 2 | N132: BBB | O132: r | P132: Bronze | Q132: 11 | R132: 10 | S132: 235 | T132: 2014-07-18 | U132: 53 days | V132: 2014-09-21T06:07:14 | W132: 757016-2|450552-2|440733-2 | X132: 0 | Y132: 132
A133: 1747381 | B133: kr | C133: 1 | D133: í”™í˜ˆ | E133: r | F133: 1624706 | G133: kr | H133: 1 | I133: ë¦¬í„´ì¦ˆì‹±ì–´ | J133: t | K133: 1019472 | L133: kr | M133: 1 | N133: ê°œë¼ì§€ | O133: t | P133: Bronze | Q133: 8 | R133: 3 | S133: 234 | T133: 2014-08-06 | U133: 13 days | V133: 2014-09-21T06:07:14 | W133: 1747381-1|1624706-1|1019472-1 | X133: 0 | Y133: 133
A134: 2271869 | B134: kr | C134: 1 | D134: ë§í• ìŠ¤íƒ€í•˜ê¸°ë“œëŸ½ | E134: z | F134: 568502 | G134: kr | H134: 1 | I134: zswea | J134: r | K134: 126152 | L134: kr | M134: 1 | N134: ë‹¬íŒ½ì´íŠ€ê¹€ | O134: r | P134: Bronze | Q134: 9 | R134: 13 | S134: 234 | T134: 2014-08-14 | U134: 32 days | V134: 2014-09-21T06:07:14 | W134: 2271869-1|568502-1|126152-1 | X134: 0 | Y134: 134
A135: 3828675 | B135: kr | C135: 1 | D135: ì€ê°€ì´ì§¸ë¼ | E135: z | F135: 1458249 | G135: kr | H135: 1 | I135: ggggbbbb | J135: t | K135: 253096 | L135: kr | M135: 1 | N135: ê¹€ë˜˜ë˜˜ | O135: r | P135: Bronze | Q135: 7 | R135: 2 | S135: 233 | T135: 2014-07-28 | U135: 52 days | V135: 2014-09-21T06:07:14 | W135: 3828675-1|1458249-1|253096-1 | X135: 0 | Y135: 135
A136: 1424004 | B136: kr | C136: 1 | D136: ì•„ë¼ | E136: p | F136: 726648 | G136: kr | H136: 1 | I136: ë°œë†ˆì´ | J136: r | K136: 396676 | L136: kr | M136: 1 | N136: ë»‘ì´ê°€ë„¤ | O136: p | P136: Bronze | Q136: 8 | R136: 4 | S136: 232 | T136: 2014-07-19 | U136: 27 days | V136: 2014-09-21T06:07:14 | W136: 1424004-1|726648-1|396676-1 | X136: 0 | Y136: 136
A137: 4217231 | B137: kr | C137: 1 | D137: GalaxyS | E137: t | F137: 2347923 | G137: kr | H137: 1 | I137: ì¼ìˆ˜ì¼ë©¸ | J137: z | K137: 2313428 | L137: kr | M137: 1 | N137: jsh | O137: p | P137: Bronze | Q137: 6 | R137: 7 | S137: 232 | T137: 2014-07-30 | U137: 40 days | V137: 2014-09-21T06:07:14 | W137: 4217231-1|2347923-1|2313428-1 | X137: 0 | Y137: 137
A138: 4503883 | B138: kr | C138: 1 | D138: í† í† í›„ì•¼ | E138: p | F138: 4333016 | G138: kr | H138: 1 | I138: POHANGROKMC | J138: p | K138: 2610612 | L138: kr | M138: 1 | N138: íƒœê²¸ì´ | O138: t | P138: Bronze | Q138: 8 | R138: 6 | S138: 230 | T138: 2014-08-01 | U138: 23 days | V138: 2014-09-21T06:07:14 | W138: 4503883-1|4333016-1|2610612-1 | X138: 0 | Y138: 138
A139: 2700912 | B139: kr | C139: 1 | D139: ë¼ë² ë‹ˆì•„ | E139: p | F139: 2694735 | G139: kr | H139: 1 | I139: ìŠˆìš´ | J139: z | K139: 2589373 | L139: kr | M139: 1 | N139: ê³ ë¼ | O139: p | P139: Bronze | Q139: 10 | R139: 17 | S139: 230 | T139: 2014-07-23 | U139: 38 days | V139: 2014-09-21T06:07:14 | W139: 2700912-1|2694735-1|2589373-1 | X139: 0 | Y139: 139
A140: 3667135 | B140: kr | C140: 1 | D140: ì•Œë² ìžìŠ¤ | E140: p | F140: 1622290 | G140: kr | H140: 1 | I140: ì˜¤ìž¥ìœ¡ë´‰ | J140: z | K140: 610836 | L140: kr | M140: 1 | N140: orpheus | O140: t | P140: Bronze | Q140: 7 | R140: 2 | S140: 228 | T140: 2014-09-11 | U140: 5 days | V140: 2014-09-21T06:07:14 | W140: 3667135-1|1622290-1|610836-1 | X140: 0 | Y140: 140
A141: 3751112 | B141: kr | C141: 1 | D141: Strategy | E141: p | F141: 2048758 | G141: kr | H141: 1 | I141: star | J141: t | K141: 2048584 | L141: kr | M141: 1 | N141: ê¼¬ëž™ | O141: t | P141: Bronze | Q141: 7 | R141: 4 | S141: 228 | T141: 2014-08-17 | U141: 14 days | V141: 2014-09-21T06:07:14 | W141: 3751112-1|2048758-1|2048584-1 | X141: 0 | Y141: 141
A142: 3902449 | B142: kr | C142: 1 | D142: ëŒ€ë¹µ | E142: r | F142: 3897455 | G142: kr | H142: 1 | I142: ë™ë°©ì˜ë³„ | J142: p | K142: 2045440 | L142: kr | M142: 1 | N142: ìŠ¤íƒ€ë¨¸ì‹ | O142: t | P142: Bronze | Q142: 10 | R142: 7 | S142: 227 | T142: 2014-07-08 | U142: 56 days | V142: 2014-09-21T06:07:14 | W142: 3902449-1|3897455-1|2045440-1 | X142: 0 | Y142: 142
A143: 3149025 | B143: kr | C143: 1 | D143: í•´ë³‘ëŒ€ì› | E143: t | F143: 3100538 | G143: kr | H143: 1 | I143: gugugu | J143: p | K143: 1737659 | L143: kr | M143: 1 | N143: ê¹€ì´ë³‘ | O143: p | P143: Bronze | Q143: 13 | R143: 15 | S143: 227 | T143: 2014-07-22 | U143: 50 days | V143: 2014-09-21T06:07:14 | W143: 3149025-1|3100538-1|1737659-1 | X143: 0 | Y143: 143
A144: 4468546 | B144: kr | C144: 1 | D144: Gamer | E144: r | F144: 1553181 | G144: kr | H144: 1 | I144: Light | J144: p | K144: 627800 | L144: kr | M144: 1 | N144: manchunha | O144: t | P144: Bronze | Q144: 7 | R144: 0 | S144: 226 | T144: 2014-07-25 | U144: 57 days | V144: 2014-09-21T06:07:14 | W144: 4468546-1|1553181-1|627800-1 | X144: 0 | Y144: 144
A145: 3687780 | B145: kr | C145: 1 | D145: ìƒˆë²½ì†Œë¦¬ | E145: p | F145: 1277962 | G145: kr | H145: 1 | I145: harefoot | J145: t | K145: 842430 | L145: kr | M145: 1 | N145: ë²„ë ¤ì§„ìž | O145: z | P145: Bronze | Q145: 7 | R145: 12 | S145: 225 | T145: 2014-07-27 | U145: 15 days | V145: 2014-09-21T06:07:14 | W145: 3687780-1|1277962-1|842430-1 | X145: 0 | Y145: 145
A146: 3840572 | B146: kr | C146: 1 | D146: ë¼ì´íŠ¸ë‹í“¨ë¦¬ | E146: r | F146: 539501 | G146: kr | H146: 1 | I146: ë¦‰ë¦‰ë¦‰ | J146: p | K146: 324958 | L146: kr | M146: 1 | N146: Sereumion | O146: t | P146: Bronze | Q146: 8 | R146: 8 | S146: 224 | T146: 2014-09-01 | U146: 17 days | V146: 2014-09-21T06:07:14 | W146: 3840572-1|539501-1|324958-1 | X146: 0 | Y146: 146
A147: 3010010 | B147: kr | C147: 1 | D147: Ringer | E147: t | F147: 2641555 | G147: kr | H147: 1 | I147: ë¸Œë¼ìš´ì•„ì´ë“œì†Œìš¸ | J147: t | K147: 516206 | L147: kr | M147: 1 | N147: AbsoluteS | O147: p | P147: Bronze | Q147: 9 | R147: 12 | S147: 222 | T147: 2014-08-25 | U147: 24 days | V147: 2014-09-21T06:07:14 | W147: 3010010-1|2641555-1|516206-1 | X147: 0 | Y147: 147
A148: 756147 | B148: kr | C148: 1 | D148: ë¨¸ë¦¬ê¸‰ëŒê²©ë³‘ | E148: t | F148: 167275 | G148: kr | H148: 1 | I148: ë¹„ë“¬ë§›ë‡Œ | J148: z | K148: 108970 | L148: kr | M148: 1 | N148: ì˜¤í¼ë ˆì´í„° | O148: t | P148: Bronze | Q148: 8 | R148: 11 | S148: 222 | T148: 2014-08-01 | U148: 45 days | V148: 2014-09-21T06:07:14 | W148: 756147-1|167275-1|108970-1 | X148: 0 | Y148: 148
A149: 912720 | B149: kr | C149: 2 | D149: é˜²è¡›è»å¸ä»¤ | E149: t | F149: 89054 | G149: kr | H149: 2 | I149: PTcBulkOu | J149: t | K149: 63470 | L149: kr | M149: 2 | N149: PTcNickLiu | O149: t | P149: Bronze | Q149: 7 | R149: 3 | S149: 220 | T149: 2014-08-08 | U149: 39 days | V149: 2014-09-21T06:07:14 | W149: 912720-2|89054-2|63470-2 | X149: 0 | Y149: 149
A150: 1504849 | B150: kr | C150: 1 | D150: ìŠˆë°œ | E150: t | F150: 1350308 | G150: kr | H150: 1 | I150: íŽ˜ì´í¼ | J150: p | K150: 1167573 | L150: kr | M150: 1 | N150: Demonics | O150: t | P150: Bronze | Q150: 8 | R150: 5 | S150: 219 | T150: 2014-07-24 | U150: 51 days | V150: 2014-09-21T06:07:14 | W150: 1504849-1|1350308-1|1167573-1 | X150: 0 | Y150: 150
A151: 4511545 | B151: kr | C151: 1 | D151: Endless | E151: t | F151: 2722778 | G151: kr | H151: 1 | I151: ì•„ë””ì´ | J151: t | K151: 2566895 | L151: kr | M151: 1 | N151: ì„œìš¸í˜„ë¹ˆ | O151: p | P151: Bronze | Q151: 7 | R151: 5 | S151: 218 | T151: 2014-08-13 | U151: 11 days | V151: 2014-09-21T06:07:14 | W151: 4511545-1|2722778-1|2566895-1 | X151: 0 | Y151: 151
A152: 2022315 | B152: kr | C152: 1 | D152: Future | E152: t | F152: 2010875 | G152: kr | H152: 1 | I152: í›Œë¼í›Œë¼ | J152: r | K152: 1894924 | L152: kr | M152: 1 | N152: ê´‘ì£¼í›ˆë‚¨ | O152: r | P152: Bronze | Q152: 5 | R152: 5 | S152: 218 | T152: 2014-09-07 | U152: 13 days | V152: 2014-09-21T06:07:14 | W152: 2022315-1|2010875-1|1894924-1 | X152: 0 | Y152: 152
A153: 3209465 | B153: kr | C153: 1 | D153: ë¯¸ìŠ¤íƒ€ê¹€íƒ | E153: p | F153: 2438529 | G153: kr | H153: 1 | I153: ì••ë ¥ë³´ì˜¨ë°¥ì†¥ | J153: p | K153: 353800 | L153: kr | M153: 1 | N153: omoora | O153: z | P153: Bronze | Q153: 8 | R153: 15 | S153: 218 | T153: 2014-08-04 | U153: 19 days | V153: 2014-09-21T06:07:14 | W153: 3209465-1|2438529-1|353800-1 | X153: 0 | Y153: 153
A154: 1473216 | B154: kr | C154: 1 | D154: koyoriphya | E154: z | F154: 342705 | G154: kr | H154: 1 | I154: ë Œí…Œ | J154: r | K154: 197607 | L154: kr | M154: 1 | N154: optics | O154: r | P154: Bronze | Q154: 7 | R154: 2 | S154: 216 | T154: 2014-07-12 | U154: 17 days | V154: 2014-09-21T06:07:14 | W154: 1473216-1|342705-1|197607-1 | X154: 0 | Y154: 154
A155: 4625686 | B155: kr | C155: 1 | D155: ê°•ë ¥í•œì“°ë ˆë¹ | E155: t | F155: 1922693 | G155: kr | H155: 1 | I155: ê°„ë”” | J155: p | K155: 1173980 | L155: kr | M155: 1 | N155: Samuel | O155: t | P155: Bronze | Q155: 7 | R155: 8 | S155: 214 | T155: 2014-09-01 | U155: 17 days | V155: 2014-09-21T06:07:14 | W155: 4625686-1|1922693-1|1173980-1 | X155: 0 | Y155: 155
A156: 1372766 | B156: kr | C156: 1 | D156: ì•Œì²œ | E156: p | F156: 736550 | G156: kr | H156: 1 | I156: KIllERBlACK | J156: t | K156: 526545 | L156: kr | M156: 1 | N156: í…Œëž€ | O156: p | P156: Bronze | Q156: 7 | R156: 9 | S156: 214 | T156: 2014-08-10 | U156: 35 days | V156: 2014-09-21T06:07:14 | W156: 1372766-1|736550-1|526545-1 | X156: 0 | Y156: 156
A157: 2337133 | B157: kr | C157: 1 | D157: ë°”í¬ì£¼í¬ | E157: p | F157: 2334671 | G157: kr | H157: 1 | I157: ë‹ˆì—„ë§ˆë¥´ | J157: t | K157: 545708 | L157: kr | M157: 1 | N157: ì‚­ì¾¡ì´ | O157: r | P157: Bronze | Q157: 6 | R157: 0 | S157: 212 | T157: 2014-07-26 | U157: 28 days | V157: 2014-09-21T06:07:14 | W157: 2337133-1|2334671-1|545708-1 | X157: 0 | Y157: 157
A158: 1250435 | B158: kr | C158: 2 | D158: twopointthre | E158: p | F158: 274499 | G158: kr | H158: 2 | I158: PLJeans | J158: p | K158: 259301 | L158: kr | M158: 2 | N158: fhkk | O158: z | P158: Bronze | Q158: 7 | R158: 1 | S158: 212 | T158: 2014-08-01 | U158: 50 days | V158: 2014-09-21T06:07:14 | W158: 1250435-2|274499-2|259301-2 | X158: 0 | Y158: 158
A159: 4687615 | B159: kr | C159: 1 | D159: ë§ì´ë§ì´ | E159: p | F159: 3882675 | G159: kr | H159: 1 | I159: ê°ˆë³´ | J159: p | K159: 3330860 | L159: kr | M159: 1 | N159: Supersub | O159: t | P159: Bronze | Q159: 7 | R159: 6 | S159: 212 | T159: 2014-09-02 | U159: 17 days | V159: 2014-09-21T06:07:14 | W159: 4687615-1|3882675-1|3330860-1 | X159: 0 | Y159: 159
A160: 4606193 | B160: kr | C160: 1 | D160: vitaminjay | E160: z | F160: 4204559 | G160: kr | H160: 1 | I160: í‘ì¸ì•„ì €ì”¨ | J160: z | K160: 4204154 | L160: kr | M160: 1 | N160: ë°±ì¸ì•„ì €ì”¨ | O160: p | P160: Bronze | Q160: 8 | R160: 7 | S160: 212 | T160: 2014-07-19 | U160: 6 hours | V160: 2014-09-21T06:07:14 | W160: 4606193-1|4204559-1|4204154-1 | X160: 0 | Y160: 160
A161: 2950833 | B161: kr | C161: 1 | D161: IIIIIIIIIIII | E161: t | F161: 2467975 | G161: kr | H161: 1 | I161: ìš°í›„í›— | J161: p | K161: 1751159 | L161: kr | M161: 1 | N161: ì¹´ì¹´ìš°ìŠ¤ | O161: t | P161: Bronze | Q161: 6 | R161: 6 | S161: 212 | T161: 2014-08-19 | U161: 32 days | V161: 2014-09-21T06:07:14 | W161: 2950833-1|2467975-1|1751159-1 | X161: 0 | Y161: 161
A162: 3868873 | B162: kr | C162: 1 | D162: gogogo | E162: p | F162: 614851 | G162: kr | H162: 1 | I162: Recessed | J162: z | K162: 561515 | L162: kr | M162: 1 | N162: ì•„ë¡ | O162: p | P162: Bronze | Q162: 7 | R162: 7 | S162: 212 | T162: 2014-09-19 | U162: 1 days | V162: 2014-09-21T06:07:14 | W162: 3868873-1|614851-1|561515-1 | X162: 0 | Y162: 162
A163: 1039655 | B163: kr | C163: 2 | D163: fayehuang | E163: z | F163: 523959 | G163: kr | H163: 2 | I163: å‰‹ç†æ–¯ | J163: p | K163: 204279 | L163: kr | M163: 2 | N163: è·³è›‹è¶…äºº | O163: r | P163: Bronze | Q163: 6 | R163: 10 | S163: 212 | T163: 2014-07-22 | U163: 55 days | V163: 2014-09-21T06:07:14 | W163: 1039655-2|523959-2|204279-2 | X163: 0 | Y163: 163
A164: 4601592 | B164: kr | C164: 1 | D164: Margaret | E164: z | F164: 3899426 | G164: kr | H164: 1 | I164: eSfu | J164: z | K164: 1756229 | L164: kr | M164: 1 | N164: ì²œì•ˆ | O164: r | P164: Bronze | Q164: 7 | R164: 12 | S164: 212 | T164: 2014-08-05 | U164: 40 days | V164: 2014-09-21T06:07:14 | W164: 4601592-1|3899426-1|1756229-1 | X164: 0 | Y164: 164
A165: 4696854 | B165: kr | C165: 1 | D165: ê¹€ì¢…ì•„ | E165: p | F165: 4476582 | G165: kr | H165: 1 | I165: ì§€í‚¤ë¦¬ | J165: r | K165: 2817600 | L165: kr | M165: 1 | N165: í•¨ì„±ê·¼ | O165: p | P165: Bronze | Q165: 6 | R165: 11 | S165: 212 | T165: 2014-08-27 | U165: 25 days | V165: 2014-09-21T06:07:14 | W165: 4696854-1|4476582-1|2817600-1 | X165: 0 | Y165: 165
A166: 4701421 | B166: kr | C166: 1 | D166: ì¿ ë°”ë‚˜ | E166: p | F166: 4351926 | G166: kr | H166: 1 | I166: ì í† ë§ˆì•„ | J166: t | K166: 982533 | L166: kr | M166: 1 | N166: ì—”ì ¤ë¹„íŠ¸ | O166: z | P166: Bronze | Q166: 11 | R166: 9 | S166: 211 | T166: 2014-08-05 | U166: 47 days | V166: 2014-09-21T06:07:14 | W166: 4701421-1|4351926-1|982533-1 | X166: 0 | Y166: 166
A167: 3905670 | B167: kr | C167: 1 | D167: DOHC | E167: r | F167: 1600704 | G167: kr | H167: 1 | I167: jasegajoa | J167: r | K167: 1399623 | L167: kr | M167: 1 | N167: jun | O167: r | P167: Bronze | Q167: 6 | R167: 5 | S167: 210 | T167: 2014-09-13 | U167: 6 days | V167: 2014-09-21T06:07:14 | W167: 3905670-1|1600704-1|1399623-1 | X167: 0 | Y167: 167
A168: 1138890 | B168: kr | C168: 1 | D168: windycij | E168: r | F168: 451258 | G168: kr | H168: 1 | I168: Okinopi | J168: p | K168: 330476 | L168: kr | M168: 1 | N168: kyogogo | O168: t | P168: Bronze | Q168: 9 | R168: 8 | S168: 209 | T168: 2014-07-13 | U168: 45 days | V168: 2014-09-21T06:07:14 | W168: 1138890-1|451258-1|330476-1 | X168: 0 | Y168: 168
A169: 1074172 | B169: kr | C169: 1 | D169: DragonD | E169: t | F169: 1028489 | G169: kr | H169: 1 | I169: ížˆë‹¬ê³ ê³ | J169: p | K169: 81350 | L169: kr | M169: 1 | N169: johan | O169: z | P169: Bronze | Q169: 7 | R169: 5 | S169: 208 | T169: 2014-07-20 | U169: 11 days | V169: 2014-09-21T06:07:14 | W169: 1074172-1|1028489-1|81350-1 | X169: 0 | Y169: 169
A170: 2566895 | B170: kr | C170: 1 | D170: ì„œìš¸í˜„ë¹ˆ | E170: p | F170: 1554803 | G170: kr | H170: 1 | I170: ê°œë°œìµœìš©ìˆ˜ | J170: t | K170: 189469 | L170: kr | M170: 1 | N170: íŽ˜ì´ìŠ¤ë§¨ | O170: p | P170: Bronze | Q170: 7 | R170: 7 | S170: 208 | T170: 2014-07-29 | U170: 23 days | V170: 2014-09-21T06:07:14 | W170: 2566895-1|1554803-1|189469-1 | X170: 0 | Y170: 170
A171: 1346160 | B171: kr | C171: 2 | D171: è™›ç„¡é£„æ¸º | E171: r | F171: 751162 | G171: kr | H171: 2 | I171: æ‰‹æ©ŸæŸ‘ä»”åº— | J171: p | K171: 402338 | L171: kr | M171: 2 | N171: sax | O171: r | P171: Bronze | Q171: 8 | R171: 8 | S171: 208 | T171: 2014-08-01 | U171: 43 days | V171: 2014-09-21T06:07:14 | W171: 1346160-2|751162-2|402338-2 | X171: 0 | Y171: 171
A172: 2496952 | B172: kr | C172: 1 | D172: KhAlrA | E172: p | F172: 2496035 | G172: kr | H172: 1 | I172: superhcw | J172: t | K172: 1344550 | L172: kr | M172: 1 | N172: lky | O172: z | P172: Bronze | Q172: 7 | R172: 2 | S172: 206 | T172: 2014-09-13 | U172: 7 days | V172: 2014-09-21T06:07:14 | W172: 2496952-1|2496035-1|1344550-1 | X172: 0 | Y172: 172
A173: 1785810 | B173: kr | C173: 1 | D173: ì‚¬ê³¼ëŠ”ì• í´ | E173: r | F173: 1109456 | G173: kr | H173: 1 | I173: ì‚°ëž€ëª» | J173: r | K173: 771278 | L173: kr | M173: 1 | N173: ë‰´ìŠ¤ë°ìŠ¤í¬ | O173: z | P173: Bronze | Q173: 7 | R173: 3 | S173: 206 | T173: 2014-08-09 | U173: 12 days | V173: 2014-09-21T06:07:14 | W173: 1785810-1|1109456-1|771278-1 | X173: 0 | Y173: 173
A174: 592304 | B174: kr | C174: 1 | D174: ì¶©ìŒ¤ | E174: r | F174: 368386 | G174: kr | H174: 1 | I174: ë¹„ì† | J174: z | K174: 331174 | L174: kr | M174: 1 | N174: ì¼„ì§€ | O174: t | P174: Bronze | Q174: 6 | R174: 3 | S174: 206 | T174: 2014-07-21 | U174: 5 days | V174: 2014-09-21T06:07:14 | W174: 592304-1|368386-1|331174-1 | X174: 0 | Y174: 174
A175: 819376 | B175: kr | C175: 2 | D175: Sinnrc | E175: r | F175: 447175 | G175: kr | H175: 2 | I175: Goemon | J175: z | K175: 283455 | L175: kr | M175: 2 | N175: å·¥å…µç®¡åˆ¶å£« | O175: r | P175: Bronze | Q175: 10 | R175: 6 | S175: 206 | T175: 2014-07-10 | U175: 56 days | V175: 2014-09-21T06:07:14 | W175: 819376-2|447175-2|283455-2 | X175: 0 | Y175: 175
A176: 4136638 | B176: kr | C176: 1 | D176: ì•„ë¦„ë‹¤ìš´ì¸ìƒ | E176: z | F176: 2170288 | G176: kr | H176: 1 | I176: ë‚ ìœ¼ëŠ”ìš© | J176: p | K176: 1964115 | L176: kr | M176: 1 | N176: refdgs | O176: p | P176: Bronze | Q176: 7 | R176: 8 | S176: 206 | T176: 2014-08-09 | U176: 42 days | V176: 2014-09-21T06:07:14 | W176: 4136638-1|2170288-1|1964115-1 | X176: 0 | Y176: 176
A177: 2860326 | B177: kr | C177: 1 | D177: ê°€ì¯”ì˜¤ìš°ë™ | E177: p | F177: 2530133 | G177: kr | H177: 1 | I177: ì›”ì•™ | J177: z | K177: 718959 | L177: kr | M177: 1 | N177: ê¹€ë°¥íŒ”ì•„ | O177: p | P177: Bronze | Q177: 8 | R177: 10 | S177: 206 | T177: 2014-08-01 | U177: 38 days | V177: 2014-09-21T06:07:14 | W177: 2860326-1|2530133-1|718959-1 | X177: 0 | Y177: 177
A178: 1419888 | B178: kr | C178: 1 | D178: ë˜¥ì²œì‚¬ | E178: z | F178: 712900 | G178: kr | H178: 1 | I178: ë™ì´ìž¥êµ° | J178: p | K178: 241548 | L178: kr | M178: 1 | N178: ì•„ë¥˜ì œ | O178: r | P178: Bronze | Q178: 8 | R178: 18 | S178: 206 | T178: 2014-09-08 | U178: 12 days | V178: 2014-09-21T06:07:14 | W178: 1419888-1|712900-1|241548-1 | X178: 0 | Y178: 178
A179: 4711731 | B179: kr | C179: 1 | D179: ë°±ì–µ | E179: z | F179: 925324 | G179: kr | H179: 1 | I179: Nicola | J179: p | K179: 831544 | L179: kr | M179: 1 | N179: ì‹­ë³´ì „ì§„ | O179: p | P179: Bronze | Q179: 6 | R179: 17 | S179: 206 | T179: 2014-08-23 | U179: 15 days | V179: 2014-09-21T06:07:14 | W179: 4711731-1|925324-1|831544-1 | X179: 0 | Y179: 179
A180: 4269467 | B180: kr | C180: 1 | D180: kasar | E180: t | F180: 4269319 | G180: kr | H180: 1 | I180: Cosmic | J180: r | K180: 4268941 | L180: kr | M180: 1 | N180: RGzToto | O180: r | P180: Bronze | Q180: 6 | R180: 13 | S180: 204 | T180: 2014-09-12 | U180: 2 days | V180: 2014-09-21T06:07:14 | W180: 4269467-1|4269319-1|4268941-1 | X180: 0 | Y180: 180
A181: 4686963 | B181: kr | C181: 1 | D181: Yahweh | E181: p | F181: 4685642 | G181: kr | H181: 1 | I181: maven | J181: p | K181: 4684738 | L181: kr | M181: 1 | N181: schweiss | O181: t | P181: Bronze | Q181: 12 | R181: 17 | S181: 203 | T181: 2014-07-16 | U181: 61 days | V181: 2014-09-21T06:07:14 | W181: 4686963-1|4685642-1|4684738-1 | X181: 0 | Y181: 181
A182: 4701421 | B182: kr | C182: 1 | D182: ì¿ ë°”ë‚˜ | E182: t | F182: 4383703 | G182: kr | H182: 1 | I182: ì´ë¦¬ì•¼ | J182: z | K182: 4351926 | L182: kr | M182: 1 | N182: ì í† ë§ˆì•„ | O182: t | P182: Bronze | Q182: 12 | R182: 54 | S182: 203 | T182: 2014-08-23 | U182: 6 days | V182: 2014-09-21T06:07:14 | W182: 4701421-1|4383703-1|4351926-1 | X182: 0 | Y182: 182
A183: 1108440 | B183: kr | C183: 2 | D183: å‘¨æ°å€« | E183: p | F183: 83183 | G183: kr | H183: 2 | I183: GPE | J183: p | K183: 35056 | L183: kr | M183: 2 | N183: kirry | O183: z | P183: Bronze | Q183: 7 | R183: 5 | S183: 202 | T183: 2014-07-16 | U183: 21 days | V183: 2014-09-21T06:07:15 | W183: 1108440-2|83183-2|35056-2 | X183: 0 | Y183: 183
A184: 3704099 | B184: kr | C184: 1 | D184: í¬ë ˆë…¸ | E184: t | F184: 2822458 | G184: kr | H184: 1 | I184: ê·¸ë¥´ë¥´ | J184: p | K184: 681797 | L184: kr | M184: 1 | N184: WOL | O184: p | P184: Bronze | Q184: 9 | R184: 11 | S184: 200 | T184: 2014-08-01 | U184: 50 days | V184: 2014-09-21T06:07:15 | W184: 3704099-1|2822458-1|681797-1 | X184: 0 | Y184: 184
A185: 972182 | B185: kr | C185: 2 | D185: SinCara | E185: p | F185: 970890 | G185: kr | H185: 2 | I185: HelliOn | J185: z | K185: 970580 | L185: kr | M185: 2 | N185: Pioneer | O185: p | P185: Bronze | Q185: 12 | R185: 14 | S185: 199 | T185: 2014-07-22 | U185: 55 days | V185: 2014-09-21T06:07:15 | W185: 972182-2|970890-2|970580-2 | X185: 0 | Y185: 185
A186: 3911243 | B186: kr | C186: 1 | D186: sedoya | E186: z | F186: 2874766 | G186: kr | H186: 1 | I186: pajama | J186: t | K186: 2811597 | L186: kr | M186: 1 | N186: yihoonmin | O186: p | P186: Bronze | Q186: 5 | R186: 1 | S186: 198 | T186: 2014-08-01 | U186: 1 days | V186: 2014-09-21T06:07:15 | W186: 3911243-1|2874766-1|2811597-1 | X186: 0 | Y186: 186
A187: 4594439 | B187: kr | C187: 1 | D187: Holmes | E187: z | F187: 2374321 | G187: kr | H187: 1 | I187: íŒ¡í‚¤ë‹˜ | J187: p | K187: 2279121 | L187: kr | M187: 1 | N187: ë²™í‚¤ë‹˜ | O187: t | P187: Bronze | Q187: 7 | R187: 2 | S187: 198 | T187: 2014-07-21 | U187: 15 days | V187: 2014-09-21T06:07:15 | W187: 4594439-1|2374321-1|2279121-1 | X187: 0 | Y187: 187
A188: 1135702 | B188: kr | C188: 2 | D188: Reg | E188: z | F188: 1108336 | G188: kr | H188: 2 | I188: ç„¡æ•µå°éµ | J188: t | K188: 970224 | L188: kr | M188: 2 | N188: ssc | O188: p | P188: Bronze | Q188: 6 | R188: 4 | S188: 198 | T188: 2014-07-19 | U188: 4 days | V188: 2014-09-21T06:07:15 | W188: 1135702-2|1108336-2|970224-2 | X188: 0 | Y188: 188
A189: 4629958 | B189: kr | C189: 1 | D189: lim | E189: p | F189: 4628292 | G189: kr | H189: 1 | I189: KKKK | J189: p | K189: 4212992 | L189: kr | M189: 1 | N189: í¬ë¦¬ì‚´ë¦¬ë“œ | O189: t | P189: Bronze | Q189: 7 | R189: 7 | S189: 196 | T189: 2014-08-24 | U189: 28 days | V189: 2014-09-21T06:07:15 | W189: 4629958-1|4628292-1|4212992-1 | X189: 0 | Y189: 189
A190: 3642092 | B190: kr | C190: 1 | D190: ë¨¹ê³ ë³´ë‹ˆí• ë§¤ | E190: p | F190: 2391340 | G190: kr | H190: 1 | I190: ì—¬ë³´íŒ…êµ¬ë¦¬ | J190: r | K190: 92799 | L190: kr | M190: 1 | N190: kimgun | O190: r | P190: Bronze | Q190: 7 | R190: 4 | S190: 194 | T190: 2014-07-27 | U190: 22 days | V190: 2014-09-21T06:07:15 | W190: 3642092-1|2391340-1|92799-1 | X190: 0 | Y190: 190
A191: 900218 | B191: kr | C191: 1 | D191: theapple | E191: p | F191: 825275 | G191: kr | H191: 1 | I191: í‚¤í‚¤í‚¤ | J191: z | K191: 525185 | L191: kr | M191: 1 | N191: ìš°ì—ë…¸ì¥¬ë¦¬ | O191: t | P191: Bronze | Q191: 7 | R191: 4 | S191: 194 | T191: 2014-08-05 | U191: 34 days | V191: 2014-09-21T06:07:15 | W191: 900218-1|825275-1|525185-1 | X191: 0 | Y191: 191
A192: 831406 | B192: kr | C192: 2 | D192: aliveordead | E192: z | F192: 749445 | G192: kr | H192: 2 | I192: DemonCat | J192: p | K192: 473009 | L192: kr | M192: 2 | N192: æ¿•ç˜©ç˜© | O192: t | P192: Bronze | Q192: 7 | R192: 6 | S192: 194 | T192: 2014-07-12 | U192: 17 hours | V192: 2014-09-21T06:07:15 | W192: 831406-2|749445-2|473009-2 | X192: 0 | Y192: 192
A193: 2252028 | B193: kr | C193: 1 | D193: ëª¨ê¸°í¬í¬í¬ | E193: t | F193: 1193181 | G193: kr | H193: 1 | I193: í…Œë¦¬ìš°ìŠ¤ | J193: r | K193: 949603 | L193: kr | M193: 1 | N193: mick | O193: p | P193: Bronze | Q193: 6 | R193: 3 | S193: 192 | T193: 2014-08-12 | U193: 5 days | V193: 2014-09-21T06:07:15 | W193: 2252028-1|1193181-1|949603-1 | X193: 0 | Y193: 193
A194: 744067 | B194: kr | C194: 2 | D194: Turkeypapa | E194: t | F194: 682331 | G194: kr | H194: 2 | I194: æˆä¸Šå¸ | J194: t | K194: 433328 | L194: kr | M194: 2 | N194: Ashes | O194: t | P194: Bronze | Q194: 6 | R194: 5 | S194: 192 | T194: 2014-08-20 | U194: 8 days | V194: 2014-09-21T06:07:15 | W194: 744067-2|682331-2|433328-2 | X194: 0 | Y194: 194
A195: 1344894 | B195: kr | C195: 2 | D195: LocKeYXX | E195: p | F195: 1067708 | G195: kr | H195: 2 | I195: MoMark | J195: r | K195: 77614 | L195: kr | M195: 2 | N195: losfair | O195: r | P195: Bronze | Q195: 20 | R195: 21 | S195: 191 | T195: 2014-07-12 | U195: 54 days | V195: 2014-09-21T06:07:15 | W195: 1344894-2|1067708-2|77614-2 | X195: 0 | Y195: 195
A196: 2944225 | B196: kr | C196: 1 | D196: ë£¨íƒ€ | E196: p | F196: 1872866 | G196: kr | H196: 1 | I196: Scout | J196: t | K196: 1517132 | L196: kr | M196: 1 | N196: Luna | O196: z | P196: Bronze | Q196: 5 | R196: 0 | S196: 190 | T196: 2014-08-31 | U196: 21 days | V196: 2014-09-21T06:07:15 | W196: 2944225-1|1872866-1|1517132-1 | X196: 0 | Y196: 196
A197: 4271188 | B197: kr | C197: 1 | D197: ì˜¬ì¸ë§‰ìž¥ | E197: r | F197: 3809876 | G197: kr | H197: 1 | I197: acoustic | J197: t | K197: 1157557 | L197: kr | M197: 1 | N197: ìš”ì‰£ê¸° | O197: t | P197: Bronze | Q197: 6 | R197: 3 | S197: 190 | T197: 2014-08-30 | U197: 21 days | V197: 2014-09-21T06:07:15 | W197: 4271188-1|3809876-1|1157557-1 | X197: 0 | Y197: 197
A198: 800301 | B198: kr | C198: 2 | D198: å¶é€Ÿç¥žå°ˆæ‰“å°¼ | E198: r | F198: 735078 | G198: kr | H198: 2 | I198: lIIIIIIIIIII | J198: t | K198: 362406 | L198: kr | M198: 2 | N198: llllllllllll | O198: t | P198: Bronze | Q198: 5 | R198: 4 | S198: 190 | T198: 2014-07-22 | U198: 25 days | V198: 2014-09-21T06:07:15 | W198: 800301-2|735078-2|362406-2 | X198: 0 | Y198: 198
A199: 1766781 | B199: kr | C199: 1 | D199: hiems | E199: p | F199: 230318 | G199: kr | H199: 1 | I199: Taihou | J199: r | K199: 87985 | L199: kr | M199: 1 | N199: ì²œì‚¬ë“¤ì˜ë³€í˜ | O199: t | P199: Bronze | Q199: 7 | R199: 2 | S199: 189 | T199: 2014-07-11 | U199: 25 days | V199: 2014-09-21T06:07:15 | W199: 1766781-1|230318-1|87985-1 | X199: 0 | Y199: 199
A200: 1388347 | B200: kr | C200: 1 | D200: ê³ ì €ìŠ¤ | E200: p | F200: 1281670 | G200: kr | H200: 1 | I200: lem | J200: t | K200: 154179 | L200: kr | M200: 1 | N200: í—ˆí´ë² ë¦¬ì¤€ | O200: z | P200: Bronze | Q200: 7 | R200: 3 | S200: 188 | T200: 2014-08-10 | U200: 15 days | V200: 2014-09-21T06:07:15 | W200: 1388347-1|1281670-1|154179-1 | X200: 0 | Y200: 200
... 2050 more rows

Sheet 4v4Team
A1: Player ID 1 | B1: Player 1 Region | C1: Player 1 Subregion | D1: Player 1 Name | E1: Player 1 Race | F1: Player ID 2 | G1: Player 2 Region | H1: Player 2 Subregion | I1: Player 2 Name | J1: Player 2 Race | K1: Player ID 3 | L1: Player 3 Region | M1: Player 3 Subregion | N1: Player 3 Name | O1: Player 3 Race | P1: Player ID 4 | Q1: Player 4 Region | R1: Player 4 Subregion | S1: Player 4 Name | T1: Player 4 Race | U1: League | V1: Win | W1: Loss | X1: Score | Y1: Date Joined | Z1: Last Game | AA1: Timestamp | AB1: TrueID | AC1: Duplicate Check | AD1: Ordered ID
A2: 4141610 | B2: kr | C2: 1 | D2: ì²œí•˜í‰ì • | E2: p | F2: 4141007 | G2: kr | H2: 1 | I2: blacktie | J2: p | K2: 4140975 | L2: kr | M2: 1 | N2: ì•…ë§ˆ | O2: p | P2: 3969388 | Q2: kr | R2: 1 | S2: íš¨ì‹œê¹… | T2: r | U2: Bronze | V2: 18 | W2: 22 | X2: 476 | Y2: 2014-07-11 | Z2: 2 days | AA2: 2014-09-21T06:07:33 | AB2: 4141610-1|4141007-1|4140975-1|3969388-1 | AC2: 0 | AD2: 2
A3: 4386990 | B3: kr | C3: 1 | D3: ìžë¼ìž”ìˆ˜ | E3: t | F3: 4380814 | G3: kr | H3: 1 | I3: ê¹€ì„±ìˆ˜ | J3: r | K3: 4372242 | L3: kr | M3: 1 | N3: ë»í‚¹ | O3: z | P3: 865071 | Q3: kr | R3: 1 | S3: ì­ˆë‹ˆ | T3: r | U3: Bronze | V3: 14 | W3: 23 | X3: 440 | Y3: 2014-08-16 | Z3: 3 hours | AA3: 2014-09-21T06:07:33 | AB3: 4386990-1|4380814-1|4372242-1|865071-1 | AC3: 0 | AD3: 3
A4: 815864 | B4: kr | C4: 2 | D4: é™³å®¶äºŒå°‘ | E4: p | F4: 775000 | G4: kr | H4: 2 | I4: AllenChen | J4: t | K4: 769884 | L4: kr | M4: 2 | N4: breaksoul | O4: t | P4: 691255 | Q4: kr | R4: 2 | S4: White | T4: z | U4: Bronze | V4: 18 | W4: 21 | X4: 394 | Y4: 2014-07-08 | Z4: 27 days | AA4: 2014-09-21T06:07:33 | AB4: 815864-2|775000-2|769884-2|691255-2 | AC4: 0 | AD4: 4
A5: 410140 | B5: kr | C5: 2 | D5: Visnjic | E5: r | F5: 345733 | G5: kr | H5: 2 | I5: MaDRoLL | J5: r | K5: 243462 | L5: kr | M5: 2 | N5: MaDKYO | O5: r | P5: 155761 | Q5: kr | R5: 2 | S5: MaDevil | T5: r | U5: Bronze | V5: 9 | W5: 10 | X5: 370 | Y5: 2014-08-03 | Z5: 25 days | AA5: 2014-09-21T06:07:33 | AB5: 410140-2|345733-2|243462-2|155761-2 | AC5: 0 | AD5: 5
A6: 3727611 | B6: kr | C6: 1 | D6: ê±´ë‹¬ | E6: p | F6: 2607895 | G6: kr | H6: 1 | I6: ìˆ˜ì§€ë‚´êº¼ | J6: t | K6: 1553341 | L6: kr | M6: 1 | N6: ìžìœ | O6: r | P6: 1436440 | Q6: kr | R6: 1 | S6: ê¹€ë¯¼êµ¬ | T6: p | U6: Bronze | V6: 13 | W6: 11 | X6: 328 | Y6: 2014-07-29 | Z6: 10 days | AA6: 2014-09-21T06:07:33 | AB6: 3727611-1|2607895-1|1553341-1|1436440-1 | AC6: 0 | AD6: 6
A7: 1095496 | B7: kr | C7: 1 | D7: ì©Œë¦¬ | E7: r | F7: 1008477 | G7: kr | H7: 1 | I7: ìžìœ ì˜ë‚ ê°œ | J7: t | K7: 960788 | L7: kr | M7: 1 | N7: fousbyus | O7: r | P7: 849855 | Q7: kr | R7: 1 | S7: Limhw | T7: r | U7: Bronze | V7: 9 | W7: 18 | X7: 322 | Y7: 2014-08-01 | Z7: 20 days | AA7: 2014-09-21T06:07:33 | AB7: 1095496-1|1008477-1|960788-1|849855-1 | AC7: 0 | AD7: 7
A8: 1136809 | B8: kr | C8: 1 | D8: ë©€í‹°í•µ | E8: z | F8: 492743 | G8: kr | H8: 1 | I8: Ironytic | J8: p | K8: 405563 | L8: kr | M8: 1 | N8: ê²Œë¥´ë§Œì¡± | O8: p | P8: 149068 | Q8: kr | R8: 1 | S8: ë°•ìˆ˜ì—¼ | T8: p | U8: Bronze | V8: 8 | W8: 14 | X8: 292 | Y8: 2014-08-23 | Z8: 15 days | AA8: 2014-09-21T06:07:33 | AB8: 1136809-1|492743-1|405563-1|149068-1 | AC8: 0 | AD8: 8
A9: 455075 | B9: kr | C9: 2 | D9: MaDRice | E9: p | F9: 345733 | G9: kr | H9: 2 | I9: MaDRoLL | J9: r | K9: 243462 | L9: kr | M9: 2 | N9: MaDKYO | O9: r | P9: 155761 | Q9: kr | R9: 2 | S9: MaDevil | T9: r | U9: Bronze | V9: 10 | W9: 13 | X9: 288 | Y9: 2014-08-06 | Z9: 26 days | AA9: 2014-09-21T06:07:33 | AB9: 455075-2|345733-2|243462-2|155761-2 | AC9: 0 | AD9: 9
A10: 4722326 | B10: kr | C10: 1 | D10: ì €ê·¸ì˜ì–´ë¨¸ë‹ˆ | E10: t | F10: 4720471 | G10: kr | H10: 1 | I10: ë¬¼ë´‰ë”¸ | J10: p | K10: 3794323 | L10: kr | M10: 1 | N10: ì•„ì´í¥í–‰ | O10: p | P10: 3255678 | Q10: kr | R10: 1 | S10: ë‚œê±°ì§€ìž„ìˆ˜ê³ | T10: z | U10: Bronze | V10: 10 | W10: 15 | X10: 278 | Y10: 2014-08-31 | Z10: 11 days | AA10: 2014-09-21T06:07:33 | AB10: 4722326-1|4720471-1|3794323-1|3255678-1 | AC10: 0 | AD10: 10
A11: 905334 | B11: kr | C11: 2 | D11: å°æœˆä¸¸è™Ÿ | E11: z | F11: 891079 | G11: kr | H11: 2 | I11: JingGeSmida | J11: t | K11: 873581 | L11: kr | M11: 2 | N11: Terry | O11: t | P11: 722444 | Q11: kr | R11: 2 | S11: TianNuSmida | T11: t | U11: Bronze | V11: 13 | W11: 26 | X11: 278 | Y11: 2014-07-23 | Z11: 36 days | AA11: 2014-09-21T06:07:33 | AB11: 905334-2|891079-2|873581-2|722444-2 | AC11: 0 | AD11: 11
A12: 345733 | B12: kr | C12: 2 | D12: MaDRoLL | E12: r | F12: 243462 | G12: kr | H12: 2 | I12: MaDKYO | J12: r | K12: 155761 | L12: kr | M12: 2 | N12: MaDevil | O12: r | P12: 93758 | Q12: kr | R12: 2 | S12: dOrEmI | T12: r | U12: Bronze | V12: 7 | W12: 11 | X12: 272 | Y12: 2014-08-18 | Z12: 30 days | AA12: 2014-09-21T06:07:33 | AB12: 345733-2|243462-2|155761-2|93758-2 | AC12: 0 | AD12: 12
A13: 1398911 | B13: kr | C13: 1 | D13: í•˜ëŠ˜ë‚˜ë£¨ | E13: z | F13: 554958 | G13: kr | H13: 1 | I13: ë‹¤ë¥´ì—˜ | J13: t | K13: 133191 | L13: kr | M13: 1 | N13: ì¡´ë§› | O13: r | P13: 101498 | Q13: kr | R13: 1 | S13: Nerz | T13: r | U13: Bronze | V13: 8 | W13: 17 | X13: 272 | Y13: 2014-08-19 | Z13: 21 days | AA13: 2014-09-21T06:07:33 | AB13: 1398911-1|554958-1|133191-1|101498-1 | AC13: 0 | AD13: 13
A14: 1270244 | B14: kr | C14: 2 | D14: CYL | E14: p | F14: 465616 | G14: kr | H14: 2 | I14: PITT | J14: r | K14: 134166 | L14: kr | M14: 2 | N14: AutumnLeaves | O14: r | P14: 52796 | Q14: kr | R14: 2 | S14: Ephesus | T14: p | U14: Bronze | V14: 8 | W14: 7 | X14: 270 | Y14: 2014-08-02 | Z14: 11 days | AA14: 2014-09-21T06:07:33 | AB14: 1270244-2|465616-2|134166-2|52796-2 | AC14: 0 | AD14: 14
A15: 410140 | B15: kr | C15: 2 | D15: Visnjic | E15: r | F15: 345733 | G15: kr | H15: 2 | I15: MaDRoLL | J15: r | K15: 155761 | L15: kr | M15: 2 | N15: MaDevil | O15: r | P15: 93758 | Q15: kr | R15: 2 | S15: dOrEmI | T15: r | U15: Bronze | V15: 9 | W15: 7 | X15: 264 | Y15: 2014-08-24 | Z15: 27 days | AA15: 2014-09-21T06:07:33 | AB15: 410140-2|345733-2|155761-2|93758-2 | AC15: 0 | AD15: 15
A16: 4702145 | B16: kr | C16: 1 | D16: ê²½ì´ | E16: p | F16: 3535424 | G16: kr | H16: 1 | I16: ì„œê¸° | J16: p | K16: 1769187 | L16: kr | M16: 1 | N16: í•´ê²°ì‚¬ | O16: p | P16: 279855 | Q16: kr | R16: 1 | S16: ë¡œë Œì„¸ì´ | T16: r | U16: Bronze | V16: 7 | W16: 11 | X16: 256 | Y16: 2014-08-06 | Z16: 32 days | AA16: 2014-09-21T06:07:33 | AB16: 4702145-1|3535424-1|1769187-1|279855-1 | AC16: 0 | AD16: 16
A17: 1008182 | B17: kr | C17: 2 | D17: BusterApin | E17: p | F17: 628641 | G17: kr | H17: 2 | I17: å¼·é‹å­”é˜ | J17: t | K17: 628602 | L17: kr | M17: 2 | N17: ç°é•·é¾ | O17: p | P17: 391811 | Q17: kr | R17: 2 | S17: é£¯åŒ… | T17: z | U17: Bronze | V17: 7 | W17: 9 | X17: 252 | Y17: 2014-08-09 | Z17: 13 days | AA17: 2014-09-21T06:07:33 | AB17: 1008182-2|628641-2|628602-2|391811-2 | AC17: 0 | AD17: 17
A18: 3723493 | B18: kr | C18: 1 | D18: ì¦ê²œìœ ì € | E18: z | F18: 3108254 | G18: kr | H18: 1 | I18: ë‚˜ì´í‚¤ì ¸ì§€ | J18: p | K18: 2019524 | L18: kr | M18: 1 | N18: íƒ±ìž | O18: t | P18: 1021605 | Q18: kr | R18: 1 | S18: Zeratul | T18: p | U18: Bronze | V18: 6 | W18: 2 | X18: 250 | Y18: 2014-08-02 | Z18: 41 days | AA18: 2014-09-21T06:07:33 | AB18: 3723493-1|3108254-1|2019524-1|1021605-1 | AC18: 0 | AD18: 18
A19: 4256025 | B19: kr | C19: 1 | D19: ë ˆì´ì˜¨ì§€ | E19: p | F19: 327796 | G19: kr | H19: 1 | I19: Siz | J19: r | K19: 180669 | L19: kr | M19: 1 | N19: King | O19: p | P19: 119908 | Q19: kr | R19: 1 | S19: SsunChip | T19: r | U19: Bronze | V19: 9 | W19: 20 | X19: 248 | Y19: 2014-07-26 | Z19: 29 days | AA19: 2014-09-21T06:07:33 | AB19: 4256025-1|327796-1|180669-1|119908-1 | AC19: 0 | AD19: 19
A20: 4413018 | B20: kr | C20: 1 | D20: ë­˜ë´¥ | E20: z | F20: 4378132 | G20: kr | H20: 1 | I20: ë­˜ë´ì”¨ë°©ìƒì•„ | J20: p | K20: 2610619 | L20: kr | M20: 1 | N20: Soon | O20: t | P20: 420568 | Q20: kr | R20: 1 | S20: ìš”ì“°ë°© | T20: z | U20: Bronze | V20: 6 | W20: 4 | X20: 246 | Y20: 2014-08-02 | Z20: 49 days | AA20: 2014-09-21T06:07:33 | AB20: 4413018-1|4378132-1|2610619-1|420568-1 | AC20: 0 | AD20: 20
A21: 886272 | B21: kr | C21: 2 | D21: Seraphim | E21: p | F21: 692150 | G21: kr | H21: 2 | I21: é»ƒå¸«è™Ž | J21: z | K21: 285917 | L21: kr | M21: 2 | N21: Stanley | O21: z | P21: 211245 | Q21: kr | R21: 2 | S21: MyThVance | T21: p | U21: Bronze | V21: 8 | W21: 6 | X21: 246 | Y21: 2014-08-23 | Z21: 14 days | AA21: 2014-09-21T06:07:33 | AB21: 886272-2|692150-2|285917-2|211245-2 | AC21: 0 | AD21: 21
A22: 1216969 | B22: kr | C22: 2 | D22: æ¼ åˆ€ | E22: z | F22: 764117 | G22: kr | H22: 2 | I22: Lingogo | J22: t | K22: 196075 | L22: kr | M22: 2 | N22: è–æ½”ä¹‹å­ | O22: z | P22: 127863 | Q22: kr | R22: 2 | S22: è½Ÿå¸ƒæœ— | T22: z | U22: Bronze | V22: 8 | W22: 3 | X22: 244 | Y22: 2014-08-09 | Z22: 42 days | AA22: 2014-09-21T06:07:33 | AB22: 1216969-2|764117-2|196075-2|127863-2 | AC22: 0 | AD22: 22
A23: 3911243 | B23: kr | C23: 1 | D23: sedoya | E23: z | F23: 2879386 | G23: kr | H23: 1 | I23: ë³‘ë§› | J23: z | K23: 2874766 | L23: kr | M23: 1 | N23: pajama | O23: t | P23: 2811597 | Q23: kr | R23: 1 | S23: yihoonmin | T23: p | U23: Bronze | V23: 6 | W23: 2 | X23: 240 | Y23: 2014-08-08 | Z23: 7 days | AA23: 2014-09-21T06:07:33 | AB23: 3911243-1|2879386-1|2874766-1|2811597-1 | AC23: 0 | AD23: 23
A24: 3641387 | B24: kr | C24: 1 | D24: ë‚˜ëŠ”ë‚¨ìžë‹¤ | E24: p | F24: 3516560 | G24: kr | H24: 1 | I24: ë°•ìˆ˜ë¹ˆìˆ˜ë°• | J24: t | K24: 3418924 | L24: kr | M24: 1 | N24: êµ´ë¦¼ | O24: p | P24: 2405052 | Q24: kr | R24: 1 | S24: elf | T24: z | U24: Bronze | V24: 9 | W24: 8 | X24: 240 | Y24: 2014-09-14 | Z24: 4 days | AA24: 2014-09-21T06:07:33 | AB24: 3641387-1|3516560-1|3418924-1|2405052-1 | AC24: 0 | AD24: 24
A25: 874164 | B25: kr | C25: 2 | D25: Max | E25: t | F25: 731229 | G25: kr | H25: 2 | I25: nevermind | J25: p | K25: 508284 | L25: kr | M25: 2 | N25: Avenger | O25: t | P25: 51750 | Q25: kr | R25: 2 | S25: æ¢—çŽ‹ | T25: p | U25: Bronze | V25: 7 | W25: 12 | X25: 238 | Y25: 2014-08-11 | Z25: 36 days | AA25: 2014-09-21T06:07:33 | AB25: 874164-2|731229-2|508284-2|51750-2 | AC25: 0 | AD25: 25
A26: 3975376 | B26: kr | C26: 1 | D26: ê°œë…ì›ë¦¬ | E26: p | F26: 3735510 | G26: kr | H26: 1 | I26: vision | J26: p | K26: 1349708 | L26: kr | M26: 1 | N26: DoubleHongJu | O26: t | P26: 303098 | Q26: kr | R26: 1 | S26: TrAuMa | T26: p | U26: Bronze | V26: 7 | W26: 4 | X26: 232 | Y26: 2014-08-17 | Z26: 11 days | AA26: 2014-09-21T06:07:33 | AB26: 3975376-1|3735510-1|1349708-1|303098-1 | AC26: 0 | AD26: 26
A27: 1557590 | B27: kr | C27: 1 | D27: ìž‡ë³´ | E27: z | F27: 1247974 | G27: kr | H27: 1 | I27: ì¤‘ì‹¤ì´ | J27: p | K27: 989328 | L27: kr | M27: 1 | N27: íŒ¨í„´ì‚­ | O27: t | P27: 135135 | Q27: kr | R27: 1 | S27: ë””ë‚¨ì†¡ | T27: p | U27: Bronze | V27: 11 | W27: 9 | X27: 229 | Y27: 2014-07-12 | Z27: 64 days | AA27: 2014-09-21T06:07:33 | AB27: 1557590-1|1247974-1|989328-1|135135-1 | AC27: 0 | AD27: 27
A28: 4401800 | B28: kr | C28: 1 | D28: ColdLogic | E28: r | F28: 4400202 | G28: kr | H28: 1 | I28: eckers | J28: t | K28: 4400012 | L28: kr | M28: 1 | N28: Hsuperdroid | O28: t | P28: 4394227 | Q28: kr | R28: 1 | S28: Jacx | T28: r | U28: Bronze | V28: 7 | W28: 14 | X28: 224 | Y28: 2014-07-11 | Z28: 1 days | AA28: 2014-09-21T06:07:33 | AB28: 4401800-1|4400202-1|4400012-1|4394227-1 | AC28: 0 | AD28: 28
A29: 1090136 | B29: kr | C29: 2 | D29: MarukoY | E29: p | F29: 325431 | G29: kr | H29: 2 | I29: yychen | J29: z | K29: 141401 | L29: kr | M29: 2 | N29: Jerry | O29: t | P29: 91030 | Q29: kr | R29: 2 | S29: ReDrAy | T29: t | U29: Bronze | V29: 7 | W29: 14 | X29: 224 | Y29: 2014-07-26 | Z29: 13 days | AA29: 2014-09-21T06:07:33 | AB29: 1090136-2|325431-2|141401-2|91030-2 | AC29: 0 | AD29: 29
A30: 3351870 | B30: kr | C30: 1 | D30: ì¦ê¶Œë§¨ | E30: r | F30: 3347113 | G30: kr | H30: 1 | I30: ixdrgpoidrth | J30: z | K30: 1953222 | L30: kr | M30: 1 | N30: í€¸ì¦ˆ | O30: t | P30: 1952935 | Q30: kr | R30: 1 | S30: HyoJu | T30: z | U30: Bronze | V30: 5 | W30: 14 | X30: 224 | Y30: 2014-09-14 | Z30: 48 minutes | AA30: 2014-09-21T06:07:33 | AB30: 3351870-1|3347113-1|1953222-1|1952935-1 | AC30: 0 | AD30: 30
A31: 4667340 | B31: kr | C31: 1 | D31: ì• í”Œê³¼ì‹¤ì¦™ | E31: z | F31: 3054772 | G31: kr | H31: 1 | I31: ë½€ë¡êµ°ì£¼ | J31: p | K31: 2215309 | L31: kr | M31: 1 | N31: ë‹¨ìˆœížˆëŒì§„ | O31: t | P31: 132619 | Q31: kr | R31: 1 | S31: JDH | T31: r | U31: Bronze | V31: 9 | W31: 11 | X31: 222 | Y31: 2014-08-05 | Z31: 46 days | AA31: 2014-09-21T06:07:33 | AB31: 4667340-1|3054772-1|2215309-1|132619-1 | AC31: 0 | AD31: 31
A32: 1227946 | B32: kr | C32: 1 | D32: ë¨¸ë·°ìš”í˜¸ | E32: z | F32: 1214710 | G32: kr | H32: 1 | I32: ë‹¤ë„ˆë§Œë³´ê²Œí•´ | J32: t | K32: 990955 | L32: kr | M32: 1 | N32: OCTETshiny | O32: p | P32: 987996 | Q32: kr | R32: 1 | S32: ê²Œê²¡ì´ | T32: t | U32: Bronze | V32: 8 | W32: 4 | X32: 221 | Y32: 2014-07-22 | Z32: 59 days | AA32: 2014-09-21T06:07:33 | AB32: 1227946-1|1214710-1|990955-1|987996-1 | AC32: 0 | AD32: 32
A33: 2091731 | B33: kr | C33: 1 | D33: Messi | E33: z | F33: 2091367 | G33: kr | H33: 1 | I33: ìš°ì™€ì•™ | J33: p | K33: 1006345 | L33: kr | M33: 1 | N33: ì™¼ì†ì€ê±°ë“¤ë¿ | O33: t | P33: 874221 | Q33: kr | R33: 1 | S33: Test | T33: p | U33: Bronze | V33: 6 | W33: 1 | X33: 220 | Y33: 2014-08-25 | Z33: 12 days | AA33: 2014-09-21T06:07:33 | AB33: 2091731-1|2091367-1|1006345-1|874221-1 | AC33: 0 | AD33: 33
A34: 2398307 | B34: kr | C34: 1 | D34: ë¹µê¾¸ë˜¥ê¾¸ê¹¡êº¼ì˜¹ì“° | E34: t | F34: 2135915 | G34: kr | H34: 1 | I34: PokerFaceBM | J34: z | K34: 2134792 | L34: kr | M34: 1 | N34: Inception | O34: p | P34: 155835 | Q34: kr | R34: 1 | S34: MetaCarpBoss | T34: z | U34: Bronze | V34: 9 | W34: 16 | X34: 220 | Y34: 2014-08-04 | Z34: 14 days | AA34: 2014-09-21T06:07:33 | AB34: 2398307-1|2135915-1|2134792-1|155835-1 | AC34: 0 | AD34: 34
A35: 4630042 | B35: kr | C35: 1 | D35: dlrbxor | E35: p | F35: 4093919 | G35: kr | H35: 1 | I35: ìµœì¢…ë³‘ê¸°í•µ | J35: r | K35: 1477986 | L35: kr | M35: 1 | N35: ë•…í¬ë³´ì´ | O35: t | P35: 294300 | Q35: kr | R35: 1 | S35: ë³„ë¹›ê¸ˆì†ì¿ í¬ë¦¬ | T35: r | U35: Bronze | V35: 10 | W35: 13 | X35: 210 | Y35: 2014-07-18 | Z35: 36 days | AA35: 2014-09-21T06:07:33 | AB35: 4630042-1|4093919-1|1477986-1|294300-1 | AC35: 0 | AD35: 35
A36: 627376 | B36: kr | C36: 2 | D36: MrBrightside | E36: t | F36: 445506 | G36: kr | H36: 2 | I36: æ¢…æž— | J36: p | K36: 348615 | L36: kr | M36: 2 | N36: é‚ªé­…æ‘æ”¯æ›¸ | O36: t | P36: 309469 | Q36: kr | R36: 2 | S36: è‰¾çˆ¾ä¹‹å­ | T36: p | U36: Bronze | V36: 8 | W36: 10 | X36: 208 | Y36: 2014-08-27 | Z36: 17 days | AA36: 2014-09-21T06:07:33 | AB36: 627376-2|445506-2|348615-2|309469-2 | AC36: 0 | AD36: 36
A37: 774101 | B37: kr | C37: 2 | D37: DofuWYD | E37: r | F37: 578619 | G37: kr | H37: 2 | I37: å¤œé›¨ | J37: r | K37: 532473 | L37: kr | M37: 2 | N37: Mai | O37: r | P37: 107916 | Q37: kr | R37: 2 | S37: å·§å…‹åŠ› | T37: t | U37: Bronze | V37: 9 | W37: 7 | X37: 198 | Y37: 2014-09-02 | Z37: 18 days | AA37: 2014-09-21T06:07:33 | AB37: 774101-2|578619-2|532473-2|107916-2 | AC37: 0 | AD37: 37
A38: 2945164 | B38: kr | C38: 1 | D38: ì‹œì•¼ë‚˜ | E38: t | F38: 2700912 | G38: kr | H38: 1 | I38: ë¼ë² ë‹ˆì•„ | J38: p | K38: 2694735 | L38: kr | M38: 1 | N38: ìŠˆìš´ | O38: z | P38: 2589373 | Q38: kr | R38: 1 | S38: ê³ ë¼ | T38: p | U38: Bronze | V38: 13 | W38: 18 | X38: 192 | Y38: 2014-07-15 | Z38: 51 days | AA38: 2014-09-21T06:07:33 | AB38: 2945164-1|2700912-1|2694735-1|2589373-1 | AC38: 0 | AD38: 38
A39: 3057706 | B39: kr | C39: 1 | D39: Armegeddon | E39: z | F39: 2213849 | G39: kr | H39: 1 | I39: Mohandar | J39: p | K39: 1695258 | L39: kr | M39: 1 | N39: Assasins | O39: p | P39: 1232912 | Q39: kr | R39: 1 | S39: stimarine | T39: t | U39: Bronze | V39: 6 | W39: 1 | X39: 188 | Y39: 2014-08-06 | Z39: 46 days | AA39: 2014-09-21T06:07:33 | AB39: 3057706-1|2213849-1|1695258-1|1232912-1 | AC39: 0 | AD39: 39
A40: 4659354 | B40: kr | C40: 1 | D40: í—ˆíƒ± | E40: t | F40: 2465559 | G40: kr | H40: 1 | I40: íšŒê´‘ë°˜ì¡° | J40: z | K40: 1848331 | L40: kr | M40: 1 | N40: DREAMwin | O40: t | P40: 1257448 | Q40: kr | R40: 1 | S40: ìœ ë¼ | T40: p | U40: Bronze | V40: 7 | W40: 12 | X40: 188 | Y40: 2014-07-08 | Z40: 23 days | AA40: 2014-09-21T06:07:33 | AB40: 4659354-1|2465559-1|1848331-1|1257448-1 | AC40: 0 | AD40: 40
A41: 4706323 | B41: kr | C41: 1 | D41: AquaFive | E41: t | F41: 4623107 | G41: kr | H41: 1 | I41: BaneringZerg | J41: z | K41: 2917618 | L41: kr | M41: 1 | N41: FlameMarine | O41: t | P41: 901870 | Q41: kr | R41: 1 | S41: ì°Œëž‘ì´ | T41: p | U41: Bronze | V41: 8 | W41: 9 | X41: 186 | Y41: 2014-08-09 | Z41: 41 days | AA41: 2014-09-21T06:07:33 | AB41: 4706323-1|4623107-1|2917618-1|901870-1 | AC41: 0 | AD41: 41
A42: 4345428 | B42: kr | C42: 1 | D42: ìœ¡ìŠ¤ | E42: p | F42: 1932449 | G42: kr | H42: 1 | I42: embakum | J42: r | K42: 960788 | L42: kr | M42: 1 | N42: fousbyus | O42: r | P42: 849855 | Q42: kr | R42: 1 | S42: Limhw | T42: r | U42: Bronze | V42: 5 | W42: 8 | X42: 184 | Y42: 2014-08-08 | Z42: 43 days | AA42: 2014-09-21T06:07:33 | AB42: 4345428-1|1932449-1|960788-1|849855-1 | AC42: 0 | AD42: 42
A43: 857342 | B43: kr | C43: 2 | D43: ä¼ºæ©Ÿè€Œå‹• | E43: z | F43: 240267 | G43: kr | H43: 2 | I43: mason | J43: z | K43: 219076 | L43: kr | M43: 2 | N43: ä¸‰ç¢—è±¬è…³ | O43: p | P43: 125576 | Q43: kr | R43: 2 | S43: é³³å‡Œ | T43: z | U43: Bronze | V43: 7 | W43: 4 | X43: 182 | Y43: 2014-09-19 | Z43: 1 hours | AA43: 2014-09-21T06:07:34 | AB43: 857342-2|240267-2|219076-2|125576-2 | AC43: 0 | AD43: 43
A44: 1183856 | B44: kr | C44: 2 | D44: å°èƒ– | E44: p | F44: 615118 | G44: kr | H44: 2 | I44: Roger | J44: p | K44: 83183 | L44: kr | M44: 2 | N44: GPE | O44: p | P44: 35056 | Q44: kr | R44: 2 | S44: kirry | T44: z | U44: Bronze | V44: 5 | W44: 4 | X44: 181 | Y44: 2014-07-23 | Z44: 60 days | AA44: 2014-09-21T06:07:34 | AB44: 1183856-2|615118-2|83183-2|35056-2 | AC44: 0 | AD44: 44
A45: 860178 | B45: kr | C45: 2 | D45: å£žäººé˜¿é©ž | E45: z | F45: 508284 | G45: kr | H45: 2 | I45: Avenger | J45: t | K45: 75734 | L45: kr | M45: 2 | N45: Felix | O45: z | P45: 51750 | Q45: kr | R45: 2 | S45: æ¢—çŽ‹ | T45: z | U45: Bronze | V45: 5 | W45: 2 | X45: 178 | Y45: 2014-07-27 | Z45: 27 days | AA45: 2014-09-21T06:07:34 | AB45: 860178-2|508284-2|75734-2|51750-2 | AC45: 0 | AD45: 45
A46: 3362003 | B46: kr | C46: 1 | D46: ìŠ¤íƒ€ì—ëŒ€í•œì—´ì • | E46: t | F46: 2054939 | G46: kr | H46: 1 | I46: FFD | J46: p | K46: 1974414 | L46: kr | M46: 1 | N46: ë°”ì¿ | O46: z | P46: 1972960 | Q46: kr | R46: 1 | S46: Fivlsm | T46: z | U46: Bronze | V46: 4 | W46: 2 | X46: 174 | Y46: 2014-09-08 | Z46: 13 days | AA46: 2014-09-21T06:07:34 | AB46: 3362003-1|2054939-1|1974414-1|1972960-1 | AC46: 0 | AD46: 46
A47: 3318554 | B47: kr | C47: 1 | D47: íŒŒì´ë¦¬ | E47: z | F47: 832358 | G47: kr | H47: 1 | I47: ê¼¬ë¶€ê¸° | J47: p | K47: 227405 | L47: kr | M47: 1 | N47: í”¼ì¹´ì¸„ | O47: t | P47: 182108 | Q47: kr | R47: 1 | S47: ì´ìƒí•´ì”¨ | T47: t | U47: Bronze | V47: 5 | W47: 3 | X47: 174 | Y47: 2014-08-04 | Z47: 46 days | AA47: 2014-09-21T06:07:34 | AB47: 3318554-1|832358-1|227405-1|182108-1 | AC47: 0 | AD47: 47
A48: 764744 | B48: kr | C48: 2 | D48: Bigtree | E48: p | F48: 107234 | G48: kr | H48: 2 | I48: GTQ | J48: p | K48: 80382 | L48: kr | M48: 2 | N48: Nitric | O48: r | P48: 38371 | Q48: kr | R48: 2 | S48: AriesHuangTW | T48: z | U48: Bronze | V48: 4 | W48: 1 | X48: 173 | Y48: 2014-07-22 | Z48: 60 days | AA48: 2014-09-21T06:07:34 | AB48: 764744-2|107234-2|80382-2|38371-2 | AC48: 0 | AD48: 48
A49: 4401800 | B49: kr | C49: 1 | D49: ColdLogic | E49: r | F49: 4400202 | G49: kr | H49: 1 | I49: eckers | J49: t | K49: 4400012 | L49: kr | M49: 1 | N49: Hsuperdroid | O49: t | P49: 4391533 | Q49: kr | R49: 1 | S49: UsedToBeGood | T49: r | U49: Bronze | V49: 6 | W49: 5 | X49: 172 | Y49: 2014-07-11 | Z49: 7 days | AA49: 2014-09-21T06:07:34 | AB49: 4401800-1|4400202-1|4400012-1|4391533-1 | AC49: 0 | AD49: 49
A50: 2032176 | B50: kr | C50: 1 | D50: ìŠ¹í›„ë‹ˆ | E50: r | F50: 1473216 | G50: kr | H50: 1 | I50: koyoriphya | J50: z | K50: 1130272 | L50: kr | M50: 1 | N50: í™”ì´íŠ¸ì¹µí…Œì¼ | O50: p | P50: 342705 | Q50: kr | R50: 1 | S50: ë Œí…Œ | T50: r | U50: Bronze | V50: 7 | W50: 2 | X50: 164 | Y50: 2014-07-23 | Z50: 3 days | AA50: 2014-09-21T06:07:34 | AB50: 2032176-1|1473216-1|1130272-1|342705-1 | AC50: 0 | AD50: 50
A51: 4638606 | B51: kr | C51: 1 | D51: ì˜¤ë°”ì•¡ì…˜ | E51: p | F51: 4602207 | G51: kr | H51: 1 | I51: ì•ˆë…•í•˜ì„¸ìš” | J51: p | K51: 2374809 | L51: kr | M51: 1 | N51: PuZzle | O51: z | P51: 1200187 | Q51: kr | R51: 1 | S51: ì„íšŒìž¥ | T51: r | U51: Bronze | V51: 6 | W51: 5 | X51: 162 | Y51: 2014-07-13 | Z51: 6 days | AA51: 2014-09-21T06:07:34 | AB51: 4638606-1|4602207-1|2374809-1|1200187-1 | AC51: 0 | AD51: 51
A52: 4569422 | B52: kr | C52: 1 | D52: ì¼€ë¤¼ | E52: z | F52: 4550966 | G52: kr | H52: 1 | I52: ë¡œì´ë¡œì´ë¡œì´ | J52: p | K52: 634370 | L52: kr | M52: 1 | N52: AlranPark | O52: z | P52: 600175 | Q52: kr | R52: 1 | S52: ë„ˆêµ¬ë¦¬ì˜†ì°¨ê¸° | T52: t | U52: Bronze | V52: 5 | W52: 8 | X52: 162 | Y52: 2014-09-03 | Z52: 17 days | AA52: 2014-09-21T06:07:34 | AB52: 4569422-1|4550966-1|634370-1|600175-1 | AC52: 0 | AD52: 52
A53: 1887425 | B53: kr | C53: 1 | D53: ê¹€ì´ˆë”© | E53: p | F53: 1018730 | G53: kr | H53: 1 | I53: RandomZerg | J53: z | K53: 476076 | L53: kr | M53: 1 | N53: Kami | O53: p | P53: 86969 | Q53: kr | R53: 1 | S53: ì†ì´ˆë”© | T53: r | U53: Bronze | V53: 6 | W53: 1 | X53: 158 | Y53: 2014-09-17 | Z53: 3 days | AA53: 2014-09-21T06:07:34 | AB53: 1887425-1|1018730-1|476076-1|86969-1 | AC53: 0 | AD53: 53
A54: 867539 | B54: kr | C54: 2 | D54: OrzHsin | E54: z | F54: 860178 | G54: kr | H54: 2 | I54: å£žäººé˜¿é©ž | J54: z | K54: 820199 | L54: kr | M54: 2 | N54: å·¥å…·äºº | O54: r | P54: 508284 | Q54: kr | R54: 2 | S54: Avenger | T54: t | U54: Bronze | V54: 4 | W54: 1 | X54: 158 | Y54: 2014-07-23 | Z54: 35 days | AA54: 2014-09-21T06:07:34 | AB54: 867539-2|860178-2|820199-2|508284-2 | AC54: 0 | AD54: 54
A55: 1035158 | B55: kr | C55: 2 | D55: ComicDog | E55: z | F55: 121241 | G55: kr | H55: 2 | I55: Leeloo | J55: t | K55: 111929 | L55: kr | M55: 2 | N55: AndyYang | O55: p | P55: 74224 | Q55: kr | R55: 2 | S55: byes | T55: z | U55: Bronze | V55: 4 | W55: 11 | X55: 158 | Y55: 2014-07-27 | Z55: 38 days | AA55: 2014-09-21T06:07:34 | AB55: 1035158-2|121241-2|111929-2|74224-2 | AC55: 0 | AD55: 55
A56: 769937 | B56: kr | C56: 2 | D56: ç„¡ä¿šé ­ | E56: t | F56: 769577 | G56: kr | H56: 2 | I56: Edward | J56: p | K56: 768648 | L56: kr | M56: 2 | N56: é»‘çœ¼åœˆ | O56: p | P56: 36930 | Q56: kr | R56: 2 | S56: å°å¯æ¨‚ | T56: z | U56: Bronze | V56: 6 | W56: 2 | X56: 152 | Y56: 2014-08-11 | Z56: 39 days | AA56: 2014-09-21T06:07:34 | AB56: 769937-2|769577-2|768648-2|36930-2 | AC56: 0 | AD56: 56
A57: 3848486 | B57: kr | C57: 1 | D57: ë¦¬ì…€ | E57: r | F57: 3828675 | G57: kr | H57: 1 | I57: ì€ê°€ì´ì§¸ë¼ | J57: r | K57: 1458249 | L57: kr | M57: 1 | N57: ggggbbbb | O57: r | P57: 253096 | Q57: kr | R57: 1 | S57: ê¹€ë˜˜ë˜˜ | T57: r | U57: Bronze | V57: 5 | W57: 0 | X57: 144 | Y57: 2014-08-01 | Z57: 51 days | AA57: 2014-09-21T06:07:34 | AB57: 3848486-1|3828675-1|1458249-1|253096-1 | AC57: 0 | AD57: 57
A58: 1202095 | B58: kr | C58: 2 | D58: RestINPeace | E58: p | F58: 1200558 | G58: kr | H58: 2 | I58: Luxurious | J58: p | K58: 764744 | L58: kr | M58: 2 | N58: Bigtree | O58: p | P58: 80382 | Q58: kr | R58: 2 | S58: Nitric | T58: r | U58: Bronze | V58: 4 | W58: 0 | X58: 144 | Y58: 2014-08-27 | Z58: 9 days | AA58: 2014-09-21T06:07:34 | AB58: 1202095-2|1200558-2|764744-2|80382-2 | AC58: 0 | AD58: 58
A59: 4636494 | B59: kr | C59: 1 | D59: CHELSEA | E59: t | F59: 4231343 | G59: kr | H59: 1 | I59: ê³½ì§€ì¡´ | J59: p | K59: 4217216 | L59: kr | M59: 1 | N59: ê°œì°¡ | O59: t | P59: 4197796 | Q59: kr | R59: 1 | S59: ë³´ì˜ì´ | T59: z | U59: Bronze | V59: 6 | W59: 3 | X59: 144 | Y59: 2014-09-18 | Z59: 2 days | AA59: 2014-09-21T06:07:34 | AB59: 4636494-1|4231343-1|4217216-1|4197796-1 | AC59: 0 | AD59: 59
A60: 1032852 | B60: kr | C60: 2 | D60: è¯éº—å¤šç·šæ­¦è—¤æ ¼æ–¯ | E60: t | F60: 763502 | G60: kr | H60: 2 | I60: ErHill | J60: z | K60: 458207 | L60: kr | M60: 2 | N60: FunNyRush | O60: r | P60: 36885 | Q60: kr | R60: 2 | S60: ErUsagi | T60: r | U60: Bronze | V60: 5 | W60: 3 | X60: 144 | Y60: 2014-08-30 | Z60: 21 days | AA60: 2014-09-21T06:07:34 | AB60: 1032852-2|763502-2|458207-2|36885-2 | AC60: 0 | AD60: 60
A61: 2697677 | B61: kr | C61: 1 | D61: ì›”ê³„ë™ì‹œí”¼ì¡± | E61: z | F61: 2696472 | G61: kr | H61: 1 | I61: ì›”ê³„ë™ì˜¤ë Œì§€ì¡± | J61: r | K61: 2695446 | L61: kr | M61: 1 | N61: í•œìŠ¹ì—° | O61: r | P61: 201025 | Q61: kr | R61: 1 | S61: Beryl | T61: t | U61: Bronze | V61: 4 | W61: 4 | X61: 144 | Y61: 2014-08-01 | Z61: 36 days | AA61: 2014-09-21T06:07:34 | AB61: 2697677-1|2696472-1|2695446-1|201025-1 | AC61: 0 | AD61: 61
A62: 3669679 | B62: kr | C62: 1 | D62: íˆ¬í˜¼ë˜¥ê³ | E62: t | F62: 3669652 | G62: kr | H62: 1 | I62: ì‚ì•½ì´ | J62: t | K62: 1530012 | L62: kr | M62: 1 | N62: ë¹ ì˜¤ | O62: z | P62: 1075030 | Q62: kr | R62: 1 | S62: bbbbboddddd | T62: p | U62: Bronze | V62: 6 | W62: 9 | X62: 144 | Y62: 2014-08-20 | Z62: 30 days | AA62: 2014-09-21T06:07:34 | AB62: 3669679-1|3669652-1|1530012-1|1075030-1 | AC62: 0 | AD62: 62
A63: 4684433 | B63: kr | C63: 1 | D63: halery | E63: p | F63: 4476077 | G63: kr | H63: 1 | I63: Bin | J63: z | K63: 4475018 | L63: kr | M63: 1 | N63: Nirvana | O63: t | P63: 4475017 | Q63: kr | R63: 1 | S63: Yao | T63: p | U63: Bronze | V63: 9 | W63: 14 | X63: 144 | Y63: 2014-07-11 | Z63: 63 days | AA63: 2014-09-21T06:07:34 | AB63: 4684433-1|4476077-1|4475018-1|4475017-1 | AC63: 0 | AD63: 63
A64: 4242164 | B64: kr | C64: 1 | D64: ì°Œë§ì°Œë¡± | E64: p | F64: 1224013 | G64: kr | H64: 1 | I64: BlackStone | J64: p | K64: 1074445 | L64: kr | M64: 1 | N64: BLUEMARBLE | O64: t | P64: 640906 | Q64: kr | R64: 1 | S64: laknia | T64: r | U64: Bronze | V64: 6 | W64: 10 | X64: 144 | Y64: 2014-09-05 | Z64: 7 days | AA64: 2014-09-21T06:07:34 | AB64: 4242164-1|1224013-1|1074445-1|640906-1 | AC64: 0 | AD64: 64
A65: 2785462 | B65: kr | C65: 1 | D65: ì•„ë¦¬ë¥´ë‚˜ | E65: t | F65: 1977257 | G65: kr | H65: 1 | I65: ê³ ë‚œí | J65: t | K65: 598187 | L65: kr | M65: 1 | N65: ì‚´ë ¤ì¤˜ | O65: p | P65: 337369 | Q65: kr | R65: 1 | S65: ëŒ€ì²´ë¡œë¬´í•´í•¨ | T65: z | U65: Bronze | V65: 5 | W65: 0 | X65: 140 | Y65: 2014-08-03 | Z65: 49 days | AA65: 2014-09-21T06:07:34 | AB65: 2785462-1|1977257-1|598187-1|337369-1 | AC65: 0 | AD65: 65
A66: 632792 | B66: kr | C66: 1 | D66: ëŒê³„ë‹¨ | E66: t | F66: 621135 | G66: kr | H66: 1 | I66: í•™êµê°€ìž | J66: z | K66: 440632 | L66: kr | M66: 1 | N66: ì¼ë™ì°¨ë · | O66: p | P66: 428581 | Q66: kr | R66: 1 | S66: ìŠ¤íŒŒë¥´íƒ€ | T66: r | U66: Bronze | V66: 5 | W66: 6 | X66: 140 | Y66: 2014-08-07 | Z66: 44 days | AA66: 2014-09-21T06:07:34 | AB66: 632792-1|621135-1|440632-1|428581-1 | AC66: 0 | AD66: 66
A67: 3155474 | B67: kr | C67: 1 | D67: DIM | E67: p | F67: 2224396 | G67: kr | H67: 1 | I67: ì¹´íŽœì‹œìŠ¤ | J67: r | K67: 871611 | L67: kr | M67: 1 | N67: taro | O67: t | P67: 461649 | Q67: kr | R67: 1 | S67: FlameRed | T67: r | U67: Bronze | V67: 7 | W67: 8 | X67: 139 | Y67: 2014-07-08 | Z67: 64 days | AA67: 2014-09-21T06:07:34 | AB67: 3155474-1|2224396-1|871611-1|461649-1 | AC67: 0 | AD67: 67
A68: 4102448 | B68: kr | C68: 1 | D68: ë“±ê³¨ë¸Œë ˆì´ì»¤ | E68: t | F68: 1223446 | G68: kr | H68: 1 | I68: ozz | J68: p | K68: 1130732 | L68: kr | M68: 1 | N68: ì§€ëˆ„ | O68: p | P68: 540932 | Q68: kr | R68: 1 | S68: liato | T68: p | U68: Bronze | V68: 5 | W68: 7 | X68: 138 | Y68: 2014-09-08 | Z68: 12 days | AA68: 2014-09-21T06:07:34 | AB68: 4102448-1|1223446-1|1130732-1|540932-1 | AC68: 0 | AD68: 68
A69: 4659354 | B69: kr | C69: 1 | D69: í—ˆíƒ± | E69: t | F69: 1848331 | G69: kr | H69: 1 | I69: DREAMwin | J69: t | K69: 1260586 | L69: kr | M69: 1 | N69: ì ë©¸ì¶”ì ìž | O69: p | P69: 1257448 | Q69: kr | R69: 1 | S69: ìœ ë¼ | T69: p | U69: Bronze | V69: 5 | W69: 8 | X69: 138 | Y69: 2014-08-16 | Z69: 35 days | AA69: 2014-09-21T06:07:34 | AB69: 4659354-1|1848331-1|1260586-1|1257448-1 | AC69: 0 | AD69: 69
A70: 4575101 | B70: kr | C70: 1 | D70: Hamtori | E70: r | F70: 1473216 | G70: kr | H70: 1 | I70: koyoriphya | J70: z | K70: 1130272 | L70: kr | M70: 1 | N70: í™”ì´íŠ¸ì¹µí…Œì¼ | O70: p | P70: 342705 | Q70: kr | R70: 1 | S70: ë Œí…Œ | T70: r | U70: Bronze | V70: 5 | W70: 4 | X70: 136 | Y70: 2014-08-19 | Z70: 16 days | AA70: 2014-09-21T06:07:34 | AB70: 4575101-1|1473216-1|1130272-1|342705-1 | AC70: 0 | AD70: 70
A71: 1200558 | B71: kr | C71: 2 | D71: Luxurious | E71: p | F71: 1028273 | G71: kr | H71: 2 | I71: Kuei | J71: t | K71: 764744 | L71: kr | M71: 2 | N71: Bigtree | O71: p | P71: 80382 | Q71: kr | R71: 2 | S71: Nitric | T71: p | U71: Bronze | V71: 5 | W71: 1 | X71: 134 | Y71: 2014-07-25 | Z71: 11 days | AA71: 2014-09-21T06:07:34 | AB71: 1200558-2|1028273-2|764744-2|80382-2 | AC71: 0 | AD71: 71
A72: 4378132 | B72: kr | C72: 1 | D72: ë­˜ë´ì”¨ë°©ìƒì•„ | E72: p | F72: 2610619 | G72: kr | H72: 1 | I72: Soon | J72: p | K72: 1148024 | L72: kr | M72: 1 | N72: ì‚¶ì˜ì´ìœ | O72: p | P72: 420568 | Q72: kr | R72: 1 | S72: ìš”ì“°ë°© | T72: z | U72: Bronze | V72: 4 | W72: 1 | X72: 134 | Y72: 2014-07-23 | Z72: 60 days | AA72: 2014-09-21T06:07:34 | AB72: 4378132-1|2610619-1|1148024-1|420568-1 | AC72: 0 | AD72: 72
A73: 988854 | B73: kr | C73: 2 | D73: Hades | E73: p | F73: 618441 | G73: kr | H73: 2 | I73: JamesCCWu | J73: r | K73: 476967 | L73: kr | M73: 2 | N73: é˜¿çªä»” | O73: r | P73: 215443 | Q73: kr | R73: 2 | S73: ç«¹ç§‘å¤§æ”ç‹¼ | T73: t | U73: Bronze | V73: 4 | W73: 28 | X73: 134 | Y73: 2014-08-05 | Z73: 8 days | AA73: 2014-09-21T06:07:34 | AB73: 988854-2|618441-2|476967-2|215443-2 | AC73: 0 | AD73: 73
A74: 3068132 | B74: kr | C74: 1 | D74: ì•„ìž‰ë¶€ë„ëŸ¬ | E74: r | F74: 2171797 | G74: kr | H74: 1 | I74: whitenike | J74: z | K74: 1209261 | L74: kr | M74: 1 | N74: ì—´íƒ± | O74: r | P74: 1199869 | Q74: kr | R74: 1 | S74: MercedesBenz | T74: p | U74: Bronze | V74: 3 | W74: 3 | X74: 132 | Y74: 2014-08-07 | Z74: 44 days | AA74: 2014-09-21T06:07:34 | AB74: 3068132-1|2171797-1|1209261-1|1199869-1 | AC74: 0 | AD74: 74
A75: 3198721 | B75: kr | C75: 1 | D75: parkih | E75: t | F75: 588547 | G75: kr | H75: 1 | I75: Namc | J75: z | K75: 451205 | L75: kr | M75: 1 | N75: mustacheman | O75: p | P75: 338047 | Q75: kr | R75: 1 | S75: jimessi | T75: t | U75: Bronze | V75: 5 | W75: 6 | X75: 132 | Y75: 2014-08-24 | Z75: 28 days | AA75: 2014-09-21T06:07:34 | AB75: 3198721-1|588547-1|451205-1|338047-1 | AC75: 0 | AD75: 75
A76: 3047030 | B76: kr | C76: 1 | D76: í¼ë‹ˆí‘¸ë”© | E76: p | F76: 1194853 | G76: kr | H76: 1 | I76: Physics | J76: p | K76: 425418 | L76: kr | M76: 1 | N76: í¬ìœ ë§ˆì´ë§ˆì¸ë“œ | O76: z | P76: 107492 | Q76: kr | R76: 1 | S76: Supremum | T76: t | U76: Bronze | V76: 4 | W76: 1 | X76: 130 | Y76: 2014-08-19 | Z76: 32 days | AA76: 2014-09-21T06:07:34 | AB76: 3047030-1|1194853-1|425418-1|107492-1 | AC76: 0 | AD76: 76
A77: 3277766 | B77: kr | C77: 1 | D77: íƒ€ì´íƒ„í•˜ìš¸ë§ | E77: z | F77: 2646949 | G77: kr | H77: 1 | I77: ë…¸ë¬´ì–´ | J77: t | K77: 1558763 | L77: kr | M77: 1 | N77: íŒŒì›Œí¬ë¡œë¦¬ì•¼ | O77: p | P77: 1187642 | Q77: kr | R77: 1 | S77: ìŠ´ê°€ë¼ì´ë” | T77: p | U77: Bronze | V77: 4 | W77: 2 | X77: 130 | Y77: 2014-08-19 | Z77: 32 days | AA77: 2014-09-21T06:07:34 | AB77: 3277766-1|2646949-1|1558763-1|1187642-1 | AC77: 0 | AD77: 77
A78: 867539 | B78: kr | C78: 2 | D78: OrzHsin | E78: t | F78: 820199 | G78: kr | H78: 2 | I78: å·¥å…·äºº | J78: r | K78: 508284 | L78: kr | M78: 2 | N78: Avenger | O78: t | P78: 51750 | Q78: kr | R78: 2 | S78: æ¢—çŽ‹ | T78: p | U78: Bronze | V78: 3 | W78: 3 | X78: 130 | Y78: 2014-07-20 | Z78: 36 days | AA78: 2014-09-21T06:07:34 | AB78: 867539-2|820199-2|508284-2|51750-2 | AC78: 0 | AD78: 78
A79: 1348864 | B79: kr | C79: 2 | D79: IceMilkT | E79: z | F79: 4720114 | G79: kr | H79: 1 | I79: Coconut | J79: r | K79: 4667583 | L79: kr | M79: 1 | N79: IceFanta | O79: r | P79: 4666475 | Q79: kr | R79: 1 | S79: CharlesTVT | T79: t | U79: Bronze | V79: 4 | W79: 8 | X79: 130 | Y79: 2014-09-07 | Z79: 7 days | AA79: 2014-09-21T06:07:34 | AB79: 1348864-2|4720114-1|4667583-1|4666475-1 | AC79: 0 | AD79: 79
A80: 988854 | B80: kr | C80: 2 | D80: Hades | E80: p | F80: 707208 | G80: kr | H80: 2 | I80: é˜¿é¾ | J80: p | K80: 618441 | L80: kr | M80: 2 | N80: JamesCCWu | O80: r | P80: 215443 | Q80: kr | R80: 2 | S80: ç«¹ç§‘å¤§æ”ç‹¼ | T80: t | U80: Bronze | V80: 7 | W80: 31 | X80: 130 | Y80: 2014-07-06 | Z80: 23 days | AA80: 2014-09-21T06:07:34 | AB80: 988854-2|707208-2|618441-2|215443-2 | AC80: 0 | AD80: 80
A81: 4264546 | B81: kr | C81: 1 | D81: ì‚¼ë¥˜ë‹¨ | E81: p | F81: 1009624 | G81: kr | H81: 1 | I81: ì¼ë²Œì—‰ì•„ | J81: p | K81: 319170 | L81: kr | M81: 1 | N81: í™©ê°„ì§€ | O81: t | P81: 114063 | Q81: kr | R81: 1 | S81: ë ˆì´ë„ˆ | T81: t | U81: Bronze | V81: 4 | W81: 1 | X81: 128 | Y81: 2014-08-06 | Z81: 40 days | AA81: 2014-09-21T06:07:34 | AB81: 4264546-1|1009624-1|319170-1|114063-1 | AC81: 0 | AD81: 81
A82: 1345739 | B82: kr | C82: 2 | D82: ä¼Šäºž | E82: p | F82: 1184720 | G82: kr | H82: 2 | I82: é¾å°æ½” | J82: t | K82: 931009 | L82: kr | M82: 2 | N82: sai | O82: p | P82: 683305 | Q82: kr | R82: 2 | S82: HCH | T82: p | U82: Bronze | V82: 5 | W82: 5 | X82: 128 | Y82: 2014-07-23 | Z82: 59 days | AA82: 2014-09-21T06:07:34 | AB82: 1345739-2|1184720-2|931009-2|683305-2 | AC82: 0 | AD82: 82
A83: 2180675 | B83: kr | C83: 1 | D83: ì˜¤ì§€ì—ì„œì´ˆë°¥ìž¥ì‚¬ | E83: p | F83: 1469218 | G83: kr | H83: 1 | I83: BAKUMAN | J83: r | K83: 1023736 | L83: kr | M83: 1 | N83: ì˜¤ì§€ì—ì„œê¹€ë°¥ìž¥ì‚¬ | O83: t | P83: 138956 | Q83: kr | R83: 1 | S83: ë©”ë”•ë…¸ëž˜ë°© | T83: t | U83: Bronze | V83: 4 | W83: 8 | X83: 128 | Y83: 2014-07-22 | Z83: 60 days | AA83: 2014-09-21T06:07:34 | AB83: 2180675-1|1469218-1|1023736-1|138956-1 | AC83: 0 | AD83: 83
A84: 2715492 | B84: kr | C84: 1 | D84: Serapial | E84: t | F84: 2310241 | G84: kr | H84: 1 | I84: ì–´ë¦°í™˜ìž | J84: p | K84: 2194517 | L84: kr | M84: 1 | N84: CheckMate | O84: r | P84: 549472 | Q84: kr | R84: 1 | S84: hwangsc | T84: z | U84: Bronze | V84: 4 | W84: 0 | X84: 126 | Y84: 2014-08-05 | Z84: 47 days | AA84: 2014-09-21T06:07:34 | AB84: 2715492-1|2310241-1|2194517-1|549472-1 | AC84: 0 | AD84: 84
A85: 941955 | B85: kr | C85: 2 | D85: NeeLiao | E85: p | F85: 111929 | G85: kr | H85: 2 | I85: AndyYang | J85: p | K85: 90873 | L85: kr | M85: 2 | N85: BRZkbs | O85: z | P85: 74224 | Q85: kr | R85: 2 | S85: byes | T85: r | U85: Bronze | V85: 4 | W85: 8 | X85: 126 | Y85: 2014-08-01 | Z85: 32 days | AA85: 2014-09-21T06:07:34 | AB85: 941955-2|111929-2|90873-2|74224-2 | AC85: 0 | AD85: 85
A86: 1935213 | B86: kr | C86: 1 | D86: ì§€ê°±ì´ | E86: r | F86: 1927664 | G86: kr | H86: 1 | I86: ëŸ­í‚¤ë³´ì´ | J86: r | K86: 1283372 | L86: kr | M86: 1 | N86: ë¡œì½”ë”° | O86: r | P86: 189427 | Q86: kr | R86: 1 | S86: ìœ ê°€ë„¤ | T86: p | U86: Bronze | V86: 4 | W86: 3 | X86: 124 | Y86: 2014-08-08 | Z86: 44 days | AA86: 2014-09-21T06:07:34 | AB86: 1935213-1|1927664-1|1283372-1|189427-1 | AC86: 0 | AD86: 86
A87: 2349378 | B87: kr | C87: 1 | D87: ë§¶ëº‹ë£Ÿ | E87: z | F87: 1445206 | G87: kr | H87: 1 | I87: ë¨¹ìŠ¤í…”ëŸ¬ | J87: r | K87: 297705 | L87: kr | M87: 1 | N87: carrick | O87: t | P87: 275464 | Q87: kr | R87: 1 | S87: ë§ˆêµ° | T87: t | U87: Bronze | V87: 4 | W87: 4 | X87: 124 | Y87: 2014-08-06 | Z87: 16 days | AA87: 2014-09-21T06:07:34 | AB87: 2349378-1|1445206-1|297705-1|275464-1 | AC87: 0 | AD87: 87
A88: 3369014 | B88: kr | C88: 1 | D88: ë‚´ê°€ë§ˆë¦° | E88: z | F88: 2837365 | G88: kr | H88: 1 | I88: ì œë¦¬í¬ | J88: t | K88: 2835664 | L88: kr | M88: 1 | N88: ëŒ€ë‚„ | O88: r | P88: 1828025 | Q88: kr | R88: 1 | S88: naversmile | T88: t | U88: Bronze | V88: 4 | W88: 7 | X88: 124 | Y88: 2014-08-29 | Z88: 22 days | AA88: 2014-09-21T06:07:34 | AB88: 3369014-1|2837365-1|2835664-1|1828025-1 | AC88: 0 | AD88: 88
A89: 1184720 | B89: kr | C89: 2 | D89: é¾å°æ½” | E89: t | F89: 683701 | G89: kr | H89: 2 | I89: Charles | J89: p | K89: 603469 | L89: kr | M89: 2 | N89: Athina | O89: r | P89: 100164 | Q89: kr | R89: 2 | S89: è²ªç‹¼ | T89: r | U89: Bronze | V89: 3 | W89: 7 | X89: 122 | Y89: 2014-07-22 | Z89: 35 days | AA89: 2014-09-21T06:07:34 | AB89: 1184720-2|683701-2|603469-2|100164-2 | AC89: 0 | AD89: 89
A90: 1886341 | B90: kr | C90: 1 | D90: ë¬¼ê³° | E90: r | F90: 1674493 | G90: kr | H90: 1 | I90: ìˆœê·œ | J90: r | K90: 1672991 | L90: kr | M90: 1 | N90: ë‚˜ë§Œê¸°ë‹¬ë ¤ | O90: r | P90: 1604071 | Q90: kr | R90: 1 | S90: Muelinzelo | T90: t | U90: Bronze | V90: 5 | W90: 1 | X90: 120 | Y90: 2014-08-02 | Z90: 49 days | AA90: 2014-09-21T06:07:34 | AB90: 1886341-1|1674493-1|1672991-1|1604071-1 | AC90: 0 | AD90: 90
A91: 686246 | B91: kr | C91: 1 | D91: pbi | E91: p | F91: 334608 | G91: kr | H91: 1 | I91: ì•„ì¼ë£¨ | J91: z | K91: 265648 | L91: kr | M91: 1 | N91: ë‘ë¥˜í•˜ | O91: z | P91: 138976 | Q91: kr | R91: 1 | S91: ë¬˜í–¥í˜„ë ¹ | T91: p | U91: Bronze | V91: 4 | W91: 2 | X91: 120 | Y91: 2014-08-02 | Z91: 49 days | AA91: 2014-09-21T06:07:34 | AB91: 686246-1|334608-1|265648-1|138976-1 | AC91: 0 | AD91: 91
A92: 4598995 | B92: kr | C92: 1 | D92: Shione | E92: z | F92: 4542559 | G92: kr | H92: 1 | I92: MesutOziL | J92: p | K92: 4170794 | L92: kr | M92: 1 | N92: Parkson | O92: t | P92: 4164655 | Q92: kr | R92: 1 | S92: ThanhQuang | T92: t | U92: Bronze | V92: 4 | W92: 4 | X92: 118 | Y92: 2014-09-19 | Z92: 2 days | AA92: 2014-09-21T06:07:34 | AB92: 4598995-1|4542559-1|4170794-1|4164655-1 | AC92: 0 | AD92: 92
A93: 2191817 | B93: kr | C93: 1 | D93: JHK | E93: t | F93: 1877085 | G93: kr | H93: 1 | I93: ì¥¬ë…¸ | J93: p | K93: 773470 | L93: kr | M93: 1 | N93: ë§ˆì§€ë§‰í™©ì œ | O93: z | P93: 476545 | Q93: kr | R93: 1 | S93: í…Œëž€ | T93: t | U93: Bronze | V93: 5 | W93: 7 | X93: 116 | Y93: 2014-07-30 | Z93: 53 days | AA93: 2014-09-21T06:07:34 | AB93: 2191817-1|1877085-1|773470-1|476545-1 | AC93: 0 | AD93: 93
A94: 680920 | B94: kr | C94: 1 | D94: migafocus | E94: z | F94: 448072 | G94: kr | H94: 1 | I94: ìˆ­ì´ | J94: p | K94: 250299 | L94: kr | M94: 1 | N94: í­í’ê°„ì§€ì¡°ì‚¬ìž¥ | O94: r | P94: 131135 | Q94: kr | R94: 1 | S94: ì°¨ë‹ˆ | T94: p | U94: Bronze | V94: 4 | W94: 3 | X94: 114 | Y94: 2014-09-08 | Z94: 13 days | AA94: 2014-09-21T06:07:34 | AB94: 680920-1|448072-1|250299-1|131135-1 | AC94: 0 | AD94: 94
A95: 4575101 | B95: kr | C95: 1 | D95: Hamtori | E95: t | F95: 1473216 | G95: kr | H95: 1 | I95: koyoriphya | J95: z | K95: 342705 | L95: kr | M95: 1 | N95: ë Œí…Œ | O95: r | P95: 197607 | Q95: kr | R95: 1 | S95: optics | T95: r | U95: Bronze | V95: 4 | W95: 1 | X95: 112 | Y95: 2014-07-29 | Z95: 53 days | AA95: 2014-09-21T06:07:34 | AB95: 4575101-1|1473216-1|342705-1|197607-1 | AC95: 0 | AD95: 95
A96: 1833562 | B96: kr | C96: 1 | D96: í‚¹í•´ë¹„ê¸‰ | E96: p | F96: 1401848 | G96: kr | H96: 1 | I96: ì² íŒë³¶ìŒë°¥ | J96: t | K96: 480308 | L96: kr | M96: 1 | N96: ëšœë | O96: t | P96: 329698 | Q96: kr | R96: 1 | S96: í•˜ë£¨ì„¸ë¼ì½©ë°¥ | T96: z | U96: Bronze | V96: 3 | W96: 3 | X96: 112 | Y96: 2014-09-10 | Z96: 10 days | AA96: 2014-09-21T06:07:34 | AB96: 1833562-1|1401848-1|480308-1|329698-1 | AC96: 0 | AD96: 96
A97: 4619158 | B97: kr | C97: 1 | D97: ë¬´ìžë¹„í•´ìš” | E97: t | F97: 3163752 | G97: kr | H97: 1 | I97: VanQs | J97: t | K97: 919211 | L97: kr | M97: 1 | N97: í¬ëŒ€ìž¥ | O97: p | P97: 298952 | Q97: kr | R97: 1 | S97: ìžìœ ì˜ì¼ê²© | T97: t | U97: Bronze | V97: 4 | W97: 1 | X97: 111 | Y97: 2014-07-15 | Z97: 67 days | AA97: 2014-09-21T06:07:34 | AB97: 4619158-1|3163752-1|919211-1|298952-1 | AC97: 0 | AD97: 97
A98: 1300510 | B98: kr | C98: 2 | D98: dear | E98: p | F98: 1190855 | G98: kr | H98: 2 | I98: taco | J98: t | K98: 1076774 | L98: kr | M98: 2 | N98: Cgy | O98: z | P98: 1009758 | Q98: kr | R98: 2 | S98: Castillo | T98: p | U98: Bronze | V98: 4 | W98: 1 | X98: 108 | Y98: 2014-09-02 | Z98: 19 days | AA98: 2014-09-21T06:07:34 | AB98: 1300510-2|1190855-2|1076774-2|1009758-2 | AC98: 0 | AD98: 98
A99: 4583897 | B99: kr | C99: 1 | D99: HuyRua | E99: t | F99: 4581906 | G99: kr | H99: 1 | I99: NMinh | J99: z | K99: 4581007 | L99: kr | M99: 1 | N99: DarkZergling | O99: t | P99: 4580959 | Q99: kr | R99: 1 | S99: NoBlood | T99: p | U99: Bronze | V99: 4 | W99: 1 | X99: 108 | Y99: 2014-08-12 | Z99: 23 days | AA99: 2014-09-21T06:07:34 | AB99: 4583897-1|4581906-1|4581007-1|4580959-1 | AC99: 0 | AD99: 99
A100: 2832787 | B100: kr | C100: 1 | D100: ì°°ë¦¬ì–Œ | E100: r | F100: 2368829 | G100: kr | H100: 1 | I100: ë§›ì—†ëŠ”ë¹µ | J100: p | K100: 304244 | L100: kr | M100: 1 | N100: ìš°ì£¼êµ°ì‚¬ë ¹ìž¥ê´€ | O100: r | P100: 152527 | Q100: kr | R100: 1 | S100: ížˆìŠ¤ê¸°ì•¼ | T100: r | U100: Bronze | V100: 3 | W100: 6 | X100: 108 | Y100: 2014-07-21 | Z100: 62 days | AA100: 2014-09-21T06:07:34 | AB100: 2832787-1|2368829-1|304244-1|152527-1 | AC100: 0 | AD100: 100
A101: 1041030 | B101: kr | C101: 2 | D101: jason | E101: t | F101: 730530 | G101: kr | H101: 2 | I101: Richman | J101: p | K101: 91480 | L101: kr | M101: 2 | N101: Vincent | O101: z | P101: 80843 | Q101: kr | R101: 2 | S101: å¡æ´›æ·‹ | T101: p | U101: Bronze | V101: 4 | W101: 0 | X101: 106 | Y101: 2014-09-06 | Z101: 14 days | AA101: 2014-09-21T06:07:34 | AB101: 1041030-2|730530-2|91480-2|80843-2 | AC101: 0 | AD101: 101
A102: 3652260 | B102: kr | C102: 1 | D102: oscar | E102: t | F102: 3322501 | G102: kr | H102: 1 | I102: ë¹ ë‹ˆì•Œ | J102: z | K102: 3158528 | L102: kr | M102: 1 | N102: caramel | O102: t | P102: 2535125 | Q102: kr | R102: 1 | S102: tlmqkf | T102: z | U102: Bronze | V102: 4 | W102: 2 | X102: 106 | Y102: 2014-08-05 | Z102: 46 days | AA102: 2014-09-21T06:07:34 | AB102: 3652260-1|3322501-1|3158528-1|2535125-1 | AC102: 0 | AD102: 102
A103: 2795941 | B103: kr | C103: 1 | D103: í•œêµ­ì”¨í‹°ì€í–‰ | E103: p | F103: 1460169 | G103: kr | H103: 1 | I103: ì—”ì—ì´ì¹˜ë†í˜‘ì€í–‰ | J103: z | K103: 1176511 | L103: kr | M103: 1 | N103: ì¼€ì´ë¹„êµ­ë¯¼ì€í–‰ | O103: t | P103: 822883 | Q103: kr | R103: 1 | S103: ë§ˆìŽ„ | T103: r | U103: Bronze | V103: 4 | W103: 2 | X103: 106 | Y103: 2014-09-06 | Z103: 22 hours | AA103: 2014-09-21T06:07:34 | AB103: 2795941-1|1460169-1|1176511-1|822883-1 | AC103: 0 | AD103: 103
A104: 3382066 | B104: kr | C104: 1 | D104: BigTiger | E104: t | F104: 655364 | G104: kr | H104: 1 | I104: ì´ˆì¹´ëª¨ì½” | J104: r | K104: 321204 | L104: kr | M104: 1 | N104: í—¬ì‹± | O104: r | P104: 213553 | Q104: kr | R104: 1 | S104: ì „ê¸°ê³µìž | T104: z | U104: Bronze | V104: 4 | W104: 2 | X104: 106 | Y104: 2014-09-06 | Z104: 10 days | AA104: 2014-09-21T06:07:34 | AB104: 3382066-1|655364-1|321204-1|213553-1 | AC104: 0 | AD104: 104
A105: 4700927 | B105: kr | C105: 1 | D105: ì˜¤ìŠ¹ë‘¥ì´ | E105: t | F105: 4699313 | G105: kr | H105: 1 | I105: ë°©ë°°ë™ìœ¤í˜¸ëž­ì´ | J105: p | K105: 3966903 | L105: kr | M105: 1 | N105: ArTMoCa | O105: z | P105: 1898233 | Q105: kr | R105: 1 | S105: ê±´ë¹µ | T105: r | U105: Bronze | V105: 5 | W105: 5 | X105: 106 | Y105: 2014-09-12 | Z105: 8 days | AA105: 2014-09-21T06:07:34 | AB105: 4700927-1|4699313-1|3966903-1|1898233-1 | AC105: 0 | AD105: 105
A106: 3476227 | B106: kr | C106: 1 | D106: ëƒ¥êµ° | E106: z | F106: 2825748 | G106: kr | H106: 1 | I106: í˜¸ë´‰ | J106: p | K106: 2778821 | L106: kr | M106: 1 | N106: ê°„ì´ˆ | O106: t | P106: 2161592 | Q106: kr | R106: 1 | S106: ì„¸íŒ”ì´ | T106: p | U106: Bronze | V106: 5 | W106: 7 | X106: 106 | Y106: 2014-08-07 | Z106: 22 days | AA106: 2014-09-21T06:07:34 | AB106: 3476227-1|2825748-1|2778821-1|2161592-1 | AC106: 0 | AD106: 106
A107: 2805888 | B107: kr | C107: 1 | D107: í˜¸ëž‘ì´ë‘ë§ˆë¦¬ì¹˜í‚¨ | E107: p | F107: 2615430 | G107: kr | H107: 1 | I107: Swordmaster | J107: r | K107: 2298112 | L107: kr | M107: 1 | N107: ì‚¬ë¼ìºë¦¬ê±´ì¹œêµ¬ | O107: z | P107: 812541 | Q107: kr | R107: 1 | S107: dedicatus | T107: r | U107: Bronze | V107: 3 | W107: 1 | X107: 100 | Y107: 2014-08-16 | Z107: 35 days | AA107: 2014-09-21T06:07:34 | AB107: 2805888-1|2615430-1|2298112-1|812541-1 | AC107: 0 | AD107: 107
A108: 924984 | B108: kr | C108: 2 | D108: peeeek | E108: p | F108: 282941 | G108: kr | H108: 2 | I108: laasong | J108: t | K108: 202106 | L108: kr | M108: 2 | N108: YoonAJessica | O108: p | P108: 167962 | Q108: kr | R108: 2 | S108: Frank | T108: z | U108: Bronze | V108: 4 | W108: 4 | X108: 100 | Y108: 2014-08-27 | Z108: 3 days | AA108: 2014-09-21T06:07:34 | AB108: 924984-2|282941-2|202106-2|167962-2 | AC108: 0 | AD108: 108
A109: 3277766 | B109: kr | C109: 1 | D109: íƒ€ì´íƒ„í•˜ìš¸ë§ | E109: z | F109: 2646949 | G109: kr | H109: 1 | I109: ë…¸ë¬´ì–´ | J109: t | K109: 1187642 | L109: kr | M109: 1 | N109: ìŠ´ê°€ë¼ì´ë” | O109: p | P109: 240020 | Q109: kr | R109: 1 | S109: ë¶í’ | T109: p | U109: Bronze | V109: 4 | W109: 0 | X109: 99 | Y109: 2014-07-14 | Z109: 68 days | AA109: 2014-09-21T06:07:34 | AB109: 3277766-1|2646949-1|1187642-1|240020-1 | AC109: 0 | AD109: 109
A110: 686246 | B110: kr | C110: 1 | D110: pbi | E110: p | F110: 334608 | G110: kr | H110: 1 | I110: ì•„ì¼ë£¨ | J110: z | K110: 308004 | L110: kr | M110: 1 | N110: KinGGoM | O110: r | P110: 138976 | Q110: kr | R110: 1 | S110: ë¬˜í–¥í˜„ë ¹ | T110: t | U110: Bronze | V110: 3 | W110: 1 | X110: 98 | Y110: 2014-09-19 | Z110: 1 days | AA110: 2014-09-21T06:07:34 | AB110: 686246-1|334608-1|308004-1|138976-1 | AC110: 0 | AD110: 110
A111: 4699313 | B111: kr | C111: 1 | D111: ë°©ë°°ë™ìœ¤í˜¸ëž­ì´ | E111: p | F111: 3459684 | G111: kr | H111: 1 | I111: ì•„íŠ¸í´ëžœì›ëª¨ì§‘ì¤‘ | J111: z | K111: 3005662 | L111: kr | M111: 1 | N111: INTHuman | O111: z | P111: 1898233 | Q111: kr | R111: 1 | S111: ê±´ë¹µ | T111: t | U111: Bronze | V111: 6 | W111: 1 | X111: 96 | Y111: 2014-08-23 | Z111: 28 days | AA111: 2014-09-21T06:07:34 | AB111: 4699313-1|3459684-1|3005662-1|1898233-1 | AC111: 0 | AD111: 111
A112: 886272 | B112: kr | C112: 2 | D112: Seraphim | E112: t | F112: 692150 | G112: kr | H112: 2 | I112: é»ƒå¸«è™Ž | J112: p | K112: 574972 | L112: kr | M112: 2 | N112: killgigi | O112: r | P112: 285917 | Q112: kr | R112: 2 | S112: Stanley | T112: r | U112: Bronze | V112: 5 | W112: 3 | X112: 96 | Y112: 2014-08-16 | Z112: 36 days | AA112: 2014-09-21T06:07:34 | AB112: 886272-2|692150-2|574972-2|285917-2 | AC112: 0 | AD112: 112
A113: 2400771 | B113: kr | C113: 1 | D113: ê¹¨ê°± | E113: t | F113: 2391017 | G113: kr | H113: 1 | I113: MCMLXXXVII | J113: r | K113: 1962871 | L113: kr | M113: 1 | N113: ë‹‰ë„¤ìž„ | O113: z | P113: 761840 | Q113: kr | R113: 1 | S113: Emilio | T113: r | U113: Bronze | V113: 4 | W113: 3 | X113: 96 | Y113: 2014-08-28 | Z113: 23 days | AA113: 2014-09-21T06:07:34 | AB113: 2400771-1|2391017-1|1962871-1|761840-1 | AC113: 0 | AD113: 113
A114: 4566656 | B114: kr | C114: 1 | D114: ê°œí„¸ìŸì´íˆ¬ | E114: z | F114: 4312089 | G114: kr | H114: 1 | I114: ê±°ì‹ ìžì§€ | J114: p | K114: 3586911 | L114: kr | M114: 1 | N114: ì‰¬ë°œë¼ë§ˆ | O114: z | P114: 757181 | Q114: kr | R114: 1 | S114: í•˜ëŠ˜ë¹µ | T114: t | U114: Bronze | V114: 6 | W114: 5 | X114: 96 | Y114: 2014-08-23 | Z114: 28 days | AA114: 2014-09-21T06:07:34 | AB114: 4566656-1|4312089-1|3586911-1|757181-1 | AC114: 0 | AD114: 114
A115: 3277766 | B115: kr | C115: 1 | D115: íƒ€ì´íƒ„í•˜ìš¸ë§ | E115: z | F115: 1187642 | G115: kr | H115: 1 | I115: ìŠ´ê°€ë¼ì´ë” | J115: p | K115: 905476 | L115: kr | M115: 1 | N115: OnzZ | O115: r | P115: 353510 | Q115: kr | R115: 1 | S115: HongTles | T115: t | U115: Bronze | V115: 4 | W115: 4 | X115: 96 | Y115: 2014-08-18 | Z115: 33 days | AA115: 2014-09-21T06:07:34 | AB115: 3277766-1|1187642-1|905476-1|353510-1 | AC115: 0 | AD115: 115
A116: 1317643 | B116: kr | C116: 1 | D116: ëš±ë•¡ì´ë‹˜ | E116: p | F116: 1286608 | G116: kr | H116: 1 | I116: threeattack | J116: z | K116: 1286255 | L116: kr | M116: 1 | N116: ë™ë¬¼ì˜ì™• | O116: z | P116: 233494 | Q116: kr | R116: 1 | S116: Jeongjonguk | T116: t | U116: Bronze | V116: 2 | W116: 2 | X116: 96 | Y116: 2014-09-13 | Z116: 7 days | AA116: 2014-09-21T06:07:34 | AB116: 1317643-1|1286608-1|1286255-1|233494-1 | AC116: 0 | AD116: 116
A117: 1799572 | B117: kr | C117: 1 | D117: ë½€ë¡œë¡œ | E117: p | F117: 838169 | G117: kr | H117: 1 | I117: ë§ˆì œí‚¹ | J117: p | K117: 683823 | L117: kr | M117: 1 | N117: ë¬´ìž‘ìœ„ | O117: r | P117: 474220 | Q117: kr | R117: 1 | S117: ë¬´ìž‘ìœ„ | T117: r | U117: Bronze | V117: 3 | W117: 3 | X117: 96 | Y117: 2014-09-19 | Z117: 1 days | AA117: 2014-09-21T06:07:34 | AB117: 1799572-1|838169-1|683823-1|474220-1 | AC117: 0 | AD117: 117
A118: 926985 | B118: kr | C118: 2 | D118: JuNeRush | E118: p | F118: 759218 | G118: kr | H118: 2 | I118: AzureRush | J118: t | K118: 467995 | L118: kr | M118: 2 | N118: LzsRush | O118: r | P118: 36826 | Q118: kr | R118: 2 | S118: GoniaRush | T118: t | U118: Bronze | V118: 4 | W118: 5 | X118: 96 | Y118: 2014-09-10 | Z118: 10 days | AA118: 2014-09-21T06:07:34 | AB118: 926985-2|759218-2|467995-2|36826-2 | AC118: 0 | AD118: 118
A119: 4345428 | B119: kr | C119: 1 | D119: ìœ¡ìŠ¤ | E119: r | F119: 1509164 | G119: kr | H119: 1 | I119: kaikang | J119: p | K119: 1008477 | L119: kr | M119: 1 | N119: ìžìœ ì˜ë‚ ê°œ | O119: r | P119: 849855 | Q119: kr | R119: 1 | S119: Limhw | T119: r | U119: Bronze | V119: 4 | W119: 8 | X119: 96 | Y119: 2014-08-15 | Z119: 36 days | AA119: 2014-09-21T06:07:34 | AB119: 4345428-1|1509164-1|1008477-1|849855-1 | AC119: 0 | AD119: 119
A120: 3751112 | B120: kr | C120: 1 | D120: Strategy | E120: p | F120: 2182211 | G120: kr | H120: 1 | I120: SiegeEngine | J120: t | K120: 2048758 | L120: kr | M120: 1 | N120: star | O120: t | P120: 2048584 | Q120: kr | R120: 1 | S120: ê¼¬ëž™ | T120: t | U120: Bronze | V120: 3 | W120: 7 | X120: 96 | Y120: 2014-08-17 | Z120: 34 days | AA120: 2014-09-21T06:07:34 | AB120: 3751112-1|2182211-1|2048758-1|2048584-1 | AC120: 0 | AD120: 120
A121: 4669794 | B121: kr | C121: 1 | D121: ì‹ ë¹„í•œì²­ì •ì› | E121: z | F121: 2674161 | G121: kr | H121: 1 | I121: ë¬´ë¼ë”˜ | J121: r | K121: 2606356 | L121: kr | M121: 1 | N121: ìž¬í˜¸ì§± | O121: t | P121: 406045 | Q121: kr | R121: 1 | S121: ë¶„íƒ€ | T121: t | U121: Bronze | V121: 3 | W121: 8 | X121: 96 | Y121: 2014-08-25 | Z121: 24 days | AA121: 2014-09-21T06:07:34 | AB121: 4669794-1|2674161-1|2606356-1|406045-1 | AC121: 0 | AD121: 121
A122: 4709951 | B122: kr | C122: 1 | D122: ì‚¬ì´ì•ˆí™”ì¹¼ë¥¨ | E122: p | F122: 3406284 | G122: kr | H122: 1 | I122: RnUi | J122: p | K122: 3106222 | L122: kr | M122: 1 | N122: Lnsa | O122: z | P122: 1213348 | Q122: kr | R122: 1 | S122: ì—í…Œë¥´ë‚ ë¦¬ìŠ¤ | T122: t | U122: Bronze | V122: 3 | W122: 17 | X122: 96 | Y122: 2014-08-13 | Z122: 6 days | AA122: 2014-09-21T06:07:34 | AB122: 4709951-1|3406284-1|3106222-1|1213348-1 | AC122: 0 | AD122: 122
A123: 759101 | B123: kr | C123: 2 | D123: SofiesVerden | E123: r | F123: 758237 | G123: kr | H123: 2 | I123: WicKWolF | J123: t | K123: 464005 | L123: kr | M123: 2 | N123: KillerCJC | O123: p | P123: 181298 | Q123: kr | R123: 2 | S123: chick | T123: z | U123: Bronze | V123: 3 | W123: 1 | X123: 94 | Y123: 2014-08-27 | Z123: 24 days | AA123: 2014-09-21T06:07:34 | AB123: 759101-2|758237-2|464005-2|181298-2 | AC123: 0 | AD123: 123
A124: 4401800 | B124: kr | C124: 1 | D124: ColdLogic | E124: r | F124: 4400012 | G124: kr | H124: 1 | I124: Hsuperdroid | J124: t | K124: 4394227 | L124: kr | M124: 1 | N124: Jacx | O124: t | P124: 4391533 | Q124: kr | R124: 1 | S124: UsedToBeGood | T124: z | U124: Bronze | V124: 3 | W124: 1 | X124: 94 | Y124: 2014-08-15 | Z124: 1 days | AA124: 2014-09-21T06:07:34 | AB124: 4401800-1|4400012-1|4394227-1|4391533-1 | AC124: 0 | AD124: 124
A125: 944677 | B125: kr | C125: 2 | D125: Top | E125: t | F125: 930857 | G125: kr | H125: 2 | I125: Jun | J125: z | K125: 907212 | L125: kr | M125: 2 | N125: Risky | O125: p | P125: 861405 | Q125: kr | R125: 2 | S125: EvilDanAtt | T125: t | U125: Bronze | V125: 4 | W125: 3 | X125: 94 | Y125: 2014-07-26 | Z125: 56 days | AA125: 2014-09-21T06:07:34 | AB125: 944677-2|930857-2|907212-2|861405-2 | AC125: 0 | AD125: 125
A126: 1184720 | B126: kr | C126: 2 | D126: é¾å°æ½” | E126: t | F126: 908344 | G126: kr | H126: 2 | I126: MONSTER | J126: r | K126: 285917 | L126: kr | M126: 2 | N126: Stanley | O126: z | P126: 282373 | Q126: kr | R126: 2 | S126: ç±³æ–¯ | T126: z | U126: Bronze | V126: 4 | W126: 3 | X126: 94 | Y126: 2014-08-30 | Z126: 21 days | AA126: 2014-09-21T06:07:34 | AB126: 1184720-2|908344-2|285917-2|282373-2 | AC126: 0 | AD126: 126
A127: 1067653 | B127: kr | C127: 2 | D127: JKwolf | E127: t | F127: 979067 | G127: kr | H127: 2 | I127: Tetsu | J127: z | K127: 494231 | L127: kr | M127: 2 | N127: é¾åŠä¿®ç¾… | O127: t | P127: 490285 | Q127: kr | R127: 2 | S127: akevina | T127: p | U127: Bronze | V127: 3 | W127: 5 | X127: 94 | Y127: 2014-07-25 | Z127: 57 days | AA127: 2014-09-21T06:07:34 | AB127: 1067653-2|979067-2|494231-2|490285-2 | AC127: 0 | AD127: 127
A128: 764117 | B128: kr | C128: 2 | D128: Lingogo | E128: t | F128: 164019 | G128: kr | H128: 2 | I128: å–¬ä¼Š | J128: t | K128: 127863 | L128: kr | M128: 2 | N128: è½Ÿå¸ƒæœ— | O128: z | P128: 91956 | Q128: kr | R128: 2 | S128: tqc | T128: z | U128: Bronze | V128: 3 | W128: 5 | X128: 94 | Y128: 2014-08-31 | Z128: 20 days | AA128: 2014-09-21T06:07:34 | AB128: 764117-2|164019-2|127863-2|91956-2 | AC128: 0 | AD128: 128
A129: 4727320 | B129: kr | C129: 1 | D129: ì •ë°©ì •ë°©ì •ë°© | E129: p | F129: 2025325 | G129: kr | H129: 1 | I129: ë‚œë¹ ë¥´ë‹¤ | J129: p | K129: 764651 | L129: kr | M129: 1 | N129: ì¼€íƒ€ë§ˆ | O129: p | P129: 79317 | Q129: kr | R129: 1 | S129: ìš¸íŠ¸ë¼ë¦¬ìŠ¤í¬ | T129: t | U129: Bronze | V129: 4 | W129: 14 | X129: 94 | Y129: 2014-09-05 | Z129: 15 days | AA129: 2014-09-21T06:07:34 | AB129: 4727320-1|2025325-1|764651-1|79317-1 | AC129: 0 | AD129: 129
A130: 2584856 | B130: kr | C130: 1 | D130: BinLaden | E130: z | F130: 2529069 | G130: kr | H130: 1 | I130: Runa | J130: p | K130: 1470691 | L130: kr | M130: 1 | N130: Tukutz | O130: t | P130: 278361 | Q130: kr | R130: 1 | S130: Saviet | T130: p | U130: Bronze | V130: 2 | W130: 7 | X130: 94 | Y130: 2014-09-13 | Z130: 7 days | AA130: 2014-09-21T06:07:34 | AB130: 2584856-1|2529069-1|1470691-1|278361-1 | AC130: 0 | AD130: 130
A131: 3906411 | B131: kr | C131: 1 | D131: MSTG | E131: t | F131: 3874706 | G131: kr | H131: 1 | I131: MSTJ | J131: t | K131: 3874169 | L131: kr | M131: 1 | N131: MSTO | O131: r | P131: 1335119 | Q131: kr | R131: 1 | S131: MSTL | T131: z | U131: Bronze | V131: 5 | W131: 8 | X131: 92 | Y131: 2014-07-24 | Z131: 55 days | AA131: 2014-09-21T06:07:34 | AB131: 3906411-1|3874706-1|3874169-1|1335119-1 | AC131: 0 | AD131: 131
A132: 4728702 | B132: kr | C132: 1 | D132: Jee | E132: p | F132: 2525129 | G132: kr | H132: 1 | I132: ì•„ì´ìœ | J132: t | K132: 2004316 | L132: kr | M132: 1 | N132: AQUATERRA | O132: p | P132: 1614418 | Q132: kr | R132: 1 | S132: ê¹€ì¹˜ì•ˆë¨¹ì–´ | T132: r | U132: Bronze | V132: 3 | W132: 7 | X132: 92 | Y132: 2014-09-14 | Z132: 6 days | AA132: 2014-09-21T06:07:34 | AB132: 4728702-1|2525129-1|2004316-1|1614418-1 | AC132: 0 | AD132: 132
A133: 4019995 | B133: kr | C133: 1 | D133: í•‘í•‘ì€í–‰ | E133: p | F133: 4016294 | G133: kr | H133: 1 | I133: ì•„ë£°ë£°ë£¨ë£¨ë£¨ë£¨ | J133: t | K133: 3668836 | L133: kr | M133: 1 | N133: í•œê°€ì¸ | O133: t | P133: 2687659 | Q133: kr | R133: 1 | S133: ì•„ì´ìœ | T133: r | U133: Bronze | V133: 2 | W133: 5 | X133: 92 | Y133: 2014-07-20 | Z133: 62 days | AA133: 2014-09-21T06:07:34 | AB133: 4019995-1|4016294-1|3668836-1|2687659-1 | AC133: 0 | AD133: 133
A134: 2555786 | B134: kr | C134: 1 | D134: í”„ë Œ | E134: p | F134: 1803058 | G134: kr | H134: 1 | I134: Aras | J134: t | K134: 1104246 | L134: kr | M134: 1 | N134: deviltoss | O134: t | P134: 91078 | Q134: kr | R134: 1 | S134: ëŒ€ê¸¸ì´ | T134: r | U134: Bronze | V134: 3 | W134: 0 | X134: 90 | Y134: 2014-07-24 | Z134: 57 days | AA134: 2014-09-21T06:07:34 | AB134: 2555786-1|1803058-1|1104246-1|91078-1 | AC134: 0 | AD134: 134
A135: 1063680 | B135: kr | C135: 2 | D135: WarMachine | E135: t | F135: 260514 | G135: kr | H135: 2 | I135: carolpika | J135: r | K135: 202798 | L135: kr | M135: 2 | N135: æ¨“ä¸‹é‚£å€‹è¶…äºº | O135: z | P135: 56659 | Q135: kr | R135: 2 | S135: è±†æ¼¿ | T135: t | U135: Bronze | V135: 4 | W135: 4 | X135: 90 | Y135: 2014-09-19 | Z135: 1 days | AA135: 2014-09-21T06:07:34 | AB135: 1063680-2|260514-2|202798-2|56659-2 | AC135: 0 | AD135: 135
A136: 2656546 | B136: kr | C136: 1 | D136: BloodStorm | E136: p | F136: 1505676 | G136: kr | H136: 1 | I136: ì§‘ë‚˜ê°„ì˜¤í¬ì•„ì €ì”¨ | J136: z | K136: 480776 | L136: kr | M136: 1 | N136: í™”ë ¤í•œì˜¤í›„ | O136: t | P136: 352042 | Q136: kr | R136: 1 | S136: í”¼ì•„ë¥´ì¹´ | T136: z | U136: Bronze | V136: 4 | W136: 5 | X136: 90 | Y136: 2014-08-03 | Z136: 49 days | AA136: 2014-09-21T06:07:34 | AB136: 2656546-1|1505676-1|480776-1|352042-1 | AC136: 0 | AD136: 136
